Workbook

Sheet Inhalt
B2: ="Bitte beachten Sie, daß die Ergebnisse dieser Rechenhilfe mit der gleichen kritischen Aufmerksamkeit bewertet werden müssen, die wir bei der Prüfung von Bescheiden der Jobcenter empfehlen."&CHAR(10)&"Die Rechenergebnisse liefern Anhaltspunkte und Hinweise für weitere Klärungen, können jedoch eine qualifizierte Sozial- oder Rechtsberatung nicht ersetzen." -> Bitte beachten Sie, daß die Ergebnisse dieser Rechenhilfe mit der gleichen kritischen Aufmerksamkeit bewertet werden müssen, die wir bei der Prüfung von Bescheiden der Jobcenter empfehlen. Die Rechenergebnisse liefern Anhaltspunkte und Hinweise für weitere Klärungen, können jedoch eine qualifizierte Sozial- oder Rechtsberatung nicht ersetzen.
K8: =IF(Debug!M81,Debug!N81,IF(Assistent!J3<>"",Assistent!J3& IF(OR(Debug!N12,Debug!M25),"",CHAR(10)&CHAR(10)&"Makros sind nicht ausführbar !" &CHAR(10)&CHAR(10)&Tipp01&CHAR(10)&CHAR(10)&Tipp02 )&CHAR(10)&CHAR(10)&IF(Debug!M25," Wenn Sie diesen Text sehen, reagieren die farbigen Schaltflächen auf den Seiten 'Assistent', 'FAQ', 'ALG2', 'KdU' und so weiter nicht auf Mausklicks."&CHAR(10)&CHAR(10)&Tipp01&CHAR(10)&CHAR(10)&Tipp02,IF(AND(ANoA,Debug!N12),Tipp01&" "&Tipp02,"")),Assistent!A122&CHAR(10)&Assistent!A123&CHAR(10)&Assistent!A124&CHAR(10)&CHAR(10)&Assistent!A125&CHAR(10)&Assistent!A126&CHAR(10)&CHAR(10)&Assistent!D145&CHAR(10)&CHAR(10)&CHAR(10)&CHAR(10)&CHAR(10)&CHAR(10)&"Version: "&Revision!F1)) -> !! Achtung !! Der Assistent funktioniert nur, wenn Sie die 'Makro-Sicherheit' auf 'gering' eingestellt haben bzw. die Datei 'aktiviert' wurde (siehe Seite 37 der Anleitung zur Berechnungshilfe) Makros sind nicht ausführbar ! Die wesentlichen Funktionen der Berechnungshilfe funktionieren auch ohne Makros und Schaltflächen. In der Anleitung finden Sie Hinweise dazu.
P34: -
K37: =IF(Assistent!J3<>"",Assistent!A122&CHAR(10)&Assistent!A123&CHAR(10)&Assistent!A124&CHAR(10)&CHAR(10)&Assistent!A125&CHAR(10)&Assistent!A126&CHAR(10)&CHAR(10)&Assistent!D145&CHAR(10)&CHAR(10)&CHAR(10)&CHAR(10)&CHAR(10)&CHAR(10)&"Version: "&Revision!F1,"") -> Sozialberatung des Diakonischen Werks Hannover Burgstraße 8-10 30159 Hannover (0511) 3687 - 191 Version: V2026-01-25

Sheet Assistent
A1: =IF(X2,"","-") ->  | D1: =IF(Z2,IF(Y2,IF(AF1=0,AA3&IF(AD2,"Zwischene","E")&"rgebnis"&IF(NOT(AD2),IF(Debug!M22," zweifelhaft",""),"")&": " & 'ALG2'!F96 &" "&TEXT(Y3,"0.0,00") & IF(Y4=""," €",", ")&Y4,IF(AF3>0,"Es fehlen Angaben zum Arbeitseinkommen !","")),ShTab!Y6&ShTab!Y7),REPT(" ",100)&"Assistent ist deaktiviert !") -> Zwischenergebnis: Auszahlungsbetrag 563,00 € | X1: 1 | Y1: ANoC1 | Z1: ANoC0 | AA1: NoCalc | AD1: =AD9+AD10+AD11+AD15+AD18+AD20+AD22+AD24+AD26+AD28+AD30+AD32+AD36+AD38+AD43+AD47+AD49+AD51+AD53+AD54+AD56+AD58+AD67+AD77+AD79+AD83+AD85+AD96+AD105 -> 400 | AE1: =AE18+AE20+AE22+AE24+AE26+AE28+AE30+AE32+AD60 -> 0 | AF1: =AD9+AD10+AD11+AD15+AD18+AD20+AD22+AD24+AD26+AD28+AD30+AD32+AD36+AF3 -> 0 | AI1: =IF(MAX(AI9:AI145)=0,"",MAX(AI9:AI145)) -> 7000 | AJ1: =IF(AI1<>"",VLOOKUP(AI1,AI8:AI145,1,FALSE),"") -> 7000 | AK1: =CONCATENATE(AK9,AK11,AK13,AK16,AK18,AK20,AK22,AK24,AK26,AK28,AK30,AK32,AK36,AK38,AK42,AK43,AK44,AK47,AK49,AK51,AK53,AK54,AK56,AK58,AK60,AK67,AK88,AK93,AK96,AK110) -> $N$47 | AL1: =IF(AND(AK1&AK2="",OR(N67="ja",P96="ja")),IF(AND(P96="ja",AK1&AK2="",AG109-AG110=0),"",IF(AND(AK1&AK2="",N67="ja",AG77=0),"$D$77",AK1)),IF(AND(N67="ja",P96="",AG77=0),"$D$77",AK1&AK2)) -> $N$47 | AM1: =IF(Y2,"","X")&IF(Z2,"","X")&IF(AA2,"","X") ->  | AN1: =IF(Debug!A24,AL1,"") ->  | AO1: =IF(Debug!A24,B178,"") -> 
C2: Version: 09.06.2023 | D2: =LEFT('ALG2'!A27,43)& IF(Werte10!A5," ! (auf Rechenblatt 'ALG2' wählbar)","") -> Leistungstabelle seit 01.01.2026 | V2: =IF(Debug!M22,Setup!O5,"") ->  | X2: =IF(OR(Y2=1,Y74,Y94),1,0) -> 1 | Y2: =Debug!A16 -> 1 | Z2: =Debug!A15 -> 1 | AA2: =Debug!A8 -> 1 | AB2: =IF(AND(Debug!F9="MO",Debug!F7>13),"Klicken Sie auf das Zeichen ˄ neben dem ? um die Menüleiste zu verkleinern oder auf das v neben dem ? um zu vergrößern","") ->  | AD2: =IF(AD1+AE1>0,1,0) -> 1 | AK2: =AK63&AK77&AK83&AK85&AK103&AK105 -> 
J3: =IF(Debug!M81,Debug!N81,IF(Z2,IF(Debug!A6="OK","","!! Achtung !!"&CHAR(10)&IF(AND(Debug!F9="MO",NOT(Debug!N19),NOT(Debug!N20)),CHAR(10),"")&IF(AND(OR(Debug!N19,Debug!N20),Debug!F9="MO"),"Diese "&Debug!O21&"-Version des MicrosoftOffice führt keine Makros aus. "&CHAR(10)&"Deshalb funktioniert weder der Assistent noch der Gehaltsrechner !"&IF(AND(Debug!N19,NOT(Debug!N20)),CHAR(10)&"Als Alternative könnten Sie LibreOffice für Mac installieren.",""),"Der Assistent funktioniert nur, wenn Sie die 'Makro-Sicherheit' auf 'gering' eingestellt haben bzw. die Datei 'aktiviert' wurde"&CHAR(10)&"(siehe Seite "&Debug!M40&" der Anleitung zur Berechnungshilfe)" & IF(Debug!N11,CHAR(10)&CHAR(10)&"OpenOffice: Extras -> Einstellungen -> Laden/Speichern -> Vba-Eigenschaften -> 'ausführbaren Code aktivieren' ",""))),"Assistent ist deaktiviert ! "&CHAR(10)&CHAR(10)&IF(AND(Debug!O17<4,OR(Debug!A32="xls",Debug!A32="xlsm",Debug!A32="xlt",Debug!A32="xltm")),"auf 'Assistent' klicken oder"&CHAR(10)&"auf Seite 'Setup' aktivieren",Setup!O27))) -> !! Achtung !! Der Assistent funktioniert nur, wenn Sie die 'Makro-Sicherheit' auf 'gering' eingestellt haben bzw. die Datei 'aktiviert' wurde (siehe Seite 37 der Anleitung zur Berechnungshilfe) | Y3: =IF('ALG2'!G96<0,"- "& TEXT(ABS('ALG2'!G96),"0,00"),IF('ALG2'!G96<100,TEXT('ALG2'!G96,"0,00"),TEXT('ALG2'!G96,"0.00,00")))& " €" & Z5 -> 563,00 € | Z3: =IF(Y4="",35,1) -> 35 | AA3: =REPT(" ",Z3) ->  | AF3: =IF(ISERROR(FIND("!",C77,1)),0,1)+AD79 -> 0 | AJ3: =AJ4+1 -> 106
A4: Sozialberatung | W4: ja | X4: nein | Y4: =IF('ALG2'!J98<>"",'ALG2'!J98 &" "& TEXT('ALG2'!J99,"0,00") & " € "&'ALG2'!K99 &" !","") ->  | AJ4: 105
A5: des | W5: nein | X5: 0 | Z5: =IF('ALG2'!G97>0," + "&TEXT('ALG2'!G97,"0,00")&" € Sofort-KiZ","") ->  | AJ5: 104
A6: Diakonischen Werks Hannover | X6: 1 | Y6: =ShTab!Y6 -> 0 | AJ6: 103
X7: 2 | Y7: =ShTab!Y7 -> Kinderzuschlag [KiZ] | AA7: Pruefwerte | AJ7: 102
A8: Personen in der Bedarfsgemeinschaft / Haushaltsgemeinschaft | W8: ja | X8: 3 | Z8: Eink. HA | AA8: ='ALG2'!H27+Erwerbseinkommen!I6+Erwerbseinkommen!I7+'ALG2'!W67+ShTab!D72+ShTab!F72 -> 0 | AJ8: 101
B9: ="Ich lebe allein in meiner Wohnung "&IF(N9="","(ja/nein)",IF(AND(N9<>"ja",N11="nein",N13="nein",N16="nein")," - kann das richtig sein ?","")) -> Ich lebe allein in meiner Wohnung | L9: =IF(OR(N9="",AND(N9="nein",N11="nein",N13="nein",OR(N16="nein",AND(N16=0,N16<>"")))),"==>","") ->  | N9: ja | W9: =IF(W10="","nein","kein E.fall") -> nein | X9: 4 | AD9: =IF(N9="",100,0) -> 0 | AI9: =AD9*AJ9 -> 0 | AJ9: 100 | AK9: =IF(AI9=$AJ$1,ADDRESS(ROW(),AL9),"") ->  | AL9: =IF(AI9=$AJ$1,AG$18,"") -> 
W10: =KdU!AM14 ->  | X10: 5 | AJ10: 99
B11: =IF(OR(N9="nein",N11<>""),"Ich lebe mit meiner Partnerin / meinem Partner im gemeinsamen Haushalt "& IF(N11="","(ja/nein)",""),"") ->  | L11: =IF(AND(B11<>"",N11=""),"==> ","") ->  | X11: 6 | AD11: =IF(AND(B11<>"",N11=""),100,0) -> 0 | AG11: =IF(N11="ja",1.6,IF(N11="nein",2.6,0.6)) -> 0.6 | AI11: =AD11*AJ11 -> 0 | AJ11: 98 | AK11: =IF(AI11=$AJ$1,ADDRESS(ROW(),AL11),"") ->  | AL11: =IF(AI11=$AJ$1,AG$18,"") -> 
AJ12: 97
B13: =IF(OR(N9="nein",N16<>""),"Ich wohne in Wohngemeinschaft mit weiteren Personen" & IF(OR(N13="nein",AND(N13<>"",N13=0)),""," (Anzahl der Personen)"),"") ->  | L13: =IF(AND(B13<>"",N13=""),"==> ","") ->  | N13: nein | P13: =IF(W14>0,IF(X14,"Kinder ab 18 Jahren, die Kindergeld erhalten.","wählen Sie 'ja' aus, wenn Sie Kindergeld für ein Kind erhalten, daß 18 Jahre alt oder älter ist"),"") ->  | Y13: =IF(ISERROR(VALUE(N13)),0,VALUE(N13)) -> 0 | AD13: =IF(AND(B13<>"",N13=""),100,0) -> 0 | AG13: Spalte | AH13: Zeile | AI13: =AD13*AJ13 -> 0 | AJ13: 96 | AK13: =IF(AI13=$AJ$1,ADDRESS(ROW(),AL13),"") ->  | AL13: =IF(AI13=$AJ$1,AG$18,"") -> 
W14: =SUM(W18:W32) -> 0 | X14: =IF(W14=Z16,TRUE,FALSE) -> TRUE | AJ14: 95
AA15: =KdU!BT47 -> Erdgas | AJ15: 94
B16: =IF(OR(N9="nein",N16<>""),"Ich wohne mit Kindern in gemeinsamen Haushalt" & IF(OR(N16="nein",AND(N16<>"",N16=0)),""," (Anzahl der Kinder)"),"") ->  | L16: =IF(AND(B16<>"",N16=""),"==> ","") ->  | V16: =IF('ALG2'!E57>0,'ALG2'!E57,"") ->  | X16: nein | Y16: =IF(ISERROR(VALUE(N16)),0,VALUE(N16)) -> 0 | Z16: =SUM(Z18:Z32) -> 0 | AA16: =KdU!BU47 -> Fernwärme | AB16: =IF(V16<>"","Kindergeld","") ->  | AD16: =IF(AND(B16<>"",N16=""),100,0) -> 0 | AG16: 18 | AH16: 18 | AI16: =AD16*AJ16 -> 0 | AJ16: 93 | AK16: =IF(AI16=$AJ$1,ADDRESS(ROW(),AL16),"") ->  | AL16: =IF(AI16=$AJ$1,AG$18,"") -> 
X17: 0 | AA17: =KdU!BV47 -> Nachtstrom | AJ17: 92
B18: =IF(VermVisible=TRUE,IF(OR(D72<>"",N16<>""),"kein ALG2, wenn Vermögen größer als Freibetrag:"&CHAR(10)&Verm!B51,"zur Berechnung von Vermögensfreibeträgen" &CHAR(10)&"Lebensalter auf 'ALG2' eintragen !"),"") ->  | J18: =IF(N$9="nein",IF(ISNUMBER(N$16),IF(N$16>0,X36&IF(N16>1, X18 & ". ","")&Y36,""),""),"") ->  | L18: =IF(AND(J18<>"",N18=""),"==> ","") ->  | T18: =IF(AND(J18<>"",R18="",W18>0),"<==","") ->  | V18: =IF('ALG2'!E62>0,'ALG2'!E62,"") ->  | W18: =IF(AND(J18<>"",N18>17),1,0) -> 0 | X18: =X17+1 -> 1 | Y18: =IF(N18<>"",1,0) -> 0 | Z18: =IF(AND(W18>0,R18="ja"),1,0) -> 0 | AA18: =KdU!BW47 -> Heizöl | AB18: =IF(V18<>"","Unterhalt, Unterhaltsvorschuß oder anrechenbares Elterngeld","") ->  | AD18: =IF(AND(J18<>"",N18=""),100,0) -> 0 | AE18: =IF(AND(J18<>"",R18="",W18>0),100,0) -> 0 | AG18: 14 | AI18: =IF(AE18>0,AE18*AJ18,AD18*AJ18) -> 0 | AJ18: =AJ20+1 -> 91 | AK18: =IF(AI18=$AJ$1,ADDRESS(ROW(),AL18),"") ->  | AL18: =IF(AI18=$AJ$1,AG$18+IF(AE18>0,AG$20,0),"") -> 
X19: =X18+1 -> 2
J20: =IF(N$9="nein",IF(ISNUMBER(N$16),IF(N$16>=VALUE(X19),X36& X19 & ". "&Y36,""),""),"") ->  | L20: =IF(AND(J20<>"",N20=""),"==> ","") ->  | W20: 0 | X20: 3 | Y20: =IF(N20<>"",1,0) -> 0 | Z20: 0 | AA20: =KdU!BX47 ->  | AD20: 0 | AE20: 0 | AG20: 4 | AI20: =IF(AE20>0,AE20*AJ20,AD20*AJ20) -> 0 | AJ20: =AJ22+1 -> 90 | AK20: =IF(AI20=$AJ$1,ADDRESS(ROW(),AL20),"") ->  | AL20: =IF(AI20=$AJ$1,AG$18+IF(AE20>0,AG$20,0),"") -> 
X21: 4
J22: =IF(N$9="nein",IF(ISNUMBER(N$16),IF(N$16>=VALUE(X20),X36& X20 & ". "&Y36,""),""),"") ->  | W22: 0 | X22: 5 | Y22: =IF(N22<>"",1,0) -> 0 | Z22: 0 | AD22: 0 | AE22: 0 | AG22: =Y16*11 -> 0 | AI22: 0 | AJ22: =AJ24+1 -> 89 | AK22: =IF(AI22=$AJ$1,ADDRESS(ROW(),AL22),"") ->  | AL22: =IF(AI22=$AJ$1,AG$18+IF(AE22>0,AG$20,0),"") -> 
X23: 6
J24: =IF(N$9="nein",IF(ISNUMBER(N$16),IF(N$16>=VALUE(X21),X36& X21 & ". "&Y36,""),""),"") ->  | W24: 0 | X24: 7 | Y24: =IF(N24<>"",1,0) -> 0 | Z24: 0 | AD24: 0 | AE24: 0 | AG24: ='ALG2'!E52 -> 563 | AI24: 0 | AJ24: =AJ26+1 -> 88 | AK24: =IF(AI24=$AJ$1,ADDRESS(ROW(),AL24),"") ->  | AL24: =IF(AI24=$AJ$1,AG$18+IF(AE24>0,AG$20,0),"") -> 
X25: 8
J26: =IF(N$9="nein",IF(ISNUMBER(N$16),IF(N$16>=VALUE(X22),X36& X22 & ". "&Y36,""),""),"") ->  | W26: 0 | Y26: =IF(N26<>"",1,0) -> 0 | Z26: 0 | AD26: 0 | AE26: 0 | AG26: ='ALG2'!E57 -> 0 | AI26: 0 | AJ26: =AJ28+1 -> 87 | AK26: =IF(AI26=$AJ$1,ADDRESS(ROW(),AL26),"") ->  | AL26: =IF(AI26=$AJ$1,AG$18+IF(AE26>0,AG$20,0),"") -> 
J28: =IF(N$9="nein",IF(ISNUMBER(N$16),IF(N$16>=VALUE(X23),X36& X23 & ". "&Y36,""),""),"") ->  | W28: 0 | Y28: =IF(N28<>"",1,0) -> 0 | Z28: 0 | AD28: 0 | AE28: 0 | AI28: 0 | AJ28: =AJ30+1 -> 86 | AK28: =IF(AI28=$AJ$1,ADDRESS(ROW(),AL28),"") ->  | AL28: =IF(AI28=$AJ$1,AG$18+IF(AE28>0,AG$20,0),"") -> 
J30: =IF(N$9="nein",IF(ISNUMBER(N$16),IF(N$16>=VALUE(X24),X36& X24 & ". "&Y36,""),""),"") ->  | W30: 0 | Y30: =IF(N30<>"",1,0) -> 0 | Z30: 0 | AD30: 0 | AE30: 0 | AI30: 0 | AJ30: =AJ32+1 -> 85 | AK30: =IF(AI30=$AJ$1,ADDRESS(ROW(),AL30),"") ->  | AL30: =IF(AI30=$AJ$1,AG$18+IF(AE30>0,AG$20,0),"") -> 
A32: =IF(VermVisible=TRUE,Verm!P17,"") ->  | J32: =IF(N$9="nein",IF(ISNUMBER(N$16),IF(N$16>=VALUE(X25),X36& X25 & ". "&Y36,""),""),"") ->  | W32: 0 | Y32: =IF(N32<>"",1,0) -> 0 | Z32: 0 | AD32: 0 | AE32: 0 | AI32: 0 | AJ32: 84 | AK32: =IF(AI32=$AJ$1,ADDRESS(ROW(),AL32),"") ->  | AL32: =IF(AI32=$AJ$1,AG$18+IF(AE32>0,AG$20,0),"") -> 
AJ33: 83
A34: Mehrbedarfe | Y34: =SUM(Y18:Y32) -> 0 | Z34: =SUM(Z18:Z32) -> 0 | AJ34: 82
B35: =IF( AND(N9="nein",N16>0),IF('ALG2'!R34="kein MB","kein ","") & 'ALG2'!A33 & IF('ALG2'!R34="kein MB"," !","")& IF('ALG2'!R34="MB_halbiert",", halbiert wegen 'Wechselmodell' !",""),"") ->  | R35: =IF(MAX('ALG2'!E34:'ALG2'!E37)>0,TEXT(MAX('ALG2'!E34:'ALG2'!E37),"0,00"),"") ->  | S35: =IF(R35<>"","€","") ->  | AJ35: 81
B36: ="Ist bei Ihnen eine Schwangerschaft (nach der 12. Woche) festgestellt worden ?" -> Ist bei Ihnen eine Schwangerschaft (nach der 12. Woche) festgestellt worden ? | L36: =IF(AND(B36<>"",N36=""),"==> ","") ->  | N36: nein | R36: =IF('ALG2'!G31>0,TEXT('ALG2'!G31,"0,00"),"") ->  | S36: =IF(R36<>"","€ "&'ALG2'!A31,"") ->  | X36: ="Alter des " -> Alter des | Y36: Kindes | AD36: =IF(AND(B36<>"",N36=""),100,0) -> 0 | AI36: =AD36*AJ36 -> 0 | AJ36: =AJ38+1 -> 80 | AK36: =IF(AI36=$AJ$1,ADDRESS(ROW(),AL36),"") ->  | AL36: =IF(AI36=$AJ$1,AG$18,"") -> 
B38: =IF(AND(N9="nein",N11="ja"),"Besteht bei Ihner Partnerin eine Schwangerschaft (nach der 12. Woche) ?","") ->  | L38: =IF(AND(B38<>"",N38=""),"==> ","") ->  | N38: nein | R38: =IF('ALG2'!H31>0,TEXT('ALG2'!H31,"0,00"),"") ->  | S38: =IF(R38<>"","€ "&'ALG2'!A31,"") ->  | AD38: =IF(AND(B38<>"",N38=""),100,0) -> 0 | AI38: =AD38*AJ38 -> 0 | AJ38: 79 | AK38: =IF(AI38=$AJ$1,ADDRESS(ROW(),AL38),"") ->  | AL38: =IF(AI38=$AJ$1,AG$18,"") -> 
R39: =IF(AA39>0,AA39,"") ->  | S39: =IF(R39<>"","€","") ->  | T39: =IF(R39<>"","Mehrbedarf für Ernährung"&IF('ALG2'!A239<>"",", "&'ALG2'!A239,""),"") ->  | AA39: =IF('ALG2'!G27>0,'ALG2'!G41,0)+IF('ALG2'!H27>0,'ALG2'!H41,0)+IF('ALG2'!I27>0,'ALG2'!I41,0)+IF('ALG2'!J27>0,'ALG2'!J41,0)+IF('ALG2'!K27>0,'ALG2'!K41,0)+IF('ALG2'!L27>0,'ALG2'!L41,0)+IF('ALG2'!M27>0,'ALG2'!M41,0)+IF('ALG2'!N27>0,'ALG2'!N41,0)+IF('ALG2'!O27>0,'ALG2'!O41,0)+IF('ALG2'!P27>0,'ALG2'!P41,0) -> 0 | AJ39: 78
J40: =IF(Orte3!D4<>"","für Wohngeldberechnung: " &Orte3!D4,"") ->  | R40: =IF(AA40>0,AA40,"") ->  | S40: =IF(R40<>"","€","") ->  | T40: =IF(R40<>"",'ALG2'!A39,"") ->  | AA40: ='ALG2'!E39 -> 0 | AJ40: 77
A41: Kosten für die Unterkunft | D41: =IF('ALG2'!Y28>0,"Mietanteile der BG: "&'ALG2'!C2&"/"& 'ALG2'!B2 & " !","") ->  | R41: =IF(AA41>0,AA41,"") ->  | S41: =IF(R41<>"","€","") ->  | T41: =IF(R41<>"",'ALG2'!A40,"") ->  | AA41: ='ALG2'!E40 -> 0 | AJ41: 76
C42: Ich wohne in … (bitte auswählen, wenn in der Liste enthalten) | L42: Region Hannover | P42: =IF(AND(Z2,Debug!A6), KdU!N27," !! Achtung !! Assistent funktioniert nicht ! (siehe Hinweis oben) ") ->  | AD42: =IF(N62<>"ja",IF(P42<>"",100,0),0) -> 0 | AI42: =AD42*AJ42 -> 0 | AJ42: 75 | AK42: =IF(AI42=$AJ$1,ADDRESS(ROW(),AL42),"") ->  | AL42: =IF(AI42=$AJ$1,AG$18,"") -> 
C43: =IF(RIGHT(KdU!S29,1)="!","Achtung ! Die Werte für die Mietobergrenzen sind älter als 2 Jahre !",IF(LEFT(KdU!S29,2)="!!",KdU!AO51,"")) ->  | L43: Hannover | P43: =KdU!N28 ->  | AD43: =IF(OR(N62<>"ja",L42<>""),IF(P43<>"",100,0),0) -> 0 | AI43: =AD43*AJ43 -> 0 | AJ43: 74 | AK43: =IF(AI43=$AJ$1,ADDRESS(ROW(),AL43),"") ->  | AL43: =IF(AI43=$AJ$1,AG$18,"") -> 
C44: Mietobergrenzen gelten ab … (wenn Daten für mehrere Zeiträume vorhanden) | L44: =KdU!K29 -> : 01.06.2024 | P44: =KdU!N29 ->  | AI44: =AG44*AJ44 -> 0 | AJ44: 73 | AK44: =IF(AI44=$AJ$1,ADDRESS(ROW(),AL44),"") ->  | AL44: =IF(AI44=$AJ$1,AG$18,"") -> 
J45: =IF(L45<>"","gültig für:","") ->  | L45: =KdU!M30 ->  | AJ45: 72
P46: =IF('ALG2'!Y28>0," Mietanteile der BG","") ->  | AJ46: 71
C47: =IF(OR(WE!G42>0,WE!G44>0,'ALG2'!Y28>0),KdU!B15 & " " &IF('ALG2'!Y28>0,"",KdU!I15 & " €"),"Kaltmiete (Grundmiete ohne Nebenkosten und Heizkosten)") -> Kaltmiete (Grundmiete ohne Nebenkosten und Heizkosten) | L47: =IF(AD47>0,"==> ","") -> ==> | O47: =IF(AND(N47>=0,NOT(OR(WE!G42>0,WE!G44>0)))," €","") -> € | P47: =IF(AND(Y13>0,KdU!U3>0),TEXT(KdU!U3,"0,00")& " €","") ->  | R47: =IF(KdU!U65,KdU!H45,IF(KdU!AN43,IF(TEXT(KdU!H42,"0.0,00")<>"00,00",TEXT(KdU!H42,"0.0,00"),IF(KdU!AO88=1,"Grenzwert ?","")),"")) -> 499,00 | S47: =IF(R47<>"",IF(R47<>"Grenzwert ?","€",""),"") -> € | T47: =IF(ISERROR(FIND("Wohnfläche angeben !",KdU!B28)),IF(KdU!U65,KdU!B45,IF(OR(R47<>"",NOT(KdU!AN43)),IF(ISERROR(FIND("==>",KdU!B28)),KdU!B28,""),"")),"! zur Berechnung des Grenzwerts" & RIGHT(KdU!B28,21) & CHAR(10)&" (auf Rechenblatt 'KdU')") -> angemessene Miete für die BG incl. Betriebskosten | AD47: =IF(OR(AND(C47<>"",N47="",KdU!F17<>"FEHLER ! "),AND(KdU!F15="FEHLER ! ",N47>0)),IF(OR(WE!G42>0,WE!G44>0),0,100),0) -> 100 | AG47: =N47 -> 0 | AI47: =AD47*AJ47 -> 7000 | AJ47: =AJ49+1 -> 70 | AK47: =IF(AI47=$AJ$1,ADDRESS(ROW(),AL47),"") -> $N$47 | AL47: =IF(AI47=$AJ$1,AG$18,"") -> 14
C49: =IF(OR(WE!G42>0,WE!G44>0,KdU!F15="FEHLER ! "),IF(OR(KdU!F15="FEHLER ! ",KdU!F17="FEHLER ! "),"Eintragungen nur hier (bzw auf Seite 'KdU') ODER auf Seite 'WE' !",""),"Betriebskosten ohne Heizung und Warmwasserbereitungskosten"&IF(N49>0,".","")) -> Betriebskosten ohne Heizung und Warmwasserbereitungskosten | L49: =IF(AD49>0,"==> ","") ->  | O49: =IF(AND(N49>=0,NOT(OR(WE!G42>0,WE!G44>0)))," €","") -> € | P49: =IF(AND(Y13>0,KdU!K24>0),TEXT(KdU!K24,"0,00")& " €","") ->  | R49: =IF(AND(KdU!K43>0,L42<>"",R60=KdU!I76),TEXT(KdU!K43,"0,00"),"") ->  | S49: =IF(R49<>"","€","") ->  | T49: =IF(R49<>"",SUBSTITUTE(CLEAN(KdU!M43),"€ ","",1),"") ->  | AD49: =IF(OR(AND(C49<>"",N49="",ShTab!AE48=0,KdU!F15<>"FEHLER ! "),AND(KdU!F17="FEHLER ! ",N49>0)),100,0) -> 0 | AE49: =ShTab!AE48 -> 1 | AF49: =IF(R49<>"",1,0) -> 0 | AG49: =+N49 -> 0 | AI49: =AD49*AJ49 -> 0 | AJ49: 69 | AK49: =IF(AI49=$AJ$1,ADDRESS(ROW(),AL49),"") ->  | AL49: =IF(AI49=$AJ$1,AG$18,"") -> 
AJ50: 68
C51: ="Heizkosten" & IF(WE!G43>0," im Wohneigentum (Seite WE) "&WE!G43&" €","") -> Heizkosten | K51: =IF(KdU!H21<>0,"in Zahlung an Vermieter enth.","") ->  | L51: =IF(AD51>0,"==> ","") -> ==> | O51: =IF(AND(N51>=0,NOT(WE!G43>0))," €","") -> € | P51: =IF(AND(Y13>0,KdU!K54>0),TEXT(KdU!K54,"0,00")& " €","") ->  | R51: =IF(OR(KdU!U65,KdU!V33),"",IF(KdU!H72>0,IF(KdU!AN54="allinc","(","")&TEXT(KdU!H72,"0,00"),"")) ->  | S51: =IF(R51<>"","€","") ->  | T51: =IF(R51<>"",IF(KdU!AN54="allinc","in angemessener Miete enthalten)",KdU!B72),"") ->  | AD51: =IF(AND(C51<>"",N51="",WE!G43=0),100,0) -> 100 | AG51: =N51 -> 0 | AI51: =AD51*AJ51 -> 6700 | AJ51: =AJ53+1 -> 67 | AK51: =IF(AI51=$AJ$1,ADDRESS(ROW(),AL51),"") ->  | AL51: =IF(AI51=$AJ$1,AG$18,"") -> 
C53: Energieträger für die Heizung auswählen | L53: =IF(AD53>0,"==> ","") -> ==> | R53: =IF(AND(L42<>"",KdU!M72>0),TEXT(KdU!M72,"0,00"),"") ->  | S53: =IF(R53<>"","€","") ->  | T53: =IF(R53<>"",SUBSTITUTE(CLEAN(KdU!N72)," € ","",1),"") ->  | AD53: =IF(AND(C53<>"",N53=""),100,0) -> 100 | AF53: =IF(R53<>"",1,0) -> 0 | AG53: =KdU!AO65 -> 1 | AI53: 6600 | AJ53: 66 | AK53: =IF(AI53=$AJ$1,ADDRESS(ROW(),AL53),"") ->  | AL53: =IF(AI53=$AJ$1,AG$18,"") -> 
C54: ="Sind in den Heizkosten die Kosten der Warmwasserbereitung enthalten ?" -> Sind in den Heizkosten die Kosten der Warmwasserbereitung enthalten ? | L54: =IF(AD54>0,"==> ","") -> ==> | AD54: =IF(AND(C54<>"",N54=""),100,0) -> 100 | AG54: =IF(N54="ja",1,IF(N54="nein",2,0)) -> 0 | AI54: 6500 | AJ54: =AJ56+1 -> 65 | AK54: =IF(AI54=$AJ$1,ADDRESS(ROW(),AL54),"") ->  | AL54: =IF(AI54=$AJ$1,AG$18,"") -> 
C56: =IF(N54="nein","Wird Warmwasser separat erzeugt (" & IF(W10="Einzelfall","Einzelfall=wahre Kosten, ja=Pauschale","z.B. mit elektrischem Durchlauferhitzer") & ") ?","") ->  | L56: =IF(AND(C56<>"",N56=""),"==> ","") ->  | R56: =IF(KdU!I58>0,IF(KdU!K58>0,TEXT(KdU!K58,"0,00"),TEXT(KdU!I58,"0,00")),"") ->  | S56: =IF(R56<>"","€","") ->  | T56: =IF(OR(AND(N54="nein",N56="ja"),AND(N54="nein",N58="ja"),NOT(ISERROR(FIND("tat",KdU!N58,1)))),IF(R56<>"","für Warmwasser","")&IF(N56="kein E.Fall",". Kein Einzelfall - Kürzung auf Grenzbetrag !",IF(LEFT(KdU!N58,5)=" "," - "&MID(KdU!N58,7,LEN(KdU!N58)),KdU!N58)),IF(R56<>"","für Warmwasser","")) ->  | AD56: =IF(AND(C56<>"",N56=""),100,0) -> 0 | AG56: =IF(N56="ja",1.1,IF(N56="nein",2.1,0.1)) -> 0.1 | AI56: 0 | AJ56: =AJ58+1 -> 64 | AK56: =IF(AI56=$AJ$1,ADDRESS(ROW(),AL56),"") ->  | AL56: =IF(AI56=$AJ$1,AG$18,"") -> 
C58: =IF(AND(N54="nein",OR(N56="nein",N56="Einzelfall",N56="kein E.fall",AND(N60>W58,N60>0))),"Gibt es einen Warmwasserverbrauchszähler ?","") ->  | L58: =IF(AND(C58<>"",N58=""),"==>","") ->  | R58: =IF(KdU!I16+KdU!I18+KdU!I19+KdU!I20>0,KdU!I16+KdU!I18+KdU!I19+KdU!I20,"") ->  | S58: =IF(R58<>"","Kosten für "&IF(KdU!H16>0,"Schönheitsreparaturen","")&IF(AND(KdU!H16>0,KdU!H18>0),", ","")&IF(KdU!H18>0,"Wassergeld","")&IF(AND(OR(KdU!H16>0,KdU!H18>0),KdU!H19>0),", ","")&IF(KdU!H19>0,"Heizungswartung","")&IF(AND(OR(KdU!H16>0,KdU!H18>0,KdU!H19>0),KdU!H20>0),", ","")&IF(KdU!H20>0,"Kabel-TV ","")& " sind auf Rechenblatt 'KdU' eingetragen.","") ->  | AD58: =IF(AND(C58<>"",N58=""),100,0) -> 0 | AG58: =IF(N58="ja",1.2,IF(N58="nein",2.2,0.2)) -> 0.2 | AI58: 0 | AJ58: =AJ60+1 -> 63 | AK58: =IF(AI58=$AJ$1,ADDRESS(ROW(),AL58),"") ->  | AL58: =IF(AI58=$AJ$1,AG$18,"") -> 
C60: =IF(AND(C58<>"",N58="ja")," Betrag der monatlichen Kosten für Warmwasser"&IF(KdU!H22<>0," (in Zahlung an Vermieter enth.)","") & IF(N60=""," eintragen !","."),"") ->  | L60: =IF(AND(C60<>"",N60="",N58="ja"),"==> ","") ->  | O60: =IF(C60<>""," €","") ->  | P60: =IF(AND(Y13>0,KdU!K58>0),TEXT(KdU!K58,"0,00")& " €","") ->  | R60: =IF('ALG2'!T45,'ALG2'!M48,IF(KdU!I78>0,KdU!I78,IF(KdU!I76>0,KdU!I76,""))) ->  | S60: =IF(R60<>"","€","") ->  | T60: =IF(R60<>"",IF('ALG2'!T45,"KdU nach BSG-Urteil zu MOG ! (sonst "& TEXT(KdU!I76,"0,00")& " €)",IF(KdU!I78>0,KdU!B78,KdU!B76) & IF(OR(AND(N54="nein",N56="nein",N58="nein"),KdU!I78>0)," !","")),"") ->  | AD60: =IF(AND(C60<>"",N60="",N58="ja"),100,0) -> 0 | AG60: =N60 -> 0 | AI60: 0 | AJ60: =AJ62+1 -> 62 | AK60: =IF(AI60=$AJ$1,ADDRESS(ROW(),AL60),"") ->  | AL60: =IF(AI60=$AJ$1,AG$18,"") -> 
C62: =IF(OR(N62="ja",KdU!K43>0,KdU!M72>0),"Für die Berechnung" & IF(N62="ja"," werden "," ") & "die Unterkunftskosten ohne Abzüge berücksichtig" & IF(N62="ja","t.","en ?"),"") -> Für die Berechnung werden die Unterkunftskosten ohne Abzüge berücksichtigt. | L62: =IF(AND(C62<>"",N62=""),"==> ","") ->  | N62: ja | P62: =IF(C180<>"",P160&":"&P161,"") ->  | AF62: =IF(N62="ja",-2,0) -> -2 | AG62: =IF(N62="ja",1.3,IF(N62="nein",2.3,0.3)) -> 1.3 | AJ62: 61
C63: =IF(AND(AF63>0,B178>0),P159&P160&IF(A178>1,"n","")&P161&" können Sie weitere Angaben machen, die die Abzüge von den Unterkunftskosten verringern könnten !","") ->  | P63: =IF(AND(Z2,Debug!A6),C180,CHAR(10)&J3) ->  | AD63: =IF(AND(P63<>"",Setup!L32),100,0) -> 0 | AF63: =SUM(AF49:AF62) -> -2 | AI63: =AD63*AJ63 -> 0 | AJ63: 60 | AK63: =IF(AI63=$AJ$1,ADDRESS(ROW()+1,AL63),"") ->  | AL63: 15
AD64: =IF('ALG2'!G27<>29.1,1,0) -> 0 | AJ64: 59
A65: ="Einkommen der Personen in der Bedarfsgemeinschaft" -> Einkommen der Personen in der Bedarfsgemeinschaft | AD65: =SummeBrutto+SummeNetto+SummeSonst+KdU!AI14+AD64+IF(R60<>"",R60,0)+IF('ALG2'!D62<>"",1,0) -> 1 | AE65: Datei unverändert ? | AJ65: 58
AJ66: 57
B67: ="Haben Sie"&IF(N11="ja",IF(OR(N16="nein",N16=0)," oder",",")&" Ihr(e) Partner(in)","")&IF(OR(N16="nein",N16=0),""," oder ihr"&IF(N16=1," ","e ")&"Kind"&IF(N16=1,"","er"))&" Einkommen aus Erwerbstätigkeit ?" -> Haben Sie Einkommen aus Erwerbstätigkeit ? | L67: =IF(N67="","==> ","") ->  | N67: ja | AD67: =IF(N67="",100,0) -> 0 | AI67: =AD67*AJ67 -> 0 | AJ67: 56 | AK67: =IF(AI67=$AJ$1,ADDRESS(ROW(),AL67),"") ->  | AL67: =IF(AI67=$AJ$1,AG$18,"") -> 
AJ68: 55
C69: =IF(B74,IF(OR(AND(D78="auto",D76=1),AND(F78="auto",F76=1),AND(H78="auto",H76=1),AND(J78="auto",J76=1))," 'auto'-Modus: aus dem Bruttoerwerbseinkommen wird mit dem 'Gehaltsrechner' das Nettoeinkommen berechnet"," 'manuell'-Modus: keine automatische Brutto-Netto-Berechnung, Nettoeinkommen muss selbst eingetragen werden"),"") -> 'auto'-Modus: aus dem Bruttoerwerbseinkommen wird mit dem 'Gehaltsrechner' das Nettoeinkommen berechnet | AJ69: 54
D70: =IF(OR(ShTab!D111=1,D76>0,D97>0),'ALG2'!G28,"") -> Leistungsb. | F70: =IF(OR(F76>0,F97>0),'ALG2'!H28,"") ->  | H70: =IF(OR(H76>0,H97>0),"Kind "&H120,"") ->  | J70: =IF(OR(J76>0,J97>0),"Kind "&J120,"") ->  | W70: Bedingungen | X70: =IF(X72<>"","SpaltenNr","") -> SpaltenNr | Y70: =IF(Y72<>"","ANoC","") -> ANoC | AJ70: 53
AJ71: 52
B72: =IF(AND(D72="",F72="",H72="",J72="",L72="",N72="",P72="",R72="",T72="",V72=""),"","Lebensalter") ->  | D72: =IF(AND(D70<>"",'ALG2'!G2>0,ShTab!D111=1),'ALG2'!G27,"") ->  | F72: =IF(AND(F70<>"",'ALG2'!H2>0,F121=1),'ALG2'!H27,"") ->  | H72: =IF(AND(H70<>"",'ALG2'!I2>0),'ALG2'!I27,"") ->  | J72: =IF(AND(J70<>"",'ALG2'!J2>0),'ALG2'!J27,"") ->  | L72: =IF(AND(L70<>"",'ALG2'!K2>0),'ALG2'!K27,"") ->  | N72: =IF(AND(N70<>"",'ALG2'!L2>0),'ALG2'!L27,"") ->  | P72: =IF(AND(P70<>"",'ALG2'!M2>0),'ALG2'!M27,"") ->  | R72: =IF(AND(R70<>"",'ALG2'!N2>0),'ALG2'!N27,"") ->  | T72: =IF(AND(T70<>"",'ALG2'!O2>0),'ALG2'!O27,"") ->  | V72: =IF(AND(V70<>"",'ALG2'!P2>0),'ALG2'!P27,"") ->  | X72: =IF(B76>0,B76&" - " & CHOOSE(B76,1,2,3,"HV",5,"HA",7,"Ki1",9,"Ki2",11,"Ki3",13,"Ki4",15,"Ki5",17,"Ki6",19,"Ki7",21,"Ki8"),"") -> 14 - Ki4 | Y72: =Y74 -> 1 | AJ72: 51
AJ73: 50
A74: =OR(AND(ShTab!D72=3,ShTab!F72=3),AND(ShTab!D72=3,ShTab!F72=4),AND(ShTab!D72=4,ShTab!F72=3),AND(ShTab!D72=5,ShTab!F72=5),AND(ShTab!D72=5,ShTab!F72=""),AND(ShTab!D72="",ShTab!F72=5),AND(ShTab!D72=5,ShTab!F72=4,D77=F77)) -> FALSE | B74: =IF(N67="nein",FALSE,TRUE) -> TRUE | D74: =ShTab!D72 -> 0 | F74: =ShTab!F72 -> 0 | H74: =ShTab!H72 -> 0 | J74: =ShTab!J72 -> 0 | L74: =ShTab!L72 -> 0 | N74: =ShTab!N72 -> 0 | P74: =ShTab!P72 -> 0 | R74: =ShTab!R72 -> 0 | T74: =ShTab!T72 -> 0 | V74: =ShTab!V72 -> 0 | Y74: =Debug!A17 -> 1 | Z74: ANoC2 | AJ74: 49
C75: =IF(AND(SUM(D75:J75)>0,Setup!L81="ja"),"automatisch gewählte Steuerklasse","") ->  | D75: =IF(ShTab!D72>0,ShTab!D72,"") ->  | F75: =IF(ShTab!F72>0,ShTab!F72,"") ->  | H75: =IF(ShTab!H72>0,ShTab!H72,"") ->  | J75: =IF(ShTab!J72>0,ShTab!J72,"") ->  | L75: =IF(ShTab!L72>0,ShTab!L72,"") ->  | N75: =IF(ShTab!N72>0,ShTab!N72,"") ->  | P75: =IF(ShTab!P72>0,ShTab!P72,"") ->  | R75: =IF(ShTab!R72>0,ShTab!R72,"") ->  | T75: =IF(ShTab!T72>0,ShTab!T72,"") ->  | V75: =IF(ShTab!V72>0,ShTab!V72,"") ->  | AJ75: 48
A76: =OR(AND(D77>F77,ShTab!D72=5,ShTab!F72=3),AND(F77>D77,ShTab!F72=5,ShTab!D72=3),A74,AND(F77>D77,D77>0,ShTab!F72="",ShTab!D72=3),AND(D77>F77,F77>0,ShTab!D72="",ShTab!F72=3)) -> FALSE | B76: 14 | C76: =IF(SUM(D76:V76)>0,TRUE,FALSE) -> TRUE | D76: =IF($B74,IF('ALG2'!G2>0,1,0),0) -> 1 | F76: =IF($B74,IF('ALG2'!H2>0,1,0),0) -> 0 | H76: =IF($B74,IF('ALG2'!I2>0,1,0),0) -> 0 | J76: =IF($B74,IF('ALG2'!J2>0,1,0),0) -> 0 | L76: =IF($B74,IF('ALG2'!K2>0,1,0),0) -> 0 | N76: =IF($B74,IF('ALG2'!L2>0,1,0),0) -> 0 | P76: =IF($B74,IF('ALG2'!M2>0,1,0),0) -> 0 | R76: =IF($B74,IF('ALG2'!N2>0,1,0),0) -> 0 | T76: =IF($B74,IF('ALG2'!O2>0,1,0),0) -> 0 | V76: =IF($B74,IF('ALG2'!P2>0,1,0),0) -> 0 | X76: 4 | Y76: =4+SUM(F76:V76)*2 -> 4 | AJ76: 47
C77: =IF(C76,Erwerbseinkommen!B6&" ","") -> Arbeitseinkommen, brutto (incl. KUG) | F77: 750 | X77: =IF(AND(N67="ja",AG77=0),FALSE,TRUE) -> TRUE | Y77: =COUNTA(D77:V77) -> 1 | AD77: =IF(ISERROR(FIND("!",C77,1)),IF(X77,0,100),0) -> 0 | AG77: =SUM(D77:V77) -> 750 | AH77: =Erwerbseinkommen!E6+Erwerbseinkommen!I6+Erwerbseinkommen!N6+Erwerbseinkommen!R6+Erwerbseinkommen!V6+Erwerbseinkommen!Z6+Erwerbseinkommen!AD6+Erwerbseinkommen!AH6+Erwerbseinkommen!AL6+Erwerbseinkommen!AP6 -> 0 | AI77: =AD77*AJ77 -> 0 | AJ77: 46 | AK77: =IF(AI77=$AJ$1,ADDRESS(ROW(),AL77),"") ->  | AL77: 4
C78: =IF(A76,"Steuerklassen unplausibel, überprüfen !","") ->  | D78: auto | F78: auto | H78: auto | J78: auto | L78: auto | N78: auto | P78: auto | R78: auto | T78: auto | V78: auto | X78: =IF(IF(D78="auto",1,0)+IF(F78="auto",1,0)+IF(H78="auto",1,0)+IF(J78="auto",1,0)+IF(L78="auto",1,0)+IF(N78="auto",1,0)+IF(P78="auto",1,0)+IF(R78="auto",1,0)=8,TRUE,FALSE) -> TRUE | AJ78: 45
C79: =IF(C76,Erwerbseinkommen!B7&" ","") -> Arbeitseinkommen, netto (incl. KUG) | F79: 534.24 | W79: =SUM(F79:V79)+IF('ALG2'!E57>0,'ALG2'!E57,0)+SUM(W105:W108) -> 534.24 | AD79: =IF(ISERROR(FIND("!",C79,1)),0,100) -> 0 | AF79: =MAX(D94:V94) -> 0 | AG79: =SUM(D79:V79) -> 534.24 | AH79: =Erwerbseinkommen!E7+Erwerbseinkommen!I7+Erwerbseinkommen!N7+Erwerbseinkommen!R7+Erwerbseinkommen!V7+Erwerbseinkommen!Z7+Erwerbseinkommen!AD7+Erwerbseinkommen!AH7+Erwerbseinkommen!AL7+Erwerbseinkommen!AP7 -> 0 | AJ79: =AJ80+1 -> 44
C80: =IF(X80>0,"Rentenversicherungsbeitrag:","") ->  | D80: =IF(ShTab!D79>0,ShTab!D79,"") ->  | F80: =IF(ShTab!F79>0,ShTab!F79,"") ->  | H80: =IF(ShTab!H79>0,ShTab!H79,"") ->  | J80: =IF(ShTab!J79>0,ShTab!J79,"") ->  | N80: =IF(ShTab!N79>0,ShTab!N79,"") ->  | P80: =IF(ShTab!P79>0,ShTab!P79,"") ->  | R80: =IF(ShTab!R79>0,ShTab!R79,"") ->  | T80: =IF(ShTab!T79>0,ShTab!T79,"") ->  | V80: =IF(ShTab!V79>0,ShTab!V79,"") ->  | X80: =COUNT(D80:V80) -> 0 | AJ80: 43
C81: =IF(OR(C80<>"",X81>0),"RV bei geringf. Beschäftigung ==>","") ->  | X81: =COUNTA(D81:V81) -> 0 | AJ81: 42
AJ82: 41
C83: =IF('ALG2'!B27>18.25,"'Azubi'-Regelung","Azubi in berufl. Ausbildung") & IF(AND(C120>18.25,Y77>0,W123>0)," ? ==> (ja/nein) "," ") -> 'Azubi'-Regelung | W83: TRUE | X83: =COUNTA(D83:V83) -> 0 | Y83: =IF(Azubi1="ja",1,0)+IF(Azubi2="ja",1,0)+IF(Azubi3="ja",1,0)+IF(Azubi4="ja",1,0)+IF(Azubi5="ja",1,0)+IF(Azubi6="ja",1,0)+IF(Azubi7="ja",1,0)+IF(Azubi8="ja",1,0)+IF(Azubi9="ja",1,0)+IF(Azubi10="ja",1,0) -> 0 | AD83: =IF(C120>18.25,IF(W123=0,0,100)) -> 0 | AI83: =IF(AL83>0,AD83*AJ83,0) -> 0 | AJ83: 40 | AK83: =IF(AL83>0,IF(AI83=$AJ$1,ADDRESS(ROW(),AL83),""),"") ->  | AL83: =IF(D123=TRUE,4,IF(F123=TRUE,6,IF(H123=TRUE,8,IF(J123=TRUE,10,IF(L123=TRUE,12,IF(N123=TRUE,14,IF(P123=TRUE,16,IF(R123=TRUE,18,AM83)))))))) -> 0 | AM83: =IF(T123=TRUE,20,IF(V123=TRUE,22,0)) -> 0
AJ84: 39
C85: =IF(AND(X83>0,'ALG2'!U27>0,C120>18.25,W124>0),"Jünger als 25 Jahre ? => Alter: ","") ->  | W85: TRUE | X85: =COUNTA(D85:V85) -> 0 | AD85: =IF(C120>18.25,IF(W124=0,0,100)) -> 0 | AI85: =IF(AL85>0,AD85*AJ85,0) -> 0 | AJ85: 38 | AK85: =IF(AL85>0,IF(AI85=$AJ$1,ADDRESS(ROW(),AL85),""),"") ->  | AL85: =IF(D124=TRUE,4,IF(F124=TRUE,6,0)) -> 0
C86: Freibeträge | D86: =Erwerbseinkommen!E45 -> 0 | F86: =Erwerbseinkommen!I45 -> 0 | H86: =Erwerbseinkommen!N45 -> 0 | J86: =Erwerbseinkommen!R45 -> 0 | L86: =Erwerbseinkommen!V45 -> 0 | N86: =Erwerbseinkommen!Z45 -> 0 | P86: =Erwerbseinkommen!AD45 -> 0 | R86: =Erwerbseinkommen!AH45 -> 0 | T86: =Erwerbseinkommen!AL45 -> 0 | V86: =Erwerbseinkommen!AP45 -> 0 | AJ86: 37
AJ87: 36
A88: =IF(OR(W88,F88<>""),'ALG2'!I74,"") ->  | H88: =IF(AND(Y88=0,'ALG2'!D62="ja",'ALG2'!E62>0,'ALG2'!N74="")," ("&TEXT('ALG2'!E62,"0,00")& " € Unterhalt für Kinder !)","")&IF(X88," " &TEXT(ShGr!B25,"0,00")&" € " & Gehaltsrechner!A25,"") ->  | R88: =IF(AND(A88<>"",W88),IF(F88<>"ja","bis zu 30 € Freibetrag für die PartnerIn möglich",""),"") ->  | W88: =IF(AND('ALG2'!I74<>"",SUM(F99:F108)+F79<30),TRUE,FALSE) -> FALSE | X88: =IF(ISERROR(FIND("!",Gehaltsrechner!A25,1)>0),FALSE,TRUE) -> FALSE | Y88: =AssNe2+SUM(F105:F108) -> 534.24 | AD88: =IF(AND(W88,F88=""),100,0) -> 0 | AF88: Spalte | AG88: Zeile | AH88: Adresse | AI88: =AD88*AJ88 -> 0 | AJ88: 35 | AK88: =IF(AI88=$AJ$1,ADDRESS(ROW(),AL88),"") ->  | AL88: =IF(AI88=$AJ$1,6,"") -> 
AJ89: 34
B90: =X96&Y95 ->  | W90: =IF(AND(Erwerbseinkommen!AR6>Erwerbseinkommen!AR35,X90>0),TRUE,FALSE) -> FALSE | X90: =IF(AND(D77>0,D90=""),1,0)+IF(AND(F77>0,F90=""),1,0)+IF(AND(H77>0,H90=""),1,0)+IF(AND(J77>0,J90=""),1,0) -> 1 | Y90: =Erwerbseinkommen!B35<>"" -> FALSE | AJ90: 33
AJ91: 32
W92: =IF(Y92>=X92,FALSE,TRUE) -> FALSE | X92: =IF(D92>0,1,0)+IF(F92>0,1,0)+IF(H92>0,1,0)+IF(J92>0,1,0) -> 0 | Y92: =Erwerbseinkommen!AR6 -> 0 | Z92: =IF(AND(D77>0,D90="ja",D92>0),1,0)+IF(AND(F77>0,F90="ja",F92>0),1,0)+IF(AND(H77>0,H90="ja",H92>0),1,0)+IF(AND(J77>0,J90="ja",J92>0),1,0) -> 0 | AJ92: 31
B93: =ROWS(B1:B76) -> 76 | C93: Zeilen | D93: =$B93+IF(Erwerbseinkommen!E1+Erwerbseinkommen!F2>0,3,IF(Erwerbseinkommen!E2>0,1,0)) -> 76 | F93: =$B93+IF(Erwerbseinkommen!I1+Erwerbseinkommen!J2>0,3,IF(Erwerbseinkommen!I2>0,1,0)) -> 76 | H93: =$B93+IF(Erwerbseinkommen!N1+Erwerbseinkommen!O2>0,3,IF(Erwerbseinkommen!N2>0,1,0)) -> 76 | J93: =$B93+IF(Erwerbseinkommen!R1+Erwerbseinkommen!S2>0,3,IF(Erwerbseinkommen!R2>0,1,0)) -> 76 | L93: =$B93+IF(Erwerbseinkommen!V1+Erwerbseinkommen!W2>0,3,IF(Erwerbseinkommen!V2>0,1,0)) -> 76 | N93: =$B93+IF(Erwerbseinkommen!Z1+Erwerbseinkommen!AA2>0,3,IF(Erwerbseinkommen!Z2>0,1,0)) -> 76 | P93: =$B93+IF(Erwerbseinkommen!AD1+Erwerbseinkommen!AE2>0,3,IF(Erwerbseinkommen!AD2>0,1,0)) -> 76 | R93: =$B93+IF(Erwerbseinkommen!AH1+Erwerbseinkommen!AI2>0,3,IF(Erwerbseinkommen!AH2>0,1,0)) -> 76 | T93: =$B93+IF(Erwerbseinkommen!AL1+Erwerbseinkommen!AM2>0,3,IF(Erwerbseinkommen!AL2>0,1,0)) -> 76 | V93: =$B93+IF(Erwerbseinkommen!AP1+Erwerbseinkommen!AQ2>0,3,IF(Erwerbseinkommen!AP2>0,1,0)) -> 76 | AD93: =IF(SUM(D94:V94)>0,100,0) -> 0 | AF93: =IF(AF79>0,CHOOSE(AF79,10,9,8,7,6,5,4,3,2,1),0) -> 0 | AG93: =IF(AF93>0,ROW(AG93),0) -> 0 | AH93: =IF(AF93>0,CHOOSE(AF93,"D","F","H","J","L","N","P","R","T","V")&AG93,0) -> 0 | AI93: =AD93*AJ93 -> 0 | AJ93: 30 | AK93: =IF(AH93<>0,IF(AI93=$AJ$1,ADDRESS(INDIRECT(AH93),AF94+3),""),"") -> 
D94: =IF(D93=$B93,0,10) -> 0 | F94: =IF(F93=$B93,0,9) -> 0 | H94: =IF(H93=$B93,0,8) -> 0 | J94: =IF(J93=$B93,0,7) -> 0 | L94: =IF(L93=$B93,0,6) -> 0 | N94: =IF(N93=$B93,0,5) -> 0 | P94: =IF(P93=$B93,0,4) -> 0 | R94: =IF(R93=$B93,0,3) -> 0 | T94: =IF(T93=$B93,0,2) -> 0 | V94: =IF(V93=$B93,0,1) -> 0 | Y94: =Debug!A18 -> 1 | Z94: ANoC3 | AA94: !! Code der Seite anpassen, wenn Zeilen eingefügt werden !! | AF94: =IF(AF79>0,CHOOSE(AF79,19,17,15,13,11,9,7,5,3,1),0) -> 0 | AJ94: 29
W95: =IF(Y92<>X92,TRUE,FALSE) -> FALSE | X95: =OR(AND(D90="ja",D92=""),AND(F77>0,F90="ja",F92=""),AND(H77>0,H90="ja",H92=""),AND(J90="ja",J92="")) -> FALSE | Y95: =IF(Y90,IF(AND(W90,W95,NOT(X95),NOT(W96)),"?",IF(X95," ==>",IF(W96,".",IF(AND(W90,W95),"?" &CHAR(10)&CHAR(10)&" ==>",".")))),"") ->  | AJ95: 28
B96: ="Haben Sie"&IF(N11="ja",IF(OR(N16="nein",N16=0)," oder",",")&" Ihr(e) Partner(in)","")&IF(OR(N16="nein",N16=0),""," oder ihr"&IF(N16=1," ","e ")&"Kind"&IF(N16=1,"","er"))&" sonst irgendein Einkommen"&IF(C97," (außer Kindergeld" & IF('ALG2'!E62>0," / Unterhaltsvorschuß","")&")","")& " ?" -> Haben Sie sonst irgendein Einkommen ? | P96: nein | R96: =IF(P96=""," <==","") ->  | W96: =AND(AND(D77=0,OR(D90="nein",D90="")),AND(F77=0,OR(F90="nein",F90="")),AND(H77=0,OR(H90="nein",H90="")),AND(J77=0,OR(J90="nein",J90=""))) -> FALSE | X96: =IF(Y90,IF(AND(W90,W95,NOT(X95),NOT(W96)),"Wurden Lohnansprüche für mehrere Monate in diesem Monat ausgezahlt ",IF(X95,"Tragen Sie die Zahl der Monate ein, für die Lohn in diesem Monat gezahlt wurde ",IF(W96,"In diesem Monat wurden Arbeitslöhne nicht nachträglich ausgezahlt",IF(AND(W90,W95),"Weitere Personen " &CHAR(10)&CHAR(10)&"Zahl der Monate ",IF(Z92>0,"Grundfreibeträge mehrerer Monate werden berücksichtigt","In diesem Monat wurden Arbeitslöhne nicht nachträglich ausgezahlt"))))),"") ->  | AD96: =IF(NOT(X99),0,IF(P96="",100,0)) -> 0 | AI96: =AD96*AJ96 -> 0 | AJ96: 27 | AK96: =IF(AI96=$AJ$1,ADDRESS(ROW(),AL96),"") ->  | AL96: 16
A97: =NOT(OR(B74,B97)) -> FALSE | B97: =IF(P96="nein",FALSE,TRUE) -> FALSE | C97: =IF(OR(D99<>"",F99<>"",H99<>"",J99<>"",L99<>"",N99<>"",P99<>"",R99<>"",T99<>"",V99<>""),TRUE,FALSE) -> FALSE | D97: =IF($B97,IF('ALG2'!G2>0,1,0),0) -> 0 | F97: =IF($B97,IF('ALG2'!H2>0,1,0),0) -> 0 | H97: =IF($B97,IF('ALG2'!I2>0,1,0),0) -> 0 | J97: =IF($B97,IF('ALG2'!J2>0,1,0),0) -> 0 | L97: =IF($B97,IF('ALG2'!K2>0,1,0),0) -> 0 | N97: =IF($B97,IF('ALG2'!L2>0,1,0),0) -> 0 | P97: =IF($B97,IF('ALG2'!M2>0,1,0),0) -> 0 | R97: =IF($B97,IF('ALG2'!N2>0,1,0),0) -> 0 | T97: =IF($B97,IF('ALG2'!O2>0,1,0),0) -> 0 | V97: =IF($B97,IF('ALG2'!P2>0,1,0),0) -> 0 | AJ97: 26
AJ98: 25
B99: =IF(C97,"Kindergeld","") ->  | D99: =IF('ALG2'!G56>0,'ALG2'!G56,"") ->  | F99: =IF('ALG2'!H56>0,'ALG2'!H56,"") ->  | H99: =IF('ALG2'!I56>0,'ALG2'!I56,"") ->  | J99: =IF('ALG2'!J56>0,'ALG2'!J56,"") ->  | L99: =IF('ALG2'!K56>0,'ALG2'!K56,"") ->  | N99: =IF('ALG2'!L56>0,'ALG2'!L56,"") ->  | P99: =IF('ALG2'!M56>0,'ALG2'!M56,"") ->  | R99: =IF('ALG2'!N56>0,'ALG2'!N56,"") ->  | T99: =IF('ALG2'!O56>0,'ALG2'!O56,"") ->  | V99: =IF('ALG2'!P56>0,'ALG2'!P56,"") ->  | X99: =IF(AND(P96="ja",AG109-AG110=0),IF(AND(B76>=X76,B76<=Y76,Y99),TRUE,IF(AUVG_Anspr="nein",TRUE,FALSE)),TRUE) -> TRUE | Y99: =IF(B134>77,FALSE,TRUE) -> FALSE | AJ99: 24
AJ100: 23
B101: =IF('ALG2'!E62>0,IF('ALG2'!G62+'ALG2'!H62>0,"Unterhalt / anrechenb. Elterngeld","Unterhaltsvorschuß (UVG)"),"") ->  | D101: =IF('ALG2'!G62>0,'ALG2'!G62,"") ->  | F101: =IF('ALG2'!H62>0,'ALG2'!H62,"") ->  | H101: =IF('ALG2'!I62>0,'ALG2'!I62,"") ->  | J101: =IF('ALG2'!J62>0,'ALG2'!J62,"") ->  | L101: =IF('ALG2'!K62>0,'ALG2'!K62,"") ->  | N101: =IF('ALG2'!L62>0,'ALG2'!L62,"") ->  | P101: =IF('ALG2'!M62>0,'ALG2'!M62,"") ->  | R101: =IF('ALG2'!N62>0,'ALG2'!N62,"") ->  | T101: =IF('ALG2'!O62>0,'ALG2'!O62,"") ->  | V101: =IF('ALG2'!P62>0,'ALG2'!P62,"") ->  | AJ101: 22
AJ102: 21
B103: =IF(X103,MID('ALG2'!A62,5,70),"") ->  | R103: =IF(AND(X103,'ALG2'!D62="")," <==","") ->  | X103: =OR(NOT(ISERROR(FIND("?",'ALG2'!A62,1)>0)),'ALG2'!D62<>"") -> FALSE | AD103: =IF(NOT(X103),0,IF(P103="",100,0)) -> 0 | AI103: =AD103*AJ103 -> 0 | AJ103: 20 | AK103: =IF(AI103=$AJ$1,ADDRESS(ROW(),AL103),"") ->  | AL103: 16
AJ104: 19
B105: =IF(B97,IF('ALG2'!E62>0,IF('ALG2'!D62="nein","Unterhalt/anrechenb. Elterngeld","anderer Betr" & IF('ALG2'!G62+'ALG2'!H62>0,". f. Unterh./ UVG","ag für UVG")),"Unterhalt"),"") ->  | X105: =IF(AND(P96="ja",AG109=0),TRUE,FALSE) -> FALSE | AD105: =IF(X105,100,0) -> 0 | AG105: =SUM(D105:V105) -> 0 | AH105: =SUM('ALG2'!G59:'ALG2'!P59) -> 0 | AI105: =AD105*AJ105 -> 0 | AJ105: 18 | AK105: =IF(AI105=$AJ$1,ADDRESS(ROW(),AL105),"") ->  | AL105: 4
B106: =IF(B97,"Rente","") ->  | AG106: =SUM(D106:V106) -> 0 | AH106: =SUM('ALG2'!G60:'ALG2'!P60) -> 0 | AJ106: 17
B107: =IF(B97,"Krankengeld","") ->  | AG107: =SUM(D107:V107) -> 0 | AH107: =SUM('ALG2'!G61:'ALG2'!P61) -> 0 | AJ107: 16
B108: =IF(B97,IF(Erwerbseinkommen!AS112<>"","ALG1: kein Abzug für "& Erwerbseinkommen!AS112&" ! ","Arbeitslosengeld")) -> FALSE | AG108: =SUM(D108:V108) -> 0 | AH108: =SUM('ALG2'!G66:'ALG2'!P66) -> 0 | AJ108: 15
B109: =IF(AND('ALG2'!T45,'ALG2'!V116<>""),('ALG2'!I111&" "&'ALG2'!V116&IF(AND('ALG2'!V115<>"",'ALG2'!V116<>""),", Kindergeld anrechenbar von "&'ALG2'!V115&".","")),IF('ALG2'!Y88," nicht anrechenbares Einkommen: "&'ALG2'!W89&"-> Einkommen von Kindern darf nur bis zur Höhe des Kindergelds bei den Eltern angerechnet werden !","")) ->  | AG109: =SUM(AG105:AG108)+C183 -> 0 | AH109: =SUM(AH105:AH108)+'ALG2'!F232 -> 0 | AJ109: 14
D110: =IF('ALG2'!Y90>1,"Summe: "& TEXT('ALG2'!W90,"0,00"),"") ->  | F110: =X112 ->  | X110: =IF(Debug!M22," !"&Setup!O5 & " !" &CHAR(10)&CHAR(10),"")&IF('ALG2'!G96>0,"Sie " &IF(Debug!M22,"könnten","haben")&" einen Anspruch auf Arbeitslosengeld 2 in Höhe von "&Y3&IF(Debug!M22," haben","")&".","Sie haben keinen Anspruch auf Arbeitslosengeld 2.")&CHAR(10)&CHAR(10)&"Hinweise zur Berechnung finden Sie auf den anderen Rechenblättern und in der Anleitung zur Berechnungshilfe." -> Sie haben einen Anspruch auf Arbeitslosengeld 2 in Höhe von 563,00 €. Hinweise zur Berechnung finden Sie auf den anderen Rechenblättern und in der Anleitung zur Berechnungshilfe. | AD110: =IF(AND(X131,F110<>""),100,0) -> 0 | AG110: =C183 -> 0 | AI110: =AD110*AJ110 -> 0 | AJ110: 13 | AK110: =IF(AI110=$AJ$1,ADDRESS(ROW(),AL110),"") ->  | AL110: 6
X111: =IF(ShTab!Y98>0,"Ihr usprünglicher Anspruch auf Arbeitslosengeld 2 beträgt " & TEXT(ShTab!Y98,"0.0,00") &" €." & CHAR(10)&"(Anspruch vor Berechnung der 'Antworten auf häufig gestellte Fragen')"& CHAR(10)& CHAR(10),"")& "Bei einem Bruttoeinkommen von " & TEXT(N134,"0.0,00") & " € " &IF(N136>0, "hätten Sie einen Anspruch auf Arbeitslosengeld 2 in Höhe von "& TEXT(N136,"0.0,00") & " €."," oder mehr gelten Sie nicht mehr als bedürftig im Sinne des SGB II.") -> Bei einem Bruttoeinkommen von 00,00 € oder mehr gelten Sie nicht mehr als bedürftig im Sinne des SGB II. | AJ111: 12
X112: =IF(Z2=1,IF(W114>0,X114,IF(H135=0,IF(AND(H137=0,H134=0,H140=0),X110,X111),"")),"") ->  | AJ112: 11
AJ113: 10
W114: =W123+W124 -> 0 | X114: ab 1.7.2023: für junge Menschen bis unter 25 Jahre bleibt das Einkommen - aus Schüler- bzw. Studentenjobs und - aus einer beruflichen Ausbildung genauso wie - aus einem Bundesfreiwilligendienst oder einem freiwilligen Dienst als FSJ- oder FÖJ-Leistende bis zur Höhe der Minijob-Grenze anrechnungsfrei. Das gilt auch während einer dreimonatigen Übergangszeit zwischen Schule und Ausbildung. Der Verdienst aus einem Schülerjob während der Ferien bleibt gänzlich unberücksichtigt. https://magazin.minijob-zentrale.de/buergergeld-und-minijob/ | AJ114: =AJ117+1 -> 9
AJ117: 8
AJ118: 7
H119: 8 | J119: =H119+2 -> 10 | L119: =J119+2 -> 12 | N119: =L119+2 -> 14 | P119: =N119+2 -> 16 | R119: =P119+2 -> 18 | T119: =R119+2 -> 20 | V119: =T119+2 -> 22 | AJ119: 6
C120: ='ALG2'!B27 -> 21 | H120: 1 | J120: =H120+1 -> 2 | L120: =J120+1 -> 3 | N120: =L120+1 -> 4 | P120: =N120+1 -> 5 | R120: =P120+1 -> 6 | T120: =R120+1 -> 7 | V120: =T120+1 -> 8 | AJ120: 5
C121: =vAlterAzubi -> 15 | D121: =ShTab!D111 -> 0 | F121: =ShTab!F111 -> 0 | H121: ='ALG2'!I27 -> 0 | J121: ='ALG2'!J27 -> 0 | L121: ='ALG2'!K27 -> 0 | N121: ='ALG2'!L27 -> 0 | P121: ='ALG2'!M27 -> 0 | R121: ='ALG2'!N27 -> 0 | T121: ='ALG2'!O27 -> 0 | V121: ='ALG2'!P27 -> 0 | AJ121: 4
A122: Sozialberatung | C122: 25 | D122: =Erwerbseinkommen!E146 -> 0 | F122: =Erwerbseinkommen!F146 -> 0 | H122: =Erwerbseinkommen!G146 -> 0 | J122: =Erwerbseinkommen!H146 -> 0 | L122: =Erwerbseinkommen!I146 -> 0 | N122: =Erwerbseinkommen!J146 -> 0 | P122: =Erwerbseinkommen!K146 -> 0 | R122: =Erwerbseinkommen!L146 -> 0 | T122: =Erwerbseinkommen!N146 -> 0 | V122: =Erwerbseinkommen!O146 -> 0 | Z122: 2 | AA122: n | AJ122: 3
A123: des | D123: =IF(AND('ALG2'!G27>0,OR('ALG2'!G27=29.1,'ALG2'!G27<$C122),D122>0,D83="",C120>18.25),TRUE,FALSE) -> FALSE | F123: =IF(AND('ALG2'!H27>0,OR('ALG2'!H27=29.1,'ALG2'!H27<$C122),F122>0,F83="",C120>18.25),TRUE,FALSE) -> FALSE | H123: =IF(AND(H121>=$C121,H122>0,H83="",$C120>18.25,H79>H86),TRUE,FALSE) -> FALSE | J123: =IF(AND(J121>=$C121,J122>0,J83="",$C120>18.25,J79>J86),TRUE,FALSE) -> FALSE | L123: =IF(AND(L121>=$C121,L122>0,L83="",$C120>18.25,L79>L86),TRUE,FALSE) -> FALSE | N123: =IF(AND(N121>=$C121,N122>0,N83="",$C120>18.25,N79>N86),TRUE,FALSE) -> FALSE | P123: =IF(AND(P121>=$C121,P122>0,P83="",$C120>18.25,P79>P86),TRUE,FALSE) -> FALSE | R123: =IF(AND(R121>=$C121,R122>0,R83="",$C120>18.25,R79>R86),TRUE,FALSE) -> FALSE | T123: =IF(AND(T121>=$C121,T122>0,T83="",$C120>18.25,T79>T86),TRUE,FALSE) -> FALSE | V123: =IF(AND(V121>=$C121,V122>0,V83="",$C120>18.25,V79>V86),TRUE,FALSE) -> FALSE | W123: =IF(D123=TRUE,1,0)+IF(F123=TRUE,1,0)+IF(H123=TRUE,1,0)+IF(J123=TRUE,1,0)+IF(L123=TRUE,1,0)+IF(N123=TRUE,1,0)+IF(P123=TRUE,1,0)+IF(R123=TRUE,1,0)+IF(T123=TRUE,1,0)+IF(V123=TRUE,1,0) -> 0 | X123: letzte Ber.: | Y123: =ShTab!Y98 -> 0 | Z123: 3 | AA123: o | AJ123: 2
A124: Diakonischen Werks Hannover | D124: =IF(AND('ALG2'!G27>0,OR('ALG2'!G27<C122,'ALG2'!G27=29.1),D122>0,D83="ja",C120>18.25,D121=0),TRUE,FALSE) -> FALSE | F124: =IF(AND('ALG2'!H27>0,OR('ALG2'!H27<C122,'ALG2'!H27=29.1),F122>0,F83="ja",C120>18.25,F121=0),TRUE,FALSE) -> FALSE | H124: FALSE | J124: FALSE | L124: FALSE | N124: FALSE | P124: FALSE | R124: FALSE | T124: FALSE | V124: FALSE | W124: =IF(D124=TRUE,1,0)+IF(F124=TRUE,1,0)+IF(H124=TRUE,1,0)+IF(J124=TRUE,1,0)+IF(L124=TRUE,1,0)+IF(N124=TRUE,1,0)+IF(P124=TRUE,1,0)+IF(R124=TRUE,1,0)+IF(T124=TRUE,1,0)+IF(V124=TRUE,1,0) -> 0 | Z124: 4 | AJ124: 1
A125: Burgstraße 8-10 | Z125: 5
A126: 30159 Hannover | Z126: 6
Z127: 7
Z128: 8
Z129: 9
X130: =IF(X131,"","nicht")&" zum Ergebnis springen" -> nicht zum Ergebnis springen | Z130: 10
X131: =IF(W131,TRUE,IF(AND(Setup!L30<99,X132<X134),TRUE,FALSE)) -> FALSE | Z131: 11
W132: 120 - Timestamp | X132: =ShTab!X120 -> 73842 | Z132: 12 | AJ132: 14
W133: 121 - Delay | X133: =Setup!L30*60 -> 3 | Y133: Sek | AJ133: 13
B134: 108 | F134: =IF(FAQ!F109="n",FALSE,TRUE) -> TRUE | H134: =MAX(O134:O140) -> 0 | J134: =IF(H134>0,"","keine ")&"Berechnungen" -> keine Berechnungen | N134: =IF(H134>0,CHOOSE(H134,P134,P135,P136,P137,P138,P139,P140),0) -> 0 | O134: =IF(AND(F134,FAQ!P109<>"",FAQ!R109<>"",FAQ!T109<>""),1,0) -> 0 | P134: =IF(O134>0,FAQ!P109,0) -> 0 | T134: =IF(O134>0,FAQ!T109,0) -> 0 | W134: 122 - jetzt in sec | X134: =HOUR(X135)*60*60+MINUTE(X135)*60+SECOND(X135) -> 54085 | AJ134: 12
F135: =IF(FAQ!F110="n",FALSE,TRUE) -> TRUE | H135: =IF(AD2=0,0,1) -> 1 | J135: =IF(H135=0,"keine ","es sind ")&"Fragen unbeantwortet" -> es sind Fragen unbeantwortet | O135: =IF(AND(F135,FAQ!P110<>"",FAQ!R110<>"",FAQ!T110<>""),2,0) -> 0 | P135: =IF(O135>0,FAQ!P110,0) -> 0 | T135: =IF(O135>0,FAQ!T110,0) -> 0 | W135: 123 - jetzt | X135: =NOW() -> 46048.62599 | AJ135: 11
F136: =IF(FAQ!F111="n",FALSE,TRUE) -> TRUE | H136: =IF('ALG2'!G96>0,1,2) -> 1 | J136: =IF(H136=1,"ALG2 > 0",IF(H136<0,"ALG2 < 0")) -> ALG2 > 0 | N136: =IF(H134>0,CHOOSE(H134,T134,T135,T136,T137,T138,T139,T140),0) -> 0 | O136: =IF(AND(F136,FAQ!P111<>"",FAQ!R111<>"",FAQ!T111<>""),3,0) -> 0 | P136: =IF(O136>0,FAQ!P111,0) -> 0 | T136: =IF(O136>0,FAQ!T111,0) -> 0 | AJ136: 10
F137: =IF(FAQ!F112="n",FALSE,TRUE) -> TRUE | H137: =IF(AND('ALG2'!G96=Y123,Y123>0),1,0) -> 0 | J137: ="ALG2 " & IF(H137,"=","<>") & " letzte Ber." -> ALG2 <> letzte Ber. | N137: =FAQ!AG116 -> 0 | O137: =IF(AND(F137,FAQ!P112<>"",FAQ!R112<>"",FAQ!T112<>""),4,0) -> 0 | P137: =IF(O137>0,FAQ!P112,0) -> 0 | T137: =IF(O137>0,FAQ!T112,0) -> 0 | AJ137: 9
F138: =IF(FAQ!F113="n",FALSE,TRUE) -> TRUE | H138: =AG22+AG24+AG26+AG47+AG49+AG51+AG53+AG54+AG56+AG58+AG60+AG62+AG77+AG79+AG109-AG110 -> 1849.84 | J138: Quersumme aller Eintragungen | N138: =COUNTA(FAQ!R109:R115) -> 0 | O138: =IF(AND(F138,FAQ!P113<>"",FAQ!R113<>"",FAQ!T113<>""),5,0) -> 0 | P138: =IF(O138>0,FAQ!P113,0) -> 0 | T138: =IF(O138>0,FAQ!T113,0) -> 0 | Y138: =IF(AND('ALG2'!E86>0,OR('ALG2'!E84>0,'ALG2'!E79<0)),'ALG2'!E84+'ALG2'!E79-'ALG2'!O103,"") ->  | AJ138: 8
F139: =IF(FAQ!F114="n",FALSE,TRUE) -> TRUE | H139: =ShTab!H114 -> 0 | J139: letzte Quersumme | N139: =COUNTA(FAQ!T109:T115) -> 0 | O139: =IF(AND(F139,FAQ!P114<>"",FAQ!R114<>"",FAQ!T114<>""),6,0) -> 0 | P139: =IF(O139>0,FAQ!P114,0) -> 0 | T139: =IF(O139>0,FAQ!T114,0) -> 0 | AJ139: 7
F140: =IF(FAQ!F115="n",FALSE,TRUE) -> TRUE | H140: =IF(H138=H139,1,0) -> 0 | N140: =SUM(N137:N139) -> 0 | O140: =IF(AND(F140,FAQ!P115<>"",FAQ!R115<>"",FAQ!T115<>""),7,0) -> 0 | P140: =IF(O140>0,FAQ!P115,0) -> 0 | T140: =IF(O140>0,FAQ!T115,0) -> 0 | AJ140: 6
B141: =" "&A122 & " " & A123 & " " & A124 -> Sozialberatung des Diakonischen Werks Hannover | L141: =Revision!F1 -> V2026-01-25 | AJ141: 5
B142: =" " & A125 & " " & A126 -> Burgstraße 8-10 30159 Hannover | AJ142: 4
O143: =IF(ShTab!A110<>"",ShTab!A110,"") ->  | AJ143: 3
B144: Anmeldung | AJ144: =AJ145+1 -> 2
B145: zur Beratung | D145: (0511) 3687 - 191 | G145: =Uebersicht!AN1 ->  | O145: =IF(ShTab!A112<>"",ShTab!A112,"") ->  | AJ145: 1
B146: Montag bis Donnerstag 8:30 - 15:00 | H146: =Uebersicht!B3 ->  | L146: ='ALG2'!N1 -> 
O147: =IF(ShTab!A114<>"",ShTab!A114,"") -> 
L148: =Debug!M28 -> herbert.kant-bohlin@htp-tel.de
O149: =IF(ShTab!A116<>"",ShTab!A116,"") -> 
O151: =IF(ShTab!A118<>"",ShTab!A118,"") -> 
B159: =IF(AND(Orte!X20>0,R49<>"",N62<>"ja",KdU!H27="",KdU!I28<>"*"),1,0) -> 0 | C159: =IF(B159>0," - Bestandschutzregelung kann die Kürzung der Unterkunftskosten verringern: Zeile 1.9.1","") ->  | N159: H27 | P159: ="Auf de"&IF(A178>1,"n","m") -> Auf dem
B160: =IF(OR(AND(KdU!AO10>0,OR(R49<>"",AND(R53<>"",KdU!AF104="I")),N62<>"ja",KdU!P19=""),AND(KdU!AC117=FALSE,KdU!AC119,KdU!AG170>0),AND(KdU!AO10>0,KdU!AC117=FALSE,KdU!AG170>0,AND(KdU!P19<>"nein",KdU!P19<>""))),1,0) -> 0 | C160: =IF(B160>0," - Option könnte Kürzung der Unterkunftskosten verhindern: Zeile 1.5a","") ->  | N160: P19 | P160: =" Rechenbl"&IF(A178>1,"ätter","att") -> Rechenblatt
B161: =IF(AND(KdU!BK58>0,KdU!W133>0,R49<>"",N62<>"ja",KdU!F38=""),1,0) -> 0 | C161: =IF(B161>0," - Erhöhungsbetrag wegen energetischer Sanierung möglich: Zeile 1.9.7","") ->  | N161: F38 | P161: =P162&R162&P163&R163&P164 -> 
B162: =IF(AND(R49<>"",NOT(ISERROR(FIND("?",KdU!B16,1)>0)),KdU!B16<>"",NOT(ISNUMBER(KdU!H16)),N62<>"ja"),1,0) -> 0 | C162: =IF(B162>0," - Mietbestandteile für Schönheitsreparaturen erhöhen die Mietobergrenze: Zeile 1.2","") ->  | N162: H16 | P162: =IF(A174>0," 'KdU'","") ->  | R162: =IF(AND(P162<>"",OR(P163<>"",P164<>"")),IF(R163<>"",", "," und"),"") -> 
P163: =IF(OR(A175>0,O163="x")," 'Wohngeld'","") ->  | R163: =IF(AND(P163<>"",OR(P164<>"",P165<>""))," und ","") -> 
P164: =IF(B177>0," 'KiZ'","") -> 
B165: =IF(AND(N54="nein",N56="nein",N58="nein"),1,0) -> 0 | C165: =IF(B165>0," - Überprüfen: Berechnung ergibt 0.- € für Warmwasser !" &CHAR(10) & " => Zeile 2.5 / 2.7 " &CHAR(10) & " => Zeile 1.8","") ->  | N165: H58
B166: =IF(AND(NOT(ISERROR(FIND("?",KdU!B17,1)>0)),NOT(ISNUMBER(KdU!H17)),N62<>"ja"),1,0) -> 0 | C166: =IF(B166>0," - Grenzwert für Betriebskosten => Grundmiete ohne BK eintragen: Zeilen 1.1/1.3","") ->  | N166: H17
B167: =IF(AND(NOT(ISERROR(FIND("?",KdU!B18,1)>0)),NOT(ISNUMBER(KdU!H18)),N62<>"ja"),1,0) -> 0 | C167: =IF(B167>0," - Grenzwert für Wasserverbrauch => Grundmiete/BK ohne Wasser eintragen: Zeilen 1.1-1.4","") ->  | N167: H18
B168: =IF(AND(NOT(ISERROR(FIND("?",KdU!B31,1)>0)),N62<>"ja"),1,0) -> 0 | C168: =IF(B168>0," - prüfen, ob Grenzwert für Wasserverbrauch überschritten wurde: Zeile 1.9.3","") ->  | N168: K31
B170: =IF(AND(KdU!B33<>"",KdU!K33<>"Einzelfall",N62<>"ja"),1,0) -> 0 | C170: =IF(B170>0," - Einzelfallprüfung bei Überschreiten der Betriebskosten möglich: Zeile 1.9.4","") ->  | N170: K33
B171: =IF(AND( OR(AND(KdU!H65="",KdU!AO135>0),OR(KdU!AO71="abs",KdU!AO71="rel",KdU!AO80="HK abs2")),N62<>"ja"),1,0) -> 0 | C171: =IF(B171>0," - Eintrag für Wohnfläche fehlt: Zeile 3.2","") ->  | N171: H65
B172: =IF(AND(KdU!B35<>"",KdU!AG168>0,KdU!K35<>"Einzelfall",N62<>"ja",KdU!AF40<>1),1,0) -> 0 | C172: =IF(B172>0," - Einzelfallprüfung bei Überschreiten der Betriebskosten möglich: Zeile 1.9.5","") ->  | N172: K35
B173: =IF(AND(N51>0,KdU!I15<>"",KdU!K61<=0),1,0) -> 0 | C173: =IF(B173>0," Überprüfen: Berechnung ergibt 0.- € Heizkosten ! Zeile 2.3","") ->  | N173: H54
A174: =SUM(B159:B175) -> 0 | B174: =IF(AND(KdU!B75<>"",KdU!F75="",KdU!H21=0),1,0) -> 0 | C174: =IF(B174>0,IF(KdU!H21=0, " - Strompauschale für den Betrieb einer Etagenheizung möglich: Zeile 3.9",""),"") ->  | N174: F75 | P174: KdU!N81>0; entfernt
A175: =B176 -> 0 | B175: =IF(AND(R49<>"",N62<>"ja",KdU!F40=""),1,0) -> 0 | C175: =IF(B175>0,IF(B178>7," … und weitere …"," - bei Schwerbehinderung kann Mietobergrenze angehoben werden: Zeile 1.9.8"),"") ->  | N175: F40
A176: =B177 -> 0 | B176: =IF(AND('ALG2'!C245>0,'ALG2'!C139=TRUE,Wohngeld!F11="",R49<>""),1,0) -> 0 | C176: =IF(B176>0,IF(B178>7,""," - 'Kinderwohngeld' könnte die Kürzung der Unterkunftskosten verringern ->'Wohngeld'"),"") ->  | N176: WG_HA_No
A177: =SUM(A174:A176) -> 0 | B177: =IF(AND('ALG2'!I110<>"",KiZ!D16=""),1,0) -> 0 | C177: =IF(B177>0,IF(B178>7,""," - Kinderzuschlag möglich durch Verzicht auf Mehrbedarfe bei der KiZ-Berechnung"),"") ->  | N177: KiZMBV
A178: =IF(A174>0,1,0)+IF(A175>0,1,0)+IF(A176>0,1,0) -> 0 | B178: =SUM(B159:B177) -> 0
B179: =IF(B159=1,N159,IF(B160=1,N160,IF(B161=1,N161,IF(B162=1,N162,IF(B165=1,N165,IF(B166=1,N166,IF(B167=1,N167,IF(B168=1,N168,"")))))))) -> 
B180: =IF(B179="",IF(B171=1,N171,IF(B172=1,N172,IF(B173=1,N173,IF(B174=1,N174,IF(B175=1,N175,IF(B175=1,N175,IF(B176=1,N176,""))))))),B179) ->  | C180: =IF(B159>0,C159&CHAR(10),"")&IF(B160>0,C160&CHAR(10),"")&IF(B161>0,C161&CHAR(10),"")&IF(B162>0,C162&CHAR(10),"")&IF(B165>0,C165&CHAR(10),"")&IF(B166>0,C166&CHAR(10),"")&IF(B167>0,C167&CHAR(10),"")&IF(B168>0,C168&CHAR(10),"")&IF(B170>0,C170&CHAR(10),"")&IF(B171>0,C171&CHAR(10),"")&IF(B172>0,C172&CHAR(10),"")&IF(B173>0,C173&CHAR(10),"")&IF(B174>0,C174&CHAR(10),"")&IF(B175>0,C175&CHAR(10),"")&IF(B176>0,C176&CHAR(10),"")&IF(B177>0,C177&CHAR(10),"") -> 
B181: =IF(B180="",IF(B177=1,N177,""),B180) ->  | C181: AnextKdU | F181: =ShTab!A1 -> 0 | H181: ABack2A
A182: 2, 3, 5, 7, 11, 13, 17, 19, 23, 29
C183: =SUM(D183:AB183) -> 0 | D183: =IF(SUM(D105:D108)>0,2,0) -> 0 | F183: =IF(SUM(F105:F108)>0,3,0) -> 0 | H183: =IF(SUM(H105:H108)>0,5,0) -> 0 | J183: =IF(SUM(J105:J108)>0,7,0) -> 0 | L183: =IF(SUM(L105:L108)>0,11,0) -> 0 | N183: =IF(SUM(N105:N108)>0,13,0) -> 0 | P183: =IF(SUM(P105:P108)>0,17,0) -> 0 | R183: =IF(SUM(R105:R108)>0,19,0) -> 0 | T183: =IF(SUM(T105:T108)>0,23,0) -> 0 | V183: =IF(SUM(V105:V108)>0,29,0) -> 0

Sheet ShTab (hidden)
Y7: Kinderzuschlag [KiZ]
AE47: BKg
AE48: 1
A72: =Sh_St1&Sh_St2&Sh_St3&Sh_St4&Sh_St5&Sh_St6&Sh_St7&Sh_St8&Sh_St9&Sh_St10 -> 
A79: =D79&F79&H79&J79&L79&N79&P79&R79&T79&V79 -> 
Y98: 0
A120: =A72&A79&ShTabB1&ShTabB2&ShTabB3&ShTabB4&ShTabB5&Sh_St1sav ->  | X120: 73842

Sheet FAQ (hidden)
C1: =Assistent!D1 -> Zwischenergebnis: Auszahlungsbetrag 563,00 €
H106: diese Berechnungen können sehr lange dauern ! | AA106: n
AA107: o | AH107: Name= FormelMiL
H108: vorgegebene Einkommensbeträge | P108: brutto | R108: netto | T108: ="'Hartz IV'" -> 'Hartz IV' | V108: =IF(COUNT(V109:V115)>0,"Einkommensverbesserung","") ->  | AH108: Name ist zugeordnet => ZELLE.ZUORDNEN(6;FAQ!$P112)
H109: =IF(P109>0,TEXT(P109,"0.00"),"400")&" €-Job "&IF(P109<R109,"(netto größer als brutto ?)",IF(OR(P109=0,AND(P109<=450,P109>0)),IF(P109<=450,IF(OR(AND(R109>0,R109=P109,F109="o"),AND(F109="o",R109=0)),"(ohne","(mit")&" Rentenversicherungsbeitrag)",""),IF(OR(AND(P109>450,P109<=850)),"('Gleitzone')",""))) -> 520 €-Job ('Gleitzone') | P109: 520 | V109: =IF(ShTab!Y100<>"",ShTab!Y100,IF(AND(T109<>"",T109<=0), " kein Auszahlungsbetrag !","")) ->  | AG109: =ShTab!Y100 -> 0
H110: =IF(P110>0,TEXT(P110,"0.00"),"400")&" €-Job "&IF(P110<R110,"(netto größer als brutto ?)",IF(OR(P110=0,AND(P110<=450,P110>0)),IF(P110<=450,IF(OR(AND(R110>0,R110=P110,F110="o"),AND(F110="o",R110=0)),"(ohne","(mit")&" Rentenversicherungsbeitrag)",""),IF(OR(AND(P110>450,P110<=850)),"('Gleitzone')",""))) -> 2.000 €-Job | P110: 2000 | V110: =IF(ShTab!Y101<>"",ShTab!Y101,IF(AND(T110<>"",T110<=0), " kein Auszahlungsbetrag !","")) ->  | AG110: =ShTab!Y101 -> 0
H111: =IF(P111>0,TEXT(P111,"0.00"),"400")&" €-Job "&IF(P111<R111,"(netto größer als brutto ?)",IF(OR(P111=0,AND(P111<=450,P111>0)),IF(P111<=450,IF(OR(AND(R111>0,R111=P111,F111="o"),AND(F111="o",R111=0)),"(ohne","(mit")&" Rentenversicherungsbeitrag)",""),IF(OR(AND(P111>450,P111<=850)),"('Gleitzone')",""))) -> 2.100 €-Job | P111: 2100 | V111: =IF(ShTab!Y102<>"",ShTab!Y102,IF(AND(T111<>"",T111<=0), " kein Auszahlungsbetrag !","")) ->  | AG111: =ShTab!Y102 -> 0 | AH111: =FormelMiL -> 2205,04
H112: =IF('ALG2'!B27>10,"Mindestlohn in Vollzeit (" & TEXT(Werte10!D116,"0,00") & " € x 40 Std x 4,3 Wochen)"," kein Mindestlohn vor dem 1.1.2016") -> Mindestlohn in Vollzeit (13,90 € x 40 Std x 4,3 Wochen) | P112: 2205.04 | V112: =IF(ShTab!Y103<>"",ShTab!Y103,IF(AND(T112<>"",T112<=0), " kein Auszahlungsbetrag !","")) ->  | AG112: =ShTab!Y103 -> 0 | AH112: =AI112*40*4.3 -> 2390.8 | AI112: =IF(Werte10!D116>0,Werte10!D116,0) -> 13.9
H113: ="'Bedarf' als Bruttoeinkommen" -> 'Bedarf' als Bruttoeinkommen | V113: =IF(ShTab!Y104<>"",ShTab!Y104,IF(AND(T113<>"",T113<=0), " kein Auszahlungsbetrag !","")) ->  | AG113: =ShTab!Y104 -> 0 | AH113: =ShTab!AA104 -> 0
H114: ="'Bedarf' als Nettoeinkommen" -> 'Bedarf' als Nettoeinkommen | V114: =IF(ShTab!Y105<>"",ShTab!Y105,IF(AND(T114<>"",T114<=0), " kein Auszahlungsbetrag !","")) ->  | AG114: =ShTab!Y105 -> 0
H115: Bruttoeinkommen, ab dem der Anspruch entfällt | V115: =IF(ShTab!Y106<>"",ShTab!Y106,IF(AND(T115<>"",T115<=0), " kein Auszahlungsbetrag !","")) ->  | AG115: =ShTab!Y106 -> 0 | AH115: =ShTab!AA106 -> 0
AG116: =COUNTA(ShTab!Y106:Y106) -> 0
AG117: ='ALG2'!E84+'ALG2'!E79-'ALG2'!O103 -> 0

Sheet ShALG2 (hidden)
I53: Gesamteinkommen zur Berechnung der Versicherungspauschale ab 18 (ohne UVG !)
I54: =ABS('ALG2'!I57)+ABS('ALG2'!I60)+ABS('ALG2'!I61)+ABS('ALG2'!I68)+ABS('ALG2'!I69)+ABS('ALG2'!I73)+IF('ALG2'!I83<>"",ABS('ALG2'!I83)) -> 0 | J54: =ABS('ALG2'!J57)+ABS('ALG2'!J60)+ABS('ALG2'!J61)+ABS('ALG2'!J68)+ABS('ALG2'!J69)+ABS('ALG2'!J73)+IF('ALG2'!J83<>"",ABS('ALG2'!J83)) -> 0 | K54: =ABS('ALG2'!K57)+ABS('ALG2'!K60)+ABS('ALG2'!K61)+ABS('ALG2'!K68)+ABS('ALG2'!K69)+ABS('ALG2'!K73)+IF('ALG2'!K83<>"",ABS('ALG2'!K83)) -> 0 | L54: =ABS('ALG2'!L57)+ABS('ALG2'!L60)+ABS('ALG2'!L61)+ABS('ALG2'!L68)+ABS('ALG2'!L69)+ABS('ALG2'!L73)+IF('ALG2'!L83<>"",ABS('ALG2'!L83)) -> 0 | M54: =ABS('ALG2'!M57)+ABS('ALG2'!M60)+ABS('ALG2'!M61)+ABS('ALG2'!M68)+ABS('ALG2'!M69)+ABS('ALG2'!M73)+IF('ALG2'!M83<>"",ABS('ALG2'!M83)) -> 0 | N54: =ABS('ALG2'!N57)+ABS('ALG2'!N60)+ABS('ALG2'!N61)+ABS('ALG2'!N68)+ABS('ALG2'!N69)+ABS('ALG2'!N73)+IF('ALG2'!N83<>"",ABS('ALG2'!N83)) -> 0 | O54: =ABS('ALG2'!O57)+ABS('ALG2'!O60)+ABS('ALG2'!O61)+ABS('ALG2'!O68)+ABS('ALG2'!O69)+ABS('ALG2'!O73)+IF('ALG2'!O83<>"",ABS('ALG2'!O83)) -> 0 | P54: =ABS('ALG2'!P57)+ABS('ALG2'!P60)+ABS('ALG2'!P61)+ABS('ALG2'!P68)+ABS('ALG2'!P69)+ABS('ALG2'!P73)+IF('ALG2'!P83<>"",ABS('ALG2'!P83)) -> 0
G149: 10 | H149: 20 | I149: 10 | J149: 10 | K149: 10 | L149: 10 | M149: 20 | N149: 20 | O149: 20 | P149: 20

Sheet Alter (hidden)
F1: =F25+F27 -> 0
D2: =DE!F24 -> 00:00:00
K12: Kinder 8 bis 24 | L12: ='ALG2'!B5 -> 0
K13: Kinder 18 bis 24 | L13: ='ALG2'!B6 -> 0
K14: Kinder 16 bis 17 Jahre | L14: ='ALG2'!B7 -> 0
K15: Kinder 7 bis 15 Jahre | L15: ='ALG2'!B8 -> 0
K16: Kinder 0 bis 13 Jahre | L16: ='ALG2'!B9 -> 0
K17: Kinder < 7 Jahre | L17: ='ALG2'!B10 -> 0 | M17: ="Kind"&IF(OR(N17>1,N17=0),"er","")&" 14 - 17" -> Kinder 14 - 17 | N17: =N19-L16 -> 0
K18: für Regelansatzteile: Kinder 6 - 13 Jahre | L18: ='ALG2'!B11 -> 0 | M18: ="Kind"&IF(OR(N18>1,N18=0),"er","")&" < 16" -> Kinder < 16 | N18: =L15+L17 -> 0
K19: für Regelansatzteile: Kinder 0 - 5 Jahre | L19: ='ALG2'!B12 -> 0 | M19: ="Kind"&IF(OR(N19>1,N19=0),"er","")&" < 18" -> Kinder < 18 | N19: =L14+L15+L17 -> 0
K20: ="Kind"&IF(OR(L20>1,L20=0),"er","")&" < 25" -> Kinder < 25 | L20: =L13+L14+L15+L17 -> 0
F25: =IF(G25<>"",1,0)+IF(H25<>"",1,0)+IF(I25<>"",1,0)+IF(J25<>"",1,0)+IF(K25<>"",1,0)+IF(L25<>"",1,0)+IF(M25<>"",1,0)+IF(N25<>"",1,0)+IF(O25<>"",1,0)+IF(P25<>"",1,0) -> 0
G26: ='ALG2'!G27 -> 29.1 | H26: ='ALG2'!H27 -> 0 | I26: ='ALG2'!I27 -> 0 | J26: ='ALG2'!J27 -> 0 | K26: ='ALG2'!K27 -> 0 | L26: ='ALG2'!L27 -> 0 | M26: ='ALG2'!M27 -> 0 | N26: ='ALG2'!N27 -> 0 | O26: ='ALG2'!O27 -> 0 | P26: ='ALG2'!P27 -> 0
F27: =IF(G27<>"",1,0)+IF(H27<>"",1,0)+IF(I27<>"",1,0)+IF(J27<>"",1,0)+IF(K27<>"",1,0)+IF(L27<>"",1,0)+IF(M27<>"",1,0)+IF(N27<>"",1,0)+IF(O27<>"",1,0)+IF(P27<>"",1,0) -> 0
F28: =SUM(G28:P28) -> 0 | G28: =IF(AND(G25>0,OR(G26<>G27,AND(G25>0,G26=0))),1,0) -> 0 | H28: =IF(AND(H25>0,OR(H26<>H27,AND(H25>0,H26=0))),1,0) -> 0 | I28: =IF(AND(I25>0,OR(I26<>I27,AND(I25>0,I26=0))),1,0) -> 0 | J28: =IF(AND(J25>0,OR(J26<>J27,AND(J25>0,J26=0))),1,0) -> 0 | K28: 0 | L28: 0 | M28: 0 | N28: 0 | O28: 0 | P28: 0
G29: =IF(OR(G25=ISBLANK(0),$D2=0),0,DATEDIF(G25,$D2,"y")) -> 0 | H29: 0 | I29: 0 | J29: 0 | K29: 0 | L29: 0 | M29: 0 | N29: 0 | O29: 0 | P29: 0
G32: ="Mehrbedarf für Alleinerziehende" -> Mehrbedarf für Alleinerziehende
G33: =TEXT(H33,"0")&" Kind"&IF(OR(H33>1,H33=0),"er","")& " unter 7 Jahre" -> 0 Kinder unter 7 Jahre | H33: =IF('ALG2'!B10>0,'ALG2'!B10,0) -> 0 | I33: =IF(H33>0,Werte09!C20,0) -> 0 | J33: =IF(H33>0,IF(I33=MAX(I33:I36),1,0),0) -> 0 | L33: =IF(L17=1,1,0) -> 0 | M33: 1 Kind unter 7
G34: =TEXT(H34,"0")&" Kind"&IF(OR(H34>1,H34=0),"er","")& " unter 16 Jahre" -> 0 Kinder unter 16 Jahre | H34: =IF(AND('ALG2'!F11>=2,'ALG2'!F11<4),'ALG2'!F11,0) -> 0 | I34: =IF(H34>0,Werte09!C20,0) -> 0 | J34: =IF(H34>0,IF(I34=MAX(I33:I36),2,0),0) -> 0 | L34: =IF(L33=0,IF(N19=1,2,0),0) -> 0 | M34: 1 Kind ab 7
G35: =TEXT(H35,"0")&" Kind"&IF(OR(H35>1,H35=0),"er","")& " unter 16 Jahre" -> 0 Kinder unter 16 Jahre | H35: =IF('ALG2'!F11>=4,'ALG2'!F11,0) -> 0 | I35: =IF(H35>0,IF(Werte09!C23*H35>Werte09!C25,Werte09!C25,Werte09!C23*H35),0) -> 0 | J35: =IF(H35>0,IF(I35=MAX(I33:I36),3,0),0) -> 0 | L35: =IF(N18=2,3,0) -> 0 | M35: 2 Kinder unter 16
G36: =TEXT(H36,"0")&" Kind"&IF(H36>1,"er","")& " unter 18 Jahre" -> 0 Kind unter 18 Jahre | H36: ='ALG2'!F12 -> 0 | I36: =IF(H36>0,IF(Werte09!C23*H36>Werte09!C25,Werte09!C25,Werte09!C23*H36),0) -> 0 | J36: =IF(H36>0,IF(I36=MAX(I33:I36),4,0),0) -> 0 | L36: =IF(L14=2,4,0) -> 0 | M36: 2 Kinder ab 16
J37: =MAX(J33:J36) -> 0 | L37: =IF(AND(L14=1,N19=2),5,0) -> 0 | M37: 1 Kind ab 7 und 1 Kind ab 16
L38: =IF(N19=3,6,0) -> 0 | M38: 3 Kinder
L39: =IF(N19=4,7,0) -> 0 | M39: 4 Kinder
L40: =IF(N19>=5,8,0) -> 0 | M40: 5 oder mehr Kinder
L41: =IF('ALG2'!H27>0,9,IF(MAX(L33:L40)=0,9,0)) -> 9 | M41: kein Anspruch
L42: =MAX(L33:L41) -> 9 | M42: =CHOOSE(L42,M33,M34,M35,M36,M37,M38,M39,M40,M41) -> kein Anspruch

Sheet Studenten (hidden)
A1: =Erwerbseinkommen!B2 & " " &Uebersicht!AN1 ->  | B1: =IF(OR(B30<>"",D30<>"",F30<>"",H30<>""),1,0) -> 0 | C1: =IF(AND(C4="ja",OR(C6="ja",C30="")),"LA","") ->  | E1: =IF(AND(E4="ja",OR(E6="ja",E30="")),"LA","") ->  | G1: =IF(AND(G4="ja",OR(G6="ja",G30="")),"LA","") ->  | I1: =IF(AND(I4="ja",OR(I6="ja",I30="")),"LA","") ->  | L1: =IF(M20,"",IF(B1>0,"LA = Leistungsauschluß, weil unvollständige Angaben !",IF(OR(C1<>"",E1<>"",G1<>"",I1<>""),"LA = Leistungsauschluß nach § 7 SGB II",""))) -> 
A2: gilt nicht für BAB ! | C2: =IF('ALG2'!G27<>"",'ALG2'!G27,"") -> 29.1 | E2: =IF('ALG2'!H27<>"",'ALG2'!H27,"") ->  | G2: =IF('ALG2'!I27<>"",'ALG2'!I27,"") ->  | I2: =IF('ALG2'!J27<>"",'ALG2'!J27,"") ->  | M2: Löschen aller Angaben auf dieser Seite
A3: Version 31.05.2017 | C3: =IF(C2<>"",'ALG2'!G28,"") -> Leistungsb. | E3: =IF(E2<>"",'ALG2'!H28,"") ->  | G3: =IF(G2<>"",'ALG2'!I28,"") ->  | I3: =IF(I2<>"",'ALG2'!J28,"") ->  | J3: =IF(J2<>"",'ALG2'!I28,"") -> 
A4: ="Schüler oder Student"& IF(LEN(D4&F4&H4&J4)>0," ??","") -> Schüler oder Student | C4: =IF(C2<>"",IF('ALG2'!G20="x","ja","nein"),"") -> nein | D4: =IF(AND(C4="nein",C6="ja")," ?!","") ->  | E4: =IF(E2<>"",IF('ALG2'!H20="x","ja","nein"),"") ->  | F4: =IF(AND(E4="nein",E6="ja")," ?!","") ->  | G4: =IF(G2<>"",IF('ALG2'!I20="x","ja","nein"),"") ->  | H4: =IF(AND(G4="nein",G6="ja")," ?!","") ->  | I4: =IF(I2<>"",IF('ALG2'!J20="x","ja","nein"),"") ->  | J4: =IF(AND(I4="nein",I6="ja")," ?!","") ->  | K4: Kein Leistungsauschluß:
A5: fiktiver SGB II-Bedarf | C5: ='ALG2'!G26 -> 563 | E5: =IF(E2<>"",'ALG2'!H26,"") ->  | G5: =IF(G2<>"",IF(G6="ja",'ALG2'!I26,0),"") ->  | I5: =IF(I2<>"",IF(I6="ja",'ALG2'!J26,0),"") ->  | L5: - bei Studium unter 20 Stunden wöchentlich
A6: Leistungsauschluß nach § 7 SGB II | C6: =IF(C2<>"",IF(ISERROR(VLOOKUP(C30,$K87:$O96,5,TRUE)),"nein",VLOOKUP(C30,$K87:$O96,5,TRUE)),"") -> nein | E6: =IF(E2<>"",IF(ISERROR(VLOOKUP(E30,$K87:$O96,5,TRUE)),"nein",VLOOKUP(E30,$K87:$O96,5,TRUE)),"") ->  | G6: =IF(G2<>"",IF(G30<>"",IF(ISERROR(VLOOKUP(G30,$K87:$O96,5,TRUE)),"nein",VLOOKUP(G30,$K87:$O96,5,TRUE)),"nein"),"") ->  | I6: =IF(I2<>"",IF(I30<>"",IF(ISERROR(VLOOKUP(I30,$K87:$O96,5,TRUE)),"nein",VLOOKUP(I30,$K87:$O96,5,TRUE)),"nein"),"") -> 
A7: fiktiver Unterkunftsbedarf (ohne Warmwassermehrbedarf wg §27, Abs.2 i.V.m. §21) | C7: ='ALG2'!D49+IF(B7="x",KdU!AT4,0) -> 0 | E7: =IF(E2<>"",'ALG2'!D49+IF(B7="x",KdU!AU4,0),0) -> 0 | G7: =IF(G2<>"",IF(G6="ja",'ALG2'!D49+IF(B7="x",KdU!AV4,0),0),0) -> 0 | I7: =IF(I2<>"",IF(I6="ja",'ALG2'!D49+IF(B7="x",KdU!AW4,0),0),0) -> 0 | L7: - im Promotionsstudium
A8: fiktiver Bedarf: Krankenversicherung | C8: ='ALG2'!G44 -> 0 | E8: ='ALG2'!H44 -> 0 | G8: ='ALG2'!I44 -> 0 | I8: ='ALG2'!J44 -> 0
A9: =IF(C9<>"",'ALG2'!A33 & " (tatsächlicher Bedarf)","") -> (tatsächlicher Bedarf) | C9: =IF('ALG2'!G34<>"",'ALG2'!G34,0)+IF('ALG2'!G35<>"",'ALG2'!G35,0)+IF('ALG2'!G36<>"",'ALG2'!G36,0)+IF('ALG2'!G37<>"",'ALG2'!G37,0) -> 0 | E9: ='ALG2'!H37 -> 0 | G9: ='ALG2'!I37 -> 0 | I9: ='ALG2'!J37 -> 0 | L9: - im Urlaubssemester von mindestens 3 Monaten
A10: =IF(C10<>"",'ALG2'!A41 & " (tatsächlicher Bedarf)","") ->  | C10: =IF('ALG2'!G41>0,'ALG2'!G41,"") ->  | E10: =IF('ALG2'!H41>0,'ALG2'!H41,"") ->  | G10: =IF('ALG2'!I41>0,'ALG2'!I41,"") ->  | I10: =IF('ALG2'!J41>0,'ALG2'!J41,"") ->  | L10: - Schüler an Abendgymnasien, nur wenn Bafög-Anspruch tatsächlich besteht (in den letzten 3 Schulhalbjahren möglich)
A11: fiktiver SGB II-Gesamtbedarf | C11: =SUM(C5:C10) -> 563 | E11: =SUM(E5:E10) -> 0 | G11: =SUM(G5:G10) -> 0 | I11: =SUM(I5:I10) -> 0 | L11: - Schüler an Abendrealschulen und Abendhauptschulen, nur wenn Bafög-Anspruch tatsächlich besteht (inden letzten zwei Schulhalbjahren)
A12: =IF(M20,"",IF(B1>0," F E H L E R ! Berechnung ungültig, wenn fiktiver Bafög-Höchstsatz nicht festgelegt!","")) ->  | D12: diese Seite wird irgendwann aktualisiert - bis dahin unbrauchbar ! | K12: keine Anrechnung als Einkommen:
A13: Kindergeld von Schüler o. Studenten / abweichender Betr. (Seite: ALG2) | B13: ='ALG2'!G58 -> 0 | C13: =IF(B13>0,B13,'ALG2'!G56) -> 0 | D13: ='ALG2'!H58 -> 0 | E13: =IF(D13>0,D13,'ALG2'!H56) -> 0 | F13: ='ALG2'!I58 -> 0 | G13: =IF(F13>0,F13,'ALG2'!I56) -> 0 | H13: ='ALG2'!J58 -> 0 | I13: =IF(H13>0,H13,'ALG2'!J56) -> 0
L14: - Kinderbetreungszuschlag nach §14b Bafög
A15: BAföG-Zahlungsbetrag ohne Kinderbetreuungszuschlag
A16: Studienkredit / Bildungskredit / Bafög-Bankdarlehen etc
A17: Stipendien (ohne zweckgebundene Leistung z.B. Büchergeld) | M17: =Debug!C46 -> 0 | N17: =" Einkommensanrechnung "&IF(M17,"ab 1.8.2016","bis 31.07.2016")&" auf Rechenblatt 'ALG2'" -> Einkommensanrechnung bis 31.07.2016 auf Rechenblatt 'ALG2'
A19: anrechenbares Erwerbseinkommen (Seite: Erwerbseinkommen) | C19: =Erwerbseinkommen!E47 -> 0 | E19: =Erwerbseinkommen!I47 -> 0 | G19: =Erwerbseinkommen!N47 -> 0 | I19: =Erwerbseinkommen!R47 -> 0
A20: Unterhalt (Seite: ALG2) | C20: =U_HV -> 0 | E20: =U_HA -> 0 | G20: =U_Ki1 -> 0 | I20: =U_Ki2 -> 0 | M20: TRUE | N20: =" Einkommensanrechnung "&IF(M20,"ab 1.8.2016","bis 31.07.2016") & " auf Rechenblatt 'Studenten'" -> Einkommensanrechnung ab 1.8.2016 auf Rechenblatt 'Studenten'
A21: Renten (Seite: ALG2) | C21: ='ALG2'!G60 -> 0 | E21: ='ALG2'!H60 -> 0 | G21: ='ALG2'!I60 -> 0 | I21: ='ALG2'!J60 -> 0
A22: Krankengeld (Seite: ALG2) | C22: ='ALG2'!G61 -> 0 | E22: ='ALG2'!H61 -> 0 | G22: ='ALG2'!I61 -> 0 | I22: ='ALG2'!J61 -> 0
A23: Arbeitslosengeld 1 (Seite: ALG2) | C23: ='ALG2'!G66 -> 0 | E23: ='ALG2'!H66 -> 0 | G23: ='ALG2'!I66 -> 0 | I23: ='ALG2'!J66 -> 0
A24: =IF(AND(SUM(C24:I24)<0,C19=0,E19=0)," - Versicherungspauschale",IF(OR(C19>0,E19>0),"Versicherungspauschale von "&IF(C19>0,"'"&C3&"'","")&IF(AND(E19>0,C19>0)," und ","")&IF(E19>0,"'"&E3&"'","")&" wurde beim Erwerbseinkommen berücksichtigt !","")) ->  | C24: =IF(SUM(C13:C23)>0,-30-Erwerbseinkommen!E14,0) -> 0 | E24: =IF(SUM(E13:E23)>0,-30-Erwerbseinkommen!I14,0) -> 0 | G24: =IF(AND(SUM(G13:G23)>0,G2>17),-30-Erwerbseinkommen!N14,0) -> 0 | I24: =IF(AND(SUM(I13:I23)>0,I2>17),-30-Erwerbseinkommen!R14,0) -> 0
A25: ="Wohngeld: "&Wohngeld!J3 & " ==>" -> Wohngeld: kein Wohngeldanspruch ==>
A26: anrechenbares Kindergeld von Kindern (Seite: ALG2) | C26: =IF(C4="ja",-'ALG2'!Y74,0) -> 0 | E26: =IF(E4="ja",-'ALG2'!V75,0) -> 0
A27: berücksichtigungsfähiges Einkommen | C27: =IF(SUM(C13:C26)>0,SUM(C13:C26),0) -> 0 | E27: =IF(SUM(E13:E26)>0,SUM(E13:E26),0) -> 0 | G27: =IF(SUM(G13:G25)>0,SUM(G13:G25),0) -> 0 | I27: =IF(SUM(I13:I25)>0,SUM(I13:I25),0) -> 0 | X27: sogenannter "maßgebende bedarfsdeckende Ausbildungsförderung"
X28: Tabelle aus § 11 RandNr. 11.102
A29: =IF(M20,""," im Haushalt der Eltern ( ja / nein / )") -> 
A30: =IF(M20,"Bafög",IF(B1>0," fiktiven Bafög-Höchstsatz ohne KV-Zuschlag u. ohne Ki-Betr.-Zuschlag wählen ! ==>"," fiktiver Bafög-Höchstsatz ohne KV-Zuschlag u. ohne Ki-Betreuungszuschlag")) -> Bafög | B30: =IF(AND(C4="ja",C30=""),"==>","") ->  | D30: =IF(AND(E4="ja",E30=""),"==>","") ->  | F30: =IF(AND(G4="ja",G30=""),"==>","") ->  | H30: =IF(AND(I4="ja",I30=""),"==>","") ->  | U30: 2010 | V30: 2011
A31: =IF(OR(G31,I31<0),"- KdU-Anteil des Bafög","") ->  | G31: =IF(AND(G29="ja",G30>0),-$K99,0) -> 0 | I31: =IF(AND(I29="ja",I30>0),-$K99,0) -> 0 | U31: 212 | V31: 216 | W31: § 12, Abs.1, 1
D32: =IF(AND(C30>0,C30/5<$M87)," ! *","") ->  | F32: =IF(AND(E30>0,E30/5<$M87)," ! *","") ->  | H32: =IF(AND(G30>0,G30/5<$M87)," ! *","") ->  | U32: 383 | V32: 391 | W32: § 12, Abs.1, 2
U33: =383+72 -> 455 | V33: 465 | W33: § 12, Abs.2, 1 | AA33: =IF(SUM(C15:C17)<C30,C30-SUM(C15:C17),"0,00") -> 0,00 | AB33: Differenz zur Höhe des fiktiven Bafög-Höchstsatz wird angerechnet
U34: =459+72 -> 531 | V34: 543 | W34: § 12, Abs.2, 2
U35: =V35 -> 397 | V35: =348+V39 -> 397 | W35: §13, Abs. 1, 1 + Abs. 2,1
A36: Einkommen | C36: =C27+IF(C6="nein",C31,0)+C33 -> 0 | E36: =E27+IF(E6="nein",E31,0)+E33 -> 0 | G36: =G27+IF(G6="nein",G31,0)+G33 -> 0 | I36: =I27+IF(I6="nein",I31,0)+I33 -> 0 | U36: =341+146+72 -> 559 | V36: =348+V41 -> 572 | W36: §13, Abs. 1, 1 + Abs. 2,2
A37: =IF(OR(C37<0,E37<0),"Einkommensfreibetrag","") ->  | C37: =IF(C2<>"",IF(C30>0,IF(Erwerbseinkommen!E31<0,0,-100),0),0) -> 0 | E37: =IF(E2<>"",IF(E30>0,IF(Erwerbseinkommen!I31<0,0,-100),0),0) -> 0 | G37: =IF(G30>0,-VLOOKUP(G30,$K$88:$M$95,3,FALSE),0) -> 0 | I37: =IF(I30>0,-VLOOKUP(I30,$K$88:$M$95,3,FALSE),0) -> 0 | U37: =V37 -> 422 | V37: =373+V39 -> 422 | W37: §13, Abs. 1, 2 + Abs. 2,1
A38: =REPT(" ",5)& " = zu berücksichtigendes Einkommen" -> = zu berücksichtigendes Einkommen | C38: =C30+C36+C37 -> 0 | E38: =E36+E37 -> 0 | G38: =G36+G37 -> 0 | I38: =I36+I37 -> 0 | U38: =366+146+72 -> 584 | V38: =373+V41 -> 597 | W38: §13, Abs. 1, 2 + Abs. 2,2
A39: =REPT(" ",5)& " - fiktiver SGB II-Bedarf" -> - fiktiver SGB II-Bedarf | C39: =IF(C37<0,-C11,0) -> 0 | E39: =IF(E37<0,-E11,0) -> 0 | G39: =IF(G37<0,-G11,0) -> 0 | I39: =IF(I37<0,-I11,0) -> 0 | U39: 48 | V39: 49 | W39: §13, Abs. 2, 1
A40: =IF(OR(C40<0,E40<0),REPT(" ",5)& " - fiktiver SGB II-Bedarf des Partners","") ->  | C40: =IF(AND(C38+C39>0,E38+E39<0,C4<>"nein",D4=""),E39,0) -> 0 | E40: =IF(AND(E38+E39>0,C38+C39<0,E4<>"nein",E4=""),C39,0) -> 0
A41: =IF(OR(C41>0,E41>0,G41>0,I41>0),"","keine ")&"Anrechnung auf ALG2-Anspruch der BG" -> keine Anrechnung auf ALG2-Anspruch der BG | C41: =IF(C4="ja",IF(M20,-C45,IF(OR(C43="-",C30=0),0,IF(C5<>"",IF(C43>0,C43,IF(AND(C38+C39+C40>0,C4<>"nein",D4=""),C38+C39+C40,0)),0))),0) -> 0 | E41: =IF(E4="ja",IF(M20,-E45,IF(OR(E43="-",E30=0),0,IF(E5<>"",IF(E43>0,E43,IF(AND(E38+E39+E40>0,E4<>"nein",F4=""),E38+E39+E40,0)),0))),0) -> 0 | G41: =IF(G4="ja",IF(OR(G43="-",G30=0),0,IF(G5<>"",IF(G43>0,G43,IF(AND(G38+G39>0,G4<>"nein",H4=""),IF(AND(G13>0,G38+G39>G13),G13,IF(G13>0,G38+G39,"0,00")),0)),0)),0) -> 0 | H41: =IF(G2<>"",IF(AND(G13>0,AND(G45<0)),"*",IF(AND(G45<0),"**","")),"") ->  | I41: =IF(I4="ja",IF(OR(I43="-",I30=0),0,IF(I5<>"",IF(I43>0,I43,IF(AND(I38+I39>0,I4<>"nein",J4=""),IF(AND(I13>0,I38+I39>I13),I13,IF(I13>0,I38+I39,"0,00")),0)),0)),0) -> 0 | J41: =IF(I2<>"",IF(AND(I13>0,AND(I45<0)),"*",IF(AND(I45<0),"**","")),"") ->  | U41: 146 | V41: 224 | W41: §13, Abs. 2, 2
A42: =IF(OR(H41="*",J41="*"),"* Einkommensanrechnung begrenzt bis zur Höhe des Kindergelds!",IF(OR(H41="**",J41="**"),"** Kinder gehören nicht mehr z. BG, wenn d. eigene Einkommensbedarf gedeckt ist ! ","")) -> 
A43: ev. abweichender Betrag zur Korrektur
C45: =IF(M20,C11-C38,'ALG2'!G86) -> 563 | E45: =IF(M20,E11-E38,'ALG2'!H86) -> 0 | G45: ='ALG2'!I86 -> 0 | I45: ='ALG2'!J86 -> 0
E46: =IF(AND(E45<>"",E45>0),IF($C45<0,$C45/$K$58,0),0) -> 0 | G46: =IF(AND(G45<>"",G45>0),IF($C45<0,$C45/$K$58,0),0) -> 0 | I46: =IF(AND(I45<>"",I45>0),IF($C45<0,$C45/$K$58,0),0) -> 0
A47: =IF(SUM(C47:I47)<0,"Anrechnungsbetrag","") ->  | C47: =IF(AND(C45<>"",C45>0),IF($E45<0,$E45/$K$58,0),0) -> 0 | G47: =IF(AND(G45<>"",G45>0),IF($E45<0,$E45/$K$58,0),0) -> 0 | I47: =IF(AND(I45<>"",I45>0),IF($E45<0,$E45/$K$58,0),0) -> 0
A48: =IF(SUM(C48:I48)<0,"Anrechnungsbetrag Kind 1","") ->  | C48: =IF(AND(C45<>"",C45>0),IF($G41>0,-$G41,0),0) -> 0
A49: =IF(SUM(C49:I49)<0,"Anrechnungsbetrag Kind 2","") ->  | C49: =IF(AND(C45<>"",C45>0),IF($I41>0,-$I41,0),0) -> 0
A50: =IF(SUM(C50:I50)>0,"SGB II-Gesamtanspruch nach Seite 'Studenten'","") -> SGB II-Gesamtanspruch nach Seite 'Studenten' | B50: =SUM(C50:I50) -> 563 | C50: =IF(SUM(C45:C49)>0,SUM(C45:C49),0) -> 563 | E50: =IF(SUM(E45:E49)>0,SUM(E45:E49),0) -> 0 | G50: =IF(SUM(G45:G49)>0,SUM(G45:G49),0) -> 0 | I50: =IF(SUM(I45:I49)>0,SUM(I45:I49),0) -> 0
A52: SGB II Anspruch insgesamt der Seite 'ALG2' | B52: ='ALG2'!G96 -> 563
A55: Berechnung des ungedeckten Unterkunftsbedarf
A57: =SUM(B57:J57) -> 0 | B57: =IF(B7<>"",1,0) -> 0 | C57: =COUNTA(C15:C17)+COUNTA(C30)+COUNTA(C43) -> 0 | E57: =COUNTA(E15:E17)+COUNTA(E30)+COUNTA(E43) -> 0 | G57: =COUNTA(G15:G17)+COUNTA(G29:G30)+COUNTA(G43) -> 0 | I57: =COUNTA(I15:I17)+COUNTA(I29:I30)+COUNTA(I43) -> 0 | J57: =IF(L84<>2011,1,0) -> 0 | K57: =COUNT(C2:I2) -> 1 | L57: Personen in BG
A58: Betrag für ALG2-Einkommensübersicht | B58: =SUM(C58:I58) -> 0 | C58: =SUM(C15:C17) -> 0 | E58: =SUM(E15:E17) -> 0 | G58: =SUM(G15:G17) -> 0 | I58: =SUM(I15:I17) -> 0 | K58: =COUNTIF(C45:I45,">0") -> 1 | L58: Personen mit SGB II-Anspruch in BG
A63: fiktiver Bedarf | G63: =G11 -> 0
A64: - Bafög | G64: =-G30 -> 0
A65: =IF(M20,"","'+ ausbildungsgeprägter Anteil") ->  | G65: =ABS(G37) -> 0
A66: - anrechenbares Erwerbseinkommen | G66: =-G19 -> 0
A67: - Kindergeld | G67: =-G13 -> 0
G68: =SUM(G63:G67) -> 0
A69: BfU-Anteil der Ausbildungsförderung (=Maximalbetrag) | G69: =132 -> 132
A70: ungedeckter BfU-Anteil | G70: =IF(G68>G69,G69,G68) -> 0
L83: Bafög-Jahr
K84: Bafög-Bedarf | L84: 2011 | M84: ausbildungs-geprägter Bedarf | O84: Leistungsaus- schluß n. § 7 SGB II
K88: =HLOOKUP($L$84,$U$30:$V$38,2) -> 216 | L88: Schülerbafög | M88: =M90 -> 93 | N88: * | O88: nein | P88: im Haushalt der Eltern; Berufsfachschulen u. Fachschulklassen, abgeschl. Berufsausbilduing nicht vorausgesetzt; kein Leistungssauschluß n. § 7 SGB II, jedoch Einkommensanrechnung
K89: =HLOOKUP($L$84,$U$30:$V$38,3) -> 391 | L89: Schüler | M89: 108.6 | N89: * | O89: ja | P89: im Haushalt der Eltern; Abendhauptschulen, berufsaufbauschulen, Abendrealschulen und Fachoberschulklassen abgeschlossene Berufsausbildung ist Voraussetzung
K90: =HLOOKUP($L$84,$U$30:$V$38,4) -> 465 | L90: Schüler | M90: =K90/5 -> 93 | O90: ja | P90: im eigenen Haushalt; weiterführende allgemeinbildende Schulen und Berufsfachschulen, Fach- und Fachoberschulklassen die eine abgeschl. B.ausbildung nicht voraussetzen
K91: =HLOOKUP($L$84,$U$30:$V$38,5) -> 543 | L91: Schüler | M91: =K91/5 -> 108.6 | O91: ja | P91: im eigenen Haushalt; Abendhauptschulen, Berufsaufbauschulen, Abendrealschulen und Fachoberschulklassen, die eine abgeschl. B.ausbildung voraussetzen
K92: =HLOOKUP($L$84,$U$30:$V$38,6) -> 397 | L92: Studenten | M92: =M93 -> 114.4 | N92: * | O92: ja | P92: im Haushalt der Eltern; Fachschulklassen, die eine abgeschl. B.Ausbildung voraussetzen, Abendgymnasien und Kollegs
K93: =HLOOKUP($L$84,$U$30:$V$38,7) -> 572 | L93: Studenten | M93: =K93/5 -> 114.4 | O93: ja | P93: im eigenen Haushalt; Fachschulklassen, die eine abgeschl. B.Ausbildung voraussetzen, Abendgymnasien und Kollegs
K94: =HLOOKUP($L$84,$U$30:$V$38,8) -> 422 | L94: Studenten | M94: 119.4 | N94: * | O94: ja | P94: im Haushalt der Eltern; Höhere Fachschulen, Akademien, Hochschulen
K95: =HLOOKUP($L$84,$U$30:$V$38,9) -> 597 | L95: Studenten | M95: =K95/5 -> 119.4 | O95: ja | P95: im eigenen Haushalt; Höhere Fachschulen, Akademien, Hochschulen
K96: 0 | O96: nein
K99: =HLOOKUP($L$84,$U$30:$V$41,10) -> 49 | L99: KdU-Anteil des Bafög, wenn bei den Eltern gewohnt wird
K100: =HLOOKUP($L$84,$U$30:$V$41,11) -> 0 | L100: KdU-Anteil des Bafög mit eigener Wohnung
L102: * Mindestfreibetrag: siehe Hinweise zu § 11 SGB II; Randnummer 11.102
L105: " Unabhängig von dem tatsächlichen
L106: BAföG-Anspruch ist pauschal ein Betrag in Höhe von 20 v.H. der
L107: maßgebenden bedarfsdeckenden Ausbildungsförderung nach dem
L108: BAföG als zweckbestimmte Einnahme (§ 11 Abs. 3 Nr. 1a) nicht als
L109: Einkommen zu berücksichtigen. "
L117: Nachweis höherer Kosten möglich
L118: " Werden für Fahrkosten und Ausbildungsmaterial insgesamt höhere
L119: Kosten nachgewiesen, können die die Pauschale übersteigenden
L120: Kosten zusätzlich geltend gemacht werden (§ 1 Abs. 1 Nr. 10 Alg II-
L121: V)."
L122: "Schulgeld, das für den Besuch einer privaten Schule zu entrichten
L123: ist, kann nicht von der Ausbildungsförderung abgesetzt werden."
L125: Alg II-Verordnung vom 18.12.2008
L126: (1) Außer den in § 11 Abs. 3 des Zweiten Buches Sozialgesetzbuch ge-
L127: nannten Einnahmen sind nicht als Einkommen zu berücksichtigen:
L128: …
L129: 10. Leistungen der Ausbildungsförderung, soweit sie für Fahrkosten zur
L130: Ausbildung oder für Ausbildungsmaterial verwendet werden; ist be-
L131: reits mindestens ein Betrag nach § 11 Abs. 2 Satz 2 des Zweiten Bu-
L132: ches Sozialgesetzbuch von der Ausbildungsvergütung absetzbar, gilt
L133: dies nur für den darüber hinaus gehenden Betrag,

Sheet Verm (hidden)
B1: =IF(T1>0,"*","") ->  | F1: ="ALG II - Vermögensfreibeträge, § 12 SGB II" -> ALG II - Vermögensfreibeträge, § 12 SGB II | H1: =Debug!A5 -> 2026-01-26 | I1: =IF(Werte10!B5 >14.5, " Vermögensprüfung ab 1.3.2020 ungültig !","") -> Vermögensprüfung ab 1.3.2020 ungültig ! | T1: =SUM(T2:T15) -> 0
F2: Version 5.09.2019 | P2: =IF(C3=DATEVALUE("01.01.2005"),1,IF(C3=DATEVALUE("01.08.2006"),2,IF(C3=DATEVALUE("17.04.2010"),3,0))) -> 3 | Q2: Höchstwerttabelle | T2: =IF(C3<>40285,1,0) -> 0
A3: 1. | B3: Freibeträge gültig ab: | C3: 2010-04-17 | D3: bis | E3: 2020-03-01 | P3: =IF(C3=DATEVALUE("01.01.2005"),1,IF(C3=DATEVALUE("01.08.2006"),2,IF(C3=DATEVALUE("17.04.2010"),2,0))) -> 2 | Q3: Mindestwerttabelle
B4: Hilfebedürftiger | F4: Lebensalter | H4: =IF(AND('ALG2'!G27=29.1,F5=0),P4,"") -> Berechnung ungültig ! Platzhalterzahl '29,1' auf 'ALG2' durch tatsächliches Lebensalter ersetzen. | P4: ="Berechnung ungültig ! Platzhalterzahl '29,1' auf 'ALG2' durch tatsächliches Lebensalter ersetzen." -> Berechnung ungültig ! Platzhalterzahl '29,1' auf 'ALG2' durch tatsächliches Lebensalter ersetzen.
A5: 2a. | B5: Allgemeiner Freibetrag | C5: =IF(I48<=1948,"geboren vor dem 1.1.1948","")& IF(I48=1948," ?","") ->  | E5: 3a. | G5: =IF(F5>0,F5,INT('ALG2'!G27)) -> 29 | H5: Jahre x | I5: =IF(AND(OR(K48="Ü-Regelung!",AND(P5=1,D5="ja")),OR(D5="ja",D5="")),$H$30,IF($C$3=DATEVALUE("1.01.2005"),$I$30,$J$30)) -> 150 | J5: € = | K5: =IF(G5=0,0,IF(G5*I5<$C$29,$C$29,IF(G5>65,65*I5,+G5*I5))) -> 4350 | L5: € | P5: =IF(ISERROR(FIND("?",C5,1)),0,1) -> 0 | Q5: Alternative möglich: 1 | T5: =IF(D5<>"",1,0) -> 0
A6: 4a. | B6: ="Freibetrag für Alterssicherung"&IF(AND(G5>0,D6="")," ? (ja / nein)","") -> Freibetrag für Alterssicherung ? (ja / nein) | G6: =IF(D6<>"",G5,"") ->  | H6: =IF(I6>0,H$5,"") ->  | I6: =IF(D6<>"ja",0,IF($C$3=DATEVALUE("1.08.2006"),$I$37,IF($C$3=DATEVALUE("17.04.2010"),$J$37,$H$37))) -> 0 | J6: =IF(I6>0,J$5,"") ->  | K6: =IF(OR(G5=0,I6=0),0,IF(G6*I6<$J$31,$J$31,IF(G6*I6>C36,C36,G6*I6))) -> 0 | L6: =IF(I6>0,L$5,"") ->  | T6: =IF(D6<>"",1,0) -> 0
B7: Ansparfreibetrag | K7: =IF(G5=0,0,J33) -> 750 | L7: =IF(G5<>"",L$5,"") -> €
P8: =IF(ISERROR(FIND("?",C10,1)),0,1) -> 0 | Q8: Alternative möglich: 1 | T8: =IF(F5<>"",1,0) -> 0
B9: Ehegatte/Partner | H9: =IF(AND('ALG2'!H27=29.1,F10=0),P4,"") ->  | T9: =IF(F10<>"",1,0) -> 0
A10: 2b. | B10: Allgemeiner Freibetrag | C10: =IF(I49<=1948,"geboren vor dem 1.1.1948","")& IF(I49=1948," ?","") ->  | E10: 3b. | G10: =IF(F10>0,F10,INT('ALG2'!H27)) -> 0 | H10: =IF(I10<>"",H$5,"") ->  | I10: =IF(G10>0,IF(AND(OR(K49="Ü-Regelung!",AND(P8=1,D10="ja")),OR(D10="ja",D10="")),$H$30,IF($C$3=DATEVALUE("1.01.2005"),$I$30,$J$30)),"") ->  | J10: =IF(F10>0,J$5,"") ->  | K10: =IF(G10=0,0,IF(G10*I10<$C$29,$C$29,IF(G10>65,65*I10,+G10*I10))) -> 0 | L10: =IF(I10<>"",L$5,"") ->  | P10: =CHOOSE(P3,I30,J30) -> 150 | Q10: Grundfreibetrag pro Jahr | T10: =IF(D10<>"",1,0) -> 0
A11: 4b. | B11: ="Freibetrag für Alterssicherung"&IF(AND(G10>0,D11="")," ? (ja / nein)","") -> Freibetrag für Alterssicherung | G11: =IF(D11<>"",G10,"") ->  | H11: =IF(I11>0,H$5,"") ->  | I11: =IF(D11<>"ja",0,IF($C$3=DATEVALUE("1.08.2006"),$I$37,IF($C$3=DATEVALUE("17.04.2010"),$J$37,$H$37))) -> 0 | J11: =IF(I11>0,J$5,"") ->  | K11: =IF(OR(G10=0,I11=0),0,IF(G11*I11<$J$31,$J$31,IF(G11*I11>C37,C37,G11*I11))) -> 0 | L11: =IF(I11>0,L$5,"") ->  | T11: =IF(D11<>"",1,0) -> 0
B12: Ansparfreibetrag | K12: =IF(G10=0,0,J33) -> 0 | L12: =IF(K12>0,L$5,"") -> 
P13: ='ALG2'!B13 -> 0 | Q13: Kinder unter 25
B14: Kinder (Anzahl) | E14: 5. | G14: =IF(S14," <== 0 eingetragen ! Der 'Anspar'-Freibetrag der Kindern wird bei den Kindern berücksichtigt.","") ->  | P14: ='ALG2'!F13 -> 0 | Q14: Kinder >20 u. < 25 Jahre | S14: =AND(F14<>"",F14=0) -> FALSE
B15: 'Anspar'-Freibeträge der Kinder bis 24 Jahre sind übertragbar auf die Eltern | G15: =IF(F14<>"",F14,P13) -> 0 | H15: =IF(G15>0," x","") ->  | I15: =IF(G15>0,J$33,0) -> 0 | K15: =IF(G15=0,0,I15*G15) -> 0 | L15: =IF(G15>0,L$5,"") ->  | P15: =P13-P14 -> 0 | Q15: Kinder 0 bis 20 | T15: =IF(F14<>"",1,0) -> 0
B16: (0 eintragen, um 'Anspar'-Freibeträge den Eltern zuzurechnen) | K16: =SUM(K5:K15) -> 5100 | L16: €
P17: =IF(P13>0,MID(D18,11,61)&"!","") -> 
D18: =IF(P13>0,"Allgemeine Vermögensfreibeträge der Kinder nicht übertragbar auf Eltern oder Geschwister !","") ->  | S18: =ShTab!D111+ShTab!F111 -> 0
D19: =IF(G19>0,"Kind"&IF(P13>1," 1",""),"") ->  | G19: =P19 -> 0 | H19: =IF(G19>0,"Jahr"&IF(G19>1,"e","")& IF(Q19=0," x",""),"") ->  | I19: =IF(G19>0,IF(Q19=0,P$10,0),0) -> 0 | J19: =IF(G19>0,IF(M19<>"","",J$5),"") ->  | K19: =IF(G19*I19<Q19,Q19,G19*I19)+IF(AND(G19>0,OR(S$14=TRUE,G19>24)),J$33,0) -> 0 | L19: =IF(G19>0,L$5,"") ->  | M19: =IF(G19>0,IF(Q19>0,Q$28,S$28)&IF(OR(S$14=TRUE,G19>24),T$28,""),"") ->  | P19: =IF('ALG2'!I27>0,IF('ALG2'!I27<1,1,INT('ALG2'!I27)),0) -> 0 | Q19: =IF(AND(P19>0,P19<21),C$29,0) -> 0 | R19: =IF(G19*I19<Q19,Q19,G19*I19) -> 0 | S19: =IF(AND(G19>0,OR(S$18=0,S$14,G19>24)),J$33,0) -> 0
D20: =IF(G20>0,"Kind 2","") ->  | G20: =P20 -> 0 | I20: 0 | J20: =IF(G20>0,IF(M20<>"","",J$5),"") ->  | K20: 0 | L20: =IF(G20>0,L$5,"") ->  | M20: =IF(G20>0,IF(Q20>0,Q$28,S$28)&IF(OR(S$14=TRUE,G20>24),T$28,""),"") ->  | P20: =IF('ALG2'!J27>0,IF('ALG2'!J27<1,1,INT('ALG2'!J27)),0) -> 0 | Q20: 0 | R20: =IF(G20*I20<Q20,Q20,G20*I20) -> 0 | S20: =IF(AND(G20>0,OR(S$18=0,S$14,G20>24)),J$33,0) -> 0
D21: =IF(G21>0,"Kind 3","") ->  | G21: 0 | I21: 0 | K21: 0 | P21: =IF('ALG2'!K27>0,IF('ALG2'!K27<1,1,INT('ALG2'!K27)),0) -> 0 | Q21: 0 | R21: 0 | S21: 0
D22: =IF(G22>0,"Kind 4","") ->  | G22: 0 | I22: 0 | K22: 0 | P22: =IF('ALG2'!L27>0,IF('ALG2'!L27<1,1,INT('ALG2'!L27)),0) -> 0 | Q22: 0 | R22: 0 | S22: 0
D23: =IF(G23>0,"Kind 5","") ->  | G23: 0 | I23: 0 | K23: 0 | P23: =IF('ALG2'!M27>0,IF('ALG2'!M27<1,1,INT('ALG2'!M27)),0) -> 0 | Q23: 0 | R23: 0 | S23: 0
D24: =IF(G24>0,"Kind 6","") ->  | G24: 0 | I24: 0 | K24: 0 | P24: =IF('ALG2'!N27>0,IF('ALG2'!N27<1,1,INT('ALG2'!N27)),0) -> 0 | Q24: 0 | R24: 0 | S24: 0
D25: =IF(G25>0,"Kind 7","") ->  | G25: 0 | I25: 0 | K25: 0 | P25: =IF('ALG2'!O27>0,IF('ALG2'!O27<1,1,INT('ALG2'!O27)),0) -> 0 | Q25: 0 | R25: 0 | S25: 0
D26: =IF(G26>0,"Kind 8","") ->  | G26: 0 | I26: =IF(G26>0,IF(Q26=0,P$10,0),0) -> 0 | K26: =IF(G26*I26<Q26,Q26,G26*I26)+IF(AND(G26>0,OR(S$14=TRUE,G26>24)),J$33,0) -> 0 | P26: =IF('ALG2'!P27>0,IF('ALG2'!P27<1,1,INT('ALG2'!P27)),0) -> 0 | Q26: 0 | R26: 0 | S26: 0
B28: Allgemeine Freibeträge | D28: 6. Allgemeine Freibeträge | I28: gültig ab | Q28: ="Mindestfreibetrag" -> Mindestfreibetrag | S28: ="Allgemeiner Freibetrag" -> Allgemeiner Freibetrag | T28: =" + Ansparfreibetrag" -> + Ansparfreibetrag
B29: Mindestfreibetrag: | C29: =CHOOSE(P3,I31,J31) -> 3100 | H29: vor dem 1.1.1948 geb. | I29: 1.1.2005 | J29: 1.8.2006
D30: pro Lebensjahr | H30: 520 | I30: 200 | J30: 150
D31: Mindestfreibetrag | I31: 4100 | J31: 3100
D32: Höchstfreibetrag | H32: 33800 | I32: 13000 | J32: 9750
D33: Ansparbetrag | I33: 750 | J33: 750 | P33: HV | Q33: HA
P34: =MIN(P35:P37) -> 50250 | Q34: =MIN(Q35:Q37) -> 0
B35: Altersicherungsfreibetrag mit Verwertungsausschluß | D35: 7. Altersicherungsfreibetrag mit Verwertungsausschluß ! (VVG §165) | P35: =IF(K40="x",J40,"") ->  | Q35: =IF(L40="x",J40,"") -> 
B36: Höchstbetrag Hilfebedürftiger: | C36: =CHOOSE(P2,H41,I41,P34) -> 50250 | H36: 1.1.2005 | I36: 1.8.2006 | J36: 17.4.2010 | P36: =IF(K41="x",J41,"") ->  | Q36: =IF(L41="x",J41,"") -> 
B37: =IF(C49<>"","Höchstbetrag Partner/in:","") ->  | C37: =CHOOSE(P2,H41,I41,Q34) -> 0 | D37: pro Lebensjahr | H37: 200 | I37: 250 | J37: 750 | P37: =IF(K42="x",J42,"") -> 50250 | Q37: =IF(L42="x",J42,"") -> 
L38: Höchstbetrag
K39: Hilfebed. | L39: Partner | N39: Geburtstag
J40: 48750 | K40: =IF(I$48<YEAR($N40),"x","") ->  | L40: =IF(I$49<YEAR($N40),"x","") ->  | M40: vor | N40: 1958-01-01
D41: Höchstfreibetrag | H41: 13000 | I41: 16250 | J41: 49500 | K41: =IF(AND(I$48>=YEAR($N41),I$48<=YEAR($O41)),"x","") ->  | L41: =IF(AND(I$49>=YEAR($N41),I$49<=YEAR($O41)),"x","") ->  | M41: zwischen | N41: 1958-01-01 | O41: 1963-12-31
J42: 50250 | K42: =IF(I$48>=YEAR($N42),"x","") -> x | L42: =IF(C49<>"",IF(I$49>=YEAR($N42),"x",""),"") ->  | M42: ab | N42: 1964-01-01
D47: Alter | F47: Geburtsmonat | I47: Geburtsjahr
C48: =IF(D48>0,B4,"") -> Hilfebedürftiger | D48: =IF(F5=0,G5,F5) -> 29 | F48: =R48 -> Januar | I48: =(YEAR(H1)-1900+1900)-D48 -> 1997 | K48: =IF(I48<1948,"Ü-Regelung!","-") -> - | Q48: =IF(D48>0,INT((D48-INT(D48))/10*120)+1,0) -> 1 | R48: =IF(AND(Q48>0,Q48<13),CHOOSE(Q48,"Januar","Februar","März","April","Mai","Juni","Juli","August","September","Oktober","November","Dezember"),"") -> Januar
C49: =IF(G10>0,B9,"") ->  | D49: =IF(F10=0,G10,F10) -> 0 | F49: =R49 ->  | I49: =IF(G10>0,(YEAR(H1)-1900+1900)-D49,"") ->  | K49: =IF(I49<1948,"Ü-Regelung!","-") -> - | Q49: =IF(D49>0,INT((D49-INT(D49))/10*120)+1,0) -> 0 | R49: =IF(AND(Q49>0,Q49<13),CHOOSE(Q49,"Januar","Februar","März","April","Mai","Juni","Juli","August","September","Oktober","November","Dezember"),"") -> 
B51: =IF(AND(S18>0,'ALG2'!G27<>29.1,'ALG2'!H27<>29.1),TEXT(K5+K7+K10+K12,"0.0")&" €"&IF(AND(S14=FALSE,P13>0)," + "&TEXT(G15*I15,"0.0")&" € 'Anspar'-Freibetr"&IF(P13>1,"äge","ag")&" Kind"&IF(P13>1,"er","")&" < 25",""),REPT(" ",13)&"? (Lebensalter auf 'ALG2' eintragen !)")&IF(P13>0,IF(G19>0,CHAR(10)&D19&": " &TEXT(R19+S19,"0.0")&" €","")&IF(G20>0,CHAR(10)&D20&": " &TEXT(R20+S20,"0.0")&" €","")&IF(G21>0,CHAR(10)&D21&": " &TEXT(R21+S21,"0.0")&" €","")&IF(G22>0,CHAR(10)&D22&": " &TEXT(R22+S22,"0.0")&" €","")&IF(G23>0,CHAR(10)&D23&": " &TEXT(R23+S23,"0.0")&" €","")&IF(G24>0,CHAR(10)&D24&": " &TEXT(R24+S24,"0.0")&" €","")&IF(G25>0,CHAR(10)&D25&": " &TEXT(R25+S25,"0.0")&" €","")&IF(G26>0,CHAR(10)&D26&": " &TEXT(R26+S26,"0.0")&" €",""),"") -> ? (Lebensalter auf 'ALG2' eintragen !)
F54: Monate
I55: 15500 | J55: €
B56: Verwertung nach Erreichen der Altersgrenze | F56: 2 | H56: 180 | I56: =I55/180*-F56 -> -172.2222222 | J56: €
B57: Freibetrag bis zum Fälligkeitstermin | I57: =I55+I56 -> 15327.77778 | J57: €
B58: Anzahl Monate nach der Fälligkeit / Faktor | I58: =(+D65*I5)+IF(F10>0,(D65-F5+F10)*I10,0) -> 9000 | J58: €
B59: =LEFT("Freibetrag nach ",25)&FIXED(F56,0)&" Monaten" -> Freibetrag nach 2 Monaten | C59: pro Person | F59: 750 | H59: € | I59: =IF(K10>0,+F59*2,F59) -> 750 | J59: €
B60: Allgemeiner Grundfreibetrag nach Alter | I60: =SUM(I57:I59) -> 25077.77778 | J60: €
B61: Freibetrag f. Anschaffungen
B62: Gesamtfreibetrag | C62: Altersicherung fällig ab | D62: 60
D64: Freibetrag vermindert um = | I64: Rest-Freibetrag + | K64: Freib. allg. + | M64: AnsparF. = | N64: Gesamtfreibetrag
C65: im Alter von | D65: =D62 -> 60 | F65: =IF(D65<60,"FEHLER!",+$I$55/180) -> 86.11111111 | H65: =IF(D65<60,"Altergrenze 60 Jahre !","€ (pro Monat)") -> € (pro Monat) | I65: =$I$55-F65 -> 15413.88889 | K65: =(+D65*$I$5)+IF($F$10>0,(D65-$F$5+$F$10)*$I$10,0) -> 9000 | M65: =IF($F$10>0,+$J$33*2,$J$33) -> 750 | N65: =I65+K65+M65 -> 25163.88889 | O65: €
D66: =IF(+$D$62+1>65,"",$D$62+1) -> 61 | F66: =IF(D66<>"",+$I$55/180*12,"") -> 1033.333333 | H66: =IF(D66<>"","€ (12 Monate)","") -> € (12 Monate) | I66: =IF(D66<>"",+$I$55-F66,"") -> 14466.66667 | K66: =IF(D66<>"",(+D66*$I$5)+IF($F$10>0,(D66-$F$5+$F$10)*$I$10,0),"") -> 9150 | M66: =IF(D66<>"",IF($F$10>0,+$J$33*2,$J$33),"") -> 750 | N66: =IF(D66<>"",+I66+K66+M66,"") -> 24366.66667 | O66: =IF(D66<>"","€","") -> €
D67: =IF(+$D$62+2>65,"",$D$62+2) -> 62 | F67: =IF(D67<>"",+$I$55/180*12*2,"") -> 2066.666667 | H67: =IF(D67<>"","€ (24 Monate)","") -> € (24 Monate) | I67: =IF(D67<>"",+$I$55-F67,"") -> 13433.33333 | K67: =IF(D67<>"",(+D67*$I$5)+IF($F$10>0,(D67-$F$5+$F$10)*$I$10,0),"") -> 9300 | M67: =IF(D67<>"",IF($F$10>0,+$J$33*2,$J$33),"") -> 750 | N67: =IF(D67<>"",+I67+K67+M67,"") -> 23483.33333 | O67: =IF(D67<>"","€","") -> €
D68: =IF(+$D$62+3>65,"",$D$62+3) -> 63 | F68: =IF(D68<>"",+$I$55/180*12*3,"") -> 3100 | H68: =IF(D68<>"","€ (36 Monate)","") -> € (36 Monate) | I68: =IF(D68<>"",+$I$55-F68,"") -> 12400 | K68: =IF(D68<>"",(+D68*$I$5)+IF($F$10>0,(D68-$F$5+$F$10)*$I$10,0),"") -> 9450 | M68: =IF(D68<>"",IF($F$10>0,+$J$33*2,$J$33),"") -> 750 | N68: =IF(D68<>"",+I68+K68+M68,"") -> 22600 | O68: =IF(D68<>"","€","") -> €
D69: =IF(+$D$62+4>65,"",$D$62+4) -> 64 | F69: =IF(D69<>"",+$I$55/180*12*4,"") -> 4133.333333 | H69: =IF(D69<>"","€ (48 Monate)","") -> € (48 Monate) | I69: =IF(D69<>"",+$I$55-F69,"") -> 11366.66667 | K69: =IF(D69<>"",(+D69*$I$5)+IF($F$10>0,(D69-$F$5+$F$10)*$I$10,0),"") -> 9600 | M69: =IF(D69<>"",IF($F$10>0,+$J$33*2,$J$33),"") -> 750 | N69: =IF(D69<>"",+I69+K69+M69,"") -> 21716.66667 | O69: =IF(D69<>"","€","") -> €
D70: =IF(+$D$62+5>65,"",$D$62+5) -> 65 | F70: =IF(D70<>"",+$I$55/180*12*5,"") -> 5166.666667 | H70: =IF(D70<>"","€ (60 Monate)","") -> € (60 Monate) | I70: =IF(D70<>"",+$I$55-F70,"") -> 10333.33333 | K70: =IF(D70<>"",(+D70*$I$5)+IF($F$10>0,(D70-$F$5+$F$10)*$I$10,0),"") -> 9750 | M70: =IF(D70<>"",IF($F$10>0,+$J$33*2,$J$33),"") -> 750 | N70: =IF(D70<>"",+I70+K70+M70,"") -> 20833.33333 | O70: =IF(D70<>"","€","") -> €

Sheet ALG2
A1: =IF(Erwerbseinkommen!D56=10," Ungültige Jahreszahl auf Blatt Erwerbseinkommen ! ","Berechnung des Anspruch auf ALG2") -> Berechnung des Anspruch auf ALG2 | G1: =Uebersicht!AN1 ->  | N1: =IF(Uebersicht!B2,"X",IF(Uebersicht!AL2,"o","")) ->  | P1: Löschen aller Angaben auf dieser Seite | T1: Target.Column | U1: 9 | V1: =Debug!F9 -> MO | W1: =Debug!A8 -> 1 | X1: =Debug!A15 -> 1 | Y1: =Uebersicht!B3 -> 
A2: Anzahl der Personen in der Wohnung / in Haush.G | B2: =C2+ABS(Y28) -> 1 | C2: =SUM(G2:P2) -> 1 | D2: =SUM(I2:P2) -> 0 | G2: =IF(G27>0,1,0) -> 1 | H2: =IF(H27>0,1,0) -> 0 | I2: =IF(I27>0,1,0) -> 0 | J2: 0 | K2: 0 | L2: 0 | M2: 0 | N2: 0 | O2: 0 | P2: 0 | W2: NoCalc | X2: ANoC0 | AC2: Inhalt Auswahlfelder dieser Seite | BA2: letzter Wert
A3: kindergeldberechtigte Kinder / kindergeldber. Eltern | B3: =SUM(I3:P3) -> 0 | C3: =SUM(G3:H3) -> 0 | G3: =IF(OR(AND(G27<18,G27<>""),(AND(G24<>"",G27<27,G27>0))),1,0) -> 0 | H3: =IF(OR(AND(H27<18,H27<>""),(AND(H24<>"",H27<27,H27>0))),1,0) -> 0 | I3: =IF(OR(AND(I27<18,I27>0),(AND(I24<>"",I27<27,I27>0))),1,0) -> 0 | J3: 0 | K3: 0 | L3: 0 | M3: 0 | N3: 0 | O3: 0 | P3: 0 | AB3: RSTAb | AC3: =Werte10!E6 -> 1 | AD3: =Werte10!F6 -> 1.5 | AE3: =Werte10!G6 -> 2 | AF3: =Werte10!H6 -> 3 | AG3: =Werte10!I6 -> 4 | AH3: =Werte10!J6 -> 4.5 | AI3: =Werte10!K6 -> 5 | AJ3: =Werte10!L6 -> 6 | AK3: =Werte10!M6 -> 7 | AL3: =Werte10!N6 -> 8 | AM3: =Werte10!O6 -> 9 | AN3: =Werte10!P6 -> 10 | AO3: =Werte10!Q6 -> 11 | AP3: =Werte10!R6 -> 11.5 | AQ3: =Werte10!S6 -> 12 | AR3: =Werte10!T6 -> 12.5 | AS3: =Werte10!U6 -> 13 | AT3: =Werte10!V6 -> 14 | AU3: =Werte10!W6 -> 14.5 | AV3: =Werte10!X6 -> 15 | AW3: =Werte10!Y6 -> 16 | AX3: =Werte10!Z6 -> 17 | AY3: =Werte10!AA6 -> 17.5 | AZ3: =Werte10!AB6 -> 17.75 | BA3: =Werte10!AC6 -> 18 | BB3: =Werte10!AD6 -> 18.25 | BC3: =Werte10!AE6 -> 18.5 | BD3: =Werte10!AF6 -> 19 | BE3: =Werte10!AG6 -> 20
A4: Reserve | R4: =YEAR(Werte10!C42) -> 2026
A5: Kinder 8 bis 24 | B5: 0 | I5: =IF(I27>0,IF(I27>=25,"",IF(I27<8,"",1)),"") -> 
A6: Kinder 18 bis 24 | B6: 0 | C6: RsA: Kinder 15 - 17 | F6: =F12-B12-F7 -> 0 | I6: =IF(I27>0,IF(I27>=25,"",IF(I27<18,"",1)),"") ->  | J6: =IF(J27>0,IF(J27>=25,"",IF(J27<18,"",1)),"") -> 
A7: Kinder 16 bis 17 Jahre | B7: 0 | C7: RsA: Kinder 6 - 14 | F7: =SUM(I11:P11) -> 0 | I7: =IF(I27>0,IF(I27>=18,"",IF(I27<16,"",1)),"") ->  | J7: =IF(J27>0,IF(J27>=18,"",IF(J27<16,"",1)),"") -> 
A8: Kinder 7 bis 15 Jahre | B8: 0 | C8: RsA: Kinder 14 - 24 | F8: =F10+B6 -> 0 | I8: =IF(I27>0,IF(I27<7,"",IF(I27<16,1,IF(I27>=16,"",""))),"") ->  | J8: =IF(J27>0,IF(J27<7,"",IF(J27<16,1,IF(J27>=16,"",""))),"") -> 
A9: Kinder 0 bis 13 Jahre | B9: 0 | I9: =IF(AND(I27>0,I27<14),1,"") ->  | J9: =IF(AND(J27>0,J27<14),1,"") -> 
A10: Kinder < 7 Jahre | B10: 0 | C10: ="Kind"&IF(OR(F10>1,F10=0),"er","")&" 14 - 17" -> Kinder 14 - 17 | F10: =F12-B9 -> 0 | I10: =IF(I27>0,IF(I27<7,1,IF(I27<16,"",IF(I27>=16,"",""))),"") ->  | J10: =IF(J27>0,IF(J27<7,1,IF(J27<16,"",IF(J27>=16,"",""))),"") -> 
A11: für Regelansatzteile: Kinder 6 - 13 Jahre | B11: =B9-B12 -> 0 | C11: ="Kind"&IF(OR(F11>1,F11=0),"er","")&" < 16" -> Kinder < 16 | F11: =B8+B10 -> 0 | I11: =IF(I27>0,IF(AND(I27>5,I27<15),1,""),"") ->  | J11: =IF(J27>0,IF(AND(J27>5,J27<15),1,""),"") -> 
A12: für Regelansatzteile: Kinder 0 - 5 Jahre | B12: =SUM(I12:P12) -> 0 | C12: ="Kind"&IF(OR(F12>1,F12=0),"er","")&" < 18" -> Kinder < 18 | F12: =B7+B8+B10 -> 0 | I12: =IF(I27>0,IF(I27<6,1,""),"") ->  | J12: =IF(J27>0,IF(J27<6,1,""),"") -> 
A13: ="Kind"&IF(OR(B13>1,B13=0),"er","")&" < 25" -> Kinder < 25 | B13: =B6+B7+B8+B10 -> 0 | C13: ="Kind"&IF(OR(F13>1,F13=0),"er","")&" >20 u. < 25" -> Kinder >20 u. < 25 | F13: =SUM(I13:P13) -> 0 | I13: =IF(I27>0,IF(I27>=25,0,IF(I27<21,0,1)),"") ->  | J13: =IF(J27>0,IF(J27>=25,0,IF(J27<21,0,1)),"") ->  | V13: =IF(COUNTA(I17:I24)>0,1,0) -> 0 | W13: =IF(COUNTA(J17:J24)>0,1,0) -> 0 | X13: =IF(COUNTA(K17:K24)>0,1,0) -> 0 | Y13: =IF(COUNTA(L17:L24)>0,1,0) -> 0
A14: Eltern | B14: =SUM(G2:H2) -> 1 | C14: ="Kind"&IF(OR(F14>1,F14=0),"er","")&" >24" -> Kinder >24 | F14: =C2-B13-B14 -> 0 | G14: =IF(AND(G27>0,Wohngeld!E11="nein"),TRUE,FALSE) -> FALSE | H14: =IF(AND(H27>0,Wohngeld!J11="nein"),TRUE,FALSE) -> FALSE | I14: =IF(AND(I27>0,OR(Wohngeld!I112="nein",AND(Wohngeld!I111<>"ja",I72="nein"))),TRUE,FALSE) -> FALSE | J14: =IF(AND(J27>0,OR(Wohngeld!J112="nein",AND(Wohngeld!J111<>"ja",J72="nein"))),TRUE,FALSE) -> FALSE | K14: =IF(AND(K27>0,OR(Wohngeld!K112="nein",AND(Wohngeld!K111<>"ja",K72="nein"))),TRUE,FALSE) -> FALSE | L14: =IF(AND(L27>0,OR(Wohngeld!L112="nein",AND(Wohngeld!L111<>"ja",L72="nein"))),TRUE,FALSE) -> FALSE | M14: =IF(AND(M27>0,OR(Wohngeld!M112="nein",AND(Wohngeld!M111<>"ja",M72="nein"))),TRUE,FALSE) -> FALSE | N14: =IF(AND(N27>0,OR(Wohngeld!N112="nein",AND(Wohngeld!N111<>"ja",N72="nein"))),TRUE,FALSE) -> FALSE | O14: =IF(AND(O27>0,OR(Wohngeld!O112="nein",AND(Wohngeld!O111<>"ja",O72="nein"))),TRUE,FALSE) -> FALSE | P14: =IF(AND(P27>0,OR(Wohngeld!P112="nein",AND(Wohngeld!P111<>"ja",P72="nein"))),TRUE,FALSE) -> FALSE | V14: =IF(COUNTA(M17:M24)>0,1,0) -> 0 | W14: =IF(COUNTA(N17:N24)>0,1,0) -> 0 | X14: =IF(COUNTA(O17:O24)>0,1,0) -> 0 | Y14: =IF(COUNTA(P17:P24)>0,1,0) -> 0
A15: =IF(OR(AND(YEAR(G15)=1900,G15<>""),AND(YEAR(I15)=1900,I15<>"")),"Datum ungültig ! '0' ?",IF(OR(B16<>"",AND(NOT(Stud2017),G15>0,OR(G15<V15,G15>W15)),AND(I15>0,OR(I15<V15,I15>W15))),"Datum ungültig oder Regelsatztabelle paßt nicht zum angegebenen Datum !",IF(AND(N1="X",Y1<>""),Y1,"Leistungszeitraum")&IF(AND(NOT(Stud2017),V32)," !",": ")&IF(AND(N1="X",Uebersicht!A74<>0)," "&Uebersicht!A74,""))) -> Leistungszeitraum: | O15: Alle Angaben auf allen Arbeitsblättern löschen (Reset) | V15: =Werte10!C42 -> 2026-01-01 | W15: =IF(Werte10!D42<>"",Werte10!D42,DATEVALUE("31.12."&YEAR(V15))) -> 2026-12-31 | X15: Datum liefert Werte für Gültigkeitsprüfung der Felder A16, G15, i15
B16: =IF(AND(A16>0,OR(A16<V15,A16>W15))," <==","") ->  | F16: besondere Leistungsmerkmale: | G16: =$R$4-G27 -> 1996.9 | H16: =IF(H27<>"",$R$4-H27,"") ->  | U16: FALSE | V16: HV | W16: HA | X16: =IF(COUNTA(I17:I24)>0,1,0) -> 0 | AC16: Kindergeld | AF16: =Werte10!B129 -> 1.1.2026
F17: schwanger ab der 13. Woche | U17: =AND(H21="x",H22="x") -> FALSE | X17: =IF(COUNTA(J17:J24)>0,1,0) -> 0
A18: Sozialberatung | F18: Eingliederungsleistungen f. Beh. | U18: =I22="x" -> FALSE | X18: =IF(COUNTA(K17:K24)>0,1,0) -> 0 | AC18: =Werte10!D130 -> 259 | AD18: 1. + 2. Kind | AE18: =IF(B3>2,2,B3) -> 0 | AF18: =$AE18*AC18 -> 0
A19: des | F19: volle Erwerbsminderung + MZ "G" | U19: =J22="x" -> FALSE | X19: =IF(COUNTA(L17:L24)>0,1,0) -> 0 | AC19: =Werte10!D131 -> 259 | AD19: 3. Kind | AE19: =IF(B3>2,1,0) -> 0 | AF19: =$AE19*AC19 -> 0
A20: Diakonischen Werks Hannover | F20: =IF(Y20>0,"! ","")&"Studium"&IF(Werte10!B5<11.5," / BAB","")&IF(Y20>0," ²","") -> Studium | U20: =K22="x" -> FALSE | X20: =IF(COUNTA(M17:M24)>0,1,0) -> 0 | Y20: =IF(COUNTA(G20:P20)>0,1,0) -> 0 | AC20: =Werte10!D132 -> 259 | AD20: ab 4. Kind | AE20: =IF(B3>3,B3-3,0) -> 0 | AF20: =$AE20*AC20 -> 0
F21: =IF(Y21>0,"! ","")&"Grundsicherung im Alter"&IF(Y21>0," ³ ","") -> Grundsicherung im Alter | U21: =L22="x" -> FALSE | X21: =IF(COUNTA(N17:N24)>0,1,0) -> 0 | Y21: =IF(COUNTA(G21:P21)>0,1,0) -> 0 | AE21: =SUM(AE18:AE20) -> 0 | AF21: =SUM(AF18:AF20) -> 0
A22: =IF(A16<>"",A16,Debug!A5) -> 2026-01-26 | F22: k. Anspruch wg Verm. oder GruSi | G22: --- | U22: =M22="x" -> FALSE | V22: =IF(COUNTA(G22:G22)>0,1,0) -> 1 | W22: =IF(COUNTA(H22:H22)>0,1,0) -> 0 | Y22: =IF(COUNTA(I22:P22)>0,1,0) -> 0
A23: Version: 17.08.2023 | F23: =IF(B27>18.25,"Azubi-/Schul-/Freiwill. -Regelung","Azubi in berufl. Ausbildung") -> Azubi-/Schul-/Freiwill. -Regelung | U23: =N22="x" -> FALSE | X23: =IF(COUNTA(O17:O24)>0,1,0) -> 0
F24: kindergeldberechtigt | U24: =O22="x" -> FALSE | X24: =IF(COUNTA(P17:P24)>0,1,0) -> 0
C25: =IF(OR(G14,H14,I14,J14,K14,L14,M14,N14,O14,P14),"nicht wohngeldberechtigt:","") ->  | G25: =IF(NOT(G14),"","x") ->  | H25: =IF(NOT(H14),"","x") ->  | I25: =IF(NOT(I14),"","x") ->  | J25: =IF(NOT(J14),"","x") ->  | K25: =IF(NOT(K14),"","x") ->  | U25: =P22="x" -> FALSE | V25: =IF(COUNTA(G17:G24)-1>0,1,0) -> 0 | W25: =IF(COUNTA(H17:H24)>0,1,0) -> 0 | X25: =SUM(X16:X24) -> 0 | Y25: =V25+W25+X25 -> 0 | AC25: =IF(AE21>0,AF21/AE21,0) -> 0 | AD25: =IF(AC25>0,"Durchschnittskindergeld","") -> 
F26: =IF(AND(C245>0,C139=TRUE,G25<>"x"),"==> ","") ->  | G26: =IF(B27>0,IF(H27>17,HLOOKUP(B27,Werte10!E6:AZ14,8),HLOOKUP(B27,Werte10!E6:AZ14,9,TRUE)),0) -> 563 | H26: =IF($B$27>0,IF(H27>=18,HLOOKUP($B$27,Werte10!E6:AZ14,8),VLOOKUP(H27,Werte10!$B$8:$AZ$14,$B$27+(Werte10!$D23),TRUE)),0) -> 357 | I26: =IF($B$27>0,VLOOKUP(I27,Werte10!$B$8:OFFSET(Werte10!$AZ$12,IF($B27>4,$V27,2),0),$B27+(Werte10!$D$23),TRUE),0) -> 357 | J26: =IF($B$27>0,VLOOKUP(J27,Werte10!$B$8:OFFSET(Werte10!$AZ$12,IF($B$27>4,$V27,2),0),$B$27+(Werte10!$D$23),TRUE),0) -> 357 | K26: =IF($B$27>0,VLOOKUP(K27,Werte10!$B$8:OFFSET(Werte10!$AZ$12,IF($B$27>4,$V27,2),0),$B$27+(Werte10!$D$23),TRUE),0) -> 357 | L26: =IF($B$27>0,VLOOKUP(L27,Werte10!$B$8:OFFSET(Werte10!$AZ$12,IF($B$27>4,$V27,2),0),$B$27+(Werte10!$D$23),TRUE),0) -> 357 | M26: =IF($B$27>0,VLOOKUP(M27,Werte10!$B$8:OFFSET(Werte10!$AZ$12,IF($B$27>4,$V27,2),0),$B$27+(Werte10!$D$23),TRUE),0) -> 357 | N26: =IF($B$27>0,VLOOKUP(N27,Werte10!$B$8:OFFSET(Werte10!$AZ$12,IF($B$27>4,$V27,2),0),$B$27+(Werte10!$D$23),TRUE),0) -> 357 | O26: =IF($B$27>0,VLOOKUP(O27,Werte10!$B$8:OFFSET(Werte10!$AZ$12,IF($B$27>4,$V27,2),0),$B$27+(Werte10!$D$23),TRUE),0) -> 357 | P26: =IF($B$27>0,VLOOKUP(P27,Werte10!$B$8:OFFSET(Werte10!$AZ$12,IF($B$27>4,$V27,2),0),$B$27+(Werte10!$D$23),TRUE),0) -> 357 | AD26: =IF(SUM(D58:F58)>0,"ohne "&COUNT(D58:F58)&" Kind"&IF(COUNT(D58:F58)>1,"er","")&" außerhalb der BG !","") -> 
A27: =IF(AND(B27<>"",B27<>0)," Leistungstabelle "& IF(OR(Werte10!B2=B27,Werte10!B3=B27),IF(A22>Werte10!C5,"seit ","ab "),"") & TEXT(HLOOKUP(Werte10!B5,Werte10!E6:AZ7,2,TRUE),"TT.MM.JJJJ") &IF(Werte10!B2=B27,""," - ")&IF(Werte10!B2=B27," ",TEXT(Werte10!D42,"TT.MM.JJJJ"))," Regelsatztabelle wählen ! ==>") -> Leistungstabelle seit 01.01.2026 | B27: 21 | F27: 1. Lebensalter | G27: 29.1 | R27: BGs | T27: =IF(G27>0,1,"")&IF(H27>0,2,"")&IF(I27>0,3,"")&IF(J27>0,4,"")&IF(K27>0,5,"")&IF(L27>0,6,"")&IF(M27>0,7,"")&IF(N27>0,8,"")&IF(O27>0,9,"")&IF(P27>0,10,"") -> 1 | U27: =IF(G27=29.1,1,0)+IF(AND(H27=29.1,H27>0),1,0)+IF(I27<>0,1,0)+IF(J27<>0,1,0)+IF(K27<>0,1,0)+IF(L27<>0,1,0)+IF(M27<>0,1,0)+IF(N27>0,1,0)+IF(O27>0,1,0)+IF(P27>0,1,0) -> 1 | V27: =Werte10!B22 -> 2 | W27: Regelsatzgruppe 3 ab 2011: 2, sonst 1
A28: =IF(B27>0,IF(HLOOKUP(B27,Werte10!E6:AZ78,68,TRUE)<>""," ("& HLOOKUP(B27,Werte10!E6:AZ78,73,TRUE)&")",""),"") -> (Wohngeld Kindergeld u.a.) | G28: Leistungsb. | H28: ="Partner/-in"& IF(AND(H27<>"",H27<16)," ?","") -> Partner/-in | I28: =IF(I27="","1. Kind",IF(OR(I27>=25),"BG !",IF(I27>17,"UK 1","MuK 1"))) -> 1. Kind | J28: =IF(J27="","2. Kind",IF(OR(J27>=25),"BG !",IF(J27>17,"UK 2","MuK 2"))) -> 2. Kind | K28: =IF(K27="","3. Kind",IF(K27>=25,"BG !",IF(K27>17,"UK 3","MuK 3"))) -> 3. Kind | L28: =IF(L27="","4. Kind",IF(L27>=25,"BG !",IF(L27>17,"UK 4","MuK 4"))) -> 4. Kind | M28: =IF(M27="","5. Kind",IF(M27>=25,"BG !",IF(M27>17,"UK 5","MuK 5"))) -> 5. Kind | N28: =IF(N27="","6. Kind",IF(N27>=25,"BG !",IF(N27>17,"UK 6","MuK 6"))) -> 6. Kind | O28: =IF(O27="","7. Kind",IF(O27>=25,"BG !",IF(O27>17,"UK 7","MuK 7"))) -> 7. Kind | P28: =IF(P27="","8. Kind",IF(P27>=25,"BG !",IF(P27>17,"UK 8","MuK 8"))) -> 8. Kind | R28: =1+IF(I28="BG !",1,0)+IF(J28="BG !",1,0)+IF(K28="BG !",1,0)+IF(L28="BG !",1,0)+IF(M28="BG !",1,0)+IF(N28="BG !",1,0)+IF(O28="BG !",1,0)+IF(P28="BG !",1,0) -> 1 | V28: für Steuertabelle nach RS-Tabelle setzen | Y28: =C29 -> 0
A29: 2. Zahl der Mitbewohner, die nicht zur BG gehören: | E29: =SUM(G29:P29) -> 563 | G29: =IF(G27>0,IF(G20="x",0,IF(ISERROR(G26),0,IF(AND(G30<>"",G30>=0,$R30<>""),IF(AND($R30="Tage",G30<31),ROUND(G26/30*G30,2),G30),G26))),0) -> 563 | H29: =IF(H27>0,IF(OR(AND(H21="x",H22="x"),H20="x"),0,IF(ISERROR(H26),0,IF(AND(H30<>"",H30>=0,$R30<>""),IF(AND($R30="Tage",H30<31),ROUND(H26/30*H30,2),H30),H26))),0) -> 0 | I29: =IF(I27>0,IF(AND(I30<>"",I30>=0,$R30<>""),IF(AND($R30="Tage",I30<31),ROUND(I26/30*I30,2),I30),IF(OR(AND(I20="x",Studenten!G1="LA",$B27<11.5),I22="x"),0,IF(ISERROR(I26),0,I26))),0) -> 0 | J29: =IF(J27>0,IF(AND(J30<>"",J30>=0,$R30<>""),IF(AND($R30="Tage",J30<31),ROUND(J26/30*J30,2),J30),IF(OR(AND(J20="x",Studenten!I1="LA",$B27<11.5),J22="x"),0,IF(ISERROR(J26),0,J26))),0) -> 0 | K29: =IF(K27>0,IF(AND(K30<>"",K30>=0,$R30<>""),IF(AND($R30="Tage",K30<31),ROUND(K26/30*K30,2),K30),IF(OR(AND(K20="x",Studenten!J1="LA",$B27<11.5),K22="x"),0,IF(ISERROR(K26),0,K26))),0) -> 0 | L29: =IF(L27>0,IF(AND(L30<>"",L30>=0,$R30<>""),IF(AND($R30="Tage",L30<31),ROUND(L26/30*L30,2),L30),IF(OR(AND(L20="x",Studenten!K1="LA",$B27<11.5),L22="x"),0,IF(ISERROR(L26),0,L26))),0) -> 0 | M29: =IF(M27>0,IF(AND(M30<>"",M30>=0,$R30<>""),IF(AND($R30="Tage",M30<31),ROUND(M26/30*M30,2),M30),IF(OR(AND(M20="x",Studenten!L1="LA",$B27<11.5),M22="x"),0,IF(ISERROR(M26),0,M26))),0) -> 0 | N29: =IF(N27>0,IF(AND(N30<>"",N30>=0,$R30<>""),IF(AND($R30="Tage",N30<31),ROUND(N26/30*N30,2),N30),IF(OR(AND(N20="x",Studenten!M1="LA",$B27<11.5),N22="x"),0,IF(ISERROR(N26),0,N26))),0) -> 0 | O29: =IF(O27>0,IF(AND(O30<>"",O30>=0,$R30<>""),IF(AND($R30="Tage",O30<31),ROUND(O26/30*O30,2),O30),IF(OR(AND(O20="x",Studenten!N1="LA",$B27<11.5),O22="x"),0,IF(ISERROR(O26),0,O26))),0) -> 0 | P29: =IF(P27>0,IF(AND(P30<>"",P30>=0,$R30<>""),IF(AND($R30="Tage",P30<31),ROUND(P26/30*P30,2),P30),IF(OR(AND(P20="x",Studenten!O1="LA",$B27<11.5),P22="x"),0,IF(ISERROR(P26),0,P26))),0) -> 0 | V29: =IF(ISERROR(Gehaltsrechner!C38),0,Gehaltsrechner!C38) -> 2024 | W29: =Gehaltsrechner!H38 -> 2024 | X29: =IF(ISERROR(V29),FALSE,IF(V29<>W29,TRUE,FALSE)) -> FALSE | Y29: DatPr_Betrag | AC29: =KdU!AO166 -> 0
A30: =IF(V30>0," FEHLER: ungültigen Wert für 'Tage' eingetragen ! Wert ändern oder 'Betrag' auswählen "," abweichenden Regelsatz festlegen "&IF(AND(R30="",X30>0)," 'Tage' oder 'Betrag' auswählen ==>"," - Betrag oder Anzahl der Anspruchstage")) -> abweichenden Regelsatz festlegen - Betrag oder Anzahl der Anspruchstage | Q30: =IF(AND(R30="",X30>0),"=>","") ->  | S30: =IF(T30>0," '0' in "&IF(AND(G30<>"",G30=0),"HV ","")&IF(AND(H30<>"",H30=0),"HA ","")&IF(AND(I30<>"",I30=0),"Ki1 ","")&IF(AND(J30<>"",J30=0),"Ki2 ","")&IF(AND(K30<>"",K30=0),"Ki3 ","")&IF(AND(L30<>"",L30=0),"Ki4 ","")&IF(AND(M30<>"",M30=0),"Ki5 ","")&IF(AND(N30<>"",N30=0),"Ki6 ","")&IF(AND(O30<>"",O30=0),"Ki7 ","")&IF(AND(P30<>"",P30=0),"Ki8 ",""),"") ->  | T30: =IF(AND(G30<>"",G30=0),1,0)+IF(AND(H30<>"",H30=0),1,0)+IF(AND(I30<>"",I30=0),1,0)+IF(AND(J30<>"",J30=0),1,0)+IF(AND(K30<>"",K30=0),1,0)+IF(AND(L30<>"",L30=0),1,0)+IF(AND(M30<>"",M30=0),1,0)+IF(AND(N30<>"",N30=0),1,0)+IF(AND(O30<>"",O30=0),1,0)+IF(AND(P30<>"",P30=0),1,0) -> 0 | V30: =IF(R30="Tage",IF(G30>30,1,0)+IF(H30>30,1,0)+IF(I30>30,1,0)+IF(J30>30,1,0)+IF(K30>30,1,0)+IF(L30>30,1,0)+IF(M30>30,1,0)+IF(N30>30,1,0)+IF(O30>30,1,0)+IF(P30>30,1,0),0) -> 0 | X30: =G30+H30+I30+J30+K30+L30+M30+N30+O30+P30+IF(R30<>"",1,0)+IF(AND(R34<>"",R30<>""),1,0)+IF(AND(R49<>"",R30<>""),1,0) -> 0
A31: =IF(C31<>"","Mehrbedarf für Schwangere ab der 13. Woche d. S.","") ->  | C31: =IF(COUNTA(G17:P17)>0,Werte09!C16,"") ->  | E31: =SUM(G31:P31) -> 0 | G31: =IF(AND(G27>10,G17="x",G22<>"x"),IF(AND($R30="Tage",G30>0,G30<31),ROUND($C31*G26/30*G30,$Y41),ROUND($C31*G26,$Y41)),0) -> 0 | H31: 0 | I31: 0 | J31: 0 | K31: 0 | L31: 0 | M31: 0 | N31: 0 | O31: 0 | P31: 0 | V31: Textergänzungen | Y31: =IF(R30="Tage",30,G26) -> 563
V32: =OR(AND(G15>0,OR(G15<V15,G15>W15) ),AND(I15>0,OR(I15<V15,I15>W15))) -> FALSE | W32: =IF(OR(X33<>"",W33<>""),"Die Berechnungshilfe liefert für ","") ->  | Y32: =IF(R30="Tage",30,H26) -> 357
A33: =IF(C33<>"","Mehrbedarf für Alleinerziehende","") ->  | C33: =IF(LEN(C34)+LEN(C35)+LEN(C36)+LEN(C37)>0,"Mehrbedarf in % des Regelsatz","") ->  | V33: =IF((AND(COUNTA(Y20:Y21)>0,X33<>"",W33<>""))," und","") ->  | W33: =IF(COUNTA(G21:P21)>0," ³Empfänger von Grundsicherung im Alter und Erwerbsunfähigkeit (SGB XII)","") ->  | X33: =IF(COUNTA(G20:P20)>0," ²Studenten" & IF(Werte10!B5<11.5,IF(W33<>"",","," und")&" ²BAB-Empfänger",""),"") ->  | Y33: =IF(R30="Tage",30,I26) -> 357
A34: =IF(H29>0,"",IF(B34<>"",TEXT(B34,"0")&" Kind"&IF(B34>1,"er","")& " unter 7 Jahre","")) ->  | B34: =IF(+B10>0,B10,"") ->  | C34: =IF(H29>0,"",IF(B34<>"",Werte09!C20,"")) ->  | E34: =IF(AND(B34<>"",H$27=0),ROUND(C34*G$26*T34,Y41),"") ->  | G34: =IF(H29>0,0,IF(AND(E34=MAX(E34:E37),SUM(G35:G37)=0),IF(AND($R30="Tage",G30>0,G30<31),ROUND(E34/30*G30,Y41),E34),0)) -> 0 | T34: =IF(OR(R34="MB_Alleinerz.",R34=""),1,IF(R34="MB_halbiert",0.5,0)) -> 1 | W34: =IF(OR(X33<>"",W33<>"")," noch keine zuverlässigen Ergebnisse !","") ->  | Y34: =IF(R30="Tage",30,J26) -> 357
A35: =IF(H29>0,"",IF(B35<>"",TEXT(B35,"0")&" Kind"&IF(B35>1,"er","")& " unter 16 Jahre","")) ->  | B35: =IF(AND(+F11>=2,F11<4),F11,"") ->  | C35: =IF(H29>0,"",IF(B35<>"",Werte09!C20,"")) ->  | E35: =IF(AND(B35<>"",H$27=0),ROUND(C35*G$26*T34,Y41),"") ->  | G35: =IF(H29>0,0,IF(AND(E35=MAX(E34:E37),SUM(G36:G37)=0),IF(AND($R30="Tage",G30>0,G30<31),ROUND(E35/30*G30,Y41),E35),0)) -> 0 | Y35: =IF(R30="Tage",30,K26) -> 357
A36: =IF(H29>0,"",IF(B36<>"",TEXT(B36,"0")&" Kind"&IF(B36>1,"er","")& " unter 16 Jahre","")) ->  | B36: =IF(+F11>=4,F11,"") ->  | C36: =IF(H29>0,"",IF(B36<>"",IF(Werte09!C23*B36>Werte09!C25,Werte09!C25,Werte09!C23*B36),"")) ->  | E36: =IF(AND(B36<>"",H$27=0),ROUND(C36*G$26*T34,Y41),"") ->  | G36: =IF(H29>0,0,IF(AND(E36=MAX(E34:E37),G37=0),IF(AND($R30="Tage",G30>0,G30<31),ROUND(E36/30*G30,Y41),E36),0)) -> 0 | V36: Alter | W36: Mballein | Y36: =IF(R30="Tage",30,L26) -> 357 | AD36: =C3 -> 0
A37: =IF(H29>0,"",IF(B37<>"",TEXT(B37,"0")&" Kind"&IF(B37>1,"er","")& " unter 18 Jahre","")) ->  | B37: =IF(+F12>0,F12,"") ->  | C37: =IF(H29>0,"",IF(B37<>"",IF(Werte09!C23*B37>Werte09!C25,Werte09!C25,Werte09!C23*B37),"")) ->  | E37: =IF(AND(B37<>"",H$27=0),ROUND(C37*G$26*T34,Y41),"") ->  | G37: =IF(H29>0,0,IF(E37=MAX(E34:E37),IF(AND($R30="Tage",G30>0,G30<31),ROUND(E37/30*G30,Y41),E37),0)) -> 0 | V37: =SUM(G27:P27) -> 29.1 | W37: =MAX(G34:G37) -> 0 | Y37: =IF(R30="Tage",30,M26) -> 357
C38: =IF(AND(C33="",OR(LEN(C39)>0,LEN(C40)>0)),"Mehrbedarf in % des Regelsatz","") ->  | Y38: =IF(R30="Tage",30,N26) -> 357
A39: =IF(C39<>"","Mehrbedarf für Behinderte mit Eingliederungsleistungen nach § 33 SGB IX","") ->  | C39: =IF(COUNTA(G18:P18)>0,Werte09!C13,"") ->  | E39: =SUM(G39:P39) -> 0 | G39: =IF(AND(G27>0,G18="x"),ROUND($C39*G29,Werte10!$D68),0) -> 0 | H39: =IF(AND(H27>0,H18="x"),ROUND($C39*H29,Werte10!$D68),"") ->  | I39: =IF(AND(I27>0,I18="x",I22<>"x"),ROUND($C39*I29,Werte10!$D68),"") ->  | J39: =IF(AND(J27>0,J18="x",J22<>"x"),ROUND($C39*J29,Werte10!$D68),"") ->  | K39: =IF(AND(K27>0,K18="x",K22<>"x"),ROUND($C39*K29,Werte10!$D68),"") ->  | L39: =IF(AND(L27>0,L18="x",L22<>"x"),ROUND($C39*L29,Werte10!$D68),"") ->  | M39: =IF(AND(M27>0,M18="x",M22<>"x"),ROUND($C39*M29,Werte10!$D68),"") ->  | N39: =IF(AND(N27>0,N18="x",N22<>"x"),ROUND($C39*N29,Werte10!$D68),"") ->  | O39: =IF(AND(O27>0,O18="x",O22<>"x"),ROUND($C39*O29,Werte10!$D68),"") ->  | P39: =IF(AND(P27>0,P18="x",P22<>"x"),ROUND($C39*P29,Werte10!$D68),"") ->  | W39: =IF(AND(G17<>"",G27>0),1,0)+IF(AND(H17<>"",H27>0),1,0)+IF(AND(I17<>"",I27>10),1,0)+IF(AND(J17<>"",J27>10),1,0)+IF(AND(K17<>"",K27>10),1,0)+IF(AND(L17<>"",L27>10),1,0)+IF(AND(M17<>"",M27>10),1,0)+IF(AND(N17<>"",N27>10),1,0)+IF(AND(O17<>"",O27>10),1,0)+IF(AND(P17<>"",P27>10),1,0) -> 0 | X39: Schwangerschaften | Y39: =IF(R30="Tage",30,O26) -> 357
A40: =IF(C40<>"","Mehrbedarf volle Erwerbsm. & Merkzeichen G","") ->  | C40: =IF(COUNTA(G19:P19)>0,Werte09!C16,"") ->  | E40: =SUM(G40:P40) -> 0 | G40: =IF(AND(G27>14,G19="x",G18=""),ROUND($C40*G26,$Y41),0) -> 0 | H40: =IF(AND(H27>14,H19="x",H18=""),ROUND($C40*H29,Werte10!$D68),0) -> 0 | I40: =IF(AND(I27>14,I19="x",I18=""),ROUND($C40*I29,Werte10!$D68),0) -> 0 | J40: =IF(AND(J27>14,J19="x",J18=""),ROUND($C40*J29,Werte10!$D68),0) -> 0 | K40: =IF(AND(K27>14,K19="x",K18=""),ROUND($C40*K29,Werte10!$D68),0) -> 0 | L40: =IF(AND(L27>14,L19="x",L18=""),ROUND($C40*L29,Werte10!$D68),0) -> 0 | M40: =IF(AND(M27>14,M19="x",M18=""),ROUND($C40*M29,Werte10!$D68),0) -> 0 | N40: =IF(AND(N27>14,N19="x",N18=""),ROUND($C40*N29,Werte10!$D68),0) -> 0 | O40: =IF(AND(O27>14,O19="x",O18=""),ROUND($C40*O29,Werte10!$D68),0) -> 0 | P40: =IF(AND(P27>14,P19="x",P18=""),ROUND($C40*P29,Werte10!$D68),0) -> 0 | V40: =IF(AND(H27<>"",H19="x",H40=0),1,0)+IF(AND(I27<>"",I19="x",I40=0),1,0)+IF(AND(J27<>"",J19="x",J40=0),1,0)+IF(AND(K27<>"",K19="x",K40=0),1,0)+IF(AND(L27<>"",L19="x",L40=0),1,0)+IF(AND(M27<>"",M19="x",M40=0),1,0)+IF(AND(N27<>"",N19="x",N40=0),1,0)+IF(AND(O27<>"",O19="x",O40=0),1,0)+IF(AND(P27<>"",P19="x",P40=0),1,0) -> 0 | W40: =IF(V40>0,"Kinder unter 15 Jahren erhalten keinen Mehrbedarf wegen Erwerbsminderung."&IF(W27<>""," ",""),"") ->  | Y40: =IF(R30="Tage",30,P26) -> 357
A41: 3. Mehrbedarf für Ernährung | B41: =" " & A239 ->  | V41: =IF(COUNTA(G41:P41)>0,1,0) -> 0 | X41: runden | Y41: =Werte10!$D68 -> 2
F42: Gesamt-Mehrbedarf | G42: =IF(G27>0,IF(SUM(G31:G41)>G26,G26,SUM(G31:G41)),0) -> 0 | H42: =IF(H27>0,IF(SUM(H31:H36)+SUM(H39:H41)>H26,H26,SUM(H31:H36)+SUM(H39:H41)),0) -> 0 | I42: =IF(AND(I27>0,I22<>"x"),IF(SUM(I31:I41)>I26,I26,SUM(I31:I41)),0) -> 0 | J42: 0 | K42: 0 | L42: 0 | M42: 0 | N42: 0 | O42: 0 | P42: 0
F43: =IF(SUM(G43:P43)<0,"Mehrbedarf wurde wegen § 21, Abs. 8 auf Regelleistung gekürzt !","") ->  | G43: =IF(G27>0,IF(SUM(G31:G41)>G26,-SUM(G31:G41)+G26,""),"") ->  | X43: =SUM(G49:P49) -> 0 | Y43: KdU-Bedarf
A44: 4. Krankenversicherung / private Krankenversicherung | V44: =IF(COUNTA(G44:P44)>0,1,0) -> 0 | W44: =IF(C139,IF(C157>0,OR(C158*B162<C157,C158*B162>C157),FALSE),FALSE) -> FALSE | X44: =C160 -> 0 | Y44: =IF(AND(W44,X44<>0),"","kein ")& "Korrekturbetrag" & " bes. MOG" -> kein Korrekturbetrag bes. MOG
K45: =IF(T45,"MOG "& TEXT(C142,"0")&" P.","") ->  | L45: =IF(AND(T45,L48>0),"MOG/P.","") ->  | M45: =A132 ->  | T45: =AND(T47,T46) -> FALSE | U45: Pers/BG | W45: =IF(C49>0,OR(D49*V48<C49,D49*V48>C49,W44),FALSE) -> FALSE | X45: =IF(W44,X44,ROUND(C49-(D49*V48),2)) -> 0 | Y45: =IF(AND(W45,X45>0),"","kein ")& "Korrekturbetrag Standard-MOG" -> kein Korrekturbetrag Standard-MOG
A46: =IF(AND(C49>0,NOT(KdU!AL65)),"5. Kosten für Unterkunft und Heizung"&IF(KdU!I78>0," (korrigiert !)",""),IF(AND(KdU!AL65,C49>0)," Energieträger für Heizung nicht gewählt !"," Kosten der Unterkunft nicht erfaßt!")) -> Kosten der Unterkunft nicht erfaßt! | C46: =IF(LEFT(KdU!K27,8)="Wohngeld","Mietgrenze"," Wohnort") -> Wohnort | E46: =Wohngeld!J81 -> V | G46: =IF(T50,IF(AND(G134,OR(G143>0,G144>0)),G142+IF(W45,X45,0),B151+IF(W45,X45,0)),"") -> 0 | H46: =IF(T50,IF(G46>0,IF(AND(B144>1,B151=G46),"BSG-MOG überschritten!",IF(AND(H48<>"",G143>0),"Grundmiete","Miete incl. "&"BK"&IF(OR(KdU!AO54="inc",G47=0)," u. HK",""))&" pro Person"),""),"") ->  | K46: =C132 -> 0 | T46: =AND(B141>0,KdU!K43>0) -> FALSE | U46: x | V46: =B2 -> 1 | W46: Pers. Insges. (B2) | X46: =IF(T45,ROUND(C148-(L133*L134),2),0) -> 0 | Y46: =IF(X88<>0,"","kein ")&"Korrekturbetrag Heizkosten" -> kein Korrekturbetrag Heizkosten
A47: =IF(Debug!A56,TEXT(KdU!K16,"0,00")&" + "& TEXT(KdU!K18+KdU!K19,"0,00")&" + "& TEXT(KdU!I54+KdU!I75,"0,00")&" = " & TEXT(KdU!K16+KdU!K18+KdU!K19+KdU!I54+KdU!I75,"0,00"),"") ->  | B47: =KdU!AO42 -> Region Hannover | D47: =KdU!AN29 -> Hannover | G47: =IF(AND(KdU!I54>0,T50),IF(G134,G144,B152),"") ->  | H47: =IF(T50,IF(AND(C148>0,C148<C146),"HK-Grenze überschritten!",IF(AND(KdU!I54>0,G47>0),"Heizkosten pro Person",IF(C146=0," keine Heizkosten ?",""))),"") -> keine Heizkosten ? | K47: =C133 -> 0 | M47: =L133*L134+X46 -> 0 | N47: =A133 ->  | T47: =Debug!C51 -> 1 | V47: =Y28 -> 0 | W47: Mitbewohner (B29)
A48: =IF(KdU!AO151,Orte!Y32,IF(OR(KdU!AO4,KdU!AO5,KdU!AO6,KdU!AO7,KdU!AO58,KdU!AO61,KdU!AL65),"Fehler in KdU-Berechnung !",IF(Debug!A56,TEXT(KdU!K16/V48,"0,00")&" + " & TEXT(KdU!K18/V48,"0,00")&" "&TEXT(KdU!K19/V48,"0,00")&" + "&TEXT((KdU!I54+KdU!I75)/V48,"0,00")&" = " &TEXT((KdU!K16+KdU!K18+KdU!I54+KdU!I75)/V48,"0,00"),""))) -> Fehler in KdU-Berechnung ! | C48: =IF(B2>1,"insgesamt","") ->  | E48: =IF(V48>1,IF(Y28<>"","1/ "&TEXT(V48,"0"),"pro Person"),"") ->  | G48: =IF(T50,IF(AND(KdU!AO14>0,G134,G143>0),G143,0),"") -> 0 | H48: =IF(T50,IF(G48>0,"Betriebskosten pro Person",""),"") ->  | K48: =IF(T45,C134,"") ->  | L48: =IF(T45,IF(V48-B141>1,TEXT(ROUNDDOWN(K48/(V48-B141),2),"0,00"),0),0) -> 0 | M48: =IF(T45,C129,"") ->  | N48: =A134 ->  | R48: =IF(AND(R30="Tage",R49=""),"BdU anteilig ?","") ->  | V48: =KdU!AG13-KdU!AG11-KdU!AI11 -> 1 | W48: Personen ohne Mitbewohner, ohne Zählpersonen
A49: =IF(AND(KdU!K43>0,KdU!K76<>"ja"),"KdU 'angemessen' bis","") ->  | C49: =IF(KdU!I78>0,KdU!I78,IF(KdU!AR1<>0,KdU!I73+KdU!I75,KdU!I76)) -> 0 | D49: =ROUND(C49/V48,2) -> 0 | G49: =IF(B144=1,G149,IF(AND(T47,G145<G149),G145+IF(W45,X45,0),G149)) -> 0 | H49: =IF(H27>0,IF(B144=1,H149,IF(AND(T47,H145<H149),H145,H149)),0) -> 0 | I49: =IF(I27>0,I149,0) -> 0 | J49: 0 | K49: 0 | L49: 0 | M49: 0 | N49: 0 | O49: 0 | P49: 0 | T49: =IF(OR(R49="BdU anteilig",R49=""),1,0) -> 1 | V49: =IF(X19=0,IF(E57<>AF21+IF(AND(G57=0,G3>0),-AC18,0)+IF(AND(H57=0,H3>0),-AC18,0)+IF(AND(I57=0,I3>0),-AC25,0)+IF(AND(J57=0,J3>0),-AC25,0)+IF(AND(K57=0,K3>0),-AC25,0)+IF(AND(L57=0,L3>0),-AC25,0)+IF(AND(M57=0,M3>0),-AC25,0)+IF(AND(N57=0,N3>0),-AC25,0)+IF(AND(O57=0,O3>0)+IF(AND(P57=0,P3>0),-AC25,0),-AC25,0),1,0),IF(SUM(G58:P58)<>AF21,1,0)) -> 0
A50: =IF(C50>0,IF(LEN(KdU!B47)>45,LEFT(KdU!B47,45)&". …",KdU!B47),"")&IF(D50>0," / Mietanteile BG","") ->  | C50: =IF(KdU!H47>0,KdU!H47,0) -> 0 | D50: =IF(Y28>0,SUM(G49:P49),0) -> 0 | I50: =IF(I205,"KdU-Bedarf!","") ->  | J50: =IF(J205,"KdU-Bedarf!","") ->  | T50: =Debug!A53 -> 1 | U50: =IF(T50,"anz.","") -> anz. | V50: =IF(AND(I58<>"",I58=0),1,0)+IF(AND(J58<>"",J58=0),1,0)+IF(AND(K58<>"",K58=0),1,0)+IF(AND(L58<>"",L58=0),1,0)+IF(AND(M58<>"",M58=0),1,0)+IF(AND(N58<>"",N58=0),1,0)+IF(AND(O58<>"",O58=0),1,0)+IF(AND(P58<>"",P58=0),1,0) -> 0 | W50: Kinder mit Kindergeld = 0 | Y50: =IF(V51>0,E56,"") -> 
A51: =IF(D51>0,"6. Mehrbedarf für Warmwasser","") ->  | D51: =SUM(G51:P51) -> 0 | G51: =IF(G29=0,0,IF(AND(KdU!$I78>0,KdU!$K78<>"ja"),0,KdU!AT8)) -> 0 | H51: =IF(H29=0,0,IF(AND(KdU!$I78>0,KdU!$K78<>"ja"),0,KdU!AU8)) -> 0 | I51: =IF(OR(I22="x",AND(Studenten!$B7="",I29=0)),0,IF(AND(KdU!$I78>0,KdU!$K78<>"ja"),0,KdU!AV8)) -> 0 | J51: =IF(OR(J22="x",AND(Studenten!$B7="",J29=0)),0,IF(AND(KdU!$I78>0,KdU!$K78<>"ja"),0,KdU!AW8)) -> 0 | K51: =IF(OR(K22="x",AND(Studenten!$B7="",K29=0)),0,IF(AND(KdU!$I78>0,KdU!$K78<>"ja"),0,KdU!AX8)) -> 0 | L51: =IF(OR(L22="x",AND(Studenten!$B7="",L29=0)),0,IF(AND(KdU!$I78>0,KdU!$K78<>"ja"),0,KdU!AY8)) -> 0 | M51: =IF(OR(M22="x",AND(Studenten!$B7="",M29=0)),0,IF(AND(KdU!$I78>0,KdU!$K78<>"ja"),0,KdU!AZ8)) -> 0 | N51: =IF(OR(N22="x",AND(Studenten!$B7="",N29=0)),0,IF(AND(KdU!$I78>0,KdU!$K78<>"ja"),0,KdU!BA8)) -> 0 | O51: =IF(OR(O22="x",AND(Studenten!$B7="",O29=0)),0,IF(AND(KdU!$I78>0,KdU!$K78<>"ja"),0,KdU!BB8)) -> 0 | P51: =IF(OR(P22="x",AND(Studenten!$B7="",P29=0)),0,IF(AND(KdU!$I78>0,KdU!$K78<>"ja"),0,KdU!BC8)) -> 0 | V51: =IF(OR(AND(G58<>"",G58=0),AND(H58<>"",H58=0),AND(I58<>"",I58=0),AND(J58<>"",J58=0),AND(K58<>"",K58=0),AND(L58<>"",L58=0),AND(M58<>"",M58=0),AND(N58<>"",N58=0),AND(O58<>"",O58=0),AND(P58<>"",P58=0)),1,0) -> 0 | W51: gibt es einen Wert 0,00 ?
A52: =IF(AND(KdU!H15<>"",OR(KdU!I54=0,KdU!AO75>0)),IF(KdU!I54=0,"Heizkosten",IF(KdU!AO75>0,"Wohnfläche",""))& " nicht angegeben !","") ->  | C52: Gesamtbedarf | E52: =SUM(G52:P52) -> 563 | G52: =IF(G27>0,G29+G42+G44+SUM(G49:G51),0) -> 563 | H52: =IF(H27>0,IF(U17,0,H29+H42+H44+H49+H51),0) -> 0 | I52: =IF(I27>0,I29+I42+I44+I49+I51,0) -> 0 | J52: 0 | K52: 0 | L52: 0 | M52: 0 | N52: 0 | O52: 0 | P52: 0 | T52: =IF(G46<>"",G46,0)+IF(G47<>"",G47,0)+IF(G48<>"",G48,0) -> 0 | V52: =IF(OR(AND(G27>0,G27<27,G24>0),AND(G27>0,G27<18)),$AC$18,0)+IF(OR(AND(H27>0,H27<27,H24>0),AND(H27>0,H27<18)),$AC$18,0) -> 0 | W52: KG der Partner
V53: =COUNT(G58:P58) -> 0 | W53: Anzahl abweichender KG-Beträge
A54: Gesamteinkommen | E54: =SUM(G54:P54) -> 0 | G54: =ABS(G57)+ABS(G59)+ABS(G60)+ABS(G61)+ABS(G68)+ABS(G69)+ABS(G73)+ABS(G74)+IF(G83<>"",ABS(G83)) -> 0 | H54: =ABS(H57)+ABS(H59)+ABS(H60)+ABS(H61)+ABS(H68)+ABS(H69)+ABS(H73)+ABS(H74)+IF(H83<>"",ABS(H83)) -> 0 | I54: =ABS(I57)+ABS(I60)+ABS(I61)+I62+ABS(I68)+ABS(I69)+ABS(I73)+IF(I83<>"",ABS(I83)) -> 0 | J54: =ABS(J57)+ABS(J60)+ABS(J61)+J62+ABS(J68)+ABS(J69)+ABS(J73)+IF(J83<>"",ABS(J83)) -> 0 | K54: =ABS(K57)+ABS(K60)+ABS(K61)+K62+ABS(K68)+ABS(K69)+ABS(K73)+IF(K83<>"",ABS(K83)) -> 0 | L54: 0 | M54: 0 | N54: 0 | O54: 0 | P54: 0 | V54: =IF(C272+G57+H57+V56<>V52+SUM(I57:P57)+IF(I20="x",I56,0)+IF(J20="x",J56,0),1,0) -> 0 | W54: Kindergeld OK? (0=OK); bei Studentenstatus über R18 u. Z31
A55: 7. Einkommensanrechnung | C55: =IF(Debug!A56,IF(Debug!A12>0,CHOOSE(Debug!A12,"HV","HA","Kind1","Kind2","Kind3","Kind4","Kind5","Kind6","Kind7","Kind8"),""),"") ->  | V55: =IF(V54>0,1,0) -> 0 | W55: KG-Fehler anzeigen ?
A56: Kindergeld für Einkommensanrechnung Studenten | C56: =IF(E56<>"","("&E56&")","")& IF(AND(D56<>"( )",E56<>"")," abw. Betrag: ","")&IF(D56<>"( )",D56,"") ->  | D56: ="( "&IF(AND(G58<>"",G58>0),"Lb1 ","")&IF(AND(H58<>"",H58>0),"Lb2 ","")&IF(AND(I58<>"",I58>0),"Ki1 ","")&IF(AND(J58<>"",J58>0),"Ki2 ","")&IF(AND(K58<>"",K58>0),"Ki3 ","")&IF(AND(L58<>"",L58>0),"Ki4 ","")&IF(AND(M58<>"",M58>0),"Ki5 ","")&IF(AND(N58<>"",N58>0),"Ki6 ","")&IF(AND(O58<>"",O58>0),"Ki7 ","")&IF(AND(P58<>"",P58>0),"Ki8 ","")&")" -> ( ) | E56: =IF(AND(G58<>"",G58=0),"Lb1 ","")&IF(AND(H58<>"",H58=0),"Lb2 ","")&IF(AND(I58<>"",I58=0),"Ki1 ","")&IF(AND(J58<>"",J58=0),"Ki2 ","")&IF(AND(K58<>"",K58=0),"Ki3 ","")&IF(AND(L58<>"",L58=0),"Ki4 ","")&IF(AND(M58<>"",M58=0),"Ki5 ","")&IF(AND(N58<>"",N58=0),"Ki6 ","")&IF(AND(O58<>"",O58=0),"Ki7 ","")&IF(AND(P58<>"",P58=0),"Ki8 ","") ->  | G56: =IF(G27>0,IF(G58<>"",G58,IF(OR(AND(G27<27,G24>0),G27<18),$AC$18,0)),0) -> 0 | H56: =IF(H27>0,IF(H58<>"",H58,IF(OR(AND(H27<27,H24>0),H27<18),$AC$18,0)),0) -> 0 | I56: =IF(I27>0,IF(I58<>"",I58,IF(OR(AND(I27<27,I24>0),I27<18),IF($S58="d",$C$271,I270),0)),0) -> 0 | J56: 0 | K56: 0 | L56: 0 | M56: 0 | N56: 0 | O56: 0 | P56: 0 | V56: =IF(G20="x",G56,0)+IF(H20="x",H56,0) -> 0 | W56: KG der studierenden Eltern
A57: =IF(AND(S58="d",NOT(AND(B57<>"",B57<>C57)))," Durchschnittsk"," K")&"indergeld"&IF(AND(C57<>AF16,B13>0,COUNT(G58:P58)=0)," nach Kindergeldtabelle "&TEXT(AF16,"0")&" !","")&IF(AND(B57="",B27<4,C57=2009,B13>0),"tabelle 2008 oder 2009 ?",IF(AND(B57="",B27=4,C57=2010,B13>0),"tabelle 2009 oder 2010 ?",IF(AND(B57<>"",B57<>C57),"-Jahr unplausibel !",""))) -> Kindergeld | C57: =IF(B57="",AF16,B57) -> 1.1.2026 | E57: =SUM(G57:P57) -> 0 | G57: =IF(G20="x",0,G56) -> 0 | H57: =IF(H20="x",0,H56) -> 0 | I57: =IF(AND(I20="x",$B27<11.5),0,IF(I27>0,IF(I58<>"",I58,I56),0)) -> 0 | J57: 0 | K57: 0 | L57: 0 | M57: 0 | N57: 0 | O57: 0 | P57: 0 | V57: HV | W57: HA | X57: Ki1 - Ki8
A58: =IF(OR(V54=0,V51>0)," "&IF(V53=0,"abweichenden ","")&"Kindergeldbetrag"&IF(V51>0," 0,00 ","")&IF(V53=0,""," wurde für ")&IF(V53=0,"",C56)&" ein"&IF(V53>0,"ge","")&"tragen"&IF(V53>0,".","")," Kindergeld weicht von Regelberechnung ab !") -> abweichenden Kindergeldbetrag eintragen | S58: =IF(OR(R58="d",AND(SUM(D58:F58)>0,R58<>"-")),"d","") ->  | V58: =IF(COUNTA(G58:G58)>0,1,0) -> 0 | W58: 0 | X58: =IF(COUNTA(I58:P58)>0,1,0) -> 0
A59: =" Unterhalt" & IF(RSTab<11," / Unterhaltsvorschuß","") -> Unterhalt | E59: =ABS(G59)+ABS(H59)+ABS(I59)+ABS(J59)+ABS(K59)+ABS(L59)+ABS(M59)+ABS(N59)+ABS(O59)+ABS(P59) -> 0 | G59: =ABS(G63) -> 0 | H59: =ABS(H63) -> 0 | I59: =I176 -> 0 | J59: 0 | K59: 0 | L59: 0 | M59: 0 | N59: 0 | O59: 0 | P59: 0
A60: =IF(G60+H60+I60+J60+K60>0," Bruttorente" & IF(Debug!F9="MO"," für Wohngeldberechnung","") & IF(Wohngeld!BJ27=0," ist einge"," auf Seite Wohngeld ein")& "tragen"&IF(Wohngeld!BJ27=0," auf Seite Wohngeld."," !")," Renten") -> Renten | E60: =ABS(G60)+ABS(H60)+ABS(I60)+ABS(J60)+ABS(K60)+ABS(L60)+ABS(M60)+ABS(N60)+ABS(O60)+ABS(P60) -> 0 | V60: 0 | W60: 0 | X60: =IF(COUNTA(I60:P60)>0,1,0) -> 0
A61: Krankengeld (und andere Versicherungsleistungen z.B. Teilarbeitslosengeld) | E61: =ABS(G61)+ABS(H61)+ABS(I61)+ABS(J61)+ABS(K61)+ABS(L61)+ABS(M61)+ABS(N61)+ABS(O61)+ABS(P61) -> 0 | V61: 0 | W61: 0 | X61: =IF(COUNTA(I61:P61)>0,1,0) -> 0
A62: =IF(AND(RSTab>10,UVGNr<4,F12>0)," Unterhaltsvorschuß ab " & TEXT(UVG_Datum,"TT.MM.JJJJ") & IF(OR(AND(H27>0,D62=""),OR(AND(H176=2,D62="",C177>0),AND(H176=3,C177>0,D62="")))," ? ==> (ja/nein)",""),IF(UVGNr=4," "&IF(D62="ja","","(")&"UVG berechnen auf SETUP deaktiviert"&IF(D62="ja"," !",")"),IF(A63=" Unterhalt",""," Unterhaltsvorschuß"))) -> Unterhaltsvorschuß | E62: =SUM(G62:P62) -> 0 | G62: =G63 -> 0 | H62: =H63 -> 0 | I62: =I176 -> 0 | J62: =J176 -> 0 | K62: =K176 -> 0 | L62: 0 | M62: 0 | N62: 0 | O62: 0 | P62: 0
A63: =IF(OR(F12=0,RSTab<12.5,UVGNr=4,AND(UVGNr<4,D62="nein"))," Unterhalt / anrechenbares Elterngeld"&IF(OR(F12=0,D62="nein",RSTab<11,UVGNr=4),""," / abweichenden Betrag eintragen"),IF(OR(AND(RSTab>12,V82=""),AND(RSTab>10,V82="",D62="ja"))," abweichenden Betrag für Unterhaltsvorschuß eintragen / anrechenbares Elterngeld",V82)) -> Unterhalt / anrechenbares Elterngeld | V63: 0 | W63: 0 | X63: =IF(COUNTA(I63:P63)>0,1,0) -> 0
A66: Arbeitslosengeld 1 (ungekürzt aus dem ALG1-Bescheid) | E66: =VALUE(ABS(G66)+ABS(H66)+ABS(I66)+ABS(J66)+ABS(K66)+ABS(L66)+ABS(M66)+ABS(N66)+ABS(O66)+ABS(P66)) -> 0 | V66: =IF(COUNTA(G66:G66)>0,1,0) -> 0 | W66: =IF(COUNTA(H66:H66)>0,1,0) -> 0 | X66: =IF(COUNTA(I66:P66)>0,1,0) -> 0
A67: =IF(E67<0," (Info: auf ALG1 angerechnetes Erwerbseinkommen)","") ->  | E67: =SUM(G67:P67) -> 0 | G67: =IF(G66>0,Erwerbseinkommen!F112,0) -> 0 | H67: =IF(H66>0,Erwerbseinkommen!J112,0) -> 0 | I67: =IF(I66>0,Erwerbseinkommen!O112,0) -> 0 | J67: =IF(J66>0,Erwerbseinkommen!S112,0) -> 0 | K67: =IF(K66>0,Erwerbseinkommen!W112,0) -> 0 | L67: =IF(L66>0,Erwerbseinkommen!AA112,0) -> 0 | M67: =IF(M66>0,Erwerbseinkommen!AE112,0) -> 0 | N67: =IF(N66>0,Erwerbseinkommen!AI112,0) -> 0 | O67: =IF(O66>0,Erwerbseinkommen!AM112,0) -> 0 | P67: =IF(P66>0,Erwerbseinkommen!AQ112,0) -> 0 | V67: =SUM(V58:V66) -> 0 | W67: =SUM(W58:W66) -> 0 | X67: =SUM(X58:X66) -> 0 | Y67: =V67+W67 -> 0
A68: =IF(E66>0,IF(E68<E66," - "&IF(-E67>E66,"auf 0,- ","")&"gekürztes ALG1"&IF(E67<0," (siehe Erwerbseinkommen, Abschnitt 2)","")," - anzurechnendes ALG1" & IF(Erwerbseinkommen!AS112<>"",": Anrechnung für " & Erwerbseinkommen!AS112&" deaktiviert ! ","")),"") ->  | E68: =VALUE(ABS(G68)+ABS(H68)+ABS(I68)+ABS(J68)+ABS(K68)+ABS(L68)+ABS(M68)+ABS(N68)+ABS(O68)+ABS(P68)) -> 0 | G68: =IF(G66+G67>0,(G66+G67)*-1,0) -> 0 | H68: 0 | I68: 0 | J68: 0 | K68: 0 | L68: 0 | M68: 0 | N68: 0 | O68: 0 | P68: 0
A69: =IF(E69>0," - anzurechnendes Wohngeld","") ->  | E69: =ABS(G69)+ABS(H69)+ABS(I69)+ABS(J69)+ABS(K69)+ABS(L69)+ABS(M69)+ABS(N69)+ABS(O69)+ABS(P69) -> 0 | G69: =IF(AND(G25<>"x",G27>0,G72="ja"),Wohngeld!$P77,0) -> 0 | H69: =IF(AND($C$25<>"",H25<>"x",H27>0,H72="ja"),Wohngeld!$P77,0) -> 0 | I69: =IF(AND(I14=FALSE,I27>0,OR(AND($C202=TRUE,I164=TRUE),I72="ja",Wohngeld!I111="ja")),I179,0) -> 0 | J69: =IF(AND(J14=FALSE,J27>0,OR(AND($C202=TRUE,J164=TRUE),J72="ja",Wohngeld!J111="ja")),J179,0) -> 0 | K69: =IF(AND(K14=FALSE,K27>0,OR(AND($C202=TRUE,K164=TRUE),K72="ja",Wohngeld!K111="ja")),K179,0) -> 0 | L69: =IF(AND(L14=FALSE,L27>0,OR(AND($C202=TRUE,L164=TRUE),L72="ja",Wohngeld!L111="ja")),L179,0) -> 0 | M69: =IF(AND(M14=FALSE,M27>0,OR(AND($C202=TRUE,M164=TRUE),M72="ja",Wohngeld!M111="ja")),M179,0) -> 0 | N69: =IF(AND(N14=FALSE,N27>0,OR(AND($C202=TRUE,N164=TRUE),N72="ja",Wohngeld!N111="ja")),N179,0) -> 0 | O69: =IF(AND(O14=FALSE,O27>0,OR(AND($C202=TRUE,O164=TRUE),O72="ja",Wohngeld!O111="ja")),O179,0) -> 0 | P69: =IF(AND(P14=FALSE,P27>0,OR(AND($C202=TRUE,P164=TRUE),P72="ja",Wohngeld!P111="ja")),P179,0) -> 0 | V69: Wohngeld!P75 | W69: =Wohngeld!P77 -> 0
B70: Absetzbeträge berechnen ohne UVG wg Zirkelbezug ! | G70: =IF(ABS(G57)+ABS(G59)+ABS(G60)+ABS(G61)+ABS(G66)>=ABS(Erwerbseinkommen!E118),ABS(Erwerbseinkommen!E118),ABS(G57)+ABS(G59)+ABS(G60)+ABS(G61)+ABS(G66)) -> 0 | H70: =IF(ABS(H57)+ABS(H59)+ABS(H60)+ABS(H61)+ABS(H66)>=ABS(Erwerbseinkommen!I118),ABS(Erwerbseinkommen!I118),ABS(H57)+ABS(H59)+ABS(H60)+ABS(H61)+ABS(H66)) -> 0 | I70: =IF(ABS(I57)+ABS(I60)+ABS(I61)+ABS(I66)>=ABS(Erwerbseinkommen!N118),ABS(Erwerbseinkommen!N118),ABS(I57)+ABS(I60)+ABS(I61)+ABS(I66)) -> 0 | J70: =IF(ABS(J57)+ABS(J60)+ABS(J61)+ABS(J66)>=ABS(Erwerbseinkommen!R118),ABS(Erwerbseinkommen!R118),ABS(J57)+ABS(J60)+ABS(J61)+ABS(J66)) -> 0 | K70: =IF(ABS(K57)+ABS(K60)+ABS(K61)+ABS(K66)>=ABS(Erwerbseinkommen!V118),ABS(Erwerbseinkommen!V118),ABS(K57)+ABS(K60)+ABS(K61)+ABS(K66)) -> 0 | L70: =IF(ABS(L57)+ABS(L60)+ABS(L61)+ABS(L66)>=ABS(Erwerbseinkommen!Z118),ABS(Erwerbseinkommen!Z118),ABS(L57)+ABS(L60)+ABS(L61)+ABS(L66)) -> 0 | M70: =IF(ABS(M57)+ABS(M60)+ABS(M61)+ABS(M66)>=ABS(Erwerbseinkommen!AD118),ABS(Erwerbseinkommen!AD118),ABS(M57)+ABS(M60)+ABS(M61)+ABS(M66)) -> 0 | N70: =IF(ABS(N57)+ABS(N60)+ABS(N61)+ABS(N66)>=ABS(Erwerbseinkommen!AH118),ABS(Erwerbseinkommen!AH118),ABS(N57)+ABS(N60)+ABS(N61)+ABS(N66)) -> 0 | O70: =IF(ABS(O57)+ABS(O60)+ABS(O61)+ABS(O66)>=ABS(Erwerbseinkommen!AL118),ABS(Erwerbseinkommen!AL118),ABS(O57)+ABS(O60)+ABS(O61)+ABS(O66)) -> 0 | P70: =IF(ABS(P57)+ABS(P60)+ABS(P61)+ABS(P66)>=ABS(Erwerbseinkommen!AP118),ABS(Erwerbseinkommen!AP118),ABS(P57)+ABS(P60)+ABS(P61)+ABS(P66)) -> 0
A71: =IF(E71>0," + nach § 11 b SGB II zulässige Absetzbeträge","") ->  | E71: =VALUE(ABS(G71)+ABS(H71)+ABS(I71)+ABS(J71)+ABS(K71)+ABS(L71)+ABS(M71)+ABS(N71)+ABS(O71)+ABS(P71)) -> 0 | G71: =IF(G81>0,0,G70) -> 0 | H71: =IF(H81>0,0,H70) -> 0 | I71: 0 | J71: =IF(J81>0,0,J70) -> 0 | K71: 0 | L71: 0 | M71: 0 | N71: 0 | O71: 0 | P71: 0
B72: =IF(G25="x","ALG2-Bedarf mit KG-Wohngeld gedeckt ?","") ->  | I72: =IF(AND($G25="x",I52>0),IF(ABS(I57)+ABS(I58)+ABS(I60)+ABS(I61)+ABS(I68)+Wohngeld!$P109+ABS(I73)+ABS(I83)+I184-I52>=0,"ja","nein"),"") ->  | J72: =IF(AND($G25="x",J52>0),IF(ABS(J57)+ABS(J58)+ABS(J60)+ABS(J61)+ABS(J68)+Wohngeld!$P109+ABS(J73)+ABS(J83)+J184-J52>=0,"ja","nein"),"") ->  | K72: =IF(AND($G25="x",K52>0),IF(ABS(K57)+ABS(K58)+ABS(K60)+ABS(K61)+ABS(K68)+Wohngeld!$P109+ABS(K73)+ABS(K83)+K184-K52>=0,"ja","nein"),"") ->  | L72: =IF(AND($G25="x",L52>0),IF(ABS(L57)+ABS(L58)+ABS(L60)+ABS(L61)+ABS(L68)+Wohngeld!$P109+ABS(L73)+ABS(L83)+L184-L52>=0,"ja","nein"),"") ->  | M72: =IF(AND($G25="x",M52>0),IF(ABS(M57)+ABS(M58)+ABS(M60)+ABS(M61)+ABS(M68)+Wohngeld!$P109+ABS(M73)+ABS(M83)+M184-M52>=0,"ja","nein"),"") ->  | N72: =IF(AND($G25="x",N52>0),IF(ABS(N57)+ABS(N58)+ABS(N60)+ABS(N61)+ABS(N68)+Wohngeld!$P109+ABS(N73)+ABS(N83)+N184-N52>=0,"ja","nein"),"") ->  | O72: =IF(AND($G25="x",O52>0),IF(ABS(O57)+ABS(O58)+ABS(O60)+ABS(O61)+ABS(O68)+Wohngeld!$P109+ABS(O73)+ABS(O83)+O184-O52>=0,"ja","nein"),"") ->  | P72: =IF(AND($G25="x",P52>0),IF(ABS(P57)+ABS(P58)+ABS(P60)+ABS(P61)+ABS(P68)+Wohngeld!$P109+ABS(P73)+ABS(P83)+P184-P52>=0,"ja","nein"),"") ->  | V72: Wohngeld!U75 | W72: =Wohngeld!P109 -> 0
A73: =IF(OR(Studenten!C41>0,Studenten!E41>0)," anrechenb. Einkommen von Schülern + Studenten ! -> Seite 'Studenten' ","") ->  | V73: =COUNTA(D62:D62)+COUNTA(I63:P63) -> 0 | W73: UVG-Einträge | Y73: Studenten
A74: =IF(G74+H74<0," "&IF(AND(V116<>"",LEN(V116)+LEN(V115)>33)," KG für "&V115&" anr.","- anrechenbares Kindergeld "&V115),"")&IF(C205,IF(V115<>""," / Kindergeld "&V116&" nicht anrechnen !"," KdU"&IF(W117<5," nur","")&" mit MOG-Miete gedeckt -> "&IF(W117<6,"Kindergeld ","KG ")&V116&IF(W117<8," nicht"," n.")&" anrechnen!"),"") ->  | G74: =IF(G20="x",0,V74) -> 0 | H74: =IF(G20="x",0,V75) -> 0 | I74: =IF(AND(OR(G79<30,V77>0),OR(G74<0,H74),H27>0,OR(H84+H79<30,H84+H79<G79,AND(H74<0,N74<>""))), IF(N74=""," Ist "," ")&"PartnerIn"&IF(N74="ja"," ist","")&IF(N74="nein"," ist nicht","")&" die Kindergeldberechtigte"&IF(N74=""," ? ==>","."),"") ->  | V74: =IF(OR(OR(N74="",N74="nein"),NOT(H27>0)),IF(AND(I86<0,I205=FALSE),-ABS(I86),0)+IF(AND(J86<0,J205=FALSE),-ABS(J86),0)+IF(AND(K86<0,K205=FALSE),-ABS(K86),0)+IF(AND(L86<0,L205=FALSE),-ABS(L86),0)+IF(AND(M86<0,M205=FALSE),-ABS(M86),0)+IF(AND(N86<0,N205=FALSE),-ABS(N86),0)+IF(AND(O86<0,O205=FALSE),-ABS(O86),0)+IF(AND(P86<0,P205=FALSE),-ABS(P86),0),0) -> 0 | W74: HV - anrechenbares Kindergeld v. Kindern | Y74: =IF(OR(OR(N74="",N74="nein"),NOT(H27>0)),IF(I86<0,-ABS(I86),0)+IF(J86<0,-ABS(J86),0)+IF(K86<0,-ABS(K86),0)+IF(L86<0,-ABS(L86),0)+IF(M86<0,-ABS(M86),0)+IF(N86<0,-ABS(N86),0)+IF(O86<0,-ABS(O86),0)+IF(P86<0,-ABS(P86),0),0) -> 0
B75: Aufwendung f. Versicherungen | C75: =IF(AND(G57+ABS(G59)+ABS(G60)+ABS(G66)+ABS(G69)+ABS(G74)>0,G27>17),IF(Erwerbseinkommen!E14=0,IF(G57+ABS(G59)+ABS(G60)+ABS(G66)+ABS(G69)+ABS(G74)>=30,-30,-G57-ABS(G59)-ABS(G60)-ABS(G66)-ABS(G69)-ABS(G74)),IF(G57+ABS(G59)+ABS(G60)+ABS(G66)+ABS(G69)+ABS(G74)>=30,-Erwerbseinkommen!E14-30,IF(G57+ABS(G59)+ABS(G60)+ABS(G66)+ABS(G69)+ABS(G74)+G84>30,G84-30,-G57-ABS(G59)-ABS(G60)-ABS(G66)-ABS(G69)-ABS(G74)))),0) -> 0 | F75: =SUM(G75:P75) -> 0 | G75: =IF(AND(G57+ABS(G59)+ABS(G60)+ABS(G61)+ABS(G68)+ABS(G69)+ABS(G74)>0,G27>17),IF(Erwerbseinkommen!E14=0,IF(G57+ABS(G59)+ABS(G60)+ABS(G61)+ABS(G68)+ABS(G69)+ABS(G74)>=30,-30,-G57-ABS(G59)-ABS(G60)-ABS(G61)-ABS(G68)-ABS(G69)-ABS(G74)),IF(G57+ABS(G59)+ABS(G60)+ABS(G61)+ABS(G68)+ABS(G69)+ABS(G74)>=30,-Erwerbseinkommen!E14-30,IF(G57+ABS(G59)+ABS(G60)+ABS(G61)+ABS(G68)+ABS(G69)+ABS(G74)+G84>30,G84-30,-G57-ABS(G59)-ABS(G60)-ABS(G61)-ABS(G68)-ABS(G69)-ABS(G74)))),0) -> 0 | H75: =IF(AND(H57+ABS(H59)+ABS(H60)+ABS(H61)+ABS(H68)+ABS(H69)+ABS(H74)>0,H27>17),IF(Erwerbseinkommen!I14=0,IF(H57+ABS(H59)+ABS(H60)+ABS(H61)+ABS(H68)+ABS(H69)+ABS(H74)>=30,-30,-H57-ABS(H59)-ABS(H60)-ABS(H61)-ABS(H68)-ABS(H69)-ABS(H74)),IF(H57+ABS(H59)+ABS(H60)+ABS(H61)+ABS(H68)+ABS(H69)+ABS(H74)>=30,-Erwerbseinkommen!I14-30,IF(H57+ABS(H59)+ABS(H60)+ABS(H61)+ABS(H68)+ABS(H69)+ABS(H74)+H84>30,H84-30,-H57-ABS(H59)-ABS(H60)-ABS(H61)-ABS(H68)-ABS(H69)-ABS(H74)))),0) -> 0 | I75: =ABS(Erwerbseinkommen!N26) -> 0 | J75: =ABS(Erwerbseinkommen!R26) -> 0 | K75: =ABS(Erwerbseinkommen!V26) -> 0 | L75: =ABS(Erwerbseinkommen!Z26) -> 0 | M75: =ABS(Erwerbseinkommen!AD26) -> 0 | N75: =ABS(Erwerbseinkommen!AH26) -> 0 | O75: =ABS(Erwerbseinkommen!AL26) -> 0 | P75: =ABS(Erwerbseinkommen!AP26) -> 0 | V75: =IF(AND(N74="ja",H27>0),IF(I86<0,-ABS(I86),0)+IF(J86<0,-ABS(J86),0)+IF(K86<0,-ABS(K86),0)+IF(L86<0,-ABS(L86),0)+IF(M86<0,-ABS(M86),0)+IF(N86<0,-ABS(N86),0)+IF(O86<0,-ABS(O86),0)+IF(P86<0,-ABS(P86),0),0) -> 0 | W75: HA - anrechenbares Kindergeld
B76: (anteilige) Vers.P. aus Erwerbseinkommen | C76: =IF(AND(G57+ABS(G59)+ABS(G60)+ABS(G66)+ABS(G69)+G74>0,G27>17),IF(Erwerbseinkommen!E14=0,IF(G57+ABS(G59)+ABS(G60)+ABS(G66)+ABS(G69)+G74>=30,-30,-G57-ABS(G59)-ABS(G60)-ABS(G66)-ABS(G69)-G74),IF(G57+ABS(G59)+ABS(G60)+ABS(G66)+ABS(G69)+G74>=30,-Erwerbseinkommen!E14-30,IF(G57+ABS(G59)+ABS(G60)+ABS(G66)+ABS(G69)+G74+G84>30,G84-30,-G57-ABS(G59)-ABS(G60)-ABS(G66)-ABS(G69)-G74))),0) -> 0 | I76: =Erwerbseinkommen!N14 -> 0 | J76: =Erwerbseinkommen!R14 -> 0 | K76: =Erwerbseinkommen!V14 -> 0 | L76: =Erwerbseinkommen!Z14 -> 0 | M76: =Erwerbseinkommen!AD14 -> 0 | N76: =Erwerbseinkommen!AH14 -> 0 | O76: =Erwerbseinkommen!AL14 -> 0 | P76: =Erwerbseinkommen!AP14 -> 0
B77: Vers.P: nicht > als Einkommensüberschuß !! | I77: =IF(I27>0,IF(ABS(I83)<100,IF(ShALG2!I54=I52,0,IF(ShALG2!I54-I52>0,IF(ShALG2!I54-I52>30,30,ShALG2!I54-I52),IF(ShALG2!I54>30,30,ShALG2!I54))),30),"") ->  | J77: =IF(J27>0,IF(ABS(J83)<100,IF(ShALG2!J54=J52,0,IF(ShALG2!J54-J52>0,IF(ShALG2!J54-J52>30,30,ShALG2!J54-J52),IF(ShALG2!J54>30,30,ShALG2!J54))),30),"") ->  | K77: =IF(K27>0,IF(ABS(K83)<100,IF(ShALG2!K54=K52,0,IF(ShALG2!K54-K52>0,IF(ShALG2!K54-K52>30,30,ShALG2!K54-K52),IF(ShALG2!K54>30,30,ShALG2!K54))),30),"") ->  | L77: =IF(L27>0,IF(ABS(L83)<100,IF(ShALG2!L54=L52,0,IF(ShALG2!L54-L52>0,IF(ShALG2!L54-L52>30,30,ShALG2!L54-L52),IF(ShALG2!L54>30,30,ShALG2!L54))),30),"") ->  | M77: =IF(M27>0,IF(ABS(M83)<100,IF(ShALG2!M54=M52,0,IF(ShALG2!M54-M52>0,IF(ShALG2!M54-M52>30,30,ShALG2!M54-M52),IF(ShALG2!M54>30,30,ShALG2!M54))),30),"") ->  | N77: =IF(N27>0,IF(ABS(N83)<100,IF(ShALG2!N54=N52,0,IF(ShALG2!N54-N52>0,IF(ShALG2!N54-N52>30,30,ShALG2!N54-N52),IF(ShALG2!N54>30,30,ShALG2!N54))),30),"") ->  | O77: =IF(O27>0,IF(ABS(O83)<100,IF(ShALG2!O54=O52,0,IF(ShALG2!O54-O52>0,IF(ShALG2!O54-O52>30,30,ShALG2!O54-O52),IF(ShALG2!O54>30,30,ShALG2!O54))),30),"") ->  | P77: =IF(P27>0,IF(ABS(P83)<100,IF(ShALG2!P54=P52,0,IF(ShALG2!P54-P52>0,IF(ShALG2!P54-P52>30,30,ShALG2!P54-P52),IF(ShALG2!P54>30,30,ShALG2!P54))),30),"") ->  | V77: =ABS(G57)+ABS(G59)+ABS(G60)+ABS(G61)+ABS(G68)+ABS(G69)+ABS(G73)+IF(G83<>"",ABS(G82)) -> 0 | W77: Gesamteinkommen HV ohne Kindergeld d. Kinder
B78: "verbrauchte" VersP. aus Erwerbseink. abziehen | C78: =IF(G79>0,1,0)+IF(H79>0,1,0)+IF(I79>0,1,0)+IF(J79>0,1,0)+IF(K79>0,1,0)+IF(L79>0,1,0)+IF(M79>0,1,0)+IF(N79>0,1,0)+IF(O79>0,1,0)+IF(P79>0,1,0) -> 0 | F78: =IF(E79>0,E79/Werte10!D81,0) -> 0 | I78: =IF(I27>0,IF(I81>ABS(I76+I77),0,I76+I77),"") ->  | V78: =Werte10!D122-IF(V77>0,1,0) -> 600 | Y78: =AND(RSTab>12,H27>0,B3>0,D62="") -> FALSE
A79: =IF(SUM(G79:P79)>0," + "&IF(F78<C78,"anteilige","")&" Versicherungpauschale","") ->  | C79: =Debug!C13 ->  | D79: =IF(Debug!A56,Debug!A55,"") ->  | E79: =SUM(G79:P79) -> 0 | G79: =IF(OR(G20="x",G21="x"),0,IF(OR(G81>ABS(G75),G75>0),0,-G75)) -> 0 | H79: =IF(OR(H21="x",H22="x"),0,IF(OR(H81>ABS(H75),H75>0),0,-H75)) -> 0 | I79: =IF(I27>0,IF(OR(I21="x",I73<0),0,IF( I27>17,I78,0)),0) -> 0 | J79: =IF(J27>0,IF(OR(J21="x",J73<0),0,IF( J27>17,J78,0)),0) -> 0 | K79: 0 | L79: 0 | M79: 0 | N79: 0 | O79: 0 | P79: 0 | V79: =IF(COUNTA(I63:P63)>0,1,0) -> 0 | W79: =IF(W80<>"( )",W80,"")& IF(AND(W81<>"( )",W80<>"( )")," abw. Betrag: ","")&IF(W81<>"( )",W81,"") ->  | Y79: ja
B80: Maximalwert nicht berücksichtigter Aufwendungen | G80: =IF(Erwerbseinkommen!E52>0,-Erwerbseinkommen!E52,0) -> 0 | H80: =IF(Erwerbseinkommen!I52>0,-Erwerbseinkommen!I52,0) -> 0 | I80: =IF(Erwerbseinkommen!N52>0,-Erwerbseinkommen!N52,0) -> 0 | J80: =IF(Erwerbseinkommen!R52>0,-Erwerbseinkommen!R52,0) -> 0 | K80: =IF(Erwerbseinkommen!V52>0,-Erwerbseinkommen!V52,0) -> 0 | L80: =IF(Erwerbseinkommen!Z52>0,-Erwerbseinkommen!Z52,0) -> 0 | M80: =IF(Erwerbseinkommen!AD52>0,-Erwerbseinkommen!AD52,0) -> 0 | N80: =IF(Erwerbseinkommen!AH52>0,-Erwerbseinkommen!AH52,0) -> 0 | O80: =IF(Erwerbseinkommen!AL52>0,-Erwerbseinkommen!AL52,0) -> 0 | P80: =IF(Erwerbseinkommen!AP52>0,-Erwerbseinkommen!AP52,0) -> 0 | V80: =IF(AND(I63<>"",I63=0),1,0)+IF(AND(J63<>"",J63=0),1,0)+IF(AND(K63<>"",K63=0),1,0)+IF(AND(L63<>"",L63=0),1,0)+IF(AND(M63<>"",M63=0),1,0)+IF(AND(N63<>"",N63=0),1,0)+IF(AND(O63<>"",O63=0),1,0)+IF(AND(P63<>"",P63=0),1,0) -> 0 | W80: ="( "&IF(AND(I63<>"",I63=0),"Ki1 ","")&IF(AND(J63<>"",J63=0),"Ki2 ","")&IF(AND(K63<>"",K63=0),"Ki3 ","")&IF(AND(L63<>"",L63=0),"Ki4 ","")&IF(AND(M63<>"",M63=0),"Ki5 ","")&IF(AND(N63<>"",N63=0),"Ki6 ","")&IF(AND(O63<>"",O63=0),"Ki7 ","")&IF(AND(P63<>"",P63=0),"Ki8 ","")&")" -> ( ) | Y80: nein
A81: =IF(E81>0," + beim Erwerbseinkommen nicht berücksichtigte Aufwendungen","") ->  | E81: =SUM(G81:P81) -> 0 | G81: =IF(G57+ABS(G59)+ABS(G60)+ABS(G61)+ABS(G68)+ABS(G69)+G74>0,IF(ABS(G80)-G57-ABS(G59)-ABS(G60)-ABS(G68)-ABS(G69)-G74>ABS(G80),-G80,IF(G57+ABS(G59)+ABS(G60)+ABS(G61)+ABS(G68)+ABS(G69)+G74>ABS(G80),-G80,ABS(-G57-ABS(G59)-ABS(G60)-ABS(G61)-ABS(G68)-ABS(G69)-G74))),0) -> 0 | H81: =IF(H57+ABS(H59)+ABS(H60)+ABS(H61)+ABS(H68)+ABS(H69)+H74>0,IF(ABS(H80)-H57-ABS(H59)-ABS(H60)-ABS(H68)-ABS(H69)-H74>ABS(H80),-H80,IF(H57+ABS(H59)+ABS(H60)+ABS(H61)+ABS(H68)+ABS(H69)+H74>ABS(H80),-H80,ABS(-H57-ABS(H59)-ABS(H60)-ABS(H61)-ABS(H68)-ABS(H69)-H74))),0) -> 0 | I81: =IF(I57+ABS(I60)+ABS(I61)+I63+ABS(I68)+ABS(I69)>0,IF(ABS(I80)-I57-ABS(I60)-I63-ABS(I68)-ABS(I69)>ABS(I80),-I80,IF(I57+ABS(I60)+ABS(I61)+I63+ABS(I68)+ABS(I69)>ABS(I80),-I80,ABS(-I57-ABS(I60)-ABS(I61)-I63-ABS(I68)-ABS(I69)))),0) -> 0 | J81: =IF(J57+ABS(J60)+ABS(J61)+J63+ABS(J68)+ABS(J69)>0,IF(ABS(J80)-J57-ABS(J60)-J63-ABS(J68)-ABS(J69)>ABS(J80),-J80,IF(J57+ABS(J60)+ABS(J61)+J63+ABS(J68)+ABS(J69)>ABS(J80),-J80,ABS(-J57-ABS(J60)-ABS(J61)-J63-ABS(J68)-ABS(J69)))),0) -> 0 | K81: 0 | L81: 0 | M81: 0 | N81: 0 | O81: 0 | P81: 0 | V81: =IF(AND(I63<>"",I63>0),1,0)+IF(AND(J63<>"",J63>0),1,0)+IF(AND(K63<>"",K63>0),1,0)+IF(AND(L63<>"",L63>0),1,0)+IF(AND(M63<>"",M63>0),1,0)+IF(AND(N63<>"",N63>0),1,0)+IF(AND(O63<>"",O63>0),1,0)+IF(AND(P63<>"",P63>0),1,0) -> 0 | W81: ="( "&IF(AND(I63<>"",I63>0),"Ki1 ","")&IF(AND(J63<>"",J63>0),"Ki2 ","")&IF(AND(K63<>"",K63>0),"Ki3 ","")&IF(AND(L63<>"",L63>0),"Ki4 ","")&IF(AND(M63<>"",M63>0),"Ki5 ","")&IF(AND(N63<>"",N63>0),"Ki6 ","")&IF(AND(O63<>"",O63>0),"Ki7 ","")&IF(AND(P63<>"",P63>0),"Ki8 ","")&")" -> ( )
A82: =IF(Debug!A15,Assistent!X96& IF(Assistent!Y95=" ==>"," >> Erwerbseinkommen >> ",Assistent!Y95),"") ->  | G82: =IF(G20="x",0,Erwerbseinkommen!E6+Erwerbseinkommen!E11) -> 0 | H82: =IF(H27<>"",IF(AND(H20="x",NOT(Stud2017)),0,Erwerbseinkommen!I6+Erwerbseinkommen!I11),0) -> 0 | I82: =IF(AND(I20="x",$B27<11.5),0,IF(I27<>"",Erwerbseinkommen!N6+Erwerbseinkommen!N11,0)) -> 0 | J82: =IF(AND(J20="x",$B27<11.5),0,IF(J27<>"",Erwerbseinkommen!R6+Erwerbseinkommen!R11,0)) -> 0 | K82: =IF(AND(K20="x",$B27<11.5),0,IF(K27<>"",Erwerbseinkommen!V6+Erwerbseinkommen!V11,0)) -> 0 | L82: =IF(AND(L20="x",$B27<11.5),0,IF(L27<>"",Erwerbseinkommen!Z6+Erwerbseinkommen!Z11,0)) -> 0 | M82: =IF(AND(M20="x",$B27<11.5),0,IF(M27<>"",Erwerbseinkommen!AD6+Erwerbseinkommen!AD11,0)) -> 0 | N82: =IF(AND(N20="x",$B27<11.5),0,IF(N27<>"",Erwerbseinkommen!AH6+Erwerbseinkommen!AH11,0)) -> 0 | O82: =IF(AND(O20="x",$B27<11.5),0,IF(O27<>"",Erwerbseinkommen!AL6+Erwerbseinkommen!AL11,0)) -> 0 | P82: =IF(AND(P20="x",$B27<11.5),0,IF(P27<>"",Erwerbseinkommen!AP6+Erwerbseinkommen!AP11,0)) -> 0 | V82: =IF(V79>0," "&IF(AND(V81>0,V80=0),"abweichender ","")&"UVG-Betrag"&IF(V80>0," 0,00 ","")&IF(V79=0,""," wurde für ")&IF(V79=0,"",W79)&" ein"&IF(OR(V80>0,V81>0),"ge","")&"tragen"&IF(V80>0,".",""),"") -> 
B83: =IF(E83>0,"- Netto-Erwerbseinkommen","") ->  | E83: =SUM(G83:P83)*-1 -> 0 | G83: =IF(G20="x",0,-Erwerbseinkommen!E13) -> 0 | H83: =IF(H27<>"",IF(AND(H20="x",NOT(Stud2017)),0,-Erwerbseinkommen!I13),0) -> 0 | I83: =IF(AND(I20="x",$B27<11.5),0,IF(I27<>"",-Erwerbseinkommen!N13,0)) -> 0 | J83: =IF(AND(J20="x",$B27<11.5),0,IF(J27<>"",-Erwerbseinkommen!R13,0)) -> 0 | K83: =IF(AND(K20="x",$B27<11.5),0,IF(K27<>"",-Erwerbseinkommen!V13,0)) -> 0 | L83: =IF(AND(L20="x",$B27<11.5),0,IF(L27<>"",-Erwerbseinkommen!Z13,0)) -> 0 | M83: =IF(AND(M20="x",$B27<11.5),0,IF(M27<>"",-Erwerbseinkommen!AD13,0)) -> 0 | N83: =IF(AND(N20="x",$B27<11.5),0,IF(N27<>"",-Erwerbseinkommen!AH13,0)) -> 0 | O83: =IF(AND(O20="x",$B27<11.5),0,IF(O27<>"",-Erwerbseinkommen!AL13,0)) -> 0 | P83: =IF(AND(P20="x",$B27<11.5),0,IF(P27<>"",-Erwerbseinkommen!AP13,0)) -> 0
B84: =IF(E84>0,"+ Freibeträge " & IF(AND(E84>0,Erwerbseinkommen!D56<4,Erwerbseinkommen!C56<>"")," " & TEXT(Erwerbseinkommen!A56,"TT.MM.JJJJ") & " !", ""),"") ->  | E84: =SUM(G84:P84) -> 0 | G84: =IF(G20="x",0,IF(G21="x",ABS(Erwerbseinkommen!F138),IF(Erwerbseinkommen!E47=0,-G83,Erwerbseinkommen!E45))) -> 0 | H84: =IF(H27<>"",IF(AND(H20="x",NOT(Stud2017)),0,IF(H21="x",ABS(Erwerbseinkommen!J138),IF(Erwerbseinkommen!I47=0,-H83,Erwerbseinkommen!I45))),0) -> 0 | I84: =IF(AND(I20="x",$B27<11.5),0,IF(I21="x",ABS(Erwerbseinkommen!O138),IF(I27<>"",Erwerbseinkommen!N45,0))) -> 0 | J84: =IF(AND(J20="x",$B27<11.5),0,IF(J21="x",ABS(Erwerbseinkommen!S138),IF(J27<>"",Erwerbseinkommen!R45,0))) -> 0 | K84: =IF(AND(K20="x",$B27<11.5),0,IF(K21="x",ABS(Erwerbseinkommen!W138),IF(K27<>"",Erwerbseinkommen!V45,0))) -> 0 | L84: =IF(AND(L20="x",$B27<11.5),0,IF(L21="x",ABS(Erwerbseinkommen!AA138),IF(L27<>"",Erwerbseinkommen!Z45,0))) -> 0 | M84: =IF(AND(M20="x",$B27<11.5),0,IF(M21="x",ABS(Erwerbseinkommen!AE138),IF(M27<>"",Erwerbseinkommen!AD45,0))) -> 0 | N84: =IF(AND(N20="x",$B27<11.5),0,IF(N21="x",ABS(Erwerbseinkommen!AI138),IF(N27<>"",Erwerbseinkommen!AH45,0))) -> 0 | O84: =IF(AND(O20="x",$B27<11.5),0,IF(O21="x",ABS(Erwerbseinkommen!AM138),IF(O27<>"",Erwerbseinkommen!AL45,0))) -> 0 | P84: =IF(AND(P20="x",$B27<11.5),0,IF(P21="x",ABS(Erwerbseinkommen!AQ138),IF(P27<>"",Erwerbseinkommen!AP45,0))) -> 0 | V84: =SUM(V86:V93) -> 0 | W84: Korrekturbetrag Übersicht: Kinder 1-8
A85: =IF(OR(G85<>0,H85<>0),"anrechenbares Einkommen","") ->  | G85: =IF(G20="x",G73-G74,(-G57-ABS(G59)-ABS(G60)-ABS(G61)-ABS(G68)-ABS(G69)+ABS(G71)-ABS(G74)+ABS(G79))+G81-ABS(G83)+ABS(G84)) -> 0 | H85: =IF(H27<>"",IF(OR(AND(H21="x",H22="x"),H20="x"),0,IF(AND(H20="x",NOT(Stud2017)),H73,(-H57-ABS(H59)-ABS(H60)-ABS(H61)-ABS(H68)-ABS(H69)+ABS(H71)-ABS(H74)+H79)+H81+H83+H84)),0) -> 0
A86: =IF(Erwerbseinkommen!B6="Bruttoeinkommen fehlt !"," Bruttoeinkommen fehlt !",IF(Erwerbseinkommen!B7="Nettoeinkommen fehlt !"," Nettoeinkommen fehlt !","")) ->  | C86: =IF(E86<=0,"kein Anspruch","Gesamtanspruch") -> Gesamtanspruch | E86: =SUM(G86:H86)+IF(I86>0,I86,0)+IF(J86>0,J86,0)+IF(K86>0,K86,0)+IF(L86>0,L86,0)+IF(M86>0,M86,0)+IF(N86>0,N86,0)+IF(O86>0,O86,0)+IF(P86>0,P86,0) -> 563 | G86: =IF(G27<>"",G52-ABS(G85),0) -> 563 | H86: =IF(H27>0,IF(OR(H20="",H22=""),H52-ABS(H85),IF(AND(H20="x",H52-ABS(H85)<0),H52-ABS(H85),0)),0) -> 0 | I86: =IF(I27="",0,IF(I27=0,0,IF(AND(I20="x",$B27<11.5),-ABS(I73),IF(ROUND(I52-I57-ABS(I60)-ABS(I61)-I62-ABS(I68)-ABS(I69)+ABS(I71)-ABS(I73)+I79+I81+I83+I84,2)<ROUND(-I57,2),-I57,ROUND(I52-I57-ABS(I60)-ABS(I61)-I62-ABS(I68)-ABS(I69)+ABS(I71)-ABS(I73)+I79+I81+I83+I84,2))))) -> 0 | J86: 0 | K86: 0 | L86: 0 | M86: 0 | N86: 0 | O86: 0 | P86: 0 | V86: =IF(I27>0,IF(U17=FALSE,IF(ROUND(I52-I57-ABS(I60)-ABS(I61)-IF(I27<18,I62,I63)-ABS(I68)-ABS(I69)-ABS(I71)-ABS(I73)+I79+I81+I83+I84,2)<0,ROUND(I52-I57-ABS(I60)-ABS(I61)-IF(I27<18,I62,I63)-ABS(I68)-ABS(I69)-ABS(I71)-ABS(I73)+I79+I81+I83+I84,2),0),0),0) -> 0
C87: =IF(B27<4.5,IF(G87>0,"Befristeter Zuschlag zum ALG2 nach ALG1-Bezug",IF(AND(ALG2_Z!G11>0,G87=0),"ALG2-Zuschlag "&TEXT(ALG2_Z!G11,"0,00")&" € entfällt, wenn SGB II-Bedarf gedeckt ist !","")),IF(H87<>"","nicht berücksichtigter Bedarf von Studenten",IF(T87>0,"Anspruch auf 'Kinderwohngeld' möglich !",""))) ->  | G87: =+IF(G86>0,ALG2_Z!G11,0) -> 0 | H87: =IF(H27>0,IF(AND(H20="x",H52-ABS(H85)>0),"("&H52-ABS(H85)&")",""),"") ->  | I87: =IF(Debug!$A50,IF(I86>0,IF(I164,IF(AND(NOT(I205),NOT($C202)),"Ki-WG?!",""),""),""),"") ->  | J87: =IF(Debug!$A50,IF(J86>0,IF(J164,IF(AND(NOT(J205),NOT($C202)),"Ki-WG?!",""),""),""),"") ->  | K87: =IF(Debug!$A50,IF(K86>0,IF(K164,IF(AND(NOT(K205),NOT($C202)),"Ki-WG?!",""),""),""),"") ->  | L87: =IF(Debug!$A50,IF(L86>0,IF(L164,IF(AND(NOT(L205),NOT($C202)),"Ki-WG?!",""),""),""),"") ->  | M87: =IF(Debug!$A50,IF(M86>0,IF(M164,IF(AND(NOT(M205),NOT($C202)),"Ki-WG?!",""),""),""),"") ->  | N87: =IF(Debug!$A50,IF(N86>0,IF(N164,IF(AND(NOT(N205),NOT($C202)),"Ki-WG?!",""),""),""),"") ->  | O87: =IF(Debug!$A50,IF(O86>0,IF(O164,IF(AND(NOT(O205),NOT($C202)),"Ki-WG?!",""),""),""),"") ->  | P87: =IF(Debug!$A50,IF(P86>0,IF(P164,IF(AND(NOT(P205),NOT($C202)),"Ki-WG?!",""),""),""),"") ->  | T87: =IF(I87<>"",1,0)+IF(J87<>"",1,0)+IF(K87<>"",1,0)+IF(L87<>"",1,0)+IF(M87<>"",1,0)+IF(N87<>"",1,0)+IF(O87<>"",1,0)+IF(P87<>"",1,0) -> 0 | V87: =IF(J27>0,IF(U18=FALSE,IF(ROUND(J52-J57-ABS(J60)-ABS(J61)-IF(J27<18,J62,J63)-ABS(J68)-ABS(J69)-ABS(J71)-ABS(J73)+J79+J81+J83+J84,2)<0,ROUND(J52-J57-ABS(J60)-ABS(J61)-IF(J27<18,J62,J63)-ABS(J68)-ABS(J69)-ABS(J71)-ABS(J73)+J79+J81+J83+J84,2),0),0),0) -> 0
A88: =IF(Erwerbseinkommen!D56=10," FEHLER ! Ungültige Jahreszahl auf Rechenblatt Erwerbseinkommen ! ",IF(AND(ISERROR(FIND("!",Erwerbseinkommen!B6)),ISERROR(FIND("!",Erwerbseinkommen!B7))),IF(LEN(G88&H88&I88&J88&K88&L88&M88&N88&O88&P88)>0,"Einkommensanrechnung begrenzt ! (nicht anrechenbares Einkommen "&TEXT(W90,"0,00")&") ","")," Fehler bei den Angaben zum Erwerbseinkommen !")) ->  | I88: =IF(I27<>"",IF(I52-I57-ABS(I59)-ABS(I60)-ABS(I61)-ABS(I68)-ABS(I69)+I83+I84<-I57,IF(-1*(I52-ABS(I59)-ABS(I60)-ABS(I61)-ABS(I68)-ABS(I69))-I79-I83-I84>0,"("&TEXT(-1*(I52-ABS(I59)-ABS(I60)-ABS(I61)-ABS(I68)-ABS(I69))-I79-I83-I84,"0,00")&")",""),""),"") ->  | V88: =IF(K27>0,IF(U19=FALSE,IF(ROUND(K52-K57-ABS(K60)-ABS(K61)-IF(K27<18,K62,K63)-ABS(K68)-ABS(K69)-ABS(K71)-ABS(K73)+K79+K81+K83+K84,2)<0,ROUND(K52-K57-ABS(K60)-ABS(K61)-IF(K27<18,K62,K63)-ABS(K68)-ABS(K69)-ABS(K71)-ABS(K73)+K79+K81+K83+K84,2),0),0),0) -> 0 | Y88: =IF(LEN(G88&H88&I88&J88&K88&L88&M88&N88&O88&P88)>0,TRUE,FALSE) -> FALSE
A89: 8. Abtretung / Kürzung des Anspruchs | F89: =IF(OR(I89<>"",J89<>"",K89<>"",L89<>"",M89<>"",N89<>"",O89<>"",P89<>""),"Entscheidungsgrund: ","") ->  | I89: =IF(AND($C$25<>"",I72="nein"),IF(I25="x","Wg ! ","Wg "),"")&IF(AND(I27>0,I29>0,I86<=0),"BG ","")&IF(AND(I88<>"",I57>0)," KG ","")&IF(I229=1," U !","") ->  | V89: =IF(L27>0,IF(U20=FALSE,IF(ROUND(L52-L57-ABS(L60)-ABS(L61)-IF(L27<18,L62,L63)-ABS(L68)-ABS(L69)-ABS(L71)-ABS(L73)+L79+L81+L83+L84,2)<0,ROUND(L52-L57-ABS(L60)-ABS(L61)-IF(L27<18,L62,L63)-ABS(L68)-ABS(L69)-ABS(L71)-ABS(L73)+L79+L81+L83+L84,2),0),0),0) -> 0 | W89: =IF(LEN(I88)>0,TEXT(MID(I88,2,LEN(I88)-2),"0,00")&" €"& " (Ki 1) ","")&IF(LEN(J88)>0,TEXT(MID(J88,2,LEN(J88)-2),"0,00")& " € "& " (Ki 2) ","")&IF(LEN(K88)>0,TEXT(MID(K88,2,LEN(K88)-2),"0,00")&" € "& " (Ki 3) ","")&IF(LEN(L88)>0,TEXT(MID(L88,2,LEN(L88)-2),"0,00")&" € "&" (Ki 4) ","")&IF(LEN(M88)>0,TEXT(MID(M88,2,LEN(M88)-2),"0,00")&" €" &" (Ki 5) ","")&IF(LEN(N88)>0,TEXT(MID(N88,2,LEN(N88)-2),"0,00")&" € " & " (Ki 6) ","")&IF(LEN(O88)>0,TEXT(MID(O88,2,LEN(O88)-2),"0,00")&" €"& " (Ki 7) ","")&IF(LEN(P88)>0,TEXT(MID(P88,2,LEN(P88)-2),"0,00")& " €" & " (Ki 8)","") -> 
A90: Miete wird vom JC an Vermieter überwiesen | C90: =IF(R28>1,"Anteile ohne Anteile der weiteren BGs i.d. Haushaltsgem.","") ->  | G90: =IF(B90="x",IF(AND(R28>1,E90="x"),IF(KdU!H47>0,-1*ROUND(KdU!H47/C2*(B14+B13),2),0),-KdU!H47),"") ->  | V90: =IF(M27>0,IF(U21=FALSE,IF(ROUND(M52-M57-ABS(M60)-ABS(M61)-IF(M27<18,M62,M63)-ABS(M68)-ABS(M69)-ABS(M71)-ABS(M73)+M79+M81+M83+M84,2)<0,ROUND(M52-M57-ABS(M60)-ABS(M61)-IF(M27<18,M62,M63)-ABS(M68)-ABS(M69)-ABS(M71)-ABS(M73)+M79+M81+M83+M84,2),0),0),0) -> 0 | W90: =IF(LEN(I88)>0,VALUE(-I88),0)+IF(LEN(J88)>0,VALUE(-J88),0)+IF(LEN(K88)>0,VALUE(-K88),0)+IF(LEN(L88)>0,VALUE(-L88),0)+IF(LEN(M88)>0,VALUE(-M88),0)+IF(LEN(N88)>0,VALUE(-N88),0)+IF(LEN(O88)>0,VALUE(-O88),0)+IF(LEN(P88)>0,VALUE(-P88),0) -> 0 | Y90: =IF(Debug!F9="MO",8-COUNTBLANK(I88:P88),0) -> 0
A91: Energiekosten werden vom JC überwiesen | G91: =IF(B91="x",IF(AND(R28>1,E91="x"),IF(KdU!I81>0,-1*ROUND(KdU!I81/C2*(B14+B13),2),0),-KdU!I81),"") ->  | V91: =IF(N27>0,IF(U22=FALSE,IF(ROUND(N52-N57-ABS(N60)-ABS(N61)-IF(N27<18,N62,N63)-ABS(N68)-ABS(N69)-ABS(N71)-ABS(N73)+N79+N81+N83+N84,2)<0,ROUND(N52-N57-ABS(N60)-ABS(N61)-IF(N27<18,N62,N63)-ABS(N68)-ABS(N69)-ABS(N71)-ABS(N73)+N79+N81+N83+N84,2),0),0),0) -> 0
A92: Wassergeld wird vom JC überwiesen | G92: =IF(B92="x",IF(AND(R28>1,E92="x"),IF(KdU!H48>0,-1*ROUND(KdU!H48/C2*(B14+B13),2),0),-KdU!H48),"") ->  | V92: =IF(O27>0,IF(U23=FALSE,IF(ROUND(O52-O57-ABS(O60)-ABS(O61)-IF(O27<18,O62,O63)-ABS(O68)-ABS(O69)-ABS(O71)-ABS(O73)+O79+O81+O83+O84,2)<0,ROUND(O52-O57-ABS(O60)-ABS(O61)-IF(O27<18,O62,O63)-ABS(O68)-ABS(O69)-ABS(O71)-ABS(O73)+O79+O81+O83+O84,2),0),0),0) -> 0
A93: Darlehenstilgung auf Grund freiwilliger Vereinbarung | V93: =IF(P27>0,IF(U24=FALSE,IF(ROUND(P52-P57-ABS(P60)-ABS(P61)-IF(P27<18,P62,P63)-ABS(P68)-ABS(P69)-ABS(P71)-ABS(P73)+P79+P81+P83+P84,2)<0,ROUND(P52-P57-ABS(P60)-ABS(P61)-IF(P27<18,P62,P63)-ABS(P68)-ABS(P69)-ABS(P71)-ABS(P73)+P79+P81+P83+P84,2),0),0),0) -> 0
A94: Kürzung wegen Überzahlung
A95: Tilgung eines Darlehens für einen Bedarf, der mit der Regelleistung als erfüllt gilt | V95: =COUNTIF(I96:P96,">0") -> 0 | W95: schwangere Kinder mit Anspruch
F96: =IF(AND(G96<0,B90="x"),"Negativer Auszahlungsbetrag bei Zahlung der Miete durch das JC ! ",IF(G96<0,IF(KdU!Y31, "auch ", "")&"kein ","")&"Auszahlungsbetrag" &IF(SUM(I96:P96)=0,"" &IF(KdU!Y31, MID(KdU!AA84,22,40),""),"")&IF(SUM(I96:P96)>0," für die Eltern"& IF(G96>0," und für",", jedoch für") &IF(V95>1," die schwangeren Kinder !"," das schwangere Kind !"),"")) -> Auszahlungsbetrag | G96: =IF(AND(ISERROR(FIND("!",Erwerbseinkommen!B6)),ISERROR(FIND("!",Erwerbseinkommen!B7))),ROUND(E86+G87-ABS(-G93)-ABS(-G94)-ABS(-G95)-IF(LEFT(H95,1)="?",ABS(-E101),0)+IF(G90<>"",G90,0)+IF(G91<>"",G91,0)+IF(G92<>"",G92,0),2)," Fehler !") -> 563 | I96: =IF(G96<=0,IF(AND(I86>0,I17="x"),I86,0),0) -> 0 | J96: 0 | K96: 0 | L96: 0 | M96: 0 | N96: 0 | O96: 0 | P96: 0 | V96: =V100-E86-V97 -> -563 | W96: Differenz
F97: =IF(G97>0,"zusätzlich: Kinder-Sofortzuschlag ab 1.7.2022","") ->  | G97: =SUM(I97:P97) -> 0 | I97: =IF(AND(I27<25,$E86>0,OR(I86>0,AND(I86<=0,I57>-I86))),Werte10!$D141,0) -> 0 | J97: =IF(AND(J27<25,$E86>0,OR(J86>0,AND(J86<=0,J57>-J86))),Werte10!$D141,0) -> 0 | K97: =IF(AND(K27<25,$E86>0,OR(K86>0,AND(K86<=0,K57>-K86))),Werte10!$D141,0) -> 0 | L97: =IF(AND(L27<25,$E86>0,OR(L86>0,AND(L86<=0,L57>-L86))),Werte10!$D141,0) -> 0 | M97: =IF(AND(M27<25,$E86>0,OR(M86>0,AND(M86<=0,M57>-M86))),Werte10!$D141,0) -> 0 | N97: =IF(AND(N27<25,$E86>0,OR(N86>0,AND(N86<=0,N57>-N86))),Werte10!$D141,0) -> 0 | O97: =IF(AND(O27<25,$E86>0,OR(O86>0,AND(O86<=0,O57>-O86))),Werte10!$D141,0) -> 0 | P97: =IF(AND(P27<25,$E86>0,OR(P86>0,AND(P86<=0,P57>-P86))),Werte10!$D141,0) -> 0 | Q97: =IF(G97>0,IF(OR(AND(I86<=0,I57>-I86),AND(J86<=0,J57>-J86),AND(K86<=0,K57>-K86),AND(L86<=0,L57>-L86),AND(L86<=0,L57>-L86),AND(M86<=0,M57>-M86),AND(N86<=0,N57>-N86),AND(O86<=0,O57>-O86),AND(P86<=0,P57>-P86)),"Zuschlag auch ohne ALGII-Anspruch, wenn Bedarf nur wegen Kindergeldanrechnung entfällt",""),"") ->  | V97: =G97 -> 0 | W97: Kinder-Sofortzuschlag
F98: =IF(Y98<>"",Y98,IF(V98>0,"Wohngeldanspruch"&IF(Wohngeld!BJ2<>Wohngeld!BG1," (Wohngeldtabelle "&Wohngeld!BG1&"!)","")&IF(AND(B27<4,Wohngeld!BG1="")," (ab 2009)","")&IF(Wohngeld!H8>0," (korrigiert!)",IF(V126,", rechnerisch",""))&" "&IF(V98<100,TEXT(V98,"00,00"),TEXT(V98,"0.00,00"))& " €","")) ->  | J98: =IF(J99>0,"vorrangig: ","") ->  | V98: =IF(B27>2,IF(E69>0,0,IF(AND(Wohngeld!M82<>"",C49>0),Wohngeld!M82,IF(AND(Wohngeld!M74>0,C49>0),Wohngeld!M74,0))),0) -> 0 | W98: Wohngeld | X98: =AND(Wohngeld!F72>0,Wohngeld!J81="") -> FALSE | Y98: =IF(X98,"Rechenblatt Wohngeld: "&Wohngeld!J3,"") -> 
F99: =IF(V99>0,IF(B27>2,"Anspruch auf Kinderzuschlag "&IF(B27<4,"(ab 2009) ","")&TEXT(V99,"0,00")&" €",""),"") ->  | J99: =IF(AND(V100>=E86,V122,V100>0),V100,0) -> 0 | K99: =IF(J99>0,IF(OR(AND(V98>=E86,V98>0),AND(V98>0,V98+V99>E86))," Wohngeld","")&IF(AND(V99>0,V98>0,V98+V99>E86)," +","")&IF(AND(V99>0,V98+V99>E86)," Kinderzuschlag","")&IF(AND(E86>0,V96>0)," ("&TEXT(V96,"0,00")&" € besser als ALG2" &IF(G97>0," + Sofort-KiZ","") & ")",""),"") ->  | V99: =IF(AND(KiZ!B72="",KiZ!B54>0),KiZ!N74,0) -> 0 | W99: KiZ
F100: =IF(AND(G66>0,ALG2_Z!C11>0),IF(ALG2_Z!H1<2011," ALG2-Zuschlag nach Ende des ALG1-Bezug: "&TEXT(ALG2_Z!C11,"0,00")&" €"&IF(ALG2_Z!C5>0," (nur wenn Wohng. bezogen wurde!)",""),""),"") ->  | V100: =SUM(V98:V99) -> 0 | W100: Summe
C101: =IF(G101>0,TEXT(V101,"0")&"% der Regelleistung: Summe und Einzelbeträge pro Person","") ->  | E101: =SUM(G101:P101) -> 0 | G101: =IF($V101>0,IF(G29<>"",G29*$V101/100,0),0) -> 0 | H101: 0 | I101: 0 | J101: 0 | K101: 0 | L101: 0 | M101: 0 | N101: 0 | O101: 0 | P101: 0 | V101: =IF(H95="?",10,IF(H95="??",20,IF(H95="???",30,0))) -> 0
A102: Gesamteinkommen
A103: =IF(G103>0," Grundsicherung","")& IF(G97>0," / Kinder-Sofortzuschlag","") -> Grundsicherung | G103: =IF(ISNUMBER(G96),IF(G96>0,G96,0)+G97,0) -> 563 | J103: =IF(O103>0,Erwerbseinkommen!B64 & " (Seite: Erwerbseinkommen)","") ->  | O103: =IF(Erwerbseinkommen!C64>0,Erwerbseinkommen!C64,0) -> 0 | V103: =OR(V104,W104,X104,Y104,V105,W105,X105,Y105) -> FALSE | W103: Eink. V. Kindern
A104: =IF(G104>0," Miete an Vermieter","") ->  | G104: =IF(G90<>"",-G90,0) -> 0 | J104: =IF(E83>0,Erwerbseinkommen!B65,"") ->  | O104: =IF(E83>0,Erwerbseinkommen!C65,"") ->  | V104: =RIGHT(I89,3)="KG " -> FALSE | W104: =RIGHT(J89,3)="KG " -> FALSE | X104: =RIGHT(K89,3)="KG " -> FALSE | Y104: =RIGHT(L89,3)="KG " -> FALSE
A105: =IF(G105>0," Nettoeinkommen","") ->  | G105: =E83 -> 0 | J105: =IF(O105<>"","zusätzlich verfügbares Einkommen","") ->  | O105: =IF(AND(E86>0,OR(E84>0,E79<0)),E84+E79-O103,"") ->  | V105: =RIGHT(M89,3)="KG " -> FALSE | W105: =RIGHT(N89,3)="KG " -> FALSE | X105: =RIGHT(O89,3)="KG " -> FALSE | Y105: =RIGHT(P89,3)="KG " -> FALSE
A106: =IF(G106<0," - Aufwendungen für Arbeit","") ->  | G106: =-Erwerbseinkommen!C64 -> 0 | V106: =OR(V107,W107,X107,Y107,V108,W108,X108,Y108) -> FALSE | W106: BG
A107: =IF(G107>0," Kindergeld","") ->  | G107: =+E57 -> 0 | I107: =IF(OR(R28>1,C29>0),"Ergebnis nicht kompatibel zu JC-Bescheid: "& IF(R28>1,TEXT(R28,"0")& " BGs in Haushaltsgemeinschaft","") &IF(AND(R28>1,C29>0),", ","")&IF(C29>0," "&TEXT(C29,"0")& " zusätzliche Person"&IF(C29>1,"en","")&" im Haushalt.","."),"") ->  | V107: =LEFT(I89,2)="BG" -> FALSE | W107: =LEFT(J89,2)="BG" -> FALSE | X107: =LEFT(K89,2)="BG" -> FALSE | Y107: =LEFT(L89,2)="BG" -> FALSE
A108: =IF(G108>0," Unterhalt / Unterhaltsvorschuß","") ->  | G108: =E62 -> 0 | I108: =IF(F229>0,"U ! : kein UVG f. Kinder ab 12 J., weil Einkommen des Elternteils unter "& TEXT(G229,"0")& " € oder Bedarf d. Kindes nicht gedeckt.","") ->  | V108: =LEFT(M89,2)="BG" -> FALSE | W108: =LEFT(N89,2)="BG" -> FALSE | X108: =LEFT(O89,2)="BG" -> FALSE | Y108: =LEFT(P89,2)="BG" -> FALSE
A109: =IF(G109>0," Renten","") ->  | G109: =E60 -> 0 | I109: =IF(V103,"KG: Einkommen von Kindern darf nur bis zur Höhe des Kindergelds angerechnet werden !","") -> 
A110: =IF(G110>0," Krankengeld","") ->  | G110: =E61 -> 0 | I110: =IF(KiZ!B116,"Kinderzuschlag möglich durch Verzicht auf Mehrbedarfe bei der KiZ-Berechnung ! -> Seite 'KiZ'","") ->  | V110: =AND(I112<>"",G74<0,I109="") -> FALSE | W110: =AND(V74<0,G20="x") -> FALSE
A111: =IF(G111>0," Arbeitslosengeld 1","") ->  | G111: =E68 -> 0 | I111: =IF(C205,"KdU-Bedarf: UVG/Ki-Wohngeld-Bedarf nur gedeckt, wenn Miete auf MOG gekürzt! -> keine Anrechnung von Kindergeld !","") ->  | V111: =CHAR(10)&"Wohngeld wurde für "&W112&" auf Seite 'Wohngeld' erzwungen !" -> Wohngeld wurde für ( ) auf Seite 'Wohngeld' erzwungen !
A112: =IF(G112," sonstiges Einkommen"& IF(AND(Studenten!B58>0,COUNTA(G20:P20)>0)," + Bafög oder Studienkredit: " & TEXT(Studenten!B58,"0,00") & " €",""),"") ->  | G112: =E69+IF(COUNTA(G20:P20)>0,Studenten!B58,0) -> 0 | I112: =IF(V106,"BG: Kinder gehören nicht mehr zur BG, wenn der eigene Einkommensbedarf gedeckt ist !",IF(AND(C245>0,C139=TRUE),"BSG-MOG nicht anwendbar, weil der Bedarf von keinem Kind gedeckt ist !"&IF(C202=FALSE," Kinderwohngeld ermöglichen => Seite 'Wohngeld' => 'LB.' wohngeldberechtigt: nein",""),"")) ->  | V112: =OR(LEFT(I89,2)="Wg",LEFT(J89,2)="Wg",LEFT(K89,2)="Wg",LEFT(L89,2)="Wg",LEFT(M89,2)="Wg",LEFT(N89,2)="Wg",LEFT(O89,2)="Wg",LEFT(P89,2)="Wg") -> FALSE | W112: ="( "&IF(AND(Wohngeld!P11="ja",Wohngeld!P9<>""),"Ki1 ","")&IF(AND(Wohngeld!V11="ja",Wohngeld!V9<>""),"Ki2 ","")&IF(AND(Wohngeld!AB11="ja",Wohngeld!AB9<>""),"Ki3 ","")&IF(AND(Wohngeld!AH11="ja",Wohngeld!AH9<>""),"Ki4 ","")&IF(AND(Wohngeld!AN11="ja",Wohngeld!AN9="ja"),"Ki5 ","")&IF(AND(Wohngeld!AT11="ja",Wohngeld!AT9<>""),"Ki6 ","")&IF(AND(Wohngeld!AZ11="ja",Wohngeld!AZ9<>""),"Ki7 ","")&IF(AND(Wohngeld!BF11="ja",Wohngeld!BF9<>""),"Ki8 ","")&")" -> ( ) | X112: Wg | Y112: =W112<>"( )" -> FALSE
G113: =SUM(G103:G112) -> 563 | V113: =OR(LEFT(I89,4)="Wg !",LEFT(J89,4)="Wg !",LEFT(K89,4)="Wg !",LEFT(L89,4)="Wg !",LEFT(M89,4)="Wg !",LEFT(N89,4)="Wg !",LEFT(O89,4)="Wg !",LEFT(P89,4)="Wg !") -> FALSE | W113: Wg
A114: =IF(G120<>0,"Ausgaben","") ->  | I114: =IF(T87>0,"Ki-WG?!: Anspruch auf 'Kinderwohngeld' möglich! Wohngeldberechtigung für Eltern auf 'nein' setzen.","") -> 
A115: =" "& IF(G115<0,IF(Y28>0,IF(D115="Vermieter","Zahlung an Vermieter","Zahlung des Untermieters")&IF(D115=""," oder an Vermieter ?","")&IF(AND(D115="Untermieter",KdU!I43=0)," (Anteil nach Zahl der Personen in der WG)",""),KdU!B47),"") ->  | G115: =IF(G90<0,0,IF(AND(KdU!I43>0,D115="Untermieter"),-KdU!I43,IF(C50>0,IF(AND(Y28>0,D115="Untermieter"),IF(ISERROR(-KdU!H47/B2-KdU!H48/B2-KdU!I81/B2),0,-KdU!H47/B2-KdU!H48/B2-KdU!I81/B2),C50*-1),0))) -> 0 | H115: =IF(AND(D115="",G115>0),"Miete","") ->  | I115: =IF(V112,"Wg: Bedarf des Kindes ist mit Wohngeld nicht gedeckt !"& IF(AND(V113,LEN(W112)<4)," Auf Seite 'Wohngeld' kann dies korrigiert werden; die Wohngeldberechtigung wird neben dem mit '<== ?' markierten Feld mit 'ja' festgelegt. ",V111),IF(Y112,V111,"")) ->  | T115: KiG anrechb. | V115: =IF(W115<>"( )",W115,"") ->  | W115: =IF(OR(OR(N74="",N74="nein"),NOT(H27>0)),"( "&IF(AND(I86<0,I205=FALSE),"Ki1 ","")&IF(AND(J86<0,J205=FALSE),"Ki2 ","")&IF(AND(K86<0,K205=FALSE),"Ki3 ","")&IF(AND(L86<0,L205=FALSE),"Ki4 ","")&IF(AND(M86<0,M205=FALSE),"Ki5 ","")&IF(AND(N86<0,N205=FALSE),"Ki6 ","")&IF(AND(O86<0,O205=FALSE),"Ki7 ","")&IF(AND(P86<0,P205=FALSE),"Ki8 ","")&")","") -> ( )
A116: =IF(AND(Y28>0,D115="Untermieter")," "&"Zahlung an Vermieter: "&TEXT(KdU!H47,"0,00")&" €, "&IF(KdU!I43>0,"Zahlung de"&IF(V47>1,"r","s")&" Untermieters: "&TEXT(KdU!I43,"0,00")&" €"&" (an Hauptmieter)","Anteil Untermieter: "&TEXT(KdU!H47/B2,"0,00")&" €"),IF(Y28>0," "&"Zahlung de"&IF(V47>1,"r "&V47,"s")&" Untermieter"&IF(V47>1,"","s")&" an Hauptmieter"&IF(KdU!I81>0," incl. Heizkosten",""),"""")) -> " | G116: =IF(Y28>0,IF(D115="Untermieter",0,IF(KdU!I43>0,KdU!I43*V47,KdU!H47/B2*V47)+KdU!I81/B2*V47),0) -> 0 | T116: KiG nicht anrechb. | V116: =IF(W116<>"( )",W116,"") ->  | W116: =IF(OR(OR(N74="",N74="nein"),NOT(H27>0)),"( "&IF(AND(I86<0,I205=TRUE),"Ki1 ","")&IF(AND(J86<0,J205=TRUE),"Ki2 ","")&IF(AND(K86<0,K205=TRUE),"Ki3 ","")&IF(AND(L86<0,L205=TRUE),"Ki4 ","")&IF(AND(M86<0,M205=TRUE),"Ki5 ","")&IF(AND(N86<0,N205=TRUE),"Ki6 ","")&IF(AND(O86<0,O205=TRUE),"Ki7 ","")&IF(AND(P86<0,P205=TRUE),"Ki8 ","")&")","") -> ( )
A117: =IF(OR(G117<0,AND(Y28>0,KdU!I81>0)),IF(AND(OR(KdU!AO54="inc",G47=0),NOT(OR(D115="Vermieter",D115=""))),""," Zahlung an Energieversorger" & IF(AND(Y28>0,D115="Untermieter"),": "& TEXT(KdU!I81,"0,00")& " €, Anteil Untermieter: "& TEXT(KdU!I81/B2,"0,00")& " € (1/" & TEXT(B2,"0")&")","")),"") ->  | G117: =IF(G91<0,0,IF(AND(KdU!I81>0,NOT(OR(KdU!AO54="inc",G47=0))),IF(Y28>0,-KdU!I81/B2,-KdU!I81),IF(OR(D115="Vermieter",D115=""),-KdU!I81,0))) -> 0 | W117: =IF(OR(OR(N74="",N74="nein"),NOT(H27>0)),IF(AND(I86<0,I205=TRUE),1,0)+IF(AND(J86<0,J205=TRUE),1,0)+IF(AND(K86<0,K205=TRUE),1,0)+IF(AND(L86<0,L205=TRUE),1,0)+IF(AND(M86<0,M205=TRUE),1,0)+IF(AND(N86<0,N205=TRUE),1,0)+IF(AND(O86<0,O205=TRUE),1,0)+IF(AND(P86<0,P205=TRUE),1,0),0) -> 0
A118: =IF(G118<0," "& KdU!B48,"") ->  | G118: =IF(G92<0,0,IF(KdU!H48>0,IF(AND(Y28>0,D115="Untermieter"),"",-KdU!H48),0)) -> 0 | I118: =W40&W32&X33&V33&W33&W34 -> 
A119: =IF(G119<0," Unterhaltszahlungen","") ->  | G119: =IF(ABS(Erwerbseinkommen!E9)+ABS(Erwerbseinkommen!I9)>0,(ABS(Erwerbseinkommen!E9)+ABS(Erwerbseinkommen!I9))*-1,0) -> 0 | V119: =Wohngeld!B5 -> 1 | W119: Wohngeldberechtigte 'Wohngeld'
A120: =IF(G120<>0,"Nettoeinkommen nach Abzug bekannter Ausgaben","") ->  | F120: =IF(Debug!C51=FALSE,"nein","ja") -> ja | G120: =IF(SUM(G114:G119)<>0,G113+SUM(G114:G119),0) -> 0 | V120: =IF(G14,1,0)+IF(H14,1,0)+IF(I14,1,0)+IF(J14,1,0)+IF(K14,1,0)+IF(L14,1,0)+IF(M14,1,0)+IF(N14,1,0)+IF(O14,1,0)+IF(P14,1,0) -> 0 | W120: nicht Wohngeldberechtigte
V121: =V48 -> 1 | W121: Personen ohne Mitbewohner u. Zählpersonen
A122: =IF(AND(Debug!C51=FALSE,OR(Debug!A50=FALSE,Debug!A51=FALSE)),"(Anwendung des BSG-Urteil zu MOG"&IF(Debug!A51=FALSE," permanent","")&" deaktiviert)","") ->  | V122: =V121-V120<>0 -> TRUE | W122: Wohngeld anzeigen
V123: =V98+KiZ<E86 -> TRUE | W123: Wohngeld+KiZ < Bedarf
H124: =IF(T45,"Berechnung der effektiv berücksichtigten KdU wegen des BSG-Urteils zu Mietobergrenzen","") ->  | V124: =IF(E86>0,IF(V123,E86-(E86*W124/100)>=V98,FALSE),FALSE) -> TRUE | W124: 15 | X124: %
A125: =IF(T45,"KdU-Bedarf","") ->  | I125: =IF($T$45,IF(I27>0,I145,0),0) -> 0 | J125: =IF($T$45,IF(J27>0,J145,0),0) -> 0 | K125: 0 | L125: 0 | M125: 0 | N125: 0 | O125: 0 | P125: 0 | V125: =IF(E86>0,IF(V123,NOT(V98+V99<E86),FALSE),FALSE) -> FALSE
A126: =IF(T45,"KdU berücksichtigt","") ->  | I126: =IF($T$45,-I49,0) -> 0 | J126: =IF($T$45,-J49,0) -> 0 | K126: 0 | L126: 0 | M126: 0 | N126: 0 | O126: 0 | P126: 0 | V126: =OR(V122=FALSE,OR(V124,V125)) -> TRUE | W126: =" 'rechnerisch'"&IF(V126," nicht","")&" anzeigen" -> 'rechnerisch' nicht anzeigen
A127: =IF(T45,"nicht angerechnetes Kindergeld","") ->  | I127: =IF(I205,I86,0) -> 0 | J127: =IF(J205,J86,0) -> 0 | K127: 0 | L127: 0 | M127: 0 | N127: 0 | O127: 0 | P127: 0 | V127: =F98 -> 
A128: =IF(T45,"ungedeckter KdU-Bedarf","") ->  | I128: =SUM(I125:I127) -> 0 | J128: =SUM(J125:J127) -> 0 | K128: 0 | L128: 0 | M128: 0 | N128: 0 | O128: 0 | P128: 0
A129: =IF(T45,"effektiv berücksichtigte KdU","") ->  | C129: =IF(T45,SUM(G129:P129),0) -> 0 | G129: =IF(T45,G49,0) -> 0 | H129: =IF(T45,H49,0) -> 0 | I129: =I125-I128 -> 0 | J129: =J125-J128 -> 0 | K129: 0 | L129: 0 | M129: 0 | N129: 0 | O129: 0 | P129: 0
A132: =IF(T45,"MOG und zu berücksichtigende Personen nach BSG Urteil vom 25.04.2018: "&TEXT(C142,"0")&" statt "& TEXT(V48,"0") & " Personen !","") ->  | C132: =IF(T45,Orte!AB25,0) -> 0 | I132: =IF(I27>0,IF(AND(I58<>"",I58=0),TRUE,FALSE),FALSE) -> FALSE | J132: FALSE | K132: FALSE | L132: FALSE | M132: FALSE | N132: FALSE | O132: FALSE | P132: FALSE | Q132: Kindergeldbetrag 0
A133: =IF(T45,IF(U46<>"x","Heizkosten nach BGs verteilt","Heizkosten für " &TEXT(V48,"0")& " Pers.")&IF(AND(C147<C146,B147="x")," (HOG nicht ber.)",IF(C148<C146," (HOG wird ber.)","")),"") ->  | C133: =IF(T45,ROUND(IF(B133="x",C146,C147)/IF(U46="x",L134,B165)*B165,2),0) -> 0 | L133: =IF(T45,ROUND(KdU!I72/IF(U46="x",L134,B165),2),0) -> 0
A134: =IF(T45,"effektive KdU für " &TEXT(V48,"0")& " Personen incl. Heizk.","") ->  | C134: =IF(T45,C132+C133,D49) -> 0 | G134: =OR(AND(T50,MOG_Variante=2,NOT(G145>G149)),AND(G142+G143+G144=G149,AND(KdU!AO14>0,G143>0))) -> FALSE | L134: =IF(T45,V48,0) -> 0
A136: =MID(KdU!M76,8,60) ->  | C136: =IF(KdU!K76="ja",TRUE,FALSE) -> TRUE | D136: alt.MOG | F136: =IF(G136=TRUE,1,0)+IF(H136=TRUE,1,0)+IF(I136=TRUE,1,0)+IF(J136=TRUE,1,0)+IF(K136=TRUE,1,0)+IF(L136=TRUE,1,0)+IF(M136=TRUE,1,0)+IF(N136=TRUE,1,0)+IF(O136=TRUE,1,0)+IF(P136=TRUE,1,0) -> 0 | G136: =AND($T45,OR(G206>0,G49>$D49)) -> FALSE | H136: =AND($T45,OR(H206>0,H49>$D49)) -> FALSE | I136: =AND($T45,I206>0,I148) -> FALSE | J136: FALSE | K136: FALSE | L136: FALSE | M136: FALSE | N136: FALSE | O136: FALSE | P136: FALSE
A137: =IF(C137,"kein ","")&"Erstantrag" -> Erstantrag | C137: =NOT(C136) -> FALSE
A138: Gesamtanspruch | C138: =T45 -> FALSE | G138: =G86 -> 563 | H138: 0 | I138: 0 | J138: 0 | K138: 0 | L138: 0 | M138: 0 | N138: 0 | O138: 0 | P138: 0
A139: BSG-MOG anwenden | C139: =IF(C137,Debug!C51,FALSE) -> FALSE | I139: =I88 ->  | J139: =J88 -> 
A140: Personen insg. | B140: =V48 -> 1 | C140: =A13 -> Kinder < 25 | D140: =B13 -> 0
A141: =IF(B141>0,"","keine ")&"Kinder, deren Bedarf gedeckt ist" -> keine Kinder, deren Bedarf gedeckt ist | B141: =IF(AND(I27>0,I86<=0),1,0)+IF(AND(J27>0,J86<=0),1,0)+IF(AND(K27>0,K86<=0),1,0)+IF(AND(L27>0,L86<=0),1,0)+IF(AND(M27>0,M86<=0),1,0)+IF(AND(N27>0,N86<=0),1,0)+IF(AND(O27>0,O86<=0),1,0)+IF(AND(P27>0,P86<=0),1,0) -> 0 | C141: =IF(B141<1,"BSG-Urteil zu MOG n. anwendbar","OK") -> BSG-Urteil zu MOG n. anwendbar | G141: =G27 -> 29.1 | H141: 0 | I141: 0 | J141: 0 | K141: 0 | L141: 0 | M141: 0 | N141: 0 | O141: 0 | P141: 0
A142: Personen mit alternativer MOG | B142: =F136 -> 0 | C142: =B140-B142 -> 1 | E142: GrundM | G142: =IF(G27>0,IF(G20<>"x",IF(AND($R30="Tage",G30>0,G30<31),ROUND((KdU!K16+IF(KdU!K19<0,KdU!K19,0))/V48/30*G30,2),ROUND((KdU!K16+IF(KdU!K19<0,KdU!K19,0))/V48,2)),0),0) -> 0
A143: Variante der KdU-Kostenverteilung | B143: 2 | E143: BK | G143: =IF(G27>0,IF(G20<>"x",IF(AND($R30="Tage",G30>0,G30<31),ROUND((IF(KdU!AO53="ex",KdU!I24,KdU!K18))/V48/30*G30,2),ROUND(IF(KdU!AO53="ex",KdU!I24,KdU!K18)/V48,2)),0),0) -> 0
A144: =REPT(" ",5)&IF(B144>1,"alternative MOG möglich !","Standard-MOG") -> Standard-MOG | B144: =IF(Debug!C51,IF(AND(B143>1,B141>0),B143,1),1) -> 1 | E144: Heizk. | G144: =IF(G27>0,IF(G20<>"x",IF(AND($R30="Tage",G30>0,G30<31),ROUND(IF(B147="x",C146,C147)/V48/30*G30,2),ROUND(IF(B147="x",C146,C147)/V48,2)),0),0) -> 0
A145: KdU-Anteil pro Person regulär | B145: =IF(OR(B144=1,B144=0),D49,G145) -> 0 | E145: Ges.Miete | G145: =SUM(G142:G144) -> 0 | H145: =G145 -> 0 | I145: =G145 -> 0 | J145: =G145 -> 0 | K145: =G145 -> 0 | L145: =G145 -> 0 | M145: =G145 -> 0 | N145: =G145 -> 0 | O145: =G145 -> 0 | P145: =G145 -> 0
A146: ungekürzte Heizkosten | C146: =KdU!AH63+IF(KdU!H62="ja",KdU!K62*-1,0)+KdU!I75 -> 0 | E146: MOGMiete | G146: =$D$49 -> 0 | H146: =G146 -> 0 | I146: =H146 -> 0 | J146: =I146 -> 0 | K146: 0 | L146: 0 | M146: 0 | N146: 0 | O146: 0 | P146: 0 | R146: HK wirtschaftlich
A147: angemess. HK | B147: =IF(Debug!A52,"-","x") -> - | C147: =IF(AND(KdU!AN54="allinc",OR(KdU!I26<=KdU!H42,G146+C149=KdU!I26,AND(KdU!K43>0,KdU!I26<=KdU!H42+KdU!K43))),C146,IF(Z147,KdU!AH63,KdU!I72)+IF(KdU!H62="ja",KdU!K62*-1,0)+KdU!I75+(IF(KdU!M72>0,KdU!K61-KdU!I72-KdU!M72,0))) -> 0 | E147: gewählt | I147: =IF($C137,IF(I148,IF(I193,$B169,IF(I200,I202,$C158)),I202),I202) -> 0 | J147: 0 | K147: 0 | L147: 0 | M147: 0 | N147: 0 | O147: 0 | P147: 0 | R147: =KdU!AC144 -> FALSE | S147: =KdU!AC157 -> FALSE | Z147: =AND(R147=FALSE,S147=FALSE) -> TRUE
A148: gewählte HK | C148: =IF(B147="x",C146,C147) -> 0 | F148: =IF(G148=TRUE,1,0)+IF(H148=TRUE,1,0)+IF(I148=TRUE,1,0)+IF(J148=TRUE,1,0)+IF(K148=TRUE,1,0)+IF(L148=TRUE,1,0)+IF(M148=TRUE,1,0)+IF(N148=TRUE,1,0)+IF(O148=TRUE,1,0)+IF(P148=TRUE,1,0) -> 1 | G148: =AND(G27>0,G180>0,Debug!$C51) -> TRUE | H148: =AND(H27>0,G180>0,Debug!$C51) -> FALSE | I148: =AND(I27>0,Debug!$C51,OR(I193=TRUE,I200=TRUE)) -> FALSE | J148: =AND(J27>0,Debug!$C51,OR(J193=TRUE,J200=TRUE)) -> FALSE | K148: =AND(K27>0,Debug!$C51,OR(K193=TRUE,K200=TRUE)) -> FALSE | L148: =AND(L27>0,Debug!$C51,OR(L193=TRUE,L200=TRUE)) -> FALSE | M148: =AND(M27>0,Debug!$C51,OR(M193=TRUE,M200=TRUE)) -> FALSE | N148: =AND(N27>0,Debug!$C51,OR(N193=TRUE,N200=TRUE)) -> FALSE | O148: =AND(O27>0,Debug!$C51,OR(O193=TRUE,O200=TRUE)) -> FALSE | P148: =AND(P27>0,Debug!$C51,OR(P193=TRUE,P200=TRUE)) -> FALSE | R148: i185 | S148: =I188 -> 0 | V148: C134 | W148: =$C137 -> FALSE | X148: =A137 -> Erstantrag
A149: =IF(T45,"HK anteilig","") ->  | B149: =IF(T45,ROUND(C148/L134,2),ROUND(C148/V48,2)) -> 0 | C149: =IF(G20<>"x",IF(AND($R30="Tage",G30>0,G30<31),ROUND(KdU!K43/30*G30,2),KdU!K43),0) -> 0 | E149: KdU | G149: =IF(G27>0,IF(G20<>"x",IF(AND($R30="Tage",G30>0,G30<31),ROUND((B153+IF(W45,X45,0))/30*G30,2),B153+IF(W45,X45,0)),0),0) -> 0 | H149: =IF(H27>0,IF(OR(AND(H21="x",H22="x"),H20="x"),0,IF(AND($R30="Tage",H30>0,H30<31),ROUND((B153+IF(W45,X45,0))/30*H30,2),B153)),0) -> 0 | I149: =IF(I27>0,IF(OR(AND(I20="x",Studenten!G1="LA",$B27<11.5),I22="x"),0,IF(AND($R30="Tage",I30>0,I30<31,T49=1),ROUND(I147/30*I30,2),I147)),0) -> 0 | J149: =IF(J27>0,IF(OR(AND(J20="x",Studenten!H1="LA",$B27<11.5),J22="x"),0,IF(AND($R30="Tage",J30>0,J30<31),ROUND(J147/30*J30,2),J147)),0) -> 0 | K149: =IF(K27>0,IF(OR(AND(K20="x",Studenten!I1="LA",$B27<11.5),K22="x"),0,IF(AND($R30="Tage",K30>0,K30<31),ROUND(K147/30*K30,2),K147)),0) -> 0 | L149: =IF(L27>0,IF(OR(AND(L20="x",Studenten!J1="LA",$B27<11.5),L22="x"),0,IF(AND($R30="Tage",L30>0,L30<31),ROUND(L147/30*L30,2),L147)),0) -> 0 | M149: =IF(M27>0,IF(OR(AND(M20="x",Studenten!K1="LA",$B27<11.5),M22="x"),0,IF(AND($R30="Tage",M30>0,M30<31),ROUND(M147/30*M30,2),M147)),0) -> 0 | N149: =IF(N27>0,IF(OR(AND(N20="x",Studenten!L1="LA",$B27<11.5),N22="x"),0,IF(AND($R30="Tage",N30>0,N30<31),ROUND(N147/30*N30,2),N147)),0) -> 0 | O149: =IF(O27>0,IF(OR(AND(O20="x",Studenten!M1="LA",$B27<11.5),O22="x"),0,IF(AND($R30="Tage",O30>0,O30<31),ROUND(O147/30*O30,2),O147)),0) -> 0 | P149: =IF(P27>0,IF(OR(AND(P20="x",Studenten!N1="LA",$B27<11.5),P22="x"),0,IF(AND($R30="Tage",P30>0,P30<31),ROUND(P147/30*P30,2),P147)),0) -> 0 | R149: i199 | S149: =I202 -> 0 | V149: i145 | W149: =I148 -> FALSE | X149: =IF(I148,"tats. Miete oder MOG gedeckt","NOK") -> NOK
D150: Voraussetzung für Kinderwohngeld prüfen | E150: Vorausetzung Bedarf | I150: =I27>0 -> FALSE | J150: FALSE | K150: FALSE | L150: FALSE | M150: FALSE | N150: FALSE | O150: FALSE | P150: FALSE | R150: B155 | S150: =C158 -> 499 | V150: B163 | W150: =B169 -> 0 | X150: tats. Miete
A151: anteilige MOG | B151: =IF(B165>0,ROUND(C132/B165,2),IF(C132>0,ROUND(C132/B140,2),D49)) -> 0 | C151: =OR(B165>0,C132>0) -> FALSE | E151: Student, Vermögen | I151: =OR(AND(I20="x",Studenten!G1="LA",$B27<11.5),I22="x") -> FALSE | J151: =OR(AND(J20="x",Studenten!H1="LA",$B27<11.5),J22="x") -> FALSE | K151: =OR(AND(K20="x",Studenten!I1="LA",$B27<11.5),K22="x") -> FALSE | L151: =OR(AND(L20="x",Studenten!J1="LA",$B27<11.5),L22="x") -> FALSE | M151: =OR(AND(M20="x",Studenten!K1="LA",$B27<11.5),M22="x") -> FALSE | N151: =OR(AND(N20="x",Studenten!L1="LA",$B27<11.5),N22="x") -> FALSE | O151: =OR(AND(O20="x",Studenten!M1="LA",$B27<11.5),O22="x") -> FALSE | P151: =OR(AND(P20="x",Studenten!N1="LA",$B27<11.5),P22="x") -> FALSE | R151: B163 | S151: =B169 -> 0 | V151: B155 | W151: =C158 -> 499 | X151: MOG-Miete
A152: HK-Anteil | B152: =IF(C151,B149,0) -> 0 | C152: =KdU!K19 -> 0 | E152: Regelleistung (gekürzt) | I152: =IF(AND(I30>0,$R30<>""),IF(AND($R30="Tage",I30<31),ROUND(I26/30*I30,2),I30),I29) -> 0 | J152: 0 | K152: 0 | L152: 0 | M152: 0 | N152: 0 | O152: 0 | P152: 0 | S152: =Debug!$C51 -> 1 | T152: Debug!$C51 | V152: i185 | W152: =I188 -> 0
A153: KdU-Anteil mit MOG-Miete | B153: =B151+B152 -> 0 | E153: Mehrbedarfe | I153: =IF(I27>0,IF(SUM(I31:I41)>I26,I26,SUM(I31:I41)),0) -> 0 | J153: 0 | K153: 0 | L153: 0 | M153: 0 | N153: 0 | O153: 0 | P153: 0 | R153: i190 | S153: =I193 -> TRUE | T153: ="tats. Miete: "&IF(I193,"OK","NOK") -> tats. Miete: OK | V153: i199 | W153: =I202 -> 0
E154: Krankenversicherung | I154: =I44 -> 0 | J154: 0 | K154: 0 | L154: 0 | M154: 0 | N154: 0 | O154: 0 | P154: 0 | R154: i197 | S154: =I200 -> TRUE | T154: ="MOG-Miete: "&IF(I200,"OK","NOK") -> MOG-Miete: OK
A155: alternative MOG, neu ermittelt | C155: =IF(ISERROR(Orte!AB24),0,Orte!AB24) -> 499 | E155: - Kindergeld | I155: =-I57 -> 0 | J155: 0 | K155: 0 | L155: 0 | M155: 0 | N155: 0 | O155: 0 | P155: 0
C156: =KdU!I72/V48*F148 -> 0 | E156: -Rente, -Krankengeld, -ALG1 | I156: =-I60-I61+I68 -> 0 | J156: 0 | K156: 0 | L156: 0 | M156: 0 | N156: 0 | O156: 0 | P156: 0
A157: MOG + HK | C157: =C155+C156 -> 499 | E157: -UVG (1. Alternative: 173) | I157: =-I182 -> 0 | J157: =-J182 -> 0 | K157: 0 | L157: 0 | M157: 0 | N157: 0 | O157: 0 | P157: 0
A158: anteilig | C158: =IF(F148>0,ROUND((C155+C156)/F148,2),0) -> 499 | E158: -anger. Erwerbseinkommen | I158: =IF(I21="x",ABS(Erwerbseinkommen!G150),ABS(Erwerbseinkommen!G148))-Erwerbseinkommen!G149 -> 0 | J158: =IF(J21="x",ABS(Erwerbseinkommen!H150),ABS(Erwerbseinkommen!H148))-Erwerbseinkommen!H149 -> 0 | K158: =IF(K21="x",ABS(Erwerbseinkommen!I150),ABS(Erwerbseinkommen!I148))-Erwerbseinkommen!I149 -> 0 | L158: =IF(L21="x",ABS(Erwerbseinkommen!J150),ABS(Erwerbseinkommen!J148))-Erwerbseinkommen!J149 -> 0 | M158: =IF(M21="x",ABS(Erwerbseinkommen!K150),ABS(Erwerbseinkommen!K148))-Erwerbseinkommen!K149 -> 0 | N158: =IF(N21="x",ABS(Erwerbseinkommen!L150),ABS(Erwerbseinkommen!L148))-Erwerbseinkommen!L149 -> 0 | O158: =IF(O21="x",ABS(Erwerbseinkommen!N150),ABS(Erwerbseinkommen!N148))-Erwerbseinkommen!N149 -> 0 | P158: =IF(P21="x",ABS(Erwerbseinkommen!O150),ABS(Erwerbseinkommen!O148))-Erwerbseinkommen!O149 -> 0
C159: =$G25="x" -> FALSE | E159: -Kinderwohngeld (alternativB.) | I159: =IF($C159,-Wohngeld!$P109,0) -> 0 | J159: =IF($C159,-Wohngeld!$P109,0) -> 0 | K159: =IF($C159,-Wohngeld!$P109,0) -> 0 | L159: =IF($C159,-Wohngeld!$P109,0) -> 0 | M159: =IF($C159,-Wohngeld!$P109,0) -> 0 | N159: =IF($C159,-Wohngeld!$P109,0) -> 0 | O159: =IF($C159,-Wohngeld!$P109,0) -> 0 | P159: =IF($C159,-Wohngeld!$P109,0) -> 0
C160: =IF(B163="nein",0,ROUND(C157-(C158*B162),2)) -> 0 | E160: Bedarf als Voraussetz. f. KiWG | I160: =IF(I150,I149+I152+I153+I154+I155+I156+I157+I158+I159,0) -> 0 | J160: 0 | K160: 0 | L160: 0 | M160: 0 | N160: 0 | O160: 0 | P160: 0
E161: Bedarf als Voraussetz. f. UVG | I161: =IF(I150,I149+I152+I153+I154+I155+I156+I158+I159-I213,0) -> 0 | J161: 0 | K161: 0 | L161: 0 | M161: 0 | N161: 0 | O161: 0 | P161: 0
A162: Personen mit alternativer MOG | B162: =F148 -> 1 | E162: ="Z 68: "&E161 -> Z 68: Bedarf als Voraussetz. f. UVG | I162: =(ABS(I57)+ABS(I58)+ABS(I60)+ABS(I61)+ABS(I68)+Wohngeld!$P109+ABS(I73)+ABS(I83)+I184-I52)*-1 -> 0 | J162: =(ABS(J57)+ABS(J58)+ABS(J60)+ABS(J61)+ABS(J68)+Wohngeld!$P109+ABS(J73)+ABS(J83)+J184-J52)*-1 -> 0 | K162: =(ABS(K57)+ABS(K58)+ABS(K60)+ABS(K61)+ABS(K68)+Wohngeld!$P109+ABS(K73)+ABS(K83)+K184-K52)*-1 -> 0 | L162: =(ABS(L57)+ABS(L58)+ABS(L60)+ABS(L61)+ABS(L68)+Wohngeld!$P109+ABS(L73)+ABS(L83)+L184-L52)*-1 -> 0 | M162: =(ABS(M57)+ABS(M58)+ABS(M60)+ABS(M61)+ABS(M68)+Wohngeld!$P109+ABS(M73)+ABS(M83)+M184-M52)*-1 -> 0 | N162: =(ABS(N57)+ABS(N58)+ABS(N60)+ABS(N61)+ABS(N68)+Wohngeld!$P109+ABS(N73)+ABS(N83)+N184-N52)*-1 -> 0 | O162: =(ABS(O57)+ABS(O58)+ABS(O60)+ABS(O61)+ABS(O68)+Wohngeld!$P109+ABS(O73)+ABS(O83)+O184-O52)*-1 -> 0 | P162: =(ABS(P57)+ABS(P58)+ABS(P60)+ABS(P61)+ABS(P68)+Wohngeld!$P109+ABS(P73)+ABS(P83)+P184-P52)*-1 -> 0
A163: ="alt. MOG"&IF(B163="nein"," nicht","")&" runden" -> alt. MOG nicht runden | B163: nein
A164: =W48 -> Personen ohne Mitbewohner, ohne Zählpersonen | B164: =V48 -> 1 | E164: Bedarf KiWoG gedeckt ? | I164: =IF(AND(I27>0,I160<=0),TRUE,FALSE) -> FALSE | J164: FALSE | K164: FALSE | L164: FALSE | M164: FALSE | N164: FALSE | O164: FALSE | P164: FALSE
A165: =A162&" (2)" -> Personen mit alternativer MOG (2) | B165: =IF(T45,V48-B141,0) -> 0
A167: =B167*V48 -> 0 | B167: =ROUND((KdU!I23+IF(KdU!AO53="ex",KdU!I24,0))/V48,2) -> 0 | C167: =KdU!I23+KdU!I24 -> 0 | E167: =E161 -> Bedarf als Voraussetz. f. UVG | I167: =IF(I150,I146+I152+I153+I154+I155+I156+I158-I182+I159,0) -> 0 | J167: 0 | K167: 0 | L167: 0 | M167: 0 | N167: 0 | O167: 0 | P167: 0
A168: =B168*V48 -> 0 | B168: =ROUND((KdU!I72+KdU!I75)/V48,2) -> 0 | C168: =KdU!I72+KdU!I74+KdU!I75 -> 0 | E168: =ROUND((KdU!I72+KdU!I74+KdU!I75)/V48,2) -> 0 | F168: SAV B165 | I168: =IF(AND(I27>0,I167<=0),TRUE,FALSE) -> FALSE | J168: FALSE | K168: FALSE | L168: FALSE | M168: FALSE | N168: FALSE | O168: FALSE | P168: FALSE
A169: =SUM(A167:A168) -> 0 | B169: =SUM(B167:B168) -> 0 | C169: =SUM(C167:C168) -> 0
A170: tatsächl Miete incl. Heizung
A171: UVG-Standardberechnung | G171: ungedeckter SGBII-Bedarf ohne UVG | I171: =IF(I173,I180,0) -> 0 | J171: =IF(J173,J180,0) -> 0 | K171: 0 | L171: 0 | M171: 0 | N171: 0 | O171: 0 | P171: 0
G172: SGBII-Bedarf + UVG | I172: =I171-I178 -> 0 | J172: =J171-J178 -> 0 | K172: 0 | L172: 0 | M172: 0 | N172: 0 | O172: 0 | P172: 0
A173: Spur zu anderer Tabelle: Zelle Anklicken, "Spur zum Nachfolger" und dann kommt der Trick: Man muss auf den Kopf vom Pfeil - ja, das kleine schwarze Dreieck - doppelklicken. | G173: existiert, RSTab, allein | I173: =IF(I27>0,IF(RSTab>10,IF(OR(AND($D62="ja",$H27>0),$H27=0),TRUE,FALSE),FALSE),FALSE) -> FALSE | J173: FALSE | K173: FALSE | L173: FALSE | M173: FALSE | N173: FALSE | O173: FALSE | P173: FALSE
G174: >11 + kein ALG2 | I174: =AND(I27>11,I211<=0) -> FALSE | J174: =AND(J27>11,J211<=0) -> FALSE | K174: =AND(K27>11,K211<=0) -> FALSE | L174: FALSE | M174: FALSE | N174: FALSE | O174: FALSE | P174: FALSE
G175: >11 + Eink >=600 | I175: =AND($V77>$V78,I27>11) -> FALSE | J175: FALSE | K175: FALSE | L175: FALSE | M175: FALSE | N175: FALSE | O175: FALSE | P175: FALSE
G176: =Setup!K75 -> UVG immer berechnen | H176: =Setup!N75 -> 1 | I176: =IF(AND(COUNTA(I63)>0,I63>=0),I63,IF($H176=1,I177,IF(OR(AND($H176=2,$B27>12),AND($B27<12.5,$D62="ja")),I177,IF(AND($H176=3,$D62="ja"),I177,0)))) -> 0 | J176: =IF(AND(COUNTA(J63)>0,J63>=0),J63,IF($H176=1,J177,IF(OR(AND($H176=2,$B27>12),AND($B27<12.5,$D62="ja")),J177,IF(AND($H176=3,$D62="ja"),J177,0)))) -> 0 | K176: 0 | L176: 0 | M176: 0 | N176: 0 | O176: 0 | P176: 0
C177: =IF(H176=4,0,SUM(I177:P177)) -> 0 | F177: b | G177: UVG Anspruch | I177: =IF(I173,IF(I63>0,I63,IF($D62="nein",0,IF(OR(I174,I175),IF(I27<18,UVG_18,0),IF(I27<6,UVG_06,IF(I27<12,UVG_12,0))))),0) -> 0 | J177: =IF(J173,IF(J63>0,J63,IF($D62="nein",0,IF(OR(J174,J175),IF(J27<18,UVG_18,0),IF(J27<6,UVG_06,IF(J27<12,UVG_12,0))))),0) -> 0 | K177: =IF(K173,IF(K63>0,K63,IF($D62="nein",0,IF(OR(K174,K175),IF(K27<18,UVG_18,0),IF(K27<6,UVG_06,IF(K27<12,UVG_12,0))))),0) -> 0 | L177: =IF(L173,IF(L63<>"",L63,IF($D62="nein",0,IF(OR(L174,L175),IF(L27<18,UVG_18,0),IF(L27<6,UVG_06,IF(L27<12,UVG_12,0))))),0) -> 0 | M177: =IF(M173,IF(M63<>"",M63,IF($D62="nein",0,IF(OR(M174,M175),IF(M27<18,UVG_18,0),IF(M27<6,UVG_06,IF(M27<12,UVG_12,0))))),0) -> 0 | N177: =IF(N173,IF(N63<>"",N63,IF($D62="nein",0,IF(OR(N174,N175),IF(N27<18,UVG_18,0),IF(N27<6,UVG_06,IF(N27<12,UVG_12,0))))),0) -> 0 | O177: =IF(O173,IF(O63<>"",O63,IF($D62="nein",0,IF(OR(O174,O175),IF(O27<18,UVG_18,0),IF(O27<6,UVG_06,IF(O27<12,UVG_12,0))))),0) -> 0 | P177: =IF(P173,IF(P63<>"",P63,IF($D62="nein",0,IF(OR(P174,P175),IF(P27<18,UVG_18,0),IF(P27<6,UVG_06,IF(P27<12,UVG_12,0))))),0) -> 0
F178: c | G178: UVG n. Tabelle | I178: =IF(I27>0,IF(OR(AND($D62="ja",$H27>0),$H27=0),IF($D62="nein",0,IF(OR(AND($V77>$V78,I27>11),AND(I27>11,I61<=0)),IF(I27<18,UVG_18,0),IF(I27<6,UVG_06,IF(I27<12,UVG_12,0)))),0),0) -> 0 | J178: =IF(J27>0,IF(OR(AND($D62="ja",$H27>0),$H27=0),IF(J63>0,J63,IF($D62="nein",0,IF(OR(AND($V77>$V78,J27>11),AND(J27>11,J61<=0)),IF(J27<18,UVG_18,0),IF(J27<6,UVG_06,IF(J27<12,UVG_12,0))))),0),0) -> 0 | K178: =IF(K27>0,IF(OR(AND($D62="ja",$H27>0),$H27=0),IF(K63<>"",K63,IF($D62="nein",0,IF(OR(AND($V77>$V78,K27>11),AND(K27>11,K61<=0)),IF(K27<18,UVG_18,0),IF(K27<6,UVG_06,IF(K27<12,UVG_12,0))))),0),0) -> 0 | L178: 0 | M178: 0 | N178: 0 | O178: 0 | P178: 0
I179: =-Wohngeld!$P109 -> 0 | J179: =-Wohngeld!$P109 -> 0 | K179: =-Wohngeld!$P109 -> 0 | L179: =-Wohngeld!$P109 -> 0 | M179: =-Wohngeld!$P109 -> 0 | N179: =-Wohngeld!$P109 -> 0 | O179: =-Wohngeld!$P109 -> 0 | P179: =-Wohngeld!$P109 -> 0
A180: Gesamtbedarf - Kindergeld - Rente - KG - anz. ALG (- Wohngeld!V75) - anz. ErwerbsE. | G180: =ROUND(G29-G57-ABS(G60)-ABS(G61)-ABS(G68)+G83,2) -> 563 | H180: =ROUND(H52-H57-ABS(H60)-ABS(H61)-ABS(H68)-ABS(H71)-ABS(H73)+H79+H81+H83,2) -> 0 | I180: =ROUND(I52-I57-ABS(I60)-ABS(I61)-ABS(I68)-ABS(I71)-ABS(I73)+I79+I81+I83,2) -> 0 | J180: =ROUND(J52-J57-ABS(J60)-ABS(J61)-ABS(J68)-ABS(J71)-ABS(J73)+J79+J81+J83,2) -> 0 | K180: =ROUND(K52-K57-ABS(K60)-ABS(K61)-ABS(K68)-ABS(K69)-ABS(K71)-ABS(K73)+K79+K81+K83+K84,2) -> 0 | L180: 0 | M180: 0 | N180: 0 | O180: 0 | P180: 0
A182: 1. alternative UVG-Berechnung | F182: a | I182: =IF(AND(COUNTA(I63)>0,I63>0),I63,IF($H176=1,I183,IF(OR(AND($H176=2,$B27>12),AND($B27<12.5,$D62="ja")),I183,IF(AND($H176=3,$D62="ja"),I183,0)))) -> 0 | J182: =IF(AND(COUNTA(J63)>0,J63>0),J63,IF($H176=1,J183,IF(OR(AND($H176=2,$B27>12),AND($B27<12.5,$D62="ja")),J183,IF(AND($H176=3,$D62="ja"),J183,0)))) -> 0 | K182: 0 | L182: 0 | M182: 0 | N182: 0 | O182: 0 | P182: 0
A183: zur Vermeidung v. Zirkelschlüssen | F183: b | I183: =IF(I173,IF(I63>0,I63,IF($D62="nein",0,I184)),0) -> 0 | J183: =IF(J173,IF(J63>0,J63,IF($D62="nein",0,J184)),0) -> 0 | K183: =IF(K173,IF(K63>0,K63,IF($D62="nein",0,K184)),0) -> 0 | L183: 0 | M183: 0 | N183: 0 | O183: 0 | P183: 0
F184: c | I184: =IF(I27>0,IF(I63>0,I63,IF(OR(AND($D62="ja",$H27>0),$H27=0),IF($D62="nein",0,IF(OR(AND($V77>$V78,I27>11),AND(I27>11,I61<=0)),IF(I27<18,UVG_18,0),IF(I27<6,UVG_06,IF(I27<12,UVG_12,0)))),0)),0) -> 0 | J184: =IF(J27>0,IF(J63>0,J63,IF(OR(AND($D62="ja",$H27>0),$H27=0),IF($D62="nein",0,IF(OR(AND($V77>$V78,J27>11),AND(J27>11,J61<=0)),IF(J27<18,UVG_18,0),IF(J27<6,UVG_06,IF(J27<12,UVG_12,0)))),0)),0) -> 0 | K184: 0 | L184: 0 | M184: 0 | N184: 0 | O184: 0 | P184: 0
A186: 2. alternative UVG-Berechnung | B186: Bedarf als Voraussetz. f. UVG | F186: Regelleistung, Mehrbedarfe | I186: =I152+I153+I154 -> 0 | J186: 0 | K186: 0 | L186: 0 | M186: 0 | N186: 0 | O186: 0 | P186: 0
F187: - Einkommen | I187: =-I57-I60-I61+I68+I158 -> 0 | J187: 0 | K187: 0 | L187: 0 | M187: 0 | N187: 0 | O187: 0 | P187: 0
F188: a) tatsächliche Miete | I188: =I145 -> 0 | J188: 0 | K188: 0 | L188: 0 | M188: 0 | N188: 0 | O188: 0 | P188: 0
F189: a) Bedarf ohne UVG/KiWo | I189: =SUM(I186:I188) -> 0 | J189: 0 | K189: 0 | L189: 0 | M189: 0 | N189: 0 | O189: 0 | P189: 0
F190: mögl. UVG | I190: =(IF(AND(COUNTA(I63)>0,I63=0),0,-I182)) -> 0 | J190: =(IF(AND(COUNTA(J63)>0,J63=0),0,-J182)) -> 0 | K190: 0 | L190: 0 | M190: 0 | N190: 0 | O190: 0 | P190: 0
F191: =E159 -> -Kinderwohngeld (alternativB.) | I191: =I159 -> 0 | J191: 0 | K191: 0 | L191: 0 | M191: 0 | N191: 0 | O191: 0 | P191: 0
F192: ="Bedarf tats.M."&IF(I192<=0,""," nicht")&" gedeckt" -> Bedarf tats.M. gedeckt | I192: =I189+I190+I191 -> 0 | J192: 0 | K192: 0 | L192: 0 | M192: 0 | N192: 0 | O192: 0 | P192: 0
F193: tatsächliche Miete | I193: =IF(I192<=0,TRUE,FALSE) -> TRUE | J193: TRUE | K193: TRUE | L193: TRUE | M193: TRUE | N193: TRUE | O193: TRUE | P193: TRUE
F195: b) MoG-Mietanteil | I195: =I146 -> 0 | J195: 0 | K195: 0 | L195: 0 | M195: 0 | N195: 0 | O195: 0 | P195: 0
F196: b) Bedarf ohne UVG/KiWo | I196: =SUM(I186:I187)+I195 -> 0 | J196: 0 | K196: 0 | L196: 0 | M196: 0 | N196: 0 | O196: 0 | P196: 0
F197: mögl. UVG | I197: =I190 -> 0 | J197: 0 | K197: 0 | L197: 0 | M197: 0 | N197: 0 | O197: 0 | P197: 0
F198: =E159 -> -Kinderwohngeld (alternativB.) | I198: =I159 -> 0 | J198: 0 | K198: 0 | L198: 0 | M198: 0 | N198: 0 | O198: 0 | P198: 0
F199: ="Bed. MOG-M."&IF(I199<=0,""," nicht")&" gedeckt" -> Bed. MOG-M. gedeckt | I199: =I196+I197+I198 -> 0 | J199: 0 | K199: 0 | L199: 0 | M199: 0 | N199: 0 | O199: 0 | P199: 0
F200: MOG-Miete | I200: =IF(I199<=0,TRUE,FALSE) -> TRUE | J200: TRUE | K200: TRUE | L200: TRUE | M200: TRUE | N200: TRUE | O200: TRUE | P200: TRUE
A201: Bestimmung der Miete: MOG oder tats. Miete
A202: ="HV "&IF(C202,"","nicht ")&"vom Wohngeld ausgeschlossen" -> HV nicht vom Wohngeld ausgeschlossen | C202: =$G25="x" -> FALSE | F202: =IF(I193,F193,F200) -> tatsächliche Miete | I202: =IF(Debug!$C51,IF($C202,IF(I168,IF(I193,I188,I195),I195),I195),I195) -> 0 | J202: =IF(Debug!$C51,IF($C202,IF(J168,IF(J193,J188,J195),J195),J195),J195) -> 0 | K202: =IF(Debug!$C51,IF($C202,IF(K168,IF(K193,K188,K195),K195),K195),K195) -> 0 | L202: =IF(Debug!$C51,IF($C202,IF(L168,IF(L193,L188,L195),L195),L195),L195) -> 0 | M202: =IF(Debug!$C51,IF($C202,IF(M168,IF(M193,M188,M195),M195),M195),M195) -> 0 | N202: =IF(Debug!$C51,IF($C202,IF(N168,IF(N193,N188,N195),N195),N195),N195) -> 0 | O202: =IF(Debug!$C51,IF($C202,IF(O168,IF(O193,O188,O195),O195),O195),O195) -> 0 | P202: =IF(Debug!$C51,IF($C202,IF(P168,IF(P193,P188,P195),P195),P195),P195) -> 0
F203: Bedarf tats. Miete | I203: =I145+I152+I153+I154+I155+I156+I158+I159+(IF(I63=0,0,-I213)) -> 0
F204: Bedarf MOG-Miete | I204: =I146+I152+I153+I154+I155+I156+I158+I159+(IF(I63=0,0,-I213)) -> 0
A205: keine Anrechnung von Kindergeld anzeigen | C205: =OR(I205,J205,K205,L205,M205,N205,O205,P205) -> FALSE | I205: =IF(I27>0,IF($T45,IF(AND(I193=FALSE,I200=TRUE),TRUE,FALSE),FALSE),FALSE) -> FALSE | J205: =IF(J27>0,IF($T45,IF(AND(J193=FALSE,J200=TRUE),TRUE,FALSE),FALSE),FALSE) -> FALSE | K205: =IF(K27>0,IF($T45,IF(AND(K193=FALSE,K200=TRUE),TRUE,FALSE),FALSE),FALSE) -> FALSE | L205: FALSE | M205: FALSE | N205: FALSE | O205: FALSE | P205: FALSE
A206: KdU-Ergebnis für Testaufgaben | C206: =SUM(G206:P206) -> 0 | G206: =IF(G86<=0,0,ROUND(G49,2)) -> 0 | H206: 0 | I206: 0 | J206: 0 | K206: 0 | L206: 0 | M206: 0 | N206: 0 | O206: 0 | P206: 0
A207: berücksichtigte Miete | C207: =SUM(I207:P207)+G206+H206 -> 0 | I207: =IF(I27>0,IF(I205,I203+I86,I202),0) -> 0 | J207: =IF(J27>0,IF(J205,J188,J202),0) -> 0 | K207: =IF(K27>0,IF(K205,K188,K202),0) -> 0 | L207: 0 | M207: 0 | N207: 0 | O207: 0 | P207: 0
F209: ="Bedarf tats.M."&IF(I209<=0,""," nicht")&" gedeckt" -> Bedarf tats.M. gedeckt | I209: =IF(I150,I145+I152+I153+I154+I155+I156+I158+I159-I215,0) -> 0 | J209: 0 | K209: 0 | L209: 0 | M209: 0 | N209: 0 | O209: 0 | P209: 0
F210: ="Bed. MOG-M."&IF(I210<=0,""," nicht")&" gedeckt" -> Bed. MOG-M. gedeckt | I210: =IF(I150,I146+I152+I153+I154+I155+I156+I158+I159-I215,0) -> 0 | J210: 0 | K210: 0 | L210: 0 | M210: 0 | N210: 0 | O210: 0 | P210: 0
... 51 more rows

Sheet KdU
B1: =Debug!A5 -> 2026-01-26 | C1: Berechnung der Unterkunftskosten | E1: =LEFT('ALG2'!A27,42) -> Leistungstabelle seit 01.01.2026 | I1: =Uebersicht!AN1 ->  | N1: =IF(Debug!A24,ROUND(AK116,2)&" - "&ROUND(AC134,2),"") ->  | O1: =IF(Debug!A24,TEXT(AF40,"0")&"-"&TEXT(AF37,"0")&": "&AF104&AF109&" "&IF(N28<>"",0,AL96),"") ->  | P1: =IF(Debug!A24,"Gmiete","") ->  | Q1: =IF(Debug!A24,"ang. M.","") ->  | R1: =IF(Debug!A24,"Ergebnis","") ->  | S1: =IF(Debug!A24,"","Wertetabelle:") -> Wertetabelle: | T1: ='ALG2'!B27 -> 21 | W1: =Debug!F9 -> MO | X1: =Debug!A8 -> 1 | Y1: =Debug!A15 -> 1 | Z1: Zelle Anklicken, 'Spur zum Nachfolger' und dann kommt der Trick: Man muss auf den Kopf vom Pfeil (ja, das kleine schwarze Dreieck) Doppelklicken | AG1: =IF(ISERROR(FIND("!",N19)),FALSE,TRUE) -> FALSE | AH1: =IF(AG1,"","kein ")&"Fehler in Feld M19"&IF(AG1," !","") & " (MOG_erh)" -> kein Fehler in Feld M19 (MOG_erh) | AJ1: =Debug!M29 -> 1 | AK1: =Debug!M30 -> 0 | AL1: =K15+K17+K21+K22 -> 0 | AO1: =IF(AND(Orte!AS28<>0,NOT(AB31)),1,0) -> 1 | AQ1: Version: 25.02.2024 | AR1: =IF(AND(OR(M58="x",M58="ja"),AO62=2),1,IF(AS5>0,-1,0)) -> 0 | AS1: (pauschaler) Mehrbedarf für Warmwasser: | AW1: =IF(AR1>0,"ja","nein") -> nein | BK1: Liste der Heizkostenspiegel
B2: =IF(AO33>10,"Unterkunftskosten können nur für bis zu 10 Personen berechnet werden !" & IF(AH4+AI7>0," ("&TEXT(AO33,"0")&" insg., einschl. "&TEXT(AI11,"0")&" Zählp"," ("&TEXT(AO33,"0")&" P")&"ersonen)","") ->  | H2: =IF(AO33>10,"",IF(AND('ALG2'!N1="X",Uebersicht!A74<>0),IF(Uebersicht!B3<>"",Uebersicht!B3,"")&IF(Uebersicht!A74 >0," " & Uebersicht!A74,""),"")) ->  | I2: =IF(Debug!A24,"Egr: " & AF40 & " BkR/AD15: " & AG15&" MO: "&V5 &" "&AJ16&", Grundbetr. HK: "&IF(AM81=5,"ja = "," ")&AM81,"") ->  | O2: =IF(Debug!A24,I23+I54+I58+IF(AC156,AO74,0),"") ->  | P2: =IF(Debug!A24,H28+H29+H33+H35+H36+H37+H38+H40+H41+H72,0) -> 0 | Q2: =IF(Debug!A24,I23+I72+I74+I75,"") ->  | R2: =IF(Debug!A24,I23+I72,"") ->  | S2: =IF(Debug!A24,Q2-I76,"") ->  | W2: =IF(W1="MO","!",".") -> ! | X2: NoCalc | Y2: ANoC0 | AL2: =IF(ISERROR(VALUE(H16)),0,VALUE(H16)) -> 0 | AM2: Schönheitrep | AO2: =OR(AND($AS12<>2,AR1<0),$AO8=TRUE,BE8<AS5) -> TRUE | AP2: Alt: AO12 | AQ2: =IF(Debug!A24,"fehlend: "&AO37,"") ->  | AR2: BG-Mitglied | AT2: ='ALG2'!G27 -> 29.1 | AU2: ='ALG2'!H27 -> 0 | AV2: ='ALG2'!I27 -> 0 | AW2: ='ALG2'!J27 -> 0 | AX2: ='ALG2'!K27 -> 0 | AY2: ='ALG2'!L27 -> 0 | AZ2: ='ALG2'!M27 -> 0 | BA2: ='ALG2'!N27 -> 0 | BB2: ='ALG2'!O27 -> 0 | BC2: ='ALG2'!P27 -> 0
B3: =IF(B11="","Mitglieder der Bedarfsgemeinschaft","Personen in der Haushaltsgemeinschaft") -> Mitglieder der Bedarfsgemeinschaft | D3: =IF('ALG2'!K15<>"",'ALG2'!K15&" ","")&IF('ALG2'!M15<>"",'ALG2'!M15&" ","")&IF(OR('ALG2'!G15>0,'ALG2'!I15<>""),IF(RIGHT('ALG2'!A15,2)=" !",'ALG2'!A15,IF('ALG2'!G15>0,TEXT('ALG2'!G15,"T.M.JJJJ"),"")&IF('ALG2'!I15>0," bis "&TEXT('ALG2'!I15,"T.M.JJJJ"),"")&IF('ALG2'!A22>0," ("&'ALG2'!D1&TEXT('ALG2'!A22,"T.M.JJJJ")&")","")),"") ->  | N3: =IF(OR(F20="x",H20<>0),"Kosten für einen vom Vermieter bereitgestellten Kabelfernsehanschluß werden von den Jobcentern übernommen, wenn es keine zumutbare Möglichkeit gibt, diese Kosten zu vermeiden."&" Dies kann durch eine Bescheinigung des Vermieters nachgewiesen werden."&" Seit 1.1.2009 ist auch ohne Bescheinigung des Vermieters die Anerkennung der Kabelgebühren möglich.","") -> Kosten für einen vom Vermieter bereitgestellten Kabelfernsehanschluß werden von den Jobcentern übernommen, wenn es keine zumutbare Möglichkeit gibt, diese Kosten zu vermeiden. Dies kann durch eine Bescheinigung des Vermieters nachgewiesen werden. Seit 1.1.2009 ist auch ohne Bescheinigung des Vermieters die Anerkennung der Kabelgebühren möglich. | U3: =IF(I23>0,IF(AG$11>0,IF(H43>0,IF(I23-H43<0,I23/AG13,IF(AND(I23-H43>I23/AG$13,I43=0),I23/AG$13*AI14,ROUND(I23/AG$13*AI$14,2))),ROUND(I23/AG$13*AI$14,2)),0),0) -> 0 | V3: alt: | W3: =IF(I23>0,IF(AG$11>0,IF(H43>0,IF(I23-H43<0,I23/AG13,IF(AND(I23-H43>I23/AG$13,I43=0),I23/AG$13*AI14,I23-H43)),ROUND(I23/AG$13*AI$14,2)),0),0) -> 0 | AG3: Pers. | AH3: Schwangerschaften | AI3: ='ALG2'!F12 -> 0 | AJ3: Kinder <18 | AK3: =IF(Orte!BN27<>"",TRUE,FALSE) -> FALSE | AN3: =IF('ALG2'!Y28>0,'ALG2'!Y28,0) -> 0 | AO3: =SUM(I4:I11)-K11 -> 1 | AP3: Anzahl Personen: in WG / in BG | AR3: Regelsatz-Stufe | AT3: =IF(AND(AU2>0,AU2<18),1,IF(AU2=0,1,2)) -> 1 | AU3: =IF(AU2>0,IF(AU2>17,AT3,4),0) -> 0 | AV3: =IF(AV2>0,IF(AND(AV2<25,AV2>17),3,IF(AND(AV2>13,AV2<18),4,IF(AND(AV2<14,AV2>5),5,IF(AND(AV2<6,AV2>0),6,1)))),0) -> 0 | AW3: =IF(AW2>0,IF(AND(AW2<25,AW2>17),3,IF(AND(AW2>13,AW2<18),4,IF(AND(AW2<14,AW2>5),5,IF(AND(AW2<6,AW2>0),6,1)))),0) -> 0 | AX3: 0 | AY3: 0 | AZ3: 0 | BA3: 0 | BB3: 0 | BC3: 0 | BD3: =IF(BD5*'ALG2'!B2<>BD4,1,0) -> 0 | BE3: =IF(BD3>0,"WW korrigiert","") ->  | BK3: =HKS!C9 -> 2005 | BL3: =HKS!C3 -> allgemein
A4: 1.0 | B4: =IF(AG4>0,"Alleinstehender","") -> Alleinstehender | I4: =IF(AND(D5="",AG4>0),AG4,0) -> 1 | U4: Prognose ab 7. Monat | V4: =IF(SUM(V6:V23)-V5>0,SUM(V6:V23)-V5,V5) -> 33 | X4: =CHOOSE($V4,X23,X22,X21,X20,X19,X18,X17,X16,X15,X14,X13,X12,X11,X10,X9,X8,X7,X6) ->  | AG4: =IF('ALG2'!H27<>"",0,1) -> 1 | AH4: =IF(Orte!BM27=1,IF(AND(K6<0,'ALG2'!W39+K6<=0),0,IF(K6<0,'ALG2'!W39+K6,'ALG2'!W39)),0) -> 0 | AI4: =IF(AND(AI3>0,AG5=0),AJ1,AK1) -> 0 | AJ4: Alleinerz. | AO4: =IF(F15="FEHLER ! ",TRUE,FALSE) -> FALSE | AP4: =IF(NOT(AO4)," kein "," ==> ")&"Fehler in F13: DM + Euro eingetragen" -> kein Fehler in F13: DM + Euro eingetragen | AR4: Mehrbedarf | AS4: =SUM(AT4:BC4) -> 0 | AT4: =IF(AND($AR1>0,AT3>0),CHOOSE(AT3,Werte10!$D59,Werte10!$D60,Werte10!$D62,Werte10!$D63,Werte10!$D65,Werte10!$D66),0) -> 0 | AU4: =IF(AND($AR1>0,AU3>0),CHOOSE(AU3,Werte10!$D59,Werte10!$D60,Werte10!$D62,Werte10!$D63,Werte10!$D65,Werte10!$D66),0) -> 0 | AV4: =IF(AND($AR1>0,AV3>0),CHOOSE(AV3,Werte10!$D59,Werte10!$D60,Werte10!$D62,Werte10!$D63,Werte10!$D65,Werte10!$D66),0) -> 0 | AW4: =IF(AND($AR1>0,AW3>0),CHOOSE(AW3,Werte10!$D59,Werte10!$D60,Werte10!$D62,Werte10!$D63,Werte10!$D65,Werte10!$D66),0) -> 0 | AX4: =IF(AND($AR1>0,AX3>0),CHOOSE(AX3,Werte10!$D59,Werte10!$D60,Werte10!$D62,Werte10!$D63,Werte10!$D65,Werte10!$D66),0) -> 0 | AY4: =IF(AND($AR1>0,AY3>0),CHOOSE(AY3,Werte10!$D59,Werte10!$D60,Werte10!$D62,Werte10!$D63,Werte10!$D65,Werte10!$D66),0) -> 0 | AZ4: =IF(AND($AR1>0,AZ3>0),CHOOSE(AZ3,Werte10!$D59,Werte10!$D60,Werte10!$D62,Werte10!$D63,Werte10!$D65,Werte10!$D66),0) -> 0 | BA4: =IF(AND($AR1>0,BA3>0),CHOOSE(BA3,Werte10!$D59,Werte10!$D60,Werte10!$D62,Werte10!$D63,Werte10!$D65,Werte10!$D66),0) -> 0 | BB4: =IF(AND($AR1>0,BB3>0),CHOOSE(BB3,Werte10!$D59,Werte10!$D60,Werte10!$D62,Werte10!$D63,Werte10!$D65,Werte10!$D66),0) -> 0 | BC4: =IF(AND($AR1>0,BC3>0),CHOOSE(BC3,Werte10!$D59,Werte10!$D60,Werte10!$D62,Werte10!$D63,Werte10!$D65,Werte10!$D66),0) -> 0 | BD4: =AN63 -> 0 | BE4: WW insg. | BK4: =HKS!C10 -> 2006 | BL4: =HKS!C33 -> bis 1977
B5: =IF(AG5>0,"Eheleute / Partner","") ->  | D5: =IF(OR(AG4>1,AG5=1,AG5>2,AND(AG4>0,AG5>=2)),"ungültig!","") ->  | I5: =IF(AND(D5="",AG5>0),AG5,0) -> 0 | U5: Ergebnis 1-6. Monat | V5: =MAX(V6:V23) -> 18 | X5: =CHOOSE($V5,X23,X22,X21,X20,X19,X18,X17,X16,X15,X14,X13,X12,X11,X10,X9,X8,X7,X6) -> 0 | Y5: 0 | Z5: 0 | AA5: 0 | AB5: 0 | AC5: Betriebskosten | AD5: In den ersten 6 Monaten des Leistungsbezugs werden Betriebskosten ungekürzt übernommen (Fall 18) | AG5: =IF(AG4=0,2,0) -> 0 | AJ5: Zuordnung Kinder | AK5: =IF(AK$3,"alleinerz-a","schwerb-a") -> schwerb-a | AL5: qm Richtwert | AM5: =AG41 -> ja | AN5: ja | AO5: =IF(F17="FEHLER ! ",TRUE,FALSE) -> FALSE | AP5: =IF(NOT(AO5)," kein "," ==> ")&"Fehler in F15: DM + Euro eoingetragen" -> kein Fehler in F15: DM + Euro eoingetragen | AR5: =IF(AN63>0,"","keine ")&"abgerechn. WW-Kosten" -> keine abgerechn. WW-Kosten | AS5: =SUM(AT5:BC5) -> 0 | AT5: =IF(AT2>0,IF(BD5*'ALG2'!B2<>BD4,BD5-(BD5*'ALG2'!B2-BD4),BD5),0) -> 0 | AU5: =IF(AU2>0,$BD5,0) -> 0 | AV5: 0 | AW5: 0 | AX5: 0 | AY5: 0 | AZ5: 0 | BA5: 0 | BB5: 0 | BC5: 0 | BD5: =ROUND(BD4/'ALG2'!B2,2) -> 0 | BE5: pro Person | BK5: =HKS!C11 -> 2007 | BL5: =HKS!C63 -> 1978-1983
B6: =IF(I6>0,AH6&IF(AND(AG6>0,K6>0)," + ",IF(AG6=0,": ",""))&IF(K6>0,TEXT(K6,"0")& " Kind"&IF(K6>1,"er, die",", das")&" nicht i. Haushalt wohn"&IF(K6>1,"en","t"),""),"") ->  | I6: =AG6+AI6 -> 0 | U6: 18: 1-6.Monat | V6: =IF(W6,18,0) -> 18 | W6: =Y31 -> TRUE | X6: =X26 -> 0 | Y6: =IF(H18>0,AD33-H18,AD33) -> 0 | Z6: =H18 -> 0 | AB6: =X27 -> 0 | AC6: ="Betriebskosten" & IF(Z5>0," und Kosten für Wasser","") -> Betriebskosten | AD6: ="In den ersten 6 Monaten des Leistungsbezugs werden Betriebskosten ungekürzt übernommen"&IF(V6>0," (Fall "&V6&")","") -> In den ersten 6 Monaten des Leistungsbezugs werden Betriebskosten ungekürzt übernommen (Fall 18) | AG6: =IF(AJ6=1,'ALG2'!B12,'ALG2'!B9)+AH4 -> 0 | AH6: =IF(OR(AG6>0,K6>0),IF('ALG2'!B27<4,"Kinder 0 - 13 Jahre","Kinder 0 - 5 Jahre")&IF(AG6-AH4>0,": "&TEXT(AG6-AH4,"0"),""),"") ->  | AI6: =IF(AND(K6<11,K6>0),K6,0) -> 0 | AJ6: =IF('ALG2'!B27<4,0,1) -> 1 | AK6: =IF(AK$3,"alleinerz-b","schwerb-b") -> schwerb-b | AL6: qm absolut | AM6: =AG42 -> nein | AN6: nein | AO6: =IF(F21="FEHLER ! ",TRUE,FALSE) -> FALSE | AP6: =IF(NOT(AO6)," kein "," ==> ")&"Fehler in F19: DM + Euro eingetragen" -> kein Fehler in F19: DM + Euro eingetragen | AR6: Mehrbedarf für Warmwasser | AT6: =IF($AS5>0,AT5,AT4) -> 0 | AU6: 0 | AV6: 0 | AW6: 0 | AX6: 0 | AY6: 0 | AZ6: 0 | BA6: 0 | BB6: 0 | BC6: 0 | BK6: =HKS!C12 -> 2008
B7: =IF(I7>0,AH7&IF(AND(AG7>0,K7>0)," + ",IF(AG7=0,": ",""))&IF(K7>0,TEXT(K7,"0")& " Kind"&IF(K7>1,"er, die",", das")&" nicht im Haushalt wohn"&IF(K7>1,"en","t"),""),"") ->  | I7: =IF(AG7>0,AG7,0)+K7 -> 0 | N7: =IF(AO1>0,IF(Orte!AS28<>0,Orte!AS28&CHAR(10),"")&IF(Orte!AS29<>0,CHAR(10),"")&IF(AND(H27="ja",Orte!AS29<>0),Orte!AS29&CHAR(10),""),"") -> Aufforderung zur Kostensenkung nur, wenn bei 1 Person in der Bedarfsgemeinschaft der Toleranzbetrag von 40,89 € für MOG und Heizkosten überschritten wird und die tatsächlichen Gesamtaufwendungen für Unterkunft und Heizung (Bruttowarmmiete) höher sind die Vergleichskosten für Unterkunft und Heizung auf dem örtlichen Wohnungsmarkt (Mietobergrenze + abstr. angem. Heizkosten) + Toleranzbetrag. Diese Regelung kann im Einzelfall auch bei Anmietung von Wohnraum gelten, wenn individuelle Zugangshemmnisse vorliegen (z.B: negative Schufa oder keine 'Mietschuldenfreiheitsbescheinigung', Haftentlassene, Suchtabhängige, Flüchtlinge, kinderreiche Familien oder Alleinerziehende) | U7: 17: Minc OK | V7: =IF(W7,17,0) -> 17 | W7: =Y25 -> TRUE | X7: =IF(X26+X28<X25,X26,X24) -> 0 | Y7: =Y$6 -> 0 | Z7: 0 | AA7: =Y7+Z7 -> 0 | AB7: =X$27 -> 0 | AC7: =AC6 -> Betriebskosten | AD7: ="Grundmiete und Betriebskosten sind kleiner als Grenzwert (" & VALUE(X25) & " €)" & IF(V7>0," (Fall "&V7&")","") -> Grundmiete und Betriebskosten sind kleiner als Grenzwert (499 €) (Fall 17) | AG7: =IF(AJ6=1,'ALG2'!B11,0) -> 0 | AH7: =IF(OR(AG7>0,K7>0),IF('ALG2'!B27<4,"","Kinder 6 - 13 Jahre")&IF(AG7>0,": "&TEXT(AG7,"0"),""),"") ->  | AI7: =AI6+SUM(K7:K10) -> 0 | AK7: =IF(AK$3,"alleinerz-c","schwerb-c") -> schwerb-c | AL7: qm relativ | AM7: =AG43 ->  | AO7: =IF(F22="FEHLER ! ",TRUE,FALSE) -> FALSE | AP7: =IF(NOT(AO7)," kein "," ==> ")&"Fehler in F20: DM + Euro eingetragen" -> kein Fehler in F20: DM + Euro eingetragen | BK7: =HKS!C13 -> 2009
B8: =IF(I8>0,AH8&IF(AND(AG8>0,K8>0)," + ",IF(AG8=0,": ",""))&IF(K8>0,TEXT(K8,"0")& " Kind"&IF(K8>1,"er, die",", das")&" nicht im Haushalt wohn"&IF(K8>1,"en","t"),""),"") ->  | I8: =IF(AG8>0,AG8,0)+K8 -> 0 | U8: 16: BK OK | V8: =IF(W8,16,0) -> 16 | W8: =Y28 -> TRUE | X8: =X26 -> 0 | Y8: 0 | Z8: 0 | AA8: =Y8+Z8 -> 0 | AC8: =AC6 -> Betriebskosten | AG8: =IF('ALG2'!B27>4.5,'ALG2'!F10,'ALG2'!F8) -> 0 | AH8: =IF(OR(AG8>0,K8>0),IF('ALG2'!B27>4.5,"Kinder 14 - 17","Kinder 14 - 24 Jahre")&IF(AG8>0,": "&TEXT(AG8,"0"),""),"") ->  | AI8: =IF('ALG2'!G20="x",1,0)+IF('ALG2'!H20="x",1,0)+IF('ALG2'!I20="x",1,0)+IF('ALG2'!J20="x",1,0)+IF('ALG2'!K20="x",1,0)+IF('ALG2'!L20="x",1,0)+IF('ALG2'!M20="x",1,0)+IF('ALG2'!N20="x",1,0)+IF('ALG2'!O20="x",1,0)+IF('ALG2'!P20="x",1,0) -> 0 | AJ8: Student | AK8: =IF(AK$3,"schwerb-a","Einzelfall") -> Einzelfall | AL8: HK abs2 | AM8: =AG44 ->  | AN8: ja | AO8: =IF(OR(M58="Einzelfall",K76="ja"),TRUE,FALSE) -> TRUE | AP8: =IF(NOT(AO8)," kein "," ==> ")&"Einzelfall Warmwasser"& IF(K76="ja",", weil Erstantrag !","") -> ==> Einzelfall Warmwasser, weil Erstantrag ! | AR8: Ergebnis Warmwasser | AT8: =IF($AR1<>0,IF(AND($AS5>0,NOT(RIGHT($BF12,2)="b"),OR(NOT($BF11="G"),$M58="Einzelfall",$K76="ja"),OR($AS12<>2,$AO8=TRUE)),AT5,IF($AS12>0,AT11,AT4)),0) -> 0 | AU8: 0 | AV8: 0 | AW8: 0 | AX8: 0 | AY8: 0 | AZ8: 0 | BA8: 0 | BB8: 0 | BC8: 0 | BE8: =SUM(AT8:BC8) -> 0 | BK8: =HKS!C14 -> 2010
B9: =IF(I9>0,AH9&IF(AND(AG9>0,K9>0)," + ",IF(AG9=0,": ",""))&IF(K9>0,TEXT(K9,"0")& " Kind"&IF(K9>1,"er, die",", das")&" nicht im Haushalt wohn"&IF(K9>1,"en","t"),""),"") ->  | I9: =IF(AG9>0,AG9,0)+K9 -> 0 | U9: 15: W OK, M OK, Minc NOK, BK NOK, qm OK | V9: =IF(W9,15,0) -> 0 | W9: =AND(Y29,Y24,NOT(Y25),NOT(Y28),Y30) -> FALSE | X9: =X$26 -> 0 | Y9: 0 | Z9: 0 | AA9: =IF(Y$6>X$27,Y9+Z9,X$27) -> 0 | AB9: =X$27 -> 0 | AC9: =AC$6 -> Betriebskosten | AD9: =IF(OR(Y$6>X18,Y9+Z9<X$28),AD$12,"Betriebskosten sind angemessen, weil Grundmiete angemessen und die angem. Wohnfläche nicht überschritten wird")&IF(V9>0," (Fall "&V9&IF(Y$6>X$27,IF(Y9+Z9<X$28,"c","a"),IF(Y9+Z9<X$28,"c","b"))&")","") -> Betriebskosten sind angemessen, weil Grundmiete angemessen und die angem. Wohnfläche nicht überschritten wird | AG9: =IF('ALG2'!B27>4.5,'ALG2'!B6,0) -> 0 | AH9: =IF(OR(AG9>0,K9>0),"Kinder 18 - 24 Jahre"&IF(AG9>0,": "&TEXT(AG9,"0"),""),"") ->  | AI9: =IF(AND('ALG2'!G21="x",'ALG2'!G20=""),1,0)+IF(AND('ALG2'!H21="x",'ALG2'!H20=""),1,0)+IF(AND('ALG2'!I21="x",'ALG2'!I20=""),1,0)+IF('ALG2'!J21="x",1,0)+IF('ALG2'!K21="x",1,0)+IF('ALG2'!L21="x",1,0)+IF('ALG2'!M21="x",1,0)+IF('ALG2'!N21="x",1,0)+IF('ALG2'!O21="x",1,0)+IF('ALG2'!P21="x",1,0) -> 0 | AJ9: GruSi | AK9: =IF(AK$3,"schwerb-b","nein") -> nein | AL9: keine | AM9: =AG45 ->  | AN9: x | AO9: =IF(AND('ALG2'!C33<>"",'ALG2'!F12>0,AK3),1,0) -> 0 | AP9: =IF(AO9=1,"","nicht ")&"Alleinerziehend mit mindestens 1 Kind älter 7Jahre" -> nicht Alleinerziehend mit mindestens 1 Kind älter 7Jahre | BK9: =HKS!C15 -> 2011
B10: =IF(I10>0,AH10&IF(AND(AG10>0,K10>0)," + ",IF(AG10=0,": ",""))&IF(K10>0,TEXT(K10,"0")& " Person"&" (nicht i.d. BG)",""),"") ->  | I10: =IF(AG10>0,AG10,0)+K10 -> 0 | U10: 14: W OK, M OK, Minc NOK, BK NOK, qm NOK, Einzelfall | V10: =IF(W10,14,0) -> 0 | W10: =AND(Y29,Y24,NOT(Y25),NOT(Y28),NOT(Y30),Y27) -> FALSE | X10: =X$26 -> 0 | Y10: 0 | Z10: 0 | AA10: =Y10+Z10 -> 0 | AC10: =AC$6 -> Betriebskosten | AD10: ="Betriebskosten nach Einzelfallprüfung akzeptiert."&IF(V10>0," (Fall "&V10&")","") -> Betriebskosten nach Einzelfallprüfung akzeptiert. | AG10: ='ALG2'!F14 -> 0 | AH10: =IF(OR(AG10>0,K10>0),"Kinder ab 25 Jahre u. sonst. Erwachsene im gemeinsamen Haushalt" &IF(AG10>0,": "&TEXT(AG10,"0"),""),"") ->  | AI10: =AI8+AI9 -> 0 | AK10: =IF(AK$3,"schwerb-c","") ->  | AM10: Ww | AO10: =IF(OR(AND(Orte!AR28>0,AO1),AND(AE100<>0,AO1),AND(AG102>0,AO1)),1,0) -> 1 | AP10: ="MOG-Erh."& IF(AO10=1,""," nicht")&" möglich; AB31 prüft ob Bestandschutztabelle gilt" -> MOG-Erh. möglich; AB31 prüft ob Bestandschutztabelle gilt | AR10: =" Mehrbedarf Warmwasser kommunale Regelung:" & IF(AS12>0,""," --") -> Mehrbedarf Warmwasser kommunale Regelung: -- | AU10: =IF(AS12>0,"Mehrbedarf für Warmwasser wird"&IF(AND(BE12="max",OR(AS12=3,AS12=7))," als Gesamtbetrag nach Anzahl der Personen",IF(OR(AS12=4,AS12=5,AS12=6,AS12=8)," nach angemessener Wohnfläche"," pro Person")&IF(AS12=1," nach Regelsatzstufe",""))&IF(LEFT(BF12,1)="G"," als Prüfgrenzwert ","")&" festgesetzt","") ->  | BK10: =HKS!C16 -> 2012
B11: =IF(AG11>0,"Weitere Personen in der Wohngemeinschaft","") ->  | I11: =IF(AG11>0,AG11,0) -> 0 | K11: ='ALG2'!Y28 -> 0 | M11: =IF(K11>0,"in WG","") ->  | U11: 13: W NOK, M OK, Minc NOK, BK NOK, qm NOK, Einzelfall | V11: =IF(W11,13,0) -> 0 | W11: =AND(NOT(Y29),Y24,NOT(Y30),NOT(Y25),NOT(Y28),Y27) -> FALSE | X11: =X$26 -> 0 | Y11: =Y$6 -> 0 | Z11: =Z6 -> 0 | AA11: =Y6+Z6 -> 0 | AC11: =AC$6 -> Betriebskosten | AD11: ="Betriebskosten nach Einzelfallprüfung akzeptiert."&IF(V11>0," (Fall "&V11&")","") -> Betriebskosten nach Einzelfallprüfung akzeptiert. | AG11: ='ALG2'!Y28 -> 0 | AI11: =AH4+AI7 -> 0 | AJ11: Zählpers. | AK11: =IF(AK$3,"Einzelfall","") ->  | AO11: =IF(AO26=-1,TRUE,FALSE) -> FALSE | AP11: =IF(NOT(AO11)," kein "," ==> ")&"Fehler in AL26: " &IF(AO11,"keine ","")& "Wohngeldstufe angegeben" -> kein Fehler in AL26: Wohngeldstufe angegeben | AR11: Mehrbedarfe pro Person | AT11: =IF(AT12>0,IF($BE12="max",$AS13/$AH13,AT12),0) -> 0 | AU11: =IF(AU2>0,IF($BE12="max",$AS13/$AH13,AU12),0) -> 0 | AV11: 0 | AW11: 0 | AX11: 0 | AY11: 0 | AZ11: 0 | BA11: 0 | BB11: 0 | BC11: 0 | BF11: =LEFT(BF12,1) ->  | BK11: =HKS!C17 -> 2013
U12: 12: W OK, M OK, Minc NOK, BK NOK, qm NOK, kein Einzelfall | V12: =IF(W12,12,0) -> 0 | W12: =AND(Y29,Y24,NOT(Y25),NOT(Y28),NOT(Y30),NOT(Y27)) -> FALSE | X12: =X$24 -> 499 | Y12: =V$28 -> 0 | Z12: =Z$6 -> 0 | AA12: =Y12+Z12 -> 0 | AC12: =IF(U$28,"BK [qm überschritten] gekürzt !"&U$25,AC$6) -> Betriebskosten | AD12: ="<== Grenzwert für Einzelfallprüfung von Betriebskosten überschritten ! Einzelfall ?"&IF(V12>0," (Fall "&V12&")","") -> <== Grenzwert für Einzelfallprüfung von Betriebskosten überschritten ! Einzelfall ? | AK12: nein | AL12: Einzelfall | AM12: =IF(AM14="","x","") -> x | AO12: =OR(AND($AS12<>2,AR1<0),BE8<AS5) -> FALSE | AP12: ="Mehrbedarf Warmwasser "&IF(AO12,"irregulär","normal") -> Mehrbedarf Warmwasser normal | AR12: =IF(AS12>0,Orte!V18,"") ->  | AS12: =Orte!BR31 -> 0 | AT12: =IF(AND(AT2=0,$BE12="max"),0,IF(OR(AND($AS12>0,AT13<=$AO3,AND(RIGHT($BF12,1)="b",$AN63>0)),AND($AS12>0,$BF12=0),AND($AS12>0,LEFT($BF12,1)="G")),VLOOKUP($AS12,$AS14:$BF23,AT13+1,FALSE),IF(OR(RIGHT($BF12,1)="b",RIGHT($BF12,1)="a"),AT15,0))) -> 0 | AU12: =IF(AND(AU2=0,$BE12="max"),0,IF(OR(AND($AS12>0,AU13<=$AO3,AND(RIGHT($BF12,1)="b",$AN63>0)),AND($AS12>0,$BF12=0),AND($AS12>0,LEFT($BF12,1)="G")),VLOOKUP($AS12,$AS14:$BF23,AU13+1,FALSE),IF(OR(RIGHT($BF12,1)="b",RIGHT($BF12,1)="Z"),AU15,0))) -> 0 | AV12: 0 | AW12: 0 | AX12: 0 | AY12: 0 | AZ12: 0 | BA12: 0 | BB12: 0 | BC12: 0 | BE12: =IF($AS12>0,VLOOKUP($AS12,$AS14:$BF23,13,FALSE),"") ->  | BF12: =IF($AS12>0,VLOOKUP($AS12,$AS14:$BF23,14,FALSE),"") ->  | BH12: AS13 | BJ12: =MAX(BJ13:BJ15) -> 0 | BK12: =HKS!C18 -> 2014
E13: =IF(Setup!L56=2,"2 ","1") -> 2 | U13: 11: W OK, M NOK, Minc NOK, BK NOK, qm OK, kein Einzelfall | V13: =IF(W13,11,0) -> 0 | W13: =AND(Y29,NOT(Y24),NOT(Y25),NOT(Y28),Y30,NOT(Y27)) -> FALSE | X13: =X$24 -> 499 | Y13: =Y$6 -> 0 | Z13: =Z$6 -> 0 | AA13: =X27 -> 0 | AB13: =X$27 -> 0 | AC13: =AC$6 -> Betriebskosten | AD13: ="Prüfgrenze für Betriebskosten"& IF(Z$5>0," (ohne Wasser) überschritten, jedoch Wohnfläche und Wasserverbrauch angemessen","") &IF(V13>0," (Fall "&V13&")","") -> Prüfgrenze für Betriebskosten | AG13: =SUM(I4:I11) -> 1 | AH13: =AG13-AI11 -> 1 | AI13: =AG13-AI11-AG11 -> 1 | AM13: =IF(AM14="","ja","") -> ja | AN13: ja | AO13: =IF(AND(H16>0,I16>0),0,IF(H16="nein",0,H16)) -> 0 | AP13: ="Schönheitsrep. "& IF(AND(H16>0,I16=H16),"als Mehrbedarf MOG"," als BK") -> Schönheitsrep. als BK | AR13: Summe Mehrbedarf | AS13: =BJ12 -> 0 | AT13: 1 | AU13: 2 | AV13: 3 | AW13: 4 | AX13: 5 | AY13: 6 | AZ13: 7 | BA13: 8 | BB13: 9 | BC13: 10 | BD13: +1 Pers. | BH13: =(AND(AND(BE12="max",BF12<>"Ga"),OR(AND(AR1=0,BF12="Gb"),AN63>0))) -> FALSE | BI13: =MAX(AT12:BC12) -> 0 | BJ13: =IF(BH13,BI13,0) -> 0 | BK13: =HKS!C19 -> 2015
B14: Wohnungskosten ohne Energiekosten | H14: EURO | K14: =IF(AND(I23>0,AG$11>0,H43>0,U3=0),"! Mietanteil < 0 !","") ->  | M14: =IF(AI13>1,IF(AI10>0,"p.P. / Summe",""),"") ->  | U14: 10: W NOK, M OK, Minc NOK, BK NOK, qm OK, kein Einzelfall | V14: =IF(W14,10,0) -> 0 | W14: =AND(NOT(Y29),Y24,NOT(Y25),NOT(Y28),Y30,NOT(Y27)) -> FALSE | X14: =X$24 -> 499 | Y14: =V$28 -> 0 | AA14: =Y14+Z14 -> 0 | AB14: =X$27 -> 0 | AC14: ="Betriebskosten"& " auf angemessene BK gekürzt !" -> Betriebskosten auf angemessene BK gekürzt ! | AD14: =AD$12&IF(V14>0," (Fall "&V14&")","") -> <== Grenzwert für Einzelfallprüfung von Betriebskosten überschritten ! Einzelfall ? | AI14: =AI13+AH4 -> 1 | AJ14: ="Pers."&IF(AH4>0," + schw","") -> Pers. | AM14: =IF(AND(OR(BF12="G",BE12="max"),AN63>0,AN63>AM63),"Einzelfall","") ->  | AN14: nein | AO14: =IF(WE!K42>0,WE!K42,IF(OR(K17>0,H17>0),IF(K17>0,ROUND(ABS(K17)/Werte09!C51,2),IF(ISNUMBER(H17),ABS(H17),0)),0)) -> 0 | AP14: Betriebskosten | AS14: 1 | AT14: =AT4 -> 0 | AU14: 0 | AV14: 0 | AW14: 0 | AX14: 0 | AY14: 0 | AZ14: 0 | BA14: 0 | BB14: 0 | BC14: 0 | BH14: =BF12="Ga" -> FALSE | BI14: =AR15 -> 12.95 | BJ14: =IF(BH14,BI14,0) -> 0 | BK14: =HKS!C20 -> 2016
A15: 1.1 | B15: =IF(AND(I15="",WE!G42="")," ==> ","") &IF(OR(WE!G42>0,WE!G44>0),"Belastung aus Wohneigentum (auf Seite WE)","")&IF(AND(WE!G42=0,WE!G44=0),"Grundmiete (Kaltmiete ohne Betriebskosten)","")& IF(I15=""," eintragen !","") -> Grundmiete (Kaltmiete ohne Betriebskosten) | F15: =IF(AND(K15=0,H15=0,WE!G42=0,WE!G44=0),"== > ",IF(AND(H15>0,K15>0),"FEHLER ! ",IF(OR(AND(H15>0,WE!G42>0),AND(H15>0,WE!G44>0),AND(K15>0,WE!G42>0)),"FEHLER ! ",""))) -> == > | I15: =IF(OR(K15>0,H15>0,WE!G42>0),IF(WE!G42>0,ROUND(WE!G42,2),ABS(H15)),0) -> 0 | U15: 9: W NOK, M NOK, Minc NOK, BK NOK, qm OK, kein Einzelfall | V15: =IF(W15,9,0) -> 0 | W15: =AND(NOT(Y29),NOT(Y24),NOT(Y25),NOT(Y28),Y30,NOT(Y27)) -> FALSE | X15: =X$24 -> 499 | Y15: =V$28 -> 0 | AA15: =Y15+Z15 -> 0 | AB15: =X$27 -> 0 | AC15: ="Betriebskosten"& " auf angem. BK gekürzt !"&" Wasser nicht angem.! "&IF(AND(Z17=0,H18>0)," [jetzt: 0.- € !]","") -> Betriebskosten auf angem. BK gekürzt ! Wasser nicht angem.! | AD15: ="Prüfgrenze für Betriebskosten"& IF(Z$5>0," (ohne Wasser)","") &IF(V15>0," (Fall "&V15&")","") -> Prüfgrenze für Betriebskosten | AG15: =IF(Orte!BG27>0,Orte!BG27,0) -> 4 | AH15: =IF(AH16=0,"Betriebskostengrenzen nicht bekannt !",CHOOSE(AH16,1,2,3," angemessene Betriebskosten werden übernommen.","Betriebskosten werden nur ungekürzt übernommen, wenn der Wasserverbrauch angemessen ist","Betriebskosten werden grundsätzlich ungekürzt übernommen.","Betriebskosten werden ungekürzt gezahlt, wenn Miete <= MOG und Betriebskosten < Betriebskostenobergrenze",8,9,10,11,12,13,14,"Die Betriebskosten werden ungekürzt übernommen, da der Wasserverbrauch angemessen ist.",16,17,18,19,20,21,22,23,24,"Die Betriebskosten werden um unangemessene Wasserverbrauchskosten gekürzt !",26,27)) -> angemessene Betriebskosten werden übernommen. | AL15: =IF(AND(AK16>0,AL16>0),"(Bk " & IF(AK16<=AL16,IF(AK16=AL16,"gleich","unter"),"über")&" dem Wert des Bk-Spiegel"& IF(AK16>AL16," !","")&")","") ->  | AM15: =H65 -> 0 | AO15: =IF(H18>0,ABS(H18),0) -> 0 | AP15: Kalt,- Schmutzwasser | AR15: =SUM(AT15:BC15) -> 12.95 | AS15: 2 | AT15: =IF(AND(AT3>0),CHOOSE(AT3,Werte10!$D59,Werte10!$D60,Werte10!$D62,Werte10!$D63,Werte10!$D65,Werte10!$D66),0) -> 12.95 | AU15: =IF(AND(AU3>0),CHOOSE(AU3,Werte10!$D59,Werte10!$D60,Werte10!$D62,Werte10!$D63,Werte10!$D65,Werte10!$D66),0) -> 0 | AV15: =IF(AND(AV3>0),CHOOSE(AV3,Werte10!$D59,Werte10!$D60,Werte10!$D62,Werte10!$D63,Werte10!$D65,Werte10!$D66),0) -> 0 | AW15: =IF(AND(AW3>0),CHOOSE(AW3,Werte10!$D59,Werte10!$D60,Werte10!$D62,Werte10!$D63,Werte10!$D65,Werte10!$D66),0) -> 0 | AX15: =IF(AND(AX3>0),CHOOSE(AX3,Werte10!$D59,Werte10!$D60,Werte10!$D62,Werte10!$D63,Werte10!$D65,Werte10!$D66),0) -> 0 | AY15: =IF(AND(AY3>0),CHOOSE(AY3,Werte10!$D59,Werte10!$D60,Werte10!$D62,Werte10!$D63,Werte10!$D65,Werte10!$D66),0) -> 0 | AZ15: =IF(AND(AZ3>0),CHOOSE(AZ3,Werte10!$D59,Werte10!$D60,Werte10!$D62,Werte10!$D63,Werte10!$D65,Werte10!$D66),0) -> 0 | BA15: =IF(AND(BA3>0),CHOOSE(BA3,Werte10!$D59,Werte10!$D60,Werte10!$D62,Werte10!$D63,Werte10!$D65,Werte10!$D66),0) -> 0 | BB15: =IF(AND(BB3>0),CHOOSE(BB3,Werte10!$D59,Werte10!$D60,Werte10!$D62,Werte10!$D63,Werte10!$D65,Werte10!$D66),0) -> 0 | BC15: =IF(AND(BC3>0),CHOOSE(BC3,Werte10!$D59,Werte10!$D60,Werte10!$D62,Werte10!$D63,Werte10!$D65,Werte10!$D66),0) -> 0 | BF15: G | BH15: =AND(BH13=FALSE,BH14=FALSE) -> TRUE | BI15: =BI13 -> 0 | BJ15: =IF(BH15,BI15,0) -> 0 | BK15: =HKS!C21 -> 2017
A16: 1.2 | B16: =IF(WE!G42>0,""," + Schönheitsreparaturen,-Instandsetzungszuschlag"&IF(AND(Orte!BK27<2,I16=0,H16="",K43>0)," ? ==>",IF(AND(ISNUMBER(H16),H16=0)," ( '0,00' eingetragen)",""))) -> + Schönheitsreparaturen,-Instandsetzungszuschlag | I16: =IF(Orte!BK28=2,0,IF(ISNUMBER(H16),IF(H16>0,H16,0),0)) -> 0 | K16: =I15+I16 -> 0 | M16: =IF(AI13>1,IF(AND(AI10>0),TEXT(ROUND(((I15+I16)/F$94),2),"0.0,00")&" / "&TEXT(ROUND(((I15+I16)/F$94)*(F$94-AI$10),2),"0.0,00"),""),"") ->  | U16: 8: W NOK, M OK, Minc NOK, BK NOK, qm OK, Einzelfall | V16: =IF(W16,8,0) -> 0 | W16: =AND(NOT(Y29),Y24,NOT(Y25),NOT(Y28),Y30,Y27) -> FALSE | X16: =X$26 -> 0 | Y16: =Y$6 -> 0 | Z16: =Z$6 -> 0 | AA16: =Y16+Z16 -> 0 | AC16: =AC$6 -> Betriebskosten | AD16: ="Betriebskosten nach Einzelfallprüfung akzeptiert."&IF(V16>0," (Fall "&V16&")","") -> Betriebskosten nach Einzelfallprüfung akzeptiert. | AG16: =IF(K31="nein",TRUE,FALSE) -> FALSE | AH16: =IF(Orte!BG27>0,IF(AG17,Orte!BG27,IF(AG16,Orte!BG27+10,Orte!BG27+20)),0) -> 4 | AJ16: ="BK-Pausch.: "&IF(AL17>0,"ja",IF(AH17,"nein","?")) -> BK-Pausch.: ? | AK16: =AO138 -> 0 | AL16: =Orte!AW3 -> 0 | AM16: qm angem. | AN16: =AN17 -> 0 | AO16: =IF(H19>0,ABS(H19),0) -> 0 | AP16: Heizungswartung | AS16: 3 | AT16: 9 | AU16: 11 | AV16: 13 | AW16: 15 | AX16: 17 | AY16: =AX16+$BD16 -> 19 | AZ16: =AY16+$BD16 -> 21 | BA16: =AZ16+$BD16 -> 23 | BB16: =BA16+$BD16 -> 25 | BC16: =BB16+$BD16 -> 27 | BD16: 2 | BE16: max | BK16: =HKS!C22 -> 2018
A17: 1.3 | B17: =IF(OR(WE!G42>0,WE!G44>0),""," + Betriebskosten")&IF(AND(OR(I33>0,AND(I35>0,AO53="ex"),AO53="ex"),H17="",K17="",WE!G44=0)," ? ==>",IF(AND(ISNUMBER(H17),H17=0)," ( '0,00' eingetragen)","")) -> + Betriebskosten | F17: =IF(AND(K17<=0,H17<=0,B17<>"",I24=""),"? ",IF(OR(AND(H17>0,K17>0),AND(H17>0,OR(WE!G44>0,WE!G42>0))),"FEHLER ! ","")) ->  | I17: =IF(AO53="ex",0,AO14) -> 0 | U17: 7: W NOK, M OK, Minc NOK, BK NOK, qm NOK, kein Einzelfall | V17: =IF(W17,7,0) -> 0 | W17: =AND(NOT(Y29),Y24,NOT(Y25),NOT(Y28),NOT(Y30),NOT(Y27)) -> FALSE | X17: =X24 -> 499 | Y17: =$X$27 -> 0 | AA17: =Y17 -> 0 | AB17: =X$27 -> 0 | AC17: ="Betriebsk."& " u. angemessene (!) Kosten f. Wasser" &IF(AND(Z17=0,H18>0)," [jetzt: 0.- € !]","") -> Betriebsk. u. angemessene (!) Kosten f. Wasser | AD17: ="<== auf Prüfgrenze für Betriebskosten gekürzt !"& IF(Z$5>0," (ohne Wasser)","")& " Einzelfall ?" &IF(V17>0," (Fall "&V17&")","") -> <== auf Prüfgrenze für Betriebskosten gekürzt ! Einzelfall ? | AG17: =IF(K31="",TRUE,FALSE) -> TRUE | AH17: =NOT(Orte!X17=0) -> FALSE | AI17: =IF(AND(AG15=5,NOT(AG16),AG17),FALSE,TRUE) -> TRUE | AJ17: =IF(Orte!AA17,"Gesamtbetrag","qm-Pauschale") -> Gesamtbetrag | AL17: =Orte!X17 -> 0 | AM17: =IF(AO85>0,AO85,K65) -> 50 | AN17: =IF(Orte!AA17,AL17,AL17*AM17) -> 0 | AO17: =IF(H20<>0,IF(F20="x",IF(H20<0,0,H20),IF(H20>0,0,H20)),0) -> 0 | AP17: Kabelfernsehen | AS17: 4 | AT17: =AT176*0.3 -> 15 | AU17: 18 | AV17: 22.5 | AW17: 25.5 | AX17: 28.5 | AY17: 31.5 | AZ17: 34.5 | BA17: 37.5 | BB17: 40.5 | BC17: 43.5 | BE17: max | BF17: G | BK17: =HKS!C23 -> 2019
A18: 1.4 | B18: =IF(WE!G42>0,""," + Kalt-, Schmutzwasser"&IF(AND(AG15=7,H18=0,K43>0,NOT(AND(ISNUMBER(H18),H18=0))), " (aus Betriebsk. herausrechnen) ? ==>",IF(AND(H18>0,OR(AND(AG15=7,Z5=0,NOT(Y29)),AND(AG15=5,K31<>"nein",Y80=0),AND(AG15=5,Y80>0,AND(K35<>"Einzelfall",K31<>"nein"),AF41+H18>I35))),": Wassergeld auf angem. Betrag anpassen ! ==>", IF(AND(ISNUMBER(H18),H18=0)," ( '0,00' eingetragen)", ", falls nicht in in 1.3 enthalten")))) -> + Kalt-, Schmutzwasser, falls nicht in in 1.3 enthalten | I18: =IF(AO53="ex",0,AO15) -> 0 | K18: =I17+I18+I19+I20 -> 0 | M18: =IF(AI13>1,IF(H17>0,IF(AI10>0,TEXT(ROUND(((I17+I18)/F$94),2),"0.0,00")&" / "&TEXT(ROUND(((I17+I18)/F$94)*(F$94-AI$10),2),"0.0,00"),""),""),"") ->  | U18: 6: W OK, M NOK, Minc NOK, BK NOK, qm NOK, kein Einzelfall | V18: =IF(W18,6,0) -> 0 | W18: =AND(Y29,NOT(Y24),NOT(Y25),NOT(Y28),NOT(Y30),NOT(Y27)) -> FALSE | X18: =X$24 -> 499 | Y18: =IF(AO18-AO15>V$28,V$28,AO18-AO15) -> 0 | Z18: =Z$6 -> 0 | AA18: =IF(Y18<$X27,0,IF(Y$6>X$27,Y18+Z18,X$27)) -> 0 | AC18: =IF(Y18+Z18<X$28,"BK gekürzt !" & IF(U$28,U$25,""),AC$6) -> Betriebskosten | AD18: =IF(OR(Y$6>X27,Y18+Z18<X$28),AD$12,"Prüfgrenze für Betriebskosten ohne Wasser ("&TEXT(X$27,"0")&"€) unterschritten + Wasserverbrauch angemessen ")&IF(V18>0," (Fall "&V18&IF(Y$6>X$27,IF(Y18+Z18<X$28,"c","a"),IF(Y18+Z18<X$28,"c","b"))&")","") -> Prüfgrenze für Betriebskosten ohne Wasser (0€) unterschritten + Wasserverbrauch angemessen | AG18: Magdeburg, Duisburg, Hamburg, Lohmar | AL18: =IF(AND(AO53="ex",AN17>0),1,0) -> 0 | AM18: ="BK: "&IF(AL18>0,"ex","inc") -> BK: inc | AN18: =AN16>0 -> FALSE | AO18: =IF(AO53="ex",SUM(AO13:AO17),0) -> 0 | AP18: Summe Betriebskosten, nur für Kdu-MOG ohne BK | AS18: 5 | AT18: =ROUND(0.1916*S$87,2) -> 9.58 | AU18: =ROUND(0.1916*S$88,2) -> 11.5 | AV18: =ROUND(0.1916*S$89,2) -> 14.37 | AW18: =ROUND(0.1916*S$90,2) -> 16.29 | AX18: =AW18+$BD18 -> 18.21 | AY18: 20.13 | AZ18: 22.05 | BA18: 23.97 | BB18: 25.89 | BC18: 27.81 | BD18: 1.92 | BE18: max | BK18: =HKS!C24 -> 2020
A19: 1.5 | B19: =IF(WE!G42>0,""," + Heizungswartung (im Monat der Rechnung)") -> + Heizungswartung (im Monat der Rechnung) | I19: =IF(AO53="ex",0,AO16) -> 0 | K19: =+IF(Heizung_in_Miete<0,I21,0)+IF(Warmwasser_in_Miete,I22,0) -> 0 | N19: =IF(AO10>0,IF(AND(OR(P19=AG41,P19=AG42,P19=AG43,P19=AG44,P19=AG45)),IF(OR(P19="ja",LEFT(P19,1)="P",LEFT(P19,1)="W"),"MOG erhöht."&IF(P19="P1/W2"," (P1 u. W2 )",IF(LEFT(P19,1)="P"," ("&P19&")",IF(P19="W2"," (W2)",""))),"MOG-Erh. anwenden"&IF(P19="nein",": "," ? ==>")),"Eintrag ungültig!"),"") -> MOG-Erh. anwenden ? ==> | Q19: =IF(N19<>""," 1.5a","") -> 1.5a | R19: =IF(OR(AND(K27="",N27<>""),AND(K28="",N28<>""),AND(K29="",N29<>""),AND(Orte!O19=1,Orte!B33<>""),AND(Orte!O20=1,Orte!A33<>"")),"Alternativen","") ->  | U19: 5: W OK, M NOK, Minc NOK, BK NOK, qm OK, Einzelfall | V19: =IF(W19,5,0) -> 0 | W19: =AND(Y29,NOT(Y24),NOT(Y25),NOT(Y28),Y30,Y27) -> FALSE | X19: =X$24 -> 499 | Y19: =Y$6 -> 0 | Z19: =Z$6 -> 0 | AA19: =Y19+Z19 -> 0 | AC19: =AC$6 -> Betriebskosten | AD19: ="Betriebskosten nach Einzelfallprüfung akzeptiert."&IF(V19>0," (Fall "&V19&")","") -> Betriebskosten nach Einzelfallprüfung akzeptiert. | AL19: MOG-diff | AM19: =IF(AE33>H28,AE33-H28,0) -> 0 | AN19: =AND(AO19>AN16,AN18) -> FALSE | AO19: =SUM(AO13:AO17) -> 0 | AS19: 6 | AT19: =ROUND(0.25*S$87,2) -> 12.5 | AU19: =ROUND(0.25*S$88,2) -> 15 | AV19: =ROUND(0.25*S$89,2) -> 18.75 | AW19: =ROUND(0.25*S$90,2) -> 21.25 | AX19: =ROUND(0.25*S$91,2) -> 23.75 | AY19: =ROUND(0.25*S$92,2) -> 26.25 | AZ19: =ROUND(0.25*S$93,2) -> 28.75 | BA19: =ROUND(0.25*S$94,2) -> 31.25 | BB19: =BA19+$BD19 -> 33.75 | BC19: 36.25 | BD19: =S$96*0.25 -> 2.5 | BE19: max | BF19: Gb | BK19: =HKS!C25 -> 2021
A20: 1.6 | B20: =IF(WE!G42>0,""," + Kabelfernsehanschluß "&IF(AND(Orte!BL27<2,I20=0,K43>0)," ? ==>","")) -> + Kabelfernsehanschluß | E20: =IF(AND(B20<>"",H20=""),"? ","") -> ? | F20: x | I20: =IF(AO53="ex",0,AO17) -> 0 | R20: =IF(N27<>"",CHAR(10)&Orte!C37&CHAR(10)&Orte!C38&CHAR(10)&Orte!C39&CHAR(10)&Orte!C40&CHAR(10)&Orte!C41&CHAR(10)&Orte!C42&CHAR(10)&IF(Orte!C43<>" "," ... und weitere ..."&CHAR(10),""),"")&IF(N28<>"",IF(Orte!A37<>" ",CHAR(10)&Orte!A37&CHAR(10),"")&IF(Orte!A38<>" ",Orte!A38,"")&CHAR(10)&IF(Orte!A39<>" ",Orte!A39&CHAR(10),"")&IF(Orte!A40<>" ",Orte!A40&CHAR(10),"")&IF(Orte!A41<>" ",Orte!A41&CHAR(10),"")&IF(Orte!A42<>" ",Orte!A42&CHAR(10),"")&IF(Orte!A43<>" "," ... und weitere ..."&CHAR(10),""),"")&IF(N29<>"",IF(Orte!B37<>" ",CHAR(10)&Orte!B37&CHAR(10),"")&IF(Orte!B38<>" ",Orte!B38&CHAR(10),"")&IF(Orte!B39<>" ",Orte!B39&CHAR(10),"")&IF(Orte!B40<>" ",Orte!B40&CHAR(10),"")&IF(Orte!B41<>" ",Orte!B41&CHAR(10),"")&IF(Orte!B42<>" ",Orte!B42&CHAR(10)&IF(Orte!B43<>" "," ... und weitere ...",""),""),"") ->  | U20: 4: W OK, M NOK, Minc NOK, BK NOK, qm NOK, Einzelfall | V20: =IF(W20,4,0) -> 0 | W20: =AND(Y29,NOT(Y24),NOT(Y25),NOT(Y28),NOT(Y30),Y27) -> FALSE | X20: =X$24 -> 499 | Y20: =Y$6 -> 0 | Z20: =Z$6 -> 0 | AA20: =Y6+Z6 -> 0 | AC20: =AC$6 -> Betriebskosten | AD20: ="Betriebskosten nach Einzelfallprüfung akzeptiert."&IF(V20>0," (Fall "&V20&")","") -> Betriebskosten nach Einzelfallprüfung akzeptiert. | AH20: Einzelfall | AI20: BK > BK-OG | AJ20: MOG > M | AK20: (7) | AL20: BK-OG-diff | AM20: =IF(AD33>I33,AD33-I33,0) -> 0 | AN20: Absenkung auf MOG bei Überschreiten d. Bestandsfall-MOG | AO20: HzG/WW | AP20: HzG/WW für Kosten Vermieter | AS20: 7 | AT20: 10 | AU20: 12 | AV20: 16 | AW20: 18 | AX20: 20 | AY20: =AX20+$BD20 -> 23 | AZ20: =AY20+$BD20 -> 26 | BA20: =AZ20+$BD20 -> 29 | BB20: 32 | BC20: 35 | BD20: 3 | BE20: max | BK20: =HKS!C26 -> 2022
A21: 1.7 | B21: =IF(OR(AND(AO24>0,AO21<>0),AND(AO24>0,OR(H21>0,K21>0))),"F E H L E R ! Heizkosten schon unter WE angegeben !"," - / + Heizkosten ( ' - ' , falls in Betriebskosten enthalten)") -> - / + Heizkosten ( ' - ' , falls in Betriebskosten enthalten) | F21: =IF(AND(K21=0,H21=0,I54=0),"== > ",IF(AND(H21>0,K21>0),"FEHLER ! ","")) -> == > | I21: =AO21 -> 0 | M21: =IF(AI13>1,IF(I54>0,IF(AI10>0,IF(I21<0,"-","")&TEXT(ROUND((I54/F$94),2),"0.0,00")&" / "&IF(I21<0,"-","")&TEXT(ROUND((I54/F$94)*(F$94-AI$10),2),"0.0,00"),""),""),"") ->  | U21: 3: W NOK, M NOK, Minc NOK, BK NOK, qm OK, Einzelfall | V21: =IF(W21,3,0) -> 0 | W21: =AND(NOT(Y29),NOT(Y24),NOT(Y25),NOT(Y28),Y30,Y27) -> FALSE | X21: =X$24 -> 499 | Y21: =Y$6 -> 0 | Z21: =Z6 -> 0 | AA21: =Y21+Z21 -> 0 | AC21: =AC$6 -> Betriebskosten | AD21: ="Betriebskosten nach Einzelfallprüfung akzeptiert."&IF(V21>0," (Fall "&V21&")","") -> Betriebskosten nach Einzelfallprüfung akzeptiert. | AH21: =IF(OR(K33="Einzelfall",K35="Einzelfall",F40="Einzelfall"),IF(F40="Einzelfall",2,1),0) -> 0 | AI21: =IF(OR(AG15=9,AND(AG15=7,X28>X27),AND(I33>0,AD33>I33),AND(I35>0,AD33+I54>I35)),IF(OR(AND(AA98,AG15=9),AND(I35>0,AD33+I54>I35)),2,1),0) -> 0 | AJ21: =IF(AE33>H28,1,0) -> 0 | AM21: =AM19+AM20 -> 0 | AO21: =IF(OR(K21<0,H21<0),IF(K21<0,ROUND(K21/Werte10!C83,2),H21),0) -> 0 | AP21: =IF(K21<0,ROUND(K21/Werte09!C51,2),H21) -> 0 | AS21: 8 | AT21: =ROUND(0.29*S$87,2) -> 14.5 | AU21: =ROUND(0.29*S$88,2) -> 17.4 | AV21: =ROUND(0.29*S$89,2) -> 21.75 | AW21: =ROUND(0.29*S$90,2) -> 24.65 | AX21: =ROUND(0.29*S$91,2) -> 27.55 | AY21: =ROUND(0.29*S$92,2) -> 30.45 | AZ21: =ROUND(0.29*S$93,2) -> 33.35 | BA21: =ROUND(0.29*S$94,2) -> 36.25 | BB21: 39.15 | BC21: 42.05 | BD21: =S$96*0.29 -> 2.9 | BE21: max | BF21: Ga | BK21: =HKS!C27 -> 2023
A22: 1.8 | B22: =IF(AND(AO22<>0,AO23<>0),"F E H L E R ! Warmwasser schon unter WE angegeben !"," - / + Warmwasserbereitungskosten"&IF(AO62=1," ( ' - ', falls in Betr.K. enth.)","")) -> - / + Warmwasserbereitungskosten | F22: =IF(AND(K22=0,H22=0,I58=0),"",IF(AND(H22<>0,K22<>0),"FEHLER ! ","")) ->  | I22: =AO22 -> 0 | U22: 2: W NOK, M NOK, Minc NOK, BK NOK, qm NOK, Einzelfall | V22: =IF(W22,2,0) -> 0 | W22: =AND(NOT(Y29),NOT(Y24),NOT(Y25),NOT(Y28),NOT(Y30),Y27) -> FALSE | X22: =X24 -> 499 | Y22: =Y$6 -> 0 | Z22: =Z6 -> 0 | AA22: =Y22+Z22 -> 0 | AC22: =AC$6 -> Betriebskosten | AD22: ="Betriebskosten nach Einzelfallprüfung akzeptiert."&IF(V22>0," (Fall "&V22&")","") -> Betriebskosten nach Einzelfallprüfung akzeptiert. | AG22: GrenzW | AI22: =IF(AI21=1,I33,IF(AI21=2,I35,AI23)) -> 0 | AJ22: =IF(AJ21=1,H28+H29,AE33) -> 0 | AK22: =Orte!X18+Orte!X18*AN3+AN17 -> 499 | AM22: =AE33-AG31 -> -423.5 | AN22: =IF(Orte!AT28>0,"ja","nein") -> ja | AO22: =IF(OR(K22<0,H22<0),IF(K22<>0,ROUND(K22/Werte09!C51,2),H22),0) -> 0 | AP22: =IF(K22<>0,ROUND(K22/Werte09!C51,2),H22) -> 0 | AS22: 9 | BK22: =HKS!C28 -> 2024
B23: =IF(AE33=0," (keine Grundmiete angegeben)",IF(WE!G42>0,"Belastung","Miete")&IF(AO53="ex"," ohne", " und")&" Betriebskosten,"& " ohne Heizung und Warmwasserkosten") -> (keine Grundmiete angegeben) | I23: =IF(SUM(I15:I22)>0,IF(H21<0,SUM(I15:I22),SUM(I15,I16,I17,I18,I19,I20,I22)),0) -> 0 | K23: =IF(AND(I23>0,AG$11>0,H43>0),IF(U3=0,"!!",TEXT(U3,"0.0,00")),"") ->  | M23: =IF(AI10>0,TEXT(ROUND(((I15+I16)/F$94),2)+ROUND(((I17+I18)/F$94),2)+IF(I21<0,-1,1)*ROUND((I54/F$94),2),"0.0,00") & " / "&TEXT((ROUND(((I15+I16)/F$94)*(F$94-AI$10),2)+ROUND(((I17+I18)/F$94)*(F$94-AI$10),2)+IF(I21<0,-1,1)*ROUND((I54/F$94)*(F$94-AI$10),2)),"0.0,00"),0) -> 0 | O23: =IF(AND(O24<>"",O25<>""),IF(AND(AO136>0,AO138<>AO136),"qm-Preis: "&TEXT(AO136,"0,00"),""),"") ->  | P23: =IF(O23<>"","insgesamt","") ->  | U23: 1: W NOK, M NOK, Minc NOK, BK NOK, qm NOK, kein Einzelfall | V23: =IF(W23,1,0) -> 0 | W23: =AND(NOT(Y29),NOT(Y24),NOT(Y25),NOT(Y28),NOT(Y30),NOT(Y27)) -> FALSE | X23: =X24 -> 499 | Y23: =V28 -> 0 | Z23: =IF(AND(X30<>"",Y30),Z6,0) -> 0 | AA23: =IF(AND(X30<>"",Y30),IF(Y23+Z23<X27,Y23+Z23),X27) -> 0 | AC23: =IF(Y23+Z23<X$28,"BK"&IF(AND(Z23=0,H18>0)," [Wasser: 0.- € !]","")&IF(NOT(U$28)," auf angemesse BK ","")&IF(NOT(U$28),"["&TEXT(Y23,"0,00")&IF(Z23>0," + "&TEXT(Z23,"0,00")&" Wasser","")&"]","")&" gekürzt !" & IF(U$28,U$25),AC$6) -> Betriebskosten | AD23: =AD$12&IF(V23>0," (Fall "&V23&IF(X30="","a","b")&")","") -> <== Grenzwert für Einzelfallprüfung von Betriebskosten überschritten ! Einzelfall ? | AG23: tats.K. | AI23: =IF(AI21=1,AD33,AD33+I54) -> 0 | AJ23: =AE33 -> 0 | AL23: =IF(AND(Y88>0,OR(AO53="ex",AO54="inc")),"x","") ->  | AM23: =IF(AL23="x","","x") -> x | AN23: =IF(OR(AO53="ex",AO54="inc"),AL24,AM24) -> 0 | AO23: =WE!K35 -> 0 | AP23: Warmwasser WE | AS23: 10 | BK23: =HKS!C29 -> 0
B24: =IF(AO53="ex",IF(AP25<>"",AP25&IF(WE!K42>0," (Wohneigentum)","")&IF(I24=0," (keine Betriebskosten angegeben)",""),IF(I24=0," (keine Betriebskosten angegeben"&IF(AO53="ex"," !)",")"),"Betriebskosten")),"") ->  | I24: =IF(AND(AO53="ex"),AO18,0) -> 0 | K24: =IF(I24>0,IF(AG$11>0,ROUND(I24/AG$13*AI$14,2),0),0) -> 0 | O24: =IF(AND(AO19>0,AO138>0),"qm-Preis: "&TEXT(AO138,"0,00"),"") ->  | P24: =IF(O24<>"","Betriebskosten","") ->  | U24: Märkisch-Oderland | V24: (7) | W24: KdUGr (20) | X24: =Orte!X18 -> 499 | Y24: =IF(X26<=X24,TRUE,FALSE) -> TRUE | Z24: =IF(NOT(Y24),"M zu hoch!","M OK") -> M OK | AE24: =IF(Y31,AE33,0) -> 0 | AF24: 1-6.M. | AG24: - Heizkosten | AI24: =IF(AND(AO53="ex",OR(AN17>0,AND(AN17=0,AF40<>4))),IF(AI21=1,0,-AO127),0) -> 0 | AL24: =IF(AO53="inc",AM26,AL26) -> 0 | AM24: =IF(AD25+AD26+H38+H40<AE33,H42,AE33) -> 0 | AN24: =IF(AND(AE33>AD30,AN22="ja"),IF(AN3>0,AN25,IF(AO47>0,AO47,0)),IF(AN3>0,AM24,AN23)) -> 0 | AO24: =WE!G43 -> 0 | AP24: Heizung WE | AT24: =IF($AR1<>0,IF(AND($AS5>0,$BF12="",OR($AS12<>2,$AO8=TRUE)),AT5,IF(AND($AS12>0,$AR1<>1),AT11,AT4)),0) -> 0 | AU24: =IF($AR1<>0,IF(AND($AS5>0,$BF12="",OR($AS12<>2,$AO8=TRUE)),AU5,IF(AND($AS12>0,$AR1<>1),AU11,AU4)),0) -> 0 | AV24: =IF($AR1<>0,IF(AND($AS5>0,$BF12="",OR($AS12<>2,$AO8=TRUE)),AV5,IF(AND($AS12>0,$AR1<>1),AV11,AV4)),0) -> 0
B25: =IF(AND(AO54="inc"),"Heizkosten"&IF(OR(AND(AO62=2,K62<0),OR(H58>0,AO22<0))," incl. Warmwasser","")&IF(I75>0," + "&TEXT(I75,"0,00")&" €"&" 'Zündstrom' ","")&IF(AO24>0," (WE)",""),"") ->  | I25: =IF(AO54="inc",AH63+IF(OR(M58="x",H58>0,I58>0),ABS(I58),0)+I75+IF(H62="ja",-K62,0),0) -> 0 | K25: =IF(I25>0,IF(AG$11>0,ROUND(I25/AG$13*AI$14,2),0),0) -> 0 | O25: =IF(AN138>0,"qm-Preis: "&TEXT(AN138,"0,00"),"") ->  | P25: =IF(O25<>"","Grundmiete","") ->  | U25: =IF(H65=0,U26,IF(AND(X30>0,NOT(Y30))," ("&TEXT(X28,"0")&IF(H18>0,"-"&TEXT(H18,"0"),"")&"€ / "&TEXT(X30,"0")& "qm = "&TEXT((X28-H18)/X30,"0,00")&"€ x "&TEXT(K69,"0")&"qm = "&TEXT(V28,"0,00")&IF(Z5>0," + "&TEXT(Z5,"0")&"€","")&") !"," !")) -> Angabe qm fehlt ! | W25: KdUGr.+BKGr (21) | X25: =Orte!X18+AN17 -> 499 | Y25: =IF(X26+X28>X25,FALSE,TRUE) -> TRUE | Z25: =IF(NOT(Y25),"Minc zu hoch!","Minc OK") -> Minc OK | AA25: =IF(AB25,"","nicht ")& "rot" -> nicht rot | AB25: =IF(OR(AND(H18>I35,Y80>0),AND(Y80=0,H35<AD33+IF(OR(Orte!BD28>0,AG15=3),I54,0))),TRUE,FALSE) -> FALSE | AC25: =25 -> 25 | AD25: =AL96 -> 499 | AE25: =IF(AE24=0,AJ35,0) -> 499 | AF25: angem. ab 6. M. | AG25: =IF(AO53="ex","BK-ex ==>","") ->  | AH25: =AH21 -> 0 | AI25: =IF(OR(AH25>0,AF38="Erstantrag"),AI23,AI22)+ABS(AI24) -> 0 | AJ25: =IF(OR(AH25>1,AF38="Erstantrag"),AJ23,AJ22) -> 0 | AL25: =IF(AL23="x",AO53&"-"&AO54,"") ->  | AM25: =IF(AM23="x",AO53&"-"&AO54,"") -> inc-ex | AN25: =IF(AO47>0,AO47+AO47*AN3,0) -> 499 | AO25: =WE!G44 -> 0 | AP25: =WE!H44 ->  | AR25: Zuschlag zu Stromkosten für Betrieb der Heizung
E26: =IF(AND(OR(AO53="ex",AO54="inc")),"Summe der Kosten der Unterkunft","") ->  | I26: =IF(OR(AO53="ex",AO54="inc"),SUM(I23:I25),0) -> 0 | K26: =IF(I26>0,IF(AG$11>0,ROUND(I26/AG$13*AI$14,2),0),0) -> 0 | O26: =IF(AO122=1,IF(VALUE(Orte!X32)=2000,Orte!Y32,IF(Orte!O30>0," Mietobergrenze"&IF(LEFT(K27,8)="Wohngeld"," ist"," wie")&" Wohngeld "& Orte!X32 &", Stufe " &Orte!O30&IF(Orte!X33>0, " + "& Orte!X33*100 & "%",""),"")),"") ->  | U26: Angabe qm fehlt ! | V26: =IF(H65=0,TRUE,FALSE) -> TRUE | W26: tats. Miete | X26: =AE33 -> 0 | AA26: =IF(AB26,"","kein ")&"Einzelfall" -> kein Einzelfall | AB26: =OR(K35="Einzelfall",K33="Einzelfall") -> FALSE | AC26: =AC25+1 -> 26 | AD26: =IF(AND(H27="alte MOG",AO95<>4),AM110,AM105) -> 0 | AE26: =IF(AND(AF104="P",AC119,AE105="M",AC140-AC141>0),AC140-AC141,0) -> 0 | AF26: Zuschl. Wirtschaftl. | AG26: =IF(AO53="inc","BK-inc ==>","") -> BK-inc ==> | AL26: =AI25+AJ25 -> 0 | AM26: =IF(AD31>H42,H42,AD31) -> 0 | AN26: =Orte!U27 -> -2 | AO26: =Orte!V22 -> 5 | AP26: Auswertung Feld Ort: 1-6 = Wohngeldstufe, -2 für regionaler Mietspiegel | AR26: Vorgabe, wenn keine Regelung bekannt | AS26: % d. Heizk. | AU26: =IF(AS26=AL75,1,IF(AS26=AL76,2,IF(AS26=AL78,3,0))) -> 2 | BH26: =AT30 -> 90,1-120 kWh
A27: =IF(B27<>"","1.9.1","") -> 1.9.1 | B27: =IF(N28<>"","",IF(AN36>=AO36,IF(AND(Orte!W30<>0,'ALG2'!B27>4.5,Orte!X18>0,OR(Orte!X20>Orte!X18,Orte!Z20>Orte!X18)),Orte!X28&IF(H27="ja",IF(AI35,": kein Bestandschutz !","."),IF(H27="nein"," :",IF(H27=""," ?",""))),IF(AO131=1," Mietobergrenze höher als bisher.",IF(Orte!X28>0,Orte!X28,""))),"")) -> Mietobergrenze höher als bisher. | K27: Region Hannover | N27: =Orte!W18 ->  | U27: BK. Korr. wg qm | W27: BK. Gr (23) | X27: =AN17 -> 0 | Y27: =K33="Einzelfall" -> FALSE | Z27: =IF(Y27,"Einzelfall","kein Einz.fall !") -> kein Einz.fall ! | AA27: =IF(AB27,"","keine ")&"BK-Pauschale" -> keine BK-Pauschale | AB27: =IF(AL17>0,TRUE,FALSE) -> FALSE | AC27: 27 | AD27: =IF(Orte!BS28>0,H30,0) -> 0 | AE27: =H40 -> 0 | AF27: Einzelf./schwerbeh. | AG27: =IF(AL27>0,"diff 1","") ->  | AI27: =IF(AI23-AI25>0,AI23-AI25+ABS(AI24),0) -> 0 | AJ27: =IF(AJ23-AJ25>0,AJ23-AJ25,0) -> 0 | AL27: =SUM(AI27+AJ27) -> 0 | AN27: =Orte!P27 & " " & Orte!Q27 & " " & Orte!R27 & " " & Orte!S27 -> 4 5 5 5 | AO27: =IF(K27="Region Hannover",1,0) -> 1 | AP27: 1 = Region Hannover | AR27: Vorgabe Festbetrag / %-Anteil | AT27: 5.4 | AU27: 0.05 | BH27: =AU30 -> 60,1-90 kWh
A28: =IF(B28<>"","1.9.2","") -> 1.9.2 | B28: =IF(AO37>0," Wohnort, Zeitabschnitt oder Mietenstufe auswählen ===>",IF(AND(H28=0,AO88=1)," Wohnfläche angeben !",IF(AND(AO43<SUM(I4:I11)-K11,AO29=-2),"Mietobergrenzen für '"&K28&IF(AO43>0,"' nur bis "&TEXT(AO43,"0")&" Personen bekannt !","' nicht bekannt !"),"angemessene Miete für die BG"&IF(OR(AO53="inc")," incl."," ohne")&" Betriebskosten"&IF(I35>0,", ohne Heizkosten","")&IF(AND(AO53="ex",K43>0,AD33=0)," !","")&IF(AND(Y33,U74,AE33>H28)," (Grundmiete gekürzt !)","")))) -> angemessene Miete für die BG incl. Betriebskosten | F28: =W95 -> 0 | H28: =IF(ISERROR(IF(AO38,IF(AND(N28<>"",Orte!V31=""),0,U48),0)),0,IF(AO38,IF(AND(N28<>"",Orte!V31=""),0,U48),0)) -> 499 | I28: =IF(AF40=1,IF(AO131=1,"*",IF(AND(AO100<AO102,AO131=2),"**","")),REPT(" ",9)&TEXT(AL96,"0,00")) -> * | K28: Hannover | N28: =Orte!W20 ->  | U28: =AND(OR(W12,W17,W18,W23),OR(Y5=Y23,Y5=Y18,Y5=Y12)) -> FALSE | V28: =ROUND(IF(AND(H65>0,H65>K69),((AD33-H18)/H65*K69),X27),2) -> 0 | W28: tats. BK. (24) | X28: =AD33 -> 0 | Y28: =IF(X28<=X27,TRUE,FALSE) -> TRUE | Z28: =IF(Y28,"BK OK","BK zu hoch!") -> BK OK | AA28: =IF(AB28,"","keine ")&"BK-HK-P." -> keine BK-HK-P. | AB28: =IF(Y86>0,TRUE,FALSE) -> FALSE | AC28: 28 | AD28: =IF(AO54="inc",I72*(1+K11),0) -> 0 | AE28: =H38 -> 0 | AF28: San-Zuschlag | AG28: =IF(AL28>0,"Einzelfall","") ->  | AI28: =IF(AI25-AI22>0,AI25-AI22,0) -> 0 | AJ28: =IF(AJ25-AJ22>0,AJ25-AJ22,0) -> 0 | AL28: =SUM(AI28+AJ28) -> 0 | AO28: =IF(AO26=-1,0,Orte!N18) -> 31 | AP28: Lfd. Nr der anderen Region, Fehlerbedingung Feld Ort | BH28: =AV30 -> < 60 kWh
B29: =IF(H29>0,IF(AO54="inc","Heizkostengrenze","")&IF(K11>0," (incl. Heizkostengrenze f. nicht BG-Mitglieder)",""),"") ->  | F29: =IF(Orte!BS28>0,H29,0) -> 0 | H29: =IF(AO54="inc",I72*(1+K11),0) -> 0 | K29: : 01.06.2024 | N29: =Orte!W19 ->  | S29: =IF(AND(AO51<>"",AO51<>0,N29=""),IF(LEN(AO51)>56,LEFT(AO51,56)&" ..",AO51),"") -> Stand: 1.6.2024 | W29: WasserVerb.Gr (25) | Y29: =IF(OR(K31="ja",K31=""),FALSE,TRUE) -> FALSE | Z29: =IF(NOT(Y29),"W zu hoch!","W OK") -> W zu hoch! | AA29: =IF(AB29,"","kein ")&"allinc" -> kein allinc | AB29: =IF(AND(AO53="inc",AO54="inc"),TRUE,FALSE) -> FALSE | AC29: 29 | AE29: =H37 -> 0 | AF29: MB Schönh.Rep | AJ29: angem. Miete | AL29: =MAX(AL27:AL28) -> 0 | AN29: =IF(LEN(K28)>19,LEFT(K28,19)&" …",IF(LEN(K28)<16,REPT(" ",16-LEN(K28))&K28,K28)) -> Hannover | AO29: =Orte!U27 -> -2 | AP29: =IF(AO29>0,"MOG nach Wohngeld festgelegt","") ->  | AR29: =" Zuschlag zur MOG wg energetischer Sanierung" -> Zuschlag zur MOG wg energetischer Sanierung | AX29: =IF(ISERROR(VLOOKUP($BK$60,$BJ$61:$BS$86,9,FALSE)),0,VLOOKUP($BK$60,$BJ$61:$BS$86,9,FALSE)) -> 0 | BH29: nein
E30: =IF(Orte!BS27>0,"Summe MOG + Heizkosten","")&IF(Orte!BS27=1,IF(AG92," gerundet:",":"),"") ->  | F30: =IF(Orte!BS28=1,ROUND(F28+F29,0),F28+F29) -> 0 | M30: =IF(AO40>0,AO40,"") ->  | W30: Wohnfl qm (26) | X30: =H65 -> 0 | Y30: =NOT(OR(H65=0,H65>K69)) -> FALSE | Z30: =IF(NOT(Y30),"qm zu hoch!","qm OK") -> qm zu hoch! | AA30: =IF(AB30,"","keine ")&" Einzelb. BK / MOG" -> keine Einzelb. BK / MOG | AB30: =IF(Orte!BH27=2,TRUE,FALSE) -> FALSE | AC30: 30 | AD30: =SUM(AD25:AD28) -> 499 | AE30: =IF(OR(AC116=FALSE,AND(AF109=2,AC117=TRUE,AC121=FALSE),AND(Y33,AB33,AC117,NOT(AC131))),AC135,0) -> 0 | AF30: Toleranzzuschlag | AH30: ="L. "&IF(AI30,"1-6-Monat","ab 7. Monat") -> L. 1-6-Monat | AI30: =Y31 -> TRUE | AJ30: =IF(AI30,AE33,0) -> 0 | AM30: Erh. MOG a | AO30: =IF(OR(LEFT(K27,2)="--",K27=""),TRUE,FALSE) -> FALSE | AP30: =IF(NOT(AO30)," kein "," ==> ")&"Fehler in I27 (Fehler wenn 'RICHTIG')" -> kein Fehler in I27 (Fehler wenn 'RICHTIG') | AR30: Energieverbrauch pro qm | AS30: qmang | AT30: =IF(AT31>0,IF(ISERROR(VLOOKUP($BK$60,$BK$61:$BS$106,5,FALSE)),0,VLOOKUP($BK$60,$BK$61:$BS$106,5,FALSE)),"") -> 90,1-120 kWh | AU30: =IF(AU31>0,IF(ISERROR(VLOOKUP($BK$60,$BK$61:$BS$106,6,FALSE)),0,VLOOKUP($BK$60,$BK$61:$BS$106,6,FALSE)),"") -> 60,1-90 kWh | AV30: =IF(AV31>0,IF(ISERROR(VLOOKUP($BK$60,$BK$61:$BS$106,7,FALSE)),0,VLOOKUP($BK$60,$BK$61:$BS$106,7,FALSE)),"") -> < 60 kWh
A31: =IF(B31<>"","1.9.3","") ->  | B31: =IF(AND(Orte!BE28>0,OR(AG15=5,AG15=7)),IF(K31="","Ist d","D")&"er Wasserverbrauch"&IF(K31<>"",IF(K31="ja"," ist"," ist nicht"),"")& " größer als "&TEXT(Orte!BE28*AH13/12,"0,00")&" m3 pro Monat ("&TEXT(Orte!BE28*AH13,"0")&" m3 pro Jahr)"&IF(K31=""," ? ===>","."),"") ->  | U31: =IF(V31,"","keine ")&"Wohngemeinschaft" -> keine Wohngemeinschaft | V31: ='ALG2'!Y28>0 -> FALSE | W31: 1-6.Monat | Y31: =IF(OR(K76="ja",K76="x"),TRUE,FALSE) -> TRUE | AA31: =IF(AB31,"","kein ")&"Bestandschutz" -> kein Bestandschutz | AB31: =IF(H27="ja",TRUE,FALSE) -> FALSE | AC31: 31 | AD31: =IF(V31,K26,I26) -> 0 | AE31: =SUM(AE24:AE30) -> 499 | AF31: Summe | AG31: =Orte!X20 -> 423.5 | AH31: =IF(AI31,"","kein ")&"Bestandschutz" -> kein Bestandschutz | AI31: =AB31 -> FALSE | AJ31: =AL96 -> 499 | AK31: M. ohne T-Betr. | AO31: =Orte!B37 -> : 01.06.2024 | AR31: 1-Personen-Haushalt | AS31: =S87 -> 50 | AT31: =IF(ISERROR(VLOOKUP($BK$60+$BI31,$BK$62:$BS$106,5,FALSE)),0,VLOOKUP($BK$60+$BI31,$BK$62:$BS$106,5,FALSE)) -> 15 | AU31: =IF(ISERROR(VLOOKUP($BK$60+$BI31,$BK$62:$BS$106,6,FALSE)),0,VLOOKUP($BK$60+$BI31,$BK$62:$BS$106,6,FALSE)) -> 22.5 | AV31: =IF(ISERROR(VLOOKUP($BK$60+$BI31,$BK$62:$BS$106,7,FALSE)),0,VLOOKUP($BK$60+$BI31,$BK$62:$BS$106,7,FALSE)) -> 30 | BI31: 1
A33: =IF(B33<>"","1.9.4","") ->  | B33: =IF(U69<>0,U69,"") ->  | H33: =CHOOSE(AF40,0,0,0,0,0,Z49,Y49,X49,0,V49) -> 0 | I33: =CHOOSE(AF40,0,0,0,0,0,Z62,Y62,X62,0,V49) -> 0 | M33: =IF(U71<>0,IF(LEFT(U71,3)="<==",LEFT(U71,3),""),"") ->  | N33: =IF(U71<>0,IF(LEFT(U71,3)="<==",MID(U71,5,150),U71),"")& IF(U73<>0,IF(LEFT(U73,3)="<==",MID(U73,5,150),U73),"") ->  | U33: ="Werte für Heizkostenberechnung "& IF(V33,"eintragen !",": OK") -> Werte für Heizkostenberechnung eintragen ! | V33: =IF(K61<=0,TRUE,IF(M54=0,TRUE,FALSE)) -> TRUE | W33: ab 7. Monat | Y33: =NOT(Y31) -> FALSE | AA33: =IF(AB33,"","keine ")&"Absenkung b. BS" -> Absenkung b. BS | AB33: =IF(AN22="ja",TRUE,FALSE) -> TRUE | AC33: 33 | AD33: =IF(V31,K24,I24) -> 0 | AE33: =IF(V31,U3,I23) -> 0 | AF33: tats. M. | AG33: =Orte!X18 -> 499 | AH33: ="B.Schutz: "&IF(AI33,"","keine ")&"Absenkung" -> B.Schutz: Absenkung | AI33: =AB33 -> TRUE | AJ33: =SUM(AE25:AE29) -> 499 | AK33: M +San +Schw. | AM33: =SUM(I4:I11)-K11+IF(OR(AO9>0,RIGHT(F40,1)="a"),1,0) -> 1 | AO33: =SUM(I4:I11)-K11 -> 1 | AP33: Anzahl Pers. für MOG | AR33: =2&RIGHT(AR$31,18) -> 2-Personen-Haushalt | AS33: =S88 -> 60 | AT33: =IF(ISERROR(VLOOKUP($BK$60+$BI33,$BK$62:$BS$106,5,FALSE)),0,VLOOKUP($BK$60+$BI33,$BK$62:$BS$106,5,FALSE)) -> 18 | AU33: =IF(ISERROR(VLOOKUP($BK$60+$BI33,$BK$62:$BS$106,6,FALSE)),0,VLOOKUP($BK$60+$BI33,$BK$62:$BS$106,6,FALSE)) -> 27 | AV33: =IF(ISERROR(VLOOKUP($BK$60+$BI33,$BK$62:$BS$106,7,FALSE)),0,VLOOKUP($BK$60+$BI33,$BK$62:$BS$106,7,FALSE)) -> 36 | BI33: 2
A35: =IF(B35<>"","1.9.5","") ->  | B35: =IF(U72<>0,U72 & IF(ISERROR(FIND("?",B17)>0),""," ?"),"") ->  | H35: =IF(AN43,CHOOSE(AF40,0,0,AC52,AB49,AA49,0,0,0,W49,V50),0) -> 0 | I35: =CHOOSE(AF40,AN16,0,AC62,AB62,0,0,0,0,0,V51) -> 0 | M35: =IF(U73<>0,IF(LEFT(U73,3)="<==",LEFT(U73,3),""),"") ->  | AC35: 35 | AD35: =IF(V31,K25,I25) -> 0 | AE35: =IF(AE31>AE33,AE33,AE31) -> 0 | AF35: angem. M. | AG35: =AE33 -> 0 | AH35: ="Miete ist "&IF(AI35,"","nicht ")&"zu hoch" -> Miete ist nicht zu hoch | AI35: =AND(IF(AND(OR(AF109=3,AF109=4,AF109=5,AF109=6),AC117),AC125,TRUE),AE33>AJ31+AE27+AE28+AE29) -> FALSE | AJ35: =IF(OR(AI35,AM43>0),AG33,AJ31) -> 499 | AO35: =IF(SUM(I4:I11)>AO43,AO43,SUM(I4:I11)) -> 1 | AP35: Anzahl Pers. MOG-Energie-Zuschlag | AR35: =3&RIGHT(AR$31,18) -> 3-Personen-Haushalt | AS35: =S89 -> 75 | AT35: =IF(ISERROR(VLOOKUP($BK$60+$BI35,$BK$62:$BS$106,5,FALSE)),0,VLOOKUP($BK$60+$BI35,$BK$62:$BS$106,5,FALSE)) -> 22.5 | AU35: =IF(ISERROR(VLOOKUP($BK$60+$BI35,$BK$62:$BS$106,6,FALSE)),0,VLOOKUP($BK$60+$BI35,$BK$62:$BS$106,6,FALSE)) -> 33.75 | AV35: =IF(ISERROR(VLOOKUP($BK$60+$BI35,$BK$62:$BS$106,7,FALSE)),0,VLOOKUP($BK$60+$BI35,$BK$62:$BS$106,7,FALSE)) -> 45 | BI35: 3
H36: =IF(AND(AO54="inc",T1>4.5,ABS(K62)>0),ABS(K62),0) -> 0 | I36: =IF(AND(T1>4.5,H36>0)," Erhöhung der MOG"&IF(AND(K62<>0,AO54="inc")," wegen Mehrbedarf für Warmwasser",""),"") ->  | V36: Aachen | W36: Stralsund | X36: Minden-Lübbecke | Z36: Märkisch-Oderland | AA36: München, Wuppertal | AB36: Hamburg, Lohmar | AC36: Magdeburg [HK-BK-komb] | AE36: =IF(OR(AND(AI35=FALSE,AI36=TRUE),AND(AI35=TRUE,AI36=TRUE)),AE33,AE35)+AE51-AE53 -> 0 | AF36: angem. M. +HK | AH36: =IF(AI36,"nicht ","")&"wirtschaftlich" &IF(AK36," / O"," -") -> wirtschaftlich - | AI36: =IF(AI37<>"",AI37,AND(AJ36=TRUE,AC145=FALSE,AK36=TRUE)) -> FALSE | AJ36: =AC140>0 -> TRUE | AK36: =AC117 -> FALSE | AN36: =Werte10!D42 ->  | AO36: =IF(LEN(Orte!Z28)>5,DATEVALUE(MID(Orte!Z28,2,10)),0) -> 40664 | AP36: Stichtag | AR36: =4&RIGHT(AR$31,18) -> 4-Personen-Haushalt | AS36: =S90 -> 85 | AT36: =IF(ISERROR(VLOOKUP($BK$60+$BI36,$BK$62:$BS$106,5,FALSE)),0,VLOOKUP($BK$60+$BI36,$BK$62:$BS$106,5,FALSE)) -> 25.5 | AU36: =IF(ISERROR(VLOOKUP($BK$60+$BI36,$BK$62:$BS$106,6,FALSE)),0,VLOOKUP($BK$60+$BI36,$BK$62:$BS$106,6,FALSE)) -> 38.25 | AV36: =IF(ISERROR(VLOOKUP($BK$60+$BI36,$BK$62:$BS$106,7,FALSE)),0,VLOOKUP($BK$60+$BI36,$BK$62:$BS$106,7,FALSE)) -> 51 | BI36: 4
A37: =IF(B37<>"","1.9.6","") ->  | B37: =IF(OR(H16>0,I20>0),IF(H37>0,"Erhöhung wg Mietbestandteil "&IF(I16>0,"'Schönheitsreparaturen'","")&IF(AND(I20>0,H16>0,Orte!BL27<2)," und","")&IF(AND(I20>0,Orte!BL27<2)," 'unkündbarer Kabelanschluß'",""),IF(Orte!BK28=2,"MOG wird nicht wg Schönheitsreparaturkosten erhöht (KdU-Richtline) !","")),"") ->  | H37: =IF(Orte!BK27<2,IF(AND(I37>0,I16>I37),I37,I16),0)+IF(Orte!BL27<2,I20,0) -> 0 | I37: =IF(I16>0,Orte!BJ31*H65,0) -> 0 | K37: =IF(I37>0,IF(AND(I16>0,I16>I37),"SR-Zuschlag wird auf " & TEXT(Orte!BJ31,"0,00")& " €/qm gekürzt !","SR-Zuschlag gilt als angemessen."),"") ->  | U37: Ergebnisgruppen | Y37: Duisburg | AD37: Berlin allinc | AE37: HK BK ex | AF37: =IF(Debug!A38,Orte!CX28,0) -> 1 | AJ37: W.Betr >0 | AK37: option | AO37: =IF(Orte!W18<>"",1,0)+IF(Orte!W19<>"",1,0)+IF(AND(Orte!W20<>"",Orte!V31=""),1,0) -> 0 | AP37: Anzahl fehlender Angaben zur Bestimmung d. MOG | AR37: =5&RIGHT(AR$31,18) -> 5-Personen-Haushalt | AS37: =S91 -> 95 | AT37: =IF(ISERROR(VLOOKUP($BK$60+$BI37,$BK$62:$BS$106,5,FALSE)),0,VLOOKUP($BK$60+$BI37,$BK$62:$BS$106,5,FALSE)) -> 28.5 | AU37: =IF(ISERROR(VLOOKUP($BK$60+$BI37,$BK$62:$BS$106,6,FALSE)),0,VLOOKUP($BK$60+$BI37,$BK$62:$BS$106,6,FALSE)) -> 42.75 | AV37: =IF(ISERROR(VLOOKUP($BK$60+$BI37,$BK$62:$BS$106,7,FALSE)),0,VLOOKUP($BK$60+$BI37,$BK$62:$BS$106,7,FALSE)) -> 57 | BI37: 5
A38: =IF(B38<>"","1.9.7","") -> 1.9.7 | B38: =IF(AND(BK58>0,W133>0,OR(Orte!AP28=0,AND(Orte!AP28=1,NOT(AN45)))),IF(F38="nein","kein ","")&"Erhöhungsbetrag wegen energetischer Sanierung"&IF(F38="nein",""," | kWh pro qm")&IF(F38<>"",".","")&IF(F38=""," ?",""),"") -> Erhöhungsbetrag wegen energetischer Sanierung | kWh pro qm ? | H38: =IF(OR(Orte!AP28=0,AND(Orte!AP28=1,NOT(AN45))),AW40,0) -> 0 | V38: =W38+1 -> 10 | W38: 9 | X38: 8 | Y38: 7 | Z38: 6 | AA38: 5 | AB38: 4 | AC38: 3 | AD38: 2 | AE38: 1 | AF38: =IF(Y31,"Erstantrag","Folgebescheid") -> Erstantrag | AG38: =IF(AF40=0," <== FEHLER !! Keine KdU-Gruppe definiert oder ungültige KdU-Gruppe in Orte !","") ->  | AL38: MOG/Vergleichskosten | AO38: =OR(AND(AO29=-2,AO43>0),AO29>-2) -> TRUE | AP38: ="Wert " & IF(AO38,"","nicht ")&"anzeigen" & " (" & IF(AND(AO29=-2,AO43>0),"MOGs definiert","")& IF(AO29>-2,"Wohngeld als MOG","") & ")" -> Wert anzeigen (MOGs definiert) | AR38: jede weitere Person | AS38: =S96 -> 10 | AT38: =IF(ISERROR(VLOOKUP($BK$60+$BI38,$BK$62:$BS$106,5,FALSE)),0,VLOOKUP($BK$60+$BI38,$BK$62:$BS$106,5,FALSE)) -> 3 | AU38: =IF(ISERROR(VLOOKUP($BK$60+$BI38,$BK$62:$BS$106,6,FALSE)),0,VLOOKUP($BK$60+$BI38,$BK$62:$BS$106,6,FALSE)) -> 4.5 | AV38: =IF(ISERROR(VLOOKUP($BK$60+$BI38,$BK$62:$BS$106,7,FALSE)),0,VLOOKUP($BK$60+$BI38,$BK$62:$BS$106,7,FALSE)) -> 6 | BI38: 6
A40: =IF(B40<>"","1.9.8","") -> 1.9.8 | B40: =IF(AND(H28>0,OR(AM48>0,AM47="alleinerziehend",AM47="schwerbehindert")),IF(OR(AND(OR(AM47="alleinerziehend",AM47="schwerbehindert"),AM48>0),F40="Einzelfall"),"Überschreiten der MOG"&IF(AND(AO9<1,AM47="alleinerziehend"),""," ist")&" begründet"&IF(OR(F40<>"",F40<>"-")," (Status '"&AM47&"')"&IF(AND(AO9<1,AM47="alleinerziehend")," ?! ","."),""),"Überschreiten der MOG durch Status "&IF(AO9=1,"'alleinerziehend' ","'schwerbehindert'")&IF(F40="nein"," nicht","")&" begründet"&IF(F40="nein","."," ?"&IF(AL49<>""," (Variante "&AL49&")","")) ),"") -> Überschreiten der MOG durch Status 'schwerbehindert' begründet ? (Variante a) | H40: =IF(AND(AND(AD25>0,OR(AE33>AD25+AD26,IF(AND(K35<>"Einzelfall",OR(AF40=3,AF40=2)),AD33+I54>I35,FALSE),IF(AND(K33<>"Einzelfall",AL25="ex-ex"),AD33+I54>I35,FALSE))),F40="Einzelfall"),IF(AND(AL25="ex-ex",K33<>"Einzelfall"),AL28,ABS(AE33+AD33+AD35+IF(AF40=3,I54,0)-AD25-AD26-H30-H33-H35-H36)),IF(F40<>"",AM46,0)) -> 0 | I40: =IF(AND(H40>0,OR(LEFT(F40,9)="alleinerz",LEFT(F40,7)="schwerb",F40="",F40="-"))," Erhöhung der MOG: "&IF(AND(AL49<>"",AL49=AM49),"(KdU-Richtline !)",""),"")&IF(AM43<7," "&IF(AM50=0,"",CHOOSE(AM50,"regionale MOG +1 Person.","MOG n. Wohngeldtab. +1 Person +10%.","regionale MOG + "&TEXT(AM126,"0")&" qm.")),"")&IF(H40>0," Die MOG darf um "&IF(H40>0,TEXT(H40,"0,00")&" € überschritten werden.",""),IF(H40>0," die Mietobergrenze darf um "&TEXT(H40,"0,00")&" € überschritten werden.","")) ->  | V40: =IF(AND(AF37>0,AF37=V38),AF37,IF(AF37>0,0,IF(AND(AG15=5,AO53="ex",AO54="ex",AL17=0,Y81>0),10,0))) -> 0 | W40: =IF(AND(AF37>0,AF37=W38),AF37,IF(AF37>0,0,IF(AND(AG15=5,AO53="ex",AO54="ex",AL17=0,Y81=0),9,0))) -> 0 | X40: =IF(AND(AF37>0,AF37=X38),AF37,IF(AF37>0,0,IF(AND(AG15=8),8,0))) -> 0 | Y40: =IF(AND(AF37>0,AF37=Y38),AF37,IF(AF37>0,0,IF(AND(AG15=9),7,0))) -> 0 | Z40: =IF(AND(AF37>0,AF37=Z38),AF37,IF(AF37>0,0,IF(AG15=7,6,0))) -> 0 | AA40: =IF(AND(AF37>0,AF37,AF37=AA38),AF37,IF(AF37>0,0,IF(AND(OR(AG15=4,AG15=6),AO53="ex",AO54="ex",AL17=0),5,0))) -> 0 | AB40: =IF(AND(AF37>0,AF37,AF37=AB38),AF37,IF(AF37>0,0,IF(AND(AL23="x",AN54<>"allinc",AL17>0,AG15<>7,AG15<>8),4,0))) -> 0 | AC40: =IF(AND(AF37>0,AF37,AF37=AC38),AF37,IF(AF37>0,0,IF(AND(Orte!BD28>0),3,0))) -> 0 | AD40: =IF(AND(AF37>0,AF37,AF37=AD38),AF37,IF(AF37>0,0,IF(AN54="allinc",2,0))) -> 0 | AE40: =IF(OR(AC40=3,AO54="inc",AL23="x"),0,1) -> 1 | AF40: =MAX(V40:AE40) -> 1 | AG40: =IF(OR(AF109<6,AF109>9),8,AF109) -> 8 | AH40: 8 | AI40: 6 | AJ40: 7 | AK40: 9 | AO40: =IF(OR(LEFT(K27,2)="--",K27="",LEFT(K27,8)="Wohngeld"),"",Orte!V28) -> 0 | AP40: Auswertung Feld Ort Lfd. Nr. andere Regionen ohne WG | AR40: =IF(AO35>0,AO35&RIGHT(AR$31,18),"") -> 1-Personen-Haushalt | AS40: =K65 -> 50 | AT40: =IF(AO35>0,CHOOSE($AO35,AT31,AT33,AT35,AT36,AT37,AT37+AT38,AT37+2*AT38,AT37+3*AT38,AT37+4*AT38,AT37+5*AT38),0) -> 15 | AU40: =IF(AO35>0,CHOOSE($AO35,AU31,AU33,AU35,AU36,AU37,AU37+AU38,AU37+2*AU38,AU37+3*AU38,AU37+4*AU38,AU37+5*AU38),0) -> 22.5 | AV40: =IF(AO35>0,CHOOSE($AO35,AV31,AV33,AV35,AV36,AV37,AV37+AV38,AV37+2*AV38,AV37+3*AV38,AV37+4*AV38,AV37+5*AV38),0) -> 30 | AW40: =IF(BH40>0,CHOOSE(BH40,AT40,AU40,AV40),0) -> 0 | BH40: =IF(AND(F38=BH26,F38<>""),1,0)+IF(AND(F38=BH27,F38<>""),2,0)+IF(AND(F38=BH28,F38<>""),3,0) -> 0
A41: =IF(B41<>"","1.9.9","") ->  | B41: =IF(AND(AO10=1,AG106>0,OR(P19=AM5,P19=AM6,P19=AM7)),IF(AC114>1,IF(AC117,IF(AND(H41<AG106,H41>0),"Rest-","")&"Toleranzbetrag" & IF(H41=0," (" & TEXT(AG106,"0,00")&"€) ausgeschöpft !",""),""),""),"") ->  | H41: =IF(AO10=1,IF(AC131,0,IF(AC117,IF(AC135>0,AC135,0),0)),0) -> 0 | S41: =IF(AND(AI31,AI33,AI35),"! Absenkung auf Mietobergrenze ! Die 'Bestandschutzgrenze' von "&TEXT(AG31,"0,00")&" € wurde um "&TEXT(AM22,"0,00")&" € überschritten !","") ->  | AF41: =IF(AF40<>10,IF(ISNUMBER(H17),H17,0),0) -> 0 | AG41: =IF(ISERROR(HLOOKUP(AG$40,AH$40:AK$45,2,FALSE)),"",HLOOKUP(AG$40,AH$40:AK$45,2,FALSE)) -> ja | AH41: ja | AI41: P1/W2 | AJ41: P1/W2 | AK41: P1 | AL41: =AC145=FALSE -> TRUE
B42: =IF(AND(H42>0,H28>0),"Miete gilt als angemessen bis","") -> Miete gilt als angemessen bis | E42: =IF(Debug!A24,"M. - MOG.WG / M. - MOG.BG - MOG.WG / S. MOGs"&IF(KdUMoGAbzug>0," + Abzug",""),"") ->  | H42: =U58 -> 499 | I42: =IF(AND(AG92,Orte!BS27=1)," (Summe aus Mietobergrenze + Heizkostengrenze wird kaufmännisch gerundet)","") ->  | V42: =$AE42 -> 0 | W42: 0 | X42: 0 | Y42: 0 | Z42: 0 | AA42: 0 | AB42: 0 | AC42: 0 | AD42: =AD31 -> 0 | AE42: =AE33 -> 0 | AF42: tats. Miete | AG42: =IF(ISERROR(HLOOKUP(AG$40,AH$40:AK$45,3,FALSE)),"",HLOOKUP(AG$40,AH$40:AK$45,3,FALSE)) -> nein | AH42: nein | AI42: W2 | AJ42: P2/W2 | AK42: P2 | AL42: =AC117=TRUE -> FALSE | AM42: MOG-Erhöhung | AO42: =IF(LEN(K27)>18,LEFT(K27,18)&" …",IF(LEN(K27)<22,REPT(" ",22-LEN(K27))&K27,K27)) -> Region Hannover | AP42: Ort anzeigen f. Anzeige auf ALG2 | BM42: =K27 -> Region Hannover | BQ42: =IF(BY44=1,"Höchstwert d. Bundesheizk.spiegel gilt für nicht im Heizspiegel bewerte Energiearten","") ->  | BZ42: WWm
B43: =IF(H43>0,IF(I43=0,"angemessene ","")&"Miete für " & TEXT(K11,"0") & " weitere Person" &IF(K11>1,"en","") &" in Wohngemeinschaft","") ->  | E43: =IF(Debug!A24,TEXT(I23-H43,"0,00")&" / "&TEXT(I23-H43-H42,"0,00")&" / "&TEXT(H42+H43+KdUMoGAbzug,"0,00"),"") ->  | F43: =IF(Orte!BS$28>0,H43,0) -> 0 | H43: =IF(OR(Orte!O16,Orte!O12),0,IF(I43>0,I43,IF(AND(H27="alte MOG",AO95<>4),AM110,AM105))) -> 0 | K43: =IF(OR(K76="ja",U65),0,ROUND(U61,2)) -> 0 | M43: =IF(K43>0,"€ "&IF(ROUND(K43,2)>1,"werden","wird")&" ab dem 7. Monat nach Aufforderung zur Kostensenkung"&CHAR(10)&" nicht vom JC übernommen" & IF(AND(AG109,Energieart=""),", => Energieträger nicht gewählt !"," !"),"") ->  | V43: =AD33-H18 -> 0 | W43: =AD33-H18 -> 0 | X43: =AD33 -> 0 | Y43: =AD33 -> 0 | Z43: =AD33 -> 0 | AA43: =AD33 -> 0 | AB43: =AD33 -> 0 | AC43: =AD33 -> 0 | AF43: tats. BK | AG43: =IF(ISERROR(HLOOKUP(AG$40,AH$40:AK$45,4,FALSE)),"",IF(HLOOKUP(AG$40,AH$40:AK$45,4,FALSE)<>0,HLOOKUP(AG$40,AH$40:AK$45,4,FALSE),"")) ->  | AI43: nein | AJ43: W2 | AK43: nein | AL43: =AC119=TRUE -> FALSE | AM43: =IF(F40="alleinerz-a",1,IF(F40="alleinerz-b",2,IF(F40="alleinerz-c",3,IF(F40="schwerb-a",4,IF(F40="schwerb-b",5,IF(F40="schwerb-c",6,IF(F40="Einzelfall",7,0))))))) -> 0 | AN43: =IF(AND(Orte!CY28<AO33,NOT(AND(AO29>-2,AO26>0,AO33<11))),FALSE,TRUE) -> TRUE | AO43: =IF(AO26=-2,10,Orte!CY28) -> 10 | AP43: Mietobergrenzen für x Personen bekannt | AR43: =IF(AND(F40<>"",F40<>"nein"),"Erhöhung der MOG","") ->  | AS43: =IF(AND(F40<>"",F40<>"nein"),"(Variante: "&F40&")","") ->  | AY43: =IF(AX43>0,AX43,IF(Orte!BO28=0,10,IF(ISNUMBER(Orte!BO28),Orte!BO28,10))) -> 10
F44: =IF(H43>0,"Summe: "& TEXT(H42+H43,"0.0,00"),"") ->  | V44: =H18 -> 0 | W44: =H18 -> 0 | AF44: tats. Wasser | AG44: =IF(ISERROR(HLOOKUP(AG$40,AH$40:AK$45,5,FALSE)),"",IF(HLOOKUP(AG$40,AH$40:AK$45,5,FALSE)<>0,HLOOKUP(AG$40,AH$40:AK$45,5,FALSE),"")) ->  | AJ44: nein | AN44: =IF(AND(Orte!CY28<AO33,Orte!AL28=0),FALSE,TRUE) -> TRUE | AO44: =IF(SUM(F86:F93)>0,VLOOKUP(SUM(F86:F93),R87:S95,2),0) -> 50 | AP44: qm Wohnfläche - Ausgangswert | BO44: =IF(BQ44>0," Höchster Betrag:","") ->  | BQ44: =IF(BY44<2,MAX(BT50,BU50,BX50),0) -> 0 | BY44: =Orte!CC28 -> 2
B45: =IF(H45>0,IF(OR(H45<AE33,AND(Y31,AG15=7)),"Miete ab 7. Monat n. Aufforderung zur Kostensenkung","vom Jobcenter zu zahlende Miete")&IF(U65," incl."," ohne")&" Heizkosten"&IF(U67," (incl. "," (ohne ")&"WW)","") ->  | H45: =IF(OR(Orte!O16,Orte!O12),0,ROUND(U60,2)) -> 0 | M45: =IF(AC174,AC189,IF(K47>0,"Mietobergrenze"&IF(AN22="ja"," bei Überschreiten (!) der MOG,","")&" nach Leistungsunterbrechung " &IF(OR(K29=": 01.06.2013",K29=": 01.06.2015"),"von mehr als 6 Monaten ","") &"oder Umzug "&IF(K47<AE33," ("&TEXT((K47-AE33),"0,00")&CHAR(160)&"€ KdU"& IF(K47-H28>0," / "&TEXT((K47-H28),"0,00")&CHAR(160)&"€ MOG) !",")"),""),IF(AO131=1,"* Seit "&MID(K29,2,30)&" gelten in "&K27&"/"&K28&CHAR(10)&" höhere Mietobergrenzen"&" ("&TEXT(AO33,"0")&" Person"&IF(AO33>1,"en","")&").",IF(AND(AO100<AO102,AO131=2),"** Die Mietobergrenze wird durch den Mietpreis pro qm und die angemessene Größe der Wohnung begrenzt !","")))) -> * Seit 01.06.2024 gelten in Region Hannover/Hannover höhere Mietobergrenzen (1 Person). | X45: =I54 -> 0 | Y45: =$I54 -> 0 | Z45: =$I54 -> 0 | AA45: =$I54 -> 0 | AB45: =$I54 -> 0 | AC45: =I54 -> 0 | AD45: =$I54 -> 0 | AF45: tats. HK | AG45: =IF(ISERROR(HLOOKUP(AG$40,AI$40:AK$45,6,FALSE)),"",IF(HLOOKUP(AG$40,AI$40:AK$45,6,FALSE)<>0,HLOOKUP(AG$40,AI$40:AK$45,6,FALSE),"")) ->  | AL45: =AND(AL40,AL41,AL42,AL43) -> FALSE | AM45: =IF(AM43>0,CHOOSE(AM43,AM96,AM122,AM130,AM96,AM122,AM130,0),0) -> 0 | AN45: =AO45=1 -> FALSE | AO45: =IF(H27="ja",1,0) -> 0 | AP45: 1 = Bestandsfall, 0 =MOG gilt | AR45: =IF(F40<>"",IF(AM43>0," Grund: "&IF(AND(AM43>0,AM43<4),"alleinerziehend",IF(AND(AM43>3,AM43<7),"schwerbehindert","Einzelfallentscheidung"))&"; "&CHOOSE(AM50,"Mietobergrenze auf MOG mit einer zusätzlichen Person erhöht","Mietobergrenze nach Wohngeldtabelle + 1 Person +10% Sicherheitszuschlag","Mietobergrenze erhöht durch Erhöhung der angemessenen Wohnfläche um "& TEXT(AM126,"0")&" qm"," MOG wird auf die tatsächliche Miete erhöht"),""),"") ->  | BP45: mögliche Energieträger | BT45: =MID(Orte!CF36,1,LEN(Orte!CF36)-2) -> Erdgas | BU45: =MID(Orte!CG36,1,LEN(Orte!CG36)-2) -> Fernwärme | BV45: =MID(Orte!CH36,1,LEN(Orte!CH36)-2) -> Nachtstrom | BW45: =MID(Orte!CI36,1,LEN(Orte!CI36)-2) -> Kohle | BX45: =MID(Orte!CJ36,1,LEN(Orte!CJ36)-2) -> Heizöl
AF46: Warmwasser | AM46: =IF(AM45>0,AM45-AN96,0) -> 0 | AO46: =IF(Orte!N20=0,-1,Orte!N20) -> 6 | AP46: Lfd. Nr des Ortes in einer Region | AR46: =IF(AND(F40<>"",F40<>"nein")," "&"Ausgangs-MOG "&CHOOSE(AM50,"("&TEXT(AO117,"0")&" Pers.)","(Mietenstufe: "&TEXT(AO118,"0")&", "&TEXT(AO117,"0")&" Pers.)","(angemessen: "&TEXT(AO44,"0")&" qm)",""),"") ->  | AW46: =IF(AND(F40<>"",F40<>"nein"),AN96,"") ->  | BI46: =IF(BI49>0,IF(BU52=BU50,BU46,""),"") ->  | BP46: Energieträger mit gültigen Werten | BT46: =IF(BT50>0,MID(Orte!CF36,1,LEN(Orte!CF36)-2),"") -> Erdgas | BU46: =IF(BU50>0,MID(Orte!CG36,1,LEN(Orte!CG36)-2),"") -> Fernwärme | BV46: =MID(Orte!CH36,1,LEN(Orte!CH36)-2) -> Nachtstrom | BW46: =IF(BW50>0,MID(Orte!CI36,1,LEN(Orte!CI36)-2),"") ->  | BX46: =IF(BX50>0,MID(Orte!CJ36,1,LEN(Orte!CJ36)-2),"") -> Heizöl
B47: =IF(WE!G42>0,"Belastung aus Wohneigentum (WE)","Zahlung an Vermieter"&IF(OR(AO17>0,AP21<>0,AP22<>0)," einschließl. ","")& IF(AP21<>0,"Heizkosten","") &IF(AND(AP21<>0,AP22<>0),", ","")& IF(AP22<>0, "Warmwasser","") &IF(OR(AND(AO17>0,AP22<>0),AND(AO17>0,AP21<>0)),", ","")& IF(AO17>0, "Kabelanschluß","")) -> Zahlung an Vermieter | H47: =ROUND(IF(AND(F18="x",AO15>0),AO48-AO15,AO48),2) -> 0 | K47: =IF(OR(AG1,AC147),0,IF(AO95=2,IF(AO97<>AO98,IF(AN3>0,AO97+AO97*AN3,AO97),0),0)) -> 0 | U47: =IF(ISERROR(HLOOKUP(AF$40,V$38:AE$65,AG47,FALSE)),0,HLOOKUP(AF$40,V$38:AE$65,AG47,FALSE)) -> 0 | V47: =SUM(V42:V46) -> 0 | W47: =SUM(W42:W46) -> 0 | X47: =SUM(X42:X46) -> 0 | Y47: =SUM(Y42:Y44) -> 0 | Z47: =SUM(Z42:Z44) -> 0 | AA47: =SUM(AA42:AA44) -> 0 | AB47: =SUM(AB42:AB44) -> 0 | AC47: =SUM(AC42:AC46) -> 0 | AD47: =SUM(AD42:AD46) -> 0 | AE47: =SUM(AE42:AE46) -> 0 | AF47: Summe | AG47: =ROWS(AG$38:AG47) -> 10 | AH47: 100-250 | AI47: 1 | AJ47: =DATEVALUE(RIGHT(Orte!Y28,10)) ->  | AK47: =IF(NOT(ISERROR(AJ47)),2,0) -> 0 | AM47: =IF(AM43>0,CHOOSE(AM43,"alleinerziehend","alleinerziehend","alleinerziehend","schwerbehindert","schwerbehindert","schwerbehindert","Einzelfall"),"") ->  | AO47: =IF(Orte!X18=0,-1,Orte!X18) -> 499 | AP47: Euro MOG | AR47: =IF(AND(F40<>"",F40<>"nein")," "&CHOOSE(AM50,"","Wohngeldtabelle"&" ("&"Mietenstufe: "&TEXT(AO118,"0")&", "&TEXT(AM117,"0")&" Pers."&")","Quadratmeterpreis = angemessene MOG : angemessene Wohnfläche ",""),"") ->  | AW47: =IF(AND(F40<>"",F40<>"nein"),CHOOSE(AM50,0,AM119,AM128,0),"") ->  | BI47: =IF(BI49>0,IF(BT52=BT50,BT46,""),"") ->  | BP47: Liste für Gültigkeitsprüfung: | BT47: =IF(BT46<>"",BT46,BU46) -> Erdgas | BU47: =IF(BU46<>"",IF(BT47=BU46,IF(BV46<>"",BV46,""),BU46),BV46) -> Fernwärme | BV47: =IF(BV46<>"",IF(BU47=BV46,IF(BW46<>"",BW46,""),BV46),IF(AND(BW46<>"",BX46<>BU47),BW46,BX46)) -> Nachtstrom | BW47: =IF(BW46<>"",IF(BV47=BW46,IF(BX46<>"",BX46,""),BW46),IF(AND(BX46<>"",BX46<>BV47),BX46,"")) -> Heizöl | BX47: =IF(BX46<>"",IF(AND(BW47<>BX46,BV47<>BX46,BU47<>BX46),BX46,""),"") -> 
B48: =+IF(F18="x","Zahlung an den Wasserversorger"&IF(AO15=0," (keine angegeben)",""),"") ->  | H48: =+IF(AND(F18="x",AO15>0),AO15,0) -> 0 | U48: =IF(ISERROR(IF(AO38,HLOOKUP(AF$40,V$38:AE$65,AG48,FALSE),0)),0,IF(AO38,HLOOKUP(AF$40,V$38:AE$65,AG48,FALSE),0)) -> 499 | V48: =AC48 -> 0 | W48: =AC48 -> 0 | X48: =AC48 -> 0 | Y48: =AC48 -> 0 | Z48: =AC48 -> 0 | AA48: =AL96 -> 499 | AB48: =AC48 -> 0 | AC48: =IF(W85>AL96+AL96*AN3,AL96+AL96*AN3,W85) -> 0 | AD48: =IF(OR(K76="x",K76="ja"),AD31,W95) -> 0 | AE48: =AJ35 -> 499 | AF48: a) angem. Miete R44 | AG48: =ROWS(AG$38:AG48) -> 11 | AH48: 251-500 | AI48: 2 | AJ48: =DATEVALUE(RIGHT(Orte!Y28,11)) ->  | AK48: =IF(NOT(ISERROR(AJ48)),3,0) -> 0 | AL48: =IF(AL49<>"","KdU-RL","") -> KdU-RL | AM48: =IF(AM47>AM96,1,0) -> 1 | AO48: =IF(WE!G42>0,WE!G42+WE!G43,I15+I16)+AO14+AO15+AO16+AO17+IF(AP21>0,AP21,0)+IF(AP22>0,AP22,0) -> 0 | AP48: Kosten Vermieter / WE | AR48: =IF(AND(F40<>"",F40<>"nein")," "&CHOOSE(AM50,"","Sicherheitszuschlag 10%","",""),"") ->  | AW48: =IF(AND(F40<>"",F40<>"nein"),CHOOSE(AM50,0,AW47*10%,0,0),"") ->  | BS48: Daten für qm-HK-Pauschalen
U49: =IF(ISERROR(IF(AN43,HLOOKUP(AF40,V38:AE65,AG49,FALSE),0)),0,IF(AN43,HLOOKUP(AF40,V38:AE65,AG49,FALSE),0)) -> 0 | V49: =AD33-H18 -> 0 | W49: =AD33-IF(K31<>"nein",H18,0) -> 0 | X49: =IF($AB27,IF($AB26,$AD33,IF(X43>$AN17,$AN17,X43)),$Y88) -> 0 | Y49: =IF($AB27,IF($AB26,$AD33,IF(Y43>$AN17,$AN17,Y43)),$Y88) -> 0 | Z49: =Y5+Z5 -> 0 | AA49: =AD33 -> 0 | AB49: =IF(OR(AND(OR(AO15=0,AND(AA98,NOT(AB26))),AG15=9)),Y90,IF($AB27,IF($AB26,$AD33,IF(AB43>$AN17,$AN17,AB43)),$Y88)) -> 0 | AD49: =AD33 -> 0 | AE49: =IF(AO53="ex",IF(OR(K76="x",K76="ja"),AD33,0),0) -> 0 | AF49: b) angem. Bk G33 | AG49: =ROWS(AG$38:AG49) -> 12 | AH49: 501-1000 | AI49: 3 | AJ49: =DATEVALUE(RIGHT(K29,10)) -> 45444 | AK49: =IF(NOT(ISERROR(AJ49)),4,0) -> 4 | AL49: =Orte!BO27 -> a | AM49: =RIGHT(F40,1) ->  | AO49: inc | AP49: globale Vorgabe BK in MOG: inc oder ex | AR49: =IF(AND(F40<>"",F40<>"nein")," "&"erhöhte MOG "&CHOOSE(AM50,"("&TEXT(AM117,"0")&" Pers."&")","","(Quadratmeterpreis "&TEXT(AM128,"0,00")&" € x auf "&TEXT(AO44+AM126,"0,00")&" qm erhöhte Wohnfläche"&")",""),"") ->  | AW49: =IF(AND(F40<>"",F40<>"nein"),CHOOSE(AM50,AM45,AM45,AM45,AW46+H40),"") ->  | BI49: =IF(NOT(ISERROR(BI52)),IF(BI52="t",1,0),1) -> 0
B50: Energiekosten (Zahlung an Energieversorger, nicht Vermieter) | N50: =IF(OR(AND(M60="x",'ALG2'!B27>4.5),AND(AG90=0,M54="Nachtstrom")),"Seit Oktober 2010 ist ein Abzug für Kochenergie von den Heizkosten nur zulässig, wenn eine realitätsnahe Schätzung des Energieanteils möglich ist ! (BSG-Urteil v. 19.10.2010 - B 14 AS 50/10 R)","") ->  | V50: =IF(AND(K35<>"Einzelfall",V44>Y81),Y81,V44)+H37 -> 0 | W50: =$AC50 -> 0 | X50: 0 | Y50: 0 | Z50: 0 | AA50: 0 | AB50: 0 | AC50: =H37 -> 0 | AD50: =IF(OR(K76="x",K76="ja"),AD31,F30)+H37 -> 0 | AF50: G38 | AH50: >1000 | AI50: 4 | AJ50: =DATEVALUE("01.01."&RIGHT(Orte!Y28,4)) -> 45292 | AK50: =IF(NOT(ISERROR(AJ50)),1,0) -> 1 | AM50: =IF(AM43>3,AM43-3,AM43) -> 0 | AO50: ex | AP50: globale Vorgabe Heizkosten in MOG: inc oder ex | AR50: =IF(AND(F40<>"",F40<>"nein")," "&IF(AW46=AW49,"kein ","")&"Unterschiedsbetrag zur Ausgangs-MOG","") ->  | AW50: =IF(AND(F40<>"",F40<>"nein"),AW49-AW46,"") ->  | BI50: =IF(OR(AND(BT51>0,M54=BT45),AND(BU51>0,M54=BU45),AND(BV51>0,M54=BV45),AND(BW51>0,M54=BW45),AND(BX51>0,M54=BX45)),TRUE,FALSE) -> FALSE | BM50: =HKS!C8 -> 2024 | BP50: gewählte Werte | BS50: =IF(BS51>0,BS51,BQ44) -> 0 | BT50: =IF(ISERROR(BT51),0,IF(OR(BT51=0,$AM56>0),IF(HKS!$C6<>HKS!$C8,BT52,BT53),BT51)) -> 2.84 | BU50: =IF(ISERROR(BU51),0,IF(OR(BU51=0,$AM56>0),IF(HKS!$C6<HKS!$C8,BU52,BU53),BU51)) -> 2.04 | BV50: =IF(ISERROR(BV51),0,BV51) -> 5.37 | BW50: =IF(ISERROR(BW51),0,BW51) -> 0 | BX50: =IF(ISERROR(BX51),0,IF(OR(BX51=0,$AM56>0),IF(HKS!$C6<HKS!$C8,BX52,BX53),BX51)) -> 2.88
A51: 2.1 | B51: Haushaltsstrom | V51: =Y81 -> 0 | AE51: =IF(AK60,AH58,AI58) -> 0 | AF51: c) angemessene Heizkosten | AI51: =ISERROR(TEXT(AJ52,"tt.MM.JJJJ")) -> FALSE | AJ51: =Debug!A5 -> 46048 | AK51: =IF(SUM(AK47:AK50)>0,MAX(AK47:AK50),0) -> 4 | AO51: =IF(OR(LEFT(K27,2)="--",K27=""),0,IF(Orte!Y28<>0,Orte!Y28 & IF(AND(NOT(LEFT(Orte!Y28,8)="Wohngeld"),AJ52>0,NOT(AI51),AI52>365*2)=TRUE," !",""),"")) -> Stand: 1.6.2024 | AP51: Gültigkeit der KdU-Richtlinie | AR51: =IF(AND(F40<>"",F40<>"nein")," "&IF(AM50=2,"Quelle: ","")&CHOOSE(AM50,"","Beschluss des LSG Niedersachsen-Bremen vom 21.11.2011, L 11 AS 1063/11 B ER","",""),"") ->  | BI51: =IF(SUM(BS51:BX51)>0,TRUE,FALSE) -> TRUE | BP51: regionale Werte für Energieträger | BS51: =Orte!CE28 -> 0 | BT51: =Orte!CF28 -> 2.84 | BU51: =Orte!CG28 -> 2.04 | BV51: =Orte!CH28 -> 5.37 | BW51: =Orte!CI28 -> 0 | BX51: =Orte!CJ28 -> 2.88
A52: 2.2 | B52: =" Energie zum Kochen"&IF(AO62=1," oder zur Warmwasserbereitung","")&" (nicht zum Heizen!)" -> Energie zum Kochen (nicht zum Heizen!) | I52: =IF(AO62=1,IF(H52>0,H52,IF(ISNUMBER(H22),ABS(H22),IF(ISNUMBER(K22),ROUND(ABS(K22)/Werte09!C51,2),0))),IF(H52>0,H52,0)) -> 0 | K52: =IF(AND(H52>0,I60<>0)," <== F E H L E R ! Gas zum Kochen unter 2.5 angegeben","") ->  | AC52: =X88-IF(AB26,0,Y92) -> 0 | AF52: d) Gesamthöchstbetrag Betriebs- u. Heizkosten | AI52: =IF(ISERROR(AJ51-AJ52),0,AJ51-AJ52) -> 604 | AJ52: =IF(AK51>0,CHOOSE(AK51,AJ50,AJ47,AJ48,AJ49),0) -> 45444 | AL52: Heizkostenspiegel kom. Vorgabe | AO52: =IF(AND(SUM(BT50:BX50)>0,NOT(OR(AO71="keine",AO71="HK absolut"))),1,0) -> 1 | AP52: 1 = Region m. Energieartauswahl | BI52: =IF(AND(OR(AND(BT50=BT52,OR(ISERROR(BT51),BT51=0)),AND(BU50=BU52,OR(ISERROR(BU51),BU51=0)),AND(BX50=BX52,OR(ISERROR(BX51),BX51=0)))),"t","") ->  | BN52: =IF(BI49>0,IF(BX52=BX50,BX46,""),"") ->  | BO52: =IF(AO27+AO90+AO91+IF(LEFT(K28,2)="--",1,0)+IF(ISERROR(BT51),0,BT51)+IF(ISERROR(BU51),0,BU51)+IF(ISERROR(BX51),0,BX51)=0,"x","") ->  | BP52: ="Bundesheizspiegel "& TEXT(HKS!C8,"0")& " "&AL54 -> Bundesheizspiegel 2024 a | BT52: =CHOOSE(AM53,HKS!M2,HKS!O2,HKS!Q2,HKS!S2) -> 2.65917 | BU52: =CHOOSE(AM53,HKS!U2,HKS!W2,HKS!Y2,HKS!AA2) -> 2.0425 | BX52: =CHOOSE(AM53,HKS!E2,HKS!G2,HKS!I2,HKS!K2) -> 2.17583 | BZ52: =HKS!AC8 -> 0.23333
C53: =IF(AND(OR(ABS(K21)>0,ABS(H21)>0),H54>0)," F E H L E R ! Heizkosten nur unter 1.7 o d e r unter 2.3 angeben !","") ->  | K53: =IF(K54>0,"anteilig","") ->  | M53: =IF(AN127," "&IF(K54>0,"anteilige ","")&"Heizkosten werden um "&TEXT(P94,"0,00")&" € Regelsatzanteile für Strom"&IF(AND(AO125>0,AO127<=0)," auf 0,00 € (!)","") & " gekürzt !","") ->  | AD53: =IF(AND(H36>0),ABS(K62),0) -> 0 | AE53: =IF(OR(AND(H62="ja",OR(M58<>"x",M58<>"ja")),AN63>0,H22<>0,K22<>0,M58="x",M58="ja"),0,-ABS(K62)) -> 0 | AF53: e) Korrektur Warmwasser | AH53: Abzug HK anzeigen | AL53: =H67 -> 0 | AM53: =IF(AL53<>0,VLOOKUP(AL53,AH47:AI51,2,FALSE),1) -> 1 | AN53: MoG-Richtlinie | AO53: =IF(OR(LEFT(K27,2)="--",K27=""),"inc",Orte!AN28) -> inc | AP53: MOG incl. oder ex. Betriebskosten | BP53: ="Bundesheizspiegel "& TEXT(HKS!C6,"0")& " "&AL54 -> Bundesheizspiegel 2023 a | BT53: =CHOOSE(AM53,HKS!M6,HKS!O6,HKS!Q6,HKS!S6) -> 2.98417 | BU53: =CHOOSE(AM53,HKS!U6,HKS!W6,HKS!Y6,HKS!AA6) -> 1.92583 | BX53: =CHOOSE(AM53,HKS!E6,HKS!G6,HKS!I6,HKS!K6) -> 2.63417
A54: 2.3 | B54: =IF(AND(H54="",I54<=0,AO21=0,H21="",K21="")," Betrag für Heizkosten eintragen !"," Kosten für Erdgas / Fernwärme / Nachtstrom / Zentralheizung")& IF(AO24>0," (WE)","") -> Betrag für Heizkosten eintragen ! | F54: =IF(AND(H54="",I54<=0),"== > ","") -> == > | I54: =AO127 -> 0 | K54: =AO128 -> 0 | N54: =IF(AL65," < == Energieträger für Heizung wählen",IF(AO129<>""," "&AO129,"")) -> < == Energieträger für Heizung wählen | W54: =$H40 -> 0 | X54: 0 | Y54: 0 | Z54: 0 | AA54: 0 | AB54: 0 | AC54: =H38+H40 -> 0 | AD54: =H38+H40 -> 0 | AE54: =IF(AE33>AE48,H40,0) -> 0 | AF54: f) Einzelfall/schwerbeh. | AH54: =IF(AH63<0,0,IF(OR(AN54="allinc",AND(AM81=5,OR(H71="ja",H71="x"))),H72,IF(AND(AH63>H72,H72>0),IF(AH63=0,0,IF(AND(H71<>"nein",OR(H71="x",H71="ja")),IF(AND(H62="ja",I58=0),AH63,AH63),H72)),AH63))) -> 0 | AI54: =IF(OR(H72=0,NOT(AC158)),AH63,IF(AND(AH63>H72,H71<>"ja",H71<>"x",K76<>"ja",K76<>"x"),H72,AH63)) -> 0 | AL54: =CHOOSE(AM53,"a","b","c","d") -> a | AM54: =IF(AND(Orte!BV27>0,Orte!BV27<=HKS!B6,Orte!BV27>=HKS!B5),Orte!BV27,0) -> 0 | AN54: =IF(AND(AO53="inc",AO54="inc"),"allinc","") ->  | AO54: =IF(OR(LEFT(K27,2)="--",K27=""),"ex",Orte!AM28) -> ex | AP54: MOG incl. oder ex. Heizkosten
A56: =IF(B56<>"","2.4","") ->  | B56: =IF(M54="Nachtstrom"," "&IF(M56="","Gibt es einen zusätzlichen ","")&IF(M56="nein","kein ","")&"Zähler für die Nachtstromheizung"&IF(M56=""," ?","."),IF(AM81=5," "&"Grundbetrag für Heizkosten"&IF(H56=0," eintragen, wenn "," (")&"in Heizkosten enthalten"&IF(H56=0," ==> ",")"),IF(AND(H56>0,AM81<>5)," Eintrag in diesem Zusammenhang ungültig ! "&IF(AM81=6,"('nein' oder keine Angabe in 3.5)",REPT(" ",50))&" ==>",""))) ->  | N56: =IF(M54="Nachtstrom"," "&IF(M56="nein","kein ","")&IF(M56=""," <== ","")&"eigener Zähler nur für Nachtstromheizung"&IF(M56=""," ?","."),"") ->  | W56: =$H38 -> 0 | X56: 0 | Y56: 0 | Z56: 0 | AA56: 0 | AB56: 0 | AE56: =IF(AE33>AE48,H38,0) -> 0 | AF56: g) Sanierungszuschlag | AH56: =AI56 -> 0 | AI56: =IF(AF104="I",AJ56,0) -> 0 | AJ56: =IF(AND(AC135>0,OR(AC116=FALSE,AND(Y33,AC117))),IF(AC116=FALSE,IF(AA120-AC135>0,AG106,0),AC130),0) -> 0 | AK56: =AH102 -> Toleranzbetrag | AM56: =IF(AM54>0,Orte!BW27,0) -> 0 | AN56: =Orte!BW27 -> 1
A58: 2.5 | B58: =IF(AO62=1," -"," +")&" Warmwasserbereitungskosten (nur wenn in 2.3/1.3 "&IF(AO62=1,"",UPPER(" nicht"))&" enthalten)" -> + Warmwasserbereitungskosten (nur wenn in 2.3/1.3 NICHT enthalten) | I58: =IF(OR(M58="Einzelfall",AND(K76="ja",AN63>0)),AN63,IF(AO63,AO63,IF(OR(M58="x",M58="ja"),AO63,0))) -> 0 | K58: =IF(K54>0,IF(AND(AO126,OR(H22<>0,H58>0)),I58/AH13*AI13,I58),0) -> 0 | N58: =IF(OR(AND(M58<>"x",M58<>"ja",H58="",I54>0,I22=0,SUM(F86:F87)>0,H22="",K22="",OR(WE!D38="",WE!D38=0)),AND(I58=0,H62="ja")),IF(AND(I58=0,H62="ja")," < ==","")&" ' ja' eintragen, falls Warmwasserkosten in Heizkosten"&IF(AO62=1,""," NICHT")&" enthalten sind",IF(AND(OR(H22<>"",I52<>0),M58<>"",AO62=5)," F E H L E R ! Warmwasserbereitungskosten schon unter 1.8 oder 2.2 angegeben !",IF(AND(M58<>"",WE!K35>0)," FEHLER ! Warmwasserbereitungskosten schon auf Seite WE angegeben !",IF(OR(M58="Einzelfall",AND(I58>0,OR(AM63>AN63,BF11<>"G"),AN63>0))," tatsächliche WW-Bereitungskosten statt Pauschale berücksichtigt",IF(OR(AND(AN63>0,OR(M58="x",M58="ja")),AND(I58>0,OR(I58<H58,I58<H22,AM63=AO63,AM63=0))),IF(AND(BF11="G",AN63>0,AN63>AM63,AND(M58<>"Einzelfall",K76<>"ja"))," <== Einzelfall ? "," ")&"pauschaler Mehrbedarf für Warmwasserbereitung ","")&IF(AND(BF11="G",AN63>0,AN63>AM63,M58<>"Einzelfall"),"als Grenzwert für Einzelfallprüfung !",""))))) ->  | U58: =IF(ISERROR(IF(AN43,HLOOKUP(AF40,V38:AE65,AG58,FALSE),0)),0,IF(AN43,HLOOKUP(AF40,V38:AE65,AG58,FALSE),0)) -> 499 | V58: =SUM(V48:V50)+SUM(V52:V56) -> 0 | W58: =SUM(W48:W56) -> 0 | X58: 0 | Y58: 0 | Z58: 0 | AA58: 499 | AB58: 0 | AC58: 0 | AD58: =SUM(AD50:AD56) -> 0 | AE58: =IF(Y31,AJ35,AE25)+IF(H33<I33,I33,H33)+SUM(H35:H40)+IF(AC131,0,H41) -> 499 | AF58: Miete gilt als angemessen bis | AG58: =ROWS(AG$38:AG58) -> 21 | AH58: =AH63 -> 0 | AI58: =IF(AI54+AI56>AH63,AH63,AI54+AI56) -> 0 | AO58: =IF(LEFT(N58,4)=" F E",TRUE,FALSE) -> FALSE | AP58: signalisiert Fehler bei Warmwasserangabe, wenn 'RICHTIG' | BK58: =Orte!AO28 -> 1 | BM58: Tabelle: Zuschlag zur MOG wg energetischer Sanierung bei Energieverbrauch pro qm
A60: =IF(B60<>"","2.6","") ->  | B60: =IF(OR('ALG2'!B27<5,M60="x")," - Pauschale für Energie zum Kochen (nur falls in 2.3 enthalten)","") ->  | I60: =IF(AND(AG90>0,M60="x"),M94,0) -> 0 | N60: =IF(AND('ALG2'!B27<5,I54>0,AND(M60<>"x",M60<>"-"),SUM(F86:F87)>0)," ' x' eintragen, falls Energie zum Kochen in Heizkosten enthalten sind",IF(I60<0," Pauschale für Energie zum Kochen ","")) ->  | U60: =IF(ISERROR(IF(AN43,HLOOKUP(AF40,V38:AE65,AG60,FALSE),0)),0,IF(AN43,HLOOKUP(AF40,V38:AE65,AG60,FALSE),0)) -> 0 | V60: =IF(AND(V47>V58,NOT($Y$31)),V58,V47) -> 0 | W60: 0 | X60: 0 | Y60: 0 | Z60: 0 | AA60: 0 | AB60: =IF(OR(Y31,AB47<AB58),AB47,AB58) -> 0 | AC60: =IF(AD31+I54<H42,AD31+I54,H42)+AC64 -> 0 | AD60: =IF(AND(AE33>H42,AN22="ja"),IF(AN3>0,AN25,IF(AO47>0,AO47+H38+H40,0)),IF(AN3>0,AM24,AN23)) -> 0 | AE60: =IF(AND(AE33>AE58,AI35),AE58,IF(OR(AND(NOT(AC125),NOT(AC117)),AND(AC117,AC125)),IF(AC131,AE58,IF(AND(AE33>AE58+AE30,AC116=FALSE),AE58+AE30,AE33)),AE33)) -> 0 | AF60: vom JC zu zahlen G40 | AG60: =ROWS(AG$38:AG60) -> 23 | AH60: =ROUND(IF(AB29,0,IF(AND(AH58-AH54>0,AC139,IF(AF104="I",NOT(AK60),TRUE)),AH58-AH54-AH56,0)),AJ130) -> 0 | AI60: =IF(AB29,0,IF(AND(AH58-AH54>0,AC139,IF(AF104="I",NOT(AK60),TRUE)),AH58-AH54-AH56,0)) -> 0 | AK60: =AL45 -> FALSE | AL60: =P19 -> 0 | AO60: =IF(AO62>1,"11",IF(F58="BSG 2008","09","10")) -> 11 | AP60: WW-Pauschale: alt = 09, neu = 10, ab 2011 = 11 | BK60: =IF(BK58<>0,VALUE(LEFT(BK58,1))*10,0) -> 10 | BM60: 1-5: €/Pers 6: €/weitere P | BO60: Bezeichnung der Bonusstufe | BS60: Bezeichnung für Zuschlagsmodell
B61: ="Heizkosten" &IF(AO62=2," incl. Warmwasser","")&" ohne Regelsatzanteile für "&IF(AO62=1,"WW + ","")&"Kochenergie" -> Heizkosten incl. Warmwasser ohne Regelsatzanteile für Kochenergie | K61: =IF(OR(K54+SUM(K55:K60),I54+SUM(I55:I60)),IF(K54>0,K54+SUM(K55:K60),I54+SUM(I55:I60)),0) -> 0 | M61: =IF(AND(I15<>"",K61<=0),0,IF(K54=0,IF(K61<I54,ABS(K61-I54),0),IF(K61<K54,ABS(K61-K54),0))) -> 0 | N61: =IF(AND(I15<>"",K61<=0)," ? keine Heizkosten ?",IF(OR(AND(K54=0,K61<I54),AND(K54>0,K61<K54))," € werden nicht vom JC übernommen !","")) -> ? keine Heizkosten ? | U61: =IF(AF100,AC134,HLOOKUP(AF40,V38:AE65,AG61,FALSE)) -> 0 | V61: =IF(SUM(V42:V44)>=V58,SUM(V42:V44)-V58,0) -> 0 | W61: =IF(SUM(W42:W44)>W58,SUM(W42:W44)-W58,0) -> 0 | X61: =IF(SUM(X42:X43)>X58,SUM(X42:X43)-X58,0) -> 0 | Y61: =IF(SUM(Y42:Y43)>Y58,SUM(Y42:Y43)-Y58,0) -> 0 | Z61: =IF(SUM(Z42:Z43)>Z58,SUM(Z42:Z43)-Z58,0) -> 0 | AA61: =IF(AA47>AA58,AA47-AA58,0) -> 0 | AB61: =IF(AD31>AB58,ABS(AB58-AD31),0) -> 0 | AC61: =IF(OR(AB26,AC54>Y93),0,Y93-AC50) -> 0 | AD61: =IF(AD31>F30+AD53+AD54,AD31-F30-AD53-AD54,0) -> 0 | AE61: =IF(NOT(AC138),0,IF(AND(AL23="x",K35<>"Einzelfall"),AL29,IF(AND(AD31>0,AD31>H45),AD31-H45,IF(OR(AC131,AD114,AE114,AF114,AC138),IF(AE33-H45>0,IF(AND(AE118="O2",AE145=FALSE),0,AE33-H45),0),0)))) -> 0 | AF61: Kürzung um k43 | AG61: =ROWS(AG$38:AG61) -> 24 | AI61: =AM81 -> 0 | AN61: =IF(AND(AN63>AS13,AS12=5),AS13,IF(M58="x",IF(AS12>0,AS13,AS4),AN63)) -> 0 | AO61: =IF(N61=" ? keine Heizkosten ?",TRUE,FALSE) -> TRUE | AP61: =IF(NOT(AO4)," kein "," ==> ")&"Fehler bei Heizkosten, Fehler wenn 'WAHR'" -> kein Fehler bei Heizkosten, Fehler wenn 'WAHR' | BK61: =BL62 -> 10 | BL61: 10 | BM61: 1 | BO61: 90,1-120 kWh | BP61: 60,1-90 kWh | BQ61: < 60 kWh | BS61: Modell Region Hannover 6.2013
A62: =IF(B62<>"","2.7","") ->  | B62: =IF(AO64,IF(H62="","Sind ","")&"Warmwasserbereitungskosten "&IF(H62="ja","sind ",IF(H62="nein","sind nicht ",""))&"in Heizkosten enthalten"&IF(H62=""," ? ==>","."),"") ->  | K62: =IF(AC151,AC150,0) -> 0 | M62: =IF(K62<0,AC152,"") ->  | U62: =HLOOKUP(AF40,V38:AE65,AG62,FALSE) -> 0 | X62: =IF(AN17>0,AN17,Y88) -> 0 | Y62: =IF(AN17>0,AN17,Y88) -> 0 | Z62: =AA5 -> 0 | AB62: =IF(AND(H18=0,AG15=9),Y88+W81*-1,Y88) -> 0 | AC62: =Y88 -> 0 | AF62: Betriebskostengrenze H33 | AG62: =ROWS(AG$38:AG62) -> 25 | AH62: =I72 -> 0 | AI62: i72 | AJ62: angm HK | AN62: =IF(AND(AN63>AS13,AS12=2),0,AO3) -> 1 | AO62: =Werte10!D67 -> 2 | AP62: Warmwasser im Regelsatz enthalten: 1= ja, 2= nein | BK62: =BL62+BM62 -> 11 | BL62: =IF(BS62<>"",BL61+10,BL61) -> 10 | BM62: 1 | BO62: 15 | BP62: 22.5 | BQ62: 30
B63: =IF(AC115,"",Orte!CD28) -> ab 1.6.2015: in Heizkosten enthaltene Warmwasserpauschale wird abgezogen ! (0,21 bzw. 0,27 € / qm) | K63: =IF(K62<>0,AH63,0) -> 0 | M63: =IF(AND(AH63>0,AO89>0,K63>0)," Heizkostenbetrag für Vergleich mit Heizkostenobergrenze",IF(AH63<0,"Heizkosten werden auf 0,00 € gesetzt ! (keine negativen Heizkosten)","")) ->  | V63: =IF(V60>V47,V47,V60)+$I72 -> 0 | W63: =IF(W60>W47,W47,W60)+$I72 -> 0 | X63: =IF(X60+$I72>X47,X47,X60+$I72) -> 0 | Y63: =IF(Y60>Y47,Y47,Y60)+$I72 -> 0 | Z63: =Z60+I72 -> 0 | AA63: =AA60+I72 -> 0 | AB63: =IF($Y31,AB47,IF(AL26>AB58,AB58,AL26))+$I72+AB50 -> 0 | AC63: =IF(OR(Y31,AC47<AC58),AC47,AC58) -> 0 | AD63: =AD31+IF(Y31,0,-AD61)-IF(H62<>"ja",ABS(K62),0) -> 0 | AE63: =IF(AM25="ex-ex",AE60,AE36) -> 0 | AF63: Miete ohne WW (H63) | AH63: =K61+K62 -> 0 | AI63: I61+I62 | AJ63: tats. HK | AL63: =IF(AL64,"lila","andere Farbe") -> andere Farbe | AM63: =AS13 -> 0 | AN63: =IF(OR(H58>0,ABS(H22)>0,ABS(WE!D38)>0),IF(AO62=2,IF(ABS(H22)>0,ABS(H22),IF(ABS(WE!D38>0),ABS(WE!D38),IF(H58>0,H58)))),IF(H58>0,-H58,IF(K22<>0,IF(AO62=2,ABS(AP22),0),IF(AO62=2,ABS(H22),0)))) -> 0 | AO63: =IF(AND(AN63>AS13,LEFT(BF12,1)="G"),AS13,IF('ALG2'!B27<5,K94,IF(OR(M58="x",M58="ja"),BE8,AN63))) -> 0 | AP63: Warmwasser in Betriebskosten enthalten oder vom Energieversorger (Euro [G22] / DM [i22/s22]) | BK63: =BL63+BM63 -> 12 | BL63: =IF(BS63<>"",BL62+10,BL62) -> 10 | BM63: 2 | BO63: 18 | BP63: 27 | BQ63: 36
A64: =IF(C64<>"","3.1","") -> 3.1 | C64: =IF(AND(AO71<>"keine",AO65<5),IF(OR(B64<>"",OR(Debug!A30,M72>0),AND(AF40=2,K43>0)),IF(OR(AND(AL71>0,M54<>""),NOT(AJ71))," Heizkostengr"&IF(AND(B64="",F64=""),". alternativ","enzen")&" aus bundesw. Heizspiegel "&IF(B64=0,AL71,B64)&IF(OR(AND(AM56>1,HKS!C8<>AM54),AI71,AND(F64="",AJ142<>AO86),AL72>AM72,AND(AL71>AM71,F64<>"")),IF(AND(AM56>1,AM71<>AM54,AJ71)," !",IF(B64<>"",""," ? ==>")),""),""),""),"") -> Heizkostengr. alternativ aus bundesw. Heizspiegel 2023 ? ==> | H64: =IF(F64<>"ja",IF(AND(HKS!C2>2015,OR(B64=0,B64>2015)),"HKS nach BJ" & IF(AND(B64>0,B64>2015,I64="")," ?",":"),""),"") -> HKS nach BJ: | U64: =IF(OR(HLOOKUP(AF40,V38:AE65,AG64,FALSE)>0,H62="ja"),TRUE,FALSE) -> FALSE | V64: =$AE64 -> 0 | W64: =$AE64 -> 0 | X64: =$AE64 -> 0 | Y64: =$AE64 -> 0 | Z64: =$AE64 -> 0 | AA64: =AE64 -> 0 | AB64: =AE64 -> 0 | AC64: =AE64 -> 0 | AD64: =AD53 -> 0 | AE64: =IF(OR(H62="ja",I58>0),ABS(K62),0)+I75 -> 0 | AF64: Warmwasser + Zündstrom | AG64: =ROWS(AG$38:AG64) -> 27 | AH64: =H65 -> 0 | AI64: H65 | AJ64: qm | AL64: =OR(AND(AJ142>AO86,F64="",AO86>0,AL71<>AM71,AF40<>3),AND(AM56>1,HKS!C8<>AM54,F64="",AF40<>3),AND(M54<>"",H72=0,AF40<>3)) -> FALSE | AM64: altern. b. HK-Spiegel | AO64: =IF(H72>0,IF(AND(I58=0,AO62=2),TRUE,FALSE)) -> FALSE | AP64: wahr, wenn kein WW in Miete oder Energie des Versorgers (alt: H47>G54 = und HOG überschritten) | BK64: =BL64+BM64 -> 13 | BL64: =IF(BS64<>"",BL63+10,BL63) -> 10 | BM64: 3 | BO64: 22.5 | BP64: 33.75 | BQ64: 45
A65: 3.2 | B65: =IF(AO89<=0,"Heizkostenpauschalen nicht festgelegt oder nicht bekannt",IF(AO88>0," Wohnfläche in qm eintragen !","Wohnfläche in qm"&IF(AND(AG15=7,K69<H65)," wird überschritten !",""))) -> Wohnfläche in qm | F65: =IF(AND(H65=0,AO88>0),"== > ","") ->  | K65: =IF(AI14>0,VLOOKUP(AI14,R87:S95,2)+IF(AND(AM50=3,ISNUMBER(AY43)),AY43,0),"") -> 50 | M65: =IF(F94>0,"qm, Richtwert für angem"&IF(AM50=3,". ","essene ")& "Wohnfläche"& IF(AM50=3," (einschl. "&TEXT(AY43,"0")&" qm, weil "&AM47&".)",""),"") -> qm, Richtwert für angemessene Wohnfläche | U65: =IF(LEFT(VALUE(HLOOKUP(AF40,V38:AE67,AG67,FALSE)),1)="200",TRUE,FALSE) -> FALSE | V65: =V63+V64 -> 0 | W65: 0 | X65: 0 | Y65: 0 | Z65: 0 | AA65: 0 | AB65: 0 | AC65: 0 | AD65: =AD63 -> 0 | AE65: =AE63+AE64 -> 0 | AF65: Miete incl. WW (H64) | AG65: =ROWS(AG$38:AG65) -> 28 | AH65: =AO85 -> 50 | AI65: AO85 | AL65: =OR(AND(AO52=1,Werte10!B42>=4,M54=""),AND(F64="ja",M54="")) -> TRUE | AM65: =IF(M54="Erdgas",1,IF(M54="Fernwärme",2,IF(M54="Heizöl",5,0))) -> 0 | AN65: =IF(OR(AO65<2,AO65>4),0,AO65) -> 0 | AO65: =IF(M54="Erdgas",2,IF(M54="Fernwärme",3,IF(M54="Heizöl",4,IF(M54="Nachtstrom",5,IF(M54="Kohle",6,1))))) -> 1 | AP65: ="Energie-Art: "&IF(AO65=1," nicht gewählt ! Pauschalbetrag wird verwendet, wenn vorhanden.",M54) -> Energie-Art: nicht gewählt ! Pauschalbetrag wird verwendet, wenn vorhanden. | BK65: =BL65+BM65 -> 14 | BL65: =IF(BS65<>"",BL64+10,BL64) -> 10 | BM65: 4 | BO65: 25.5 | BP65: 38.25 | BQ65: 51
A67: =IF(B67<>"","3.3","") ->  | B67: =IF(AN56>1,"Gesamtwohnfläche des Wohnhauses aus"&IF(H67<>"","ge","")&"wähl"&IF(H67<>"","t","en")&IF(H67<>"",":"," (nur nötig, wenn > 250 qm) ===>"),IF(AND(AM56<2,H67<>"")," ungültiger Eintrag ! Bitte entfernen. ==>"&REPT(" ",40)&" ==> ","")) ->  | I67: =IF(B67<>""," qm","") ->  | M67: =IF(F93>0,"("& TEXT(VLOOKUP(AI14,R87:S95,2),"0") & " qm für die BG" & "; nicht berücksichtigt: " &TEXT(F93*S87,"0")& " qm für Mitbewohner in WG" & ")","") ->  | U67: =IF(RIGHT(VALUE(HLOOKUP(AF40,V38:AE67,AG67,FALSE)),1)="2",TRUE,FALSE) -> FALSE | V67: 11 | W67: 11 | Z67: 11 | AA67: 11 | AB67: 11 | AC67: 22 | AD67: 22 | AF67: R53 HK inc, R54 WW inc | AG67: =ROWS(AG$38:AG67) -> 30 | AO67: =CHOOSE(AO65,IF(BS51>0,1,0),IF(BT51>0,1,0),IF(BU51>0,1,0),IF(BX51>0,1,0),IF(BV51>0,1,0),IF(BW51>0,1,0)) -> 0 | AP67: 1 = Regionaler Pauschalbetrag | BK67: =BL67+BM67 -> 15 | BL67: =IF(BS67<>"",BL65+10,BL65) -> 10 | BM67: 5 | BO67: =BO65+BO69 -> 28.5 | BP67: =BP65+BP69 -> 42.75 | BQ67: =BQ65+BQ69 -> 57
A69: =IF(B69<>"","3.4","") ->  | B69: =IF(H65>K65,"Überschreiten der Wohnfläche" & IF(H69=""," zulässig ?",IF(OR(H69="x",H69="ja",H69="nein")," ist " &IF(H69="nein","nicht ","") &"zulässig.","")),"") ->  | K69: =AO85 -> 50 | M69: =IF(K69>0,"qm"&" werden berücksichtigt"&IF(K69<H65," !",""),"") -> qm werden berücksichtigt | U69: =HLOOKUP(AF40,V38:AE73,AG69,FALSE) ->  | V69: ="Betriebskosten ohne Wasser & Abwasser" -> Betriebskosten ohne Wasser & Abwasser | X69: =IF(AND(AND(AD33>I33,I33>0,NOT(AB26))),"Abzug "&TEXT(Y90,"0,00")&" €"&", weil Prüfgrenze BK überschritten !",IF(AND(AF40<>3,AF40<>4),IF(B24<>"","Betriebskosten"&IF(AD33=H33,"","grenze"),""),"")) ->  | Y69: =IF(AND(AND(AD33>I33,I33>0,NOT(AB26))),"Abzug "&TEXT(Y90,"0,00")&" €"&", weil Prüfgrenze BK überschritten !",IF(AND(AF40<>3,AF40<>4),IF(B24<>"","Betriebskosten"&IF(AD33=H33,"","grenze"),""),"")) ->  | Z69: =IF(W6,AC5,AC4) -> Betriebskosten | AC69: =$AE69 ->  | AD69: =$AE69 ->  | AE69: =IF(AND(AO53="ex",AND(AD33>I33,I33>0,NOT(Y27),NOT(Y31))),"Abzug "&TEXT(AI27,"0,00")&" €"&IF(U28,U25,", weil Prüfgrenze BK überschritten !"),IF(AND(AF40<>3,AF40<>4),IF(B24<>"","Betriebskosten"&IF(AD33=H33,"","grenze"),""),"")) ->  | AF69: Text B32 | AG69: =ROWS(AG$38:AG69) -> 32 | AJ69: Vorgabe=gewählt | AK69: Vorgabe | AL69: zum Vergl. | AM69: gewählt | AN69: =IF(AND(BV50=0,AO65=5),1,0) -> 0 | AO69: =IF(AND(AM56=0,K27<>"Wohngeldtabelle"),CHOOSE(AO65,Orte!CE28,Orte!CF28,Orte!CG28,Orte!CJ28,Orte!CH28,Orte!CI28),CHOOSE(AO65,BS50,BT50,BU50,BX50,IF(BV50=0,BS50,BV50))) -> 0 | AP69: HK Pauschale pro qm nach Energieart aus 'Orte' oder aus Heizkostenspiegel (nicht runden !) | BK69: =BL69+BM69 -> 16 | BL69: =IF(BS69<>"",BL67+10,BL67) -> 10 | BM69: 6 | BO69: 3 | BP69: 4.5 | BQ69: 6
A71: =IF(B71<>"","3.5","") ->  | B71: =IF(OR(AO80="keine",U65),"",IF(H72>0,IF(OR(AND(AH63>H72,AN54=""),AN73,AO80="keine"),"Überschreiten der Heizkosten" & IF(AND(H71="",OR(K76="nein",K76=""))," zulässig ?"&IF(AM81=5," (Einzelfallprüfung: angemessener Verbrauch) ==>",""),IF(OR(K76="ja",K76="x",H71="x",H71="ja",H71="nein")," ist " &IF(H71="nein","nicht ","") &"zulässig." &IF(AND(AM81=5,OR(H71="ja",H71="x"))," (im Verhältnis zu erhöhten qm gekürzt)",""),"")),""),"")) ->  | M71: =IF(Debug!A24,"["&TEXT(AE90,"0,00")&"-"&TEXT(AN72,"0,00")&"]",0) -> 0 | R71: =IF(Erstantrag="ja",AE33+AO125,) -> 0 | U71: =HLOOKUP(AF40,V38:AE73,AG71,FALSE) ->  | X71: =IF(NOT(Y28),IF(AB26,"Betriebskosten nach Einzelfallprüfung akzeptiert.","<== Grenzwert für Einzelfallprüfung von Betriebskosten überschritten ! Einzelfall ?"),"Prüfgrenze für Betriebskosten") -> Prüfgrenze für Betriebskosten | Y71: =IF(NOT(Y28),IF(AB26,"Betriebskosten nach Einzelfallprüfung akzeptiert.","<== Grenzwert für Einzelfallprüfung von Betriebskosten überschritten ! Einzelfall ?"),"Prüfgrenze für Betriebskosten") -> Prüfgrenze für Betriebskosten | Z71: =IF(W6,AD5,AD4) -> In den ersten 6 Monaten des Leistungsbezugs werden Betriebskosten ungekürzt übernommen (Fall 18) | AC71: =AE71 ->  | AD71: =AE71 ->  | AE71: =IF(AND(AF40<>3,AF40<>4),IF(AND(K33<>"Einzelfall",I33>0,AD33>I33),"<== Grenzwert für Einzelfallprüfung von Betriebskosten überschritten ! Einzelfall ?",IF(AND(K33="Einzelfall",AD33>I33),"Betriebskosten nach Einzelfallprüfung akzeptiert.",IF(AND(AO53="ex",I33=0,AD33>0)," "&AH15,IF(I33>0,"Prüfgrenze für Betriebskosten","")))),"") ->  | AF71: Text J32 | AG71: =ROWS(AG$38:AG71) -> 34 | AI71: =AL71<>AM71 -> TRUE | AJ71: =IF(OR(AM54="",HKS!B2>1),Debug!M29,AK71=AM71) -> FALSE | AK71: =AM54 -> 0 | AL71: =HKS!C6 -> 2023 | AM71: =IF(B64<>"",B64,IF(F64="ja",AL71,IF(HKS!D2<>"",IF(HKS!D2="allgemein",HKS!C2,HKS!D2),IF(K27="Wohngeldtabelle",HKS!C8,IF(AM54=0,HKS!C8,AM54))))) -> 2024 | AN71: Heizk.-Abzug | AO71: =IF(OR(LEFT(K27,8)="Wohngeld",LEFT(K28,2)="--",K27=""),"Richtwert",IF(AO79<>"",AO79,IF(Orte!CK28=0,"Richtwert",Orte!CK28))) -> Richtwert | AP71: Vorgabe für Heizkostendeckelung (aus Vorgabetabellen) | BK71: =BL71 -> 20 | BL71: =IF(BS71<>"",BL69+10,BL69) -> 20 | BM71: 2 | BO71: < 125 kWh | BS71: Modell Region Hildesheim 2.2012
A72: =IF(B72<>"","3.6","") ->  | B72: =AG80 ->  | H72: =IF(OR(AF40=2,AO125>0),ROUND(AK142+IF(AJ143,AK143,0),2)+IF(AND(AC127,NOT(AC131)),AC149,0),0) -> 0 | I72: =IF(AH63<0,0,IF(OR(AN54="allinc",AND(AM81=5,OR(H71="ja",H71="x"))),H72,IF(AND(AH63>H72,H72>0),IF(AH63=0,0,IF(AND(H71<>"nein",OR(H71="x",H71="ja",Y31,AK60)),IF(AND(H62="ja",I58=0),AH63,AH63),H72)),AH63))) -> 0 | M72: =IF(OR(K76="ja",U65),0,IF(SUM(F86:F87)<1,0,IF(AH60>0,AH60,0))) -> 0 | N72: =IF(AND(I54>0,SUM(F86:F87)<1)," ! Personenangabe unter 1.0 fehlerhaft !",IF(M72>0," € "&IF(INT(M72)>1,"werden","wird")&" nach Aufforderung zur Kostensenkung" & CHAR(10)& " nicht vom JC übernommen !","")) ->  | U72: =HLOOKUP(AF40,V38:AE73,AG72,FALSE) ->  | V72: =IF(AND(K35<>"Einzelfall",H18>0,H18>Y81),"Abzug "&TEXT(Y82,"0,00")&" €"&", weil Wasserverbrauch nicht angemessen !",IF(B24<>"","Kosten für Wasser und Abwasser","")) ->  | W72: =IF(AND(K31<>"nein",NOT(AB26),H18>0),"Abzug "&TEXT(W44,"0,00")&" €"&", weil Wasserverbrauch nicht angemessen !",IF(B24<>"","Betriebskosten","")) ->  | AA72: ="Betriebskosten" -> Betriebskosten | AB72: =IF(AND(AG15=9,H18=0),"Bereinigung der BK um nicht nachgerwiesene Wasserkosten !",IF(AND(AO53="ex",AND(AD33>I35,I35>0,NOT(AB26),NOT(Y31))),"Abzug "&TEXT(Y90,"0,00")&" €"&", weil Prüfgrenze BK überschritten !",IF(B24<>"",IF(NOT(AH17),"Betriebskostengrenze nicht bekannt !","Betriebskosten"&IF(AD33=I35,"grenze","")),""))) ->  | AC72: =IF(AND(AD33+I54>I35,I35>0,NOT(AB26)),"Abzug "&TEXT(Y92,"0,00")&" €"&", weil Prüfgrenze BK + Heizkosten überschritten !",IF(B24<>"","Betriebs- und Heizkosten"&IF(AD33+I54=I35,"grenze",""),"")) ->  | AE72: =IF(AN18,"Prüfwert Betriebskosten" &" " &TEXT(AL16,"0,00")&" €/qm, " & IF(Wohn_qm="","nur wenn qm angem.: ","(qm: " & Wohn_qm & ")")&IF(AM136>0," Bk: "&TEXT(AO138,"0,00")&" €/qm " & AL15,""),"") ->  | AG72: =ROWS(AG$38:AG72) -> 35 | AK72: =IF(NOT(ISERROR(OR(AL72>AM72,AL72>AO72))),IF(OR(AL72>AM72,AL72>AO72),TRUE,FALSE),FALSE) -> FALSE | AL72: =IF(AM65>0,CHOOSE(AM65,BT53,BU53,0,0,BX53),0) -> 0 | AM72: =IF(OR(AM65>0,AO65=5),IF(B64<>"",CHOOSE(AO65,1,BT52,BU52,BX52,BV50),IF(F64="ja",CHOOSE(AO65,1,BT53,BU53,BX53,BV50),CHOOSE(AO65,1,BT52,BU52,BX52,BV50))),0) -> 0 | AN72: =IF(OR(AL23="x",AN54="allinc"),0,IF(AND(OR(H71="",H71="nein"),OR(K76="ja",K76="x"),AH63>H72,H72>0),AH63-H72,AH63-I72)) -> 0 | AO72: =IF(OR(LEFT(K27,2)="--",K27=""),0,AO69) -> 0 | AP72: HK-Pauschalwert des Sozialhilfeträgers n. Energieart; auch für Wg | BK72: =BL72+BM72 -> 21 | BL72: =IF(BS72<>"",BL71+10,BL71) -> 20 | BM72: 1 | BO72: 12.5
A73: 3.7 | B73: =IF(AND(AO72=0,AM71=0),"Kosten der Unterkunft, falls Heizkosten als angemessen gelten !","Vom JC zu zahlende Kosten der Unterkunft"&IF(AO62=2," ohne Warmwasser","")&IF(AND(OR(K76="x",K76="ja"),AE33+I72>H45+H72)," in den ersten 6 Monaten","")) -> Vom JC zu zahlende Kosten der Unterkunft ohne Warmwasser | I73: =IF(Erstantrag="ja",AE33+AO125,ROUND(IF(AN43,CHOOSE(AF40,AE63,AD63,AC63,AB63,AA63,Z63,Y63,X63,W63,V63),0),2)) -> 0 | U73: =HLOOKUP(AF40,V38:AE73,AG73,FALSE) ->  | V73: =IF(Y82>0,IF(AB26,"Kosten für Wasserverbrauch nach Einzelfallprüfung akzeptiert.","<== Grenzwert für Einzelfallprüfung überschritten ! Einzelfall ?"),AH15) -> angemessene Betriebskosten werden übernommen. | W73: =AH15&IF(AND(W74,NOT(Y29))," !","") -> angemessene Betriebskosten werden übernommen. | AA73: =AH15 -> angemessene Betriebskosten werden übernommen. | AB73: =IF(AND(K35<>"Einzelfall",I35>0,AD33>I35),"<== Grenzwert für Einzelfallprüfung von Betriebskosten überschritten ! Einzelfall ?",IF(AND(K35="Einzelfall",AD33>I35),"Betriebskosten nach Einzelfallprüfung akzeptiert.",IF(AND(AO53="ex",I35=0,AD33>0),AH15,IF(I35>0,"Prüfgrenze für Betriebskosten",IF(AG15=9,"Bereinigung der BK um nicht nachgerwiesene Wasserkosten !",""))))) ->  | AC73: =IF(AND(K35<>"Einzelfall",I35>0,AD33+I54>I35),"<== Grenzwert für Einzelfallprüfung von Betriebs- und Heizkosten überschritten ! Einzelfall ?",IF(AND(K35="Einzelfall",AD33+I54>I35),"Betriebs- und Heizkosten nach Einzelfallprüfung akzeptiert.",IF(AND(I35=0,AD33>0),AH15,IF(I35>0,"Prüfgrenze für Betriebs- und Heizkosten","")))) ->  | AE73: =IF(AN18,"(wird geprüft im Verfahren vor Zustimmung zum Mieten einer Unterkunft und bei Betriebskostennachzahlungen)","") ->  | AG73: =ROWS(AG$38:AG73) -> 36 | AL73: =AO85*AL72-ABS(AK143) -> 0 | AM73: =(AO85*AM72)-ABS(AK143) -> 0 | AN73: =AND(F75="ja",H72>0,I72+AN74>H72,AF40=1) -> FALSE | AO73: =IF(OR(LEFT(K27,8)="Wohngeld",LEFT(K27,2)="--",K27=""),0,Orte!CK28) -> Richtwert | AP73: Auswertung der Tabelle: 'HK absolut oder Richtwert' , 0 für Heizkostendeckelung bei Wohngeld, ungültiger Ortsangabe | BK73: =BL73+BM73 -> 22 | BL73: =IF(BS73<>"",BL72+10,BL72) -> 20 | BM73: 2 | BO73: 15
A74: =IF(B74<>"","3.8","") ->  | B74: =IF(I74>0,"Betrag für Warmwasserbereitung","") ->  | I74: =IF(AND(K62<0,H36=0,AO54<>"inc",I76>I73),ABS(K62),0) -> 0 | N74: =IF(AND(F75="ja",AF109<>4,AO74<AN74,H72>0,OR(AO65=2,AO65=4)),"Heizkostengrenze erreicht, "&IF(AO74<=0,"kein ","")&"Stromkostenzuschuß "&IF(AO74>0,TEXT(AO74,"0,00"),"")&CHAR(10)& " (Höchstbetrag: "&TEXT(AN74,"0,00")&")",IF(AND(K61>0,AF109=4,AC156,I75=0,AND(M54<>"Nachtstrom",M54<>"Fernwärme")),"kein Stromkostenzuschuß ("&TEXT(AN74,"0,00")&" €), weil der Höchstbetrag für Heizkosten überschritten wurde !","")) ->  | U74: =HLOOKUP(AF40,V38:AE76,AG74,FALSE) -> 0 | V74: =IF(V48<V42,TRUE,FALSE) -> FALSE | W74: FALSE | X74: FALSE | Y74: FALSE | Z74: FALSE | AA74: FALSE | AB74: FALSE | AC74: FALSE | AF74: Feld G 28 rot | AG74: =ROWS(AG$38:AG74) -> 37 | AK74: =IF(OR(AM74=1,AND(AM75=1,AM74<2)),1,IF(OR(AM74=2,AND(AM76=2,AM75=0,AM78=0,AM74<>3)),2,IF(OR(AM74=3,AND(AM75=0,AM76=0,AM78=3)),3,IF(AU26=1,1,IF(AU26=2,2,IF(AU26=3,3,0)))))) -> 2 | AM74: =IF(M75=AL75,1,IF(M75=AL76,2,IF(M75=AL78,3,0))) -> 0 | AN74: =IF(AND(I54>0,M54<>""),ROUND(CHOOSE(AK74,AN75,AN76,AN78),2),0) -> 0 | AO74: =IF(AND(F75="ja",OR(AO54="inc",K76="ja",K76="x",AL25="ex-ex",H71="ja",H71="x",NOT(AC158),)),AN74,IF(H72>0,IF(H72>I72+AN74,AN74,IF(H72-I72>0,H72-I72,0)),0)) -> 0 | AP74: Zuschlag Strom zum Betrieb d. Hzg bis Heizkostengrenze | BK74: =BL74+BM74 -> 23 | BL74: =IF(BS74<>"",BL73+10,BL73) -> 20 | BM74: 3 | BO74: 18.75
A75: =IF(B75<>"","3.9","") ->  | B75: =IF(AND('ALG2'!B27>4.5),IF(AND(OR(AO65=2,AO65=4)),IF(F75="","Ist zum Betrieb der ","Für die ")&"Heizung"&IF(F75="ja"," wird","")&IF(F75="nein"," wird kein","")&" Strom (z.B. für die Umwälzpumpe) "&IF(OR(F75="ja",F75<>""),"be","")&"nötig"&IF(OR(F75="ja",F75<>""),"t."," ?"),""),"") ->  | H75: =IF(F75="ja",AK78,"") ->  | I75: =IF('ALG2'!B27>4.5,IF(OR(AO65=2,AO65=4),IF(F75="ja",IF(AND(M72>0,K76<>"ja",K76<>"x"),0,AO74),0),0),0) -> 0 | K75: =AK79 ->  | U75: =HLOOKUP(AF40,V38:AE76,AG75,FALSE) -> 0 | V75: =IF(V49<V43,TRUE,FALSE) -> FALSE | W75: =IF(W49<W43,TRUE,FALSE) -> FALSE | X75: =IF(X49<X43,TRUE,FALSE) -> FALSE | Y75: =IF(Y49<Y43,TRUE,FALSE) -> FALSE | Z75: =IF(Z49<Z43,TRUE,FALSE) -> FALSE | AB75: =IF(AB49<AB43,TRUE,FALSE) -> FALSE | AC75: =IF(AC49<AC43,TRUE,FALSE) -> FALSE | AF75: Feld G32 rot | AG75: =ROWS(AG$38:AG75) -> 38 | AK75: =CHOOSE(AK74,AL75,AL76,AL78) -> % d. Heizk. | AL75: Festbetrag | AM75: =IF(OR(Orte!BP28=1,Orte!BP28=10),1,0) -> 0 | AN75: =IF(OR(Orte!BQ28=0,Orte!BP28=2,Orte!BP28=20),AT27,Orte!BQ28) -> 5.4 | AO75: =IF(AO89<=0,0,IF(OR(AG15=7,AND(VALUE(H65)=0,AND(AO71<>0,AO71<>"Richtwert",AO80="HK abs2"),AO71<>"HK absolut")),1,0)) -> 0 | AP75: ="Qm Warnung ist "&IF(AO75>0,"","nicht ")&"nötig,"& " (Angabe"&IF(H65>0,""," nicht")&" vorhanden)" -> Qm Warnung ist nicht nötig, (Angabe nicht vorhanden) | BK75: =BL75+BM75 -> 24 | BL75: =IF(BS75<>"",BL74+10,BL74) -> 20 | BM75: 4 | BO75: 21.25
A76: =IF(B76<>"","3.10","") ->  | B76: =IF(I76>0,IF(AO62=2,"KdU insgesamt"&IF(OR(AND(K62<0,AO54<>"inc",I76>I73),H62="ja")," incl. Warmwasserbereitungskosten"," ohne Warmwasser"&IF('ALG2'!D51>0," (Warmwasserkosten auf Seite 'ALG2' berücksichtigt)","")),""),"") ->  | I76: =ROUND(IF(AN43,CHOOSE(AF40,AE65,AD65,AC65,AB65,AA65,Z65,Y65,X65,W65,V65),0),2) -> 0 | K76: ja | M76: =AA84 ->  | U76: =IF(HLOOKUP(AF40,V38:AE76,AG76,FALSE),TRUE,FALSE) -> FALSE | V76: =IF(AND(Y82>0,NOT(AB26)),TRUE,FALSE) -> FALSE | W76: =AND(K31<>"nein",NOT(AB26),H18>0) -> FALSE | AB76: =IF(AND(K35<>"Einzelfall",Y90>0),TRUE,FALSE) -> FALSE | AC76: =IF(AC61>0,TRUE,FALSE) -> FALSE | AF76: Feld G33 rot | AG76: =ROWS(AG$38:AG76) -> 39 | AK76: =MAX(AM75:AM78) -> 2 | AL76: % d. Heizk. | AM76: =IF(OR(Orte!BP28=2,Orte!BP28=20),2,0) -> 2 | AN76: =IF(OR(Orte!BP28=2,Orte!BP28=20),I54*Orte!BQ28/100,AU27*I54) -> 0 | AO76: =Orte!X19 -> 0 | AP76: Werte für absolute HK nach Vorgabe der HK-absolut-Tabelle entsprechend Ortswahl (Bereich; Spalten n. rechts + Anzahl Personen -1) | BK76: =BL76+BM76 -> 25 | BL76: =IF(BS76<>"",BL75+10,BL75) -> 20 | BM76: 5 | BO76: 23.75
AL77: % d. HK-G
A78: 4.0 | B78: =IF(I78<>"","Korrigierter KdU-Betrag für Vergleichsrechnungen","Überprüfung der Unterkunftskosten verschieben / abweichenden Betrag verwenden") -> Überprüfung der Unterkunftskosten verschieben / abweichenden Betrag verwenden | H78: =IF(B78<>"","==>","") -> ==> | M78: =IF(AND(I78>0,BE8>0),IF(K78=""," <== "," ")&"Mehrbedarf für Warmwasser auf Seite ALG2 "&IF(K78="","anzeigen ? (ja/nein)",IF(K78="ja","wird angezeigt.","wird nicht angezeigt.")),"") ->  | AJ78: =IF(OR(AG84,AG85),AM73,AO86) -> 0 | AK78: =IF(AND(AK79<>"",SUM(AM75:AM78)>0,AK74=SUM(AM75:AM78)),"KdU-Richtline:","") ->  | AL78: % d. HK-G | AM78: =IF(OR(Orte!BP28=3,Orte!BP28=30),3,0) -> 0 | AN78: =IF(OR(Orte!BP28=3,Orte!BP28=30),AJ78*Orte!BQ28/100,AJ78*AU27) -> 0 | AO78: =IF(AO71=0,"Richtwert",IF(AO71="abs","qm absolut",IF(AO71="rel","qm relativ",IF(AO71="Richtwert","qm Richtwert",IF(OR(AO71="HK abs 2",AO71="HKabs2",AO71="Hk abs2"),"HK abs2",AO71))))) -> qm Richtwert | AP78: Übersetzung für Kürzel der Heizkostendeckelung in R53; 0 (Wohngeld = Richtwert | BK78: =BL78+BM78 -> 26 | BL78: =IF(BS78<>"",BL76+10,BL76) -> 20 | BM78: 6 | BO78: 2.5
B79: =IF(AND(I79<>"",SUM(H15:H20)>0),IF(I79<0,"Nach eigener Berechnung fehlender Betrag",IF(I79=0,"Berechneter und korrigerter Betrag für Unterkunftskosten sind gleich "&"("&TEXT(I78,"0,00")&" + "&TEXT(ABS(K62),"0,00")&").","Die eigene Berechnung überschreitender Betrag")&IF(AND(I79<>"",I79<>0)," pro Monat / pro Jahr","")),"") ->  | I79: =IF(AND(I78<>"",SUM(I15:I20)>0),IF(AND(M78<>"",K78="ja"),-I73+I78,-I76+I78),"") ->  | K79: =IF(I79<>"",I79*12,"") ->  | V79: z.B. Aachen | X79: qm angem. | AA79: J63: Frage n. Erstantrag anzeigen ? | AK79: =IF(I75>0,IF(A75<>"",IF(F75="ja","€ (" &IF(AK74>1,TEXT(AN79*100,"0"),"")& AK75&")",""),""),"") ->  | AM79: =AS26 -> % d. Heizk. | AN79: =IF(AU26=1,AT27,IF(AU26>1,IF(AND(AM74>1,AN80>0),AN80,AU27),0)) -> 0.05 | AO79: =IF(K72<>"",IF(K72="qm absolut","abs",IF(K72="qm relativ","rel",IF(K72="qm Richtwert","Richtwert",IF(K72="HK abs2","HK abs2")))),"") ->  | AP79: Korrektur und Übersetzung der Heizkostendeckelung aus Ortstabellen durch Auswahl in Feld i53: leer = keine Korrektur der Vorgabewerte | BK79: =BL79 -> 30 | BL79: =IF(BS79<>"",BL78+10,BL78) -> 30 | BM79: 3 | BO79: < 100 kWh | BP79: 100-125 kWh | BS79: Modell Region Hildesheim 1.7.2014/2015
B80: =IF(I80>0,"Strom-, Gas-, Fernwärmekosten","") ->  | I80: =KdU_HKangem -> 0 | K80: =KdU_HKangem*12 -> 0 | V80: Wasser incl. Abwasser/qm | Y80: =H18 -> 0 | AA80: a) | AB80: =OR(AC80,AD80,AE80,AE81) -> FALSE | AC80: =OR(AD31>H42,AE33>H45,AC81,AND(AH63>I72,AF40<>2)) -> FALSE | AD80: =AND(I33>0,H33<AD33,AO53="ex") -> FALSE | AE80: =I72>H72 -> FALSE | AG80: =IF(AO80="keine",AM83,IF(H72>0,"angem. Heizk."&IF(AND(OR(AND(F64="ja",AM81=4),AO81=1,AO81=4),M54<>""),IF(AM81<5," für "&M54,"")," (sonstige)")&": " &AG87,"")) ->  | AN80: =IF(AM74>1,Orte!BQ28/100,0) -> 0 | AO80: =IF(AND(K72<>AO73,K72<>""),K72,AO78) -> qm Richtwert | AP80: HK-Deckelung: Auswahl i47, Vorgabe R46 oder R48 (kein ungültig. Wert wg Wohngeld, weil auf 0 gesetzt in R52 bei Wohngeld) | BK80: =BL80+BM80 -> 31 | BL80: 30 | BM80: 1 | BO80: 25 | BP80: 12.5
B81: =IF(I81>0,"Strom-, Gas-, Fernwärmekosten - an den Energieversorger zu zahlen","") ->  | I81: =IF(+H51+H52+H54+H58>0,H51+H52+H54+H58,0) -> 0 | K81: =I81*12 -> 0 | M81: x | N81: =IF(OR(H72=0,AN54="allinc",U65),0,IF(OR(M81="x",M81="ja"),H72-AH63-I75,"")) -> 0 | O81: =IF(OR(AO80="keine",U65),"",IF(AND(M81<>"",AN54<>"allinc"),IF(H72>0,IF(N81>0," € Heizkosten pro Monat nicht ausgeschöpft"," kein Spielraum für Heizkostennachzahlungen!"),""),"")) ->  | V81: angem. Wasser incl. Abwasser/qm | W81: =Orte!BF28 -> 0 | X81: =AO85 -> 50 | Y81: =W81*X81 -> 0 | AA81: b) | AB81: =OR(AND(OR(AF40=6,AF40=2),OR(K43>0,M72>0)),AND(AF40=4,K43>0,OR(H45<>H42,H45<AD31+AH63,AC81))) -> FALSE | AC81: =AND(F75="ja",AN74>0,AN74>AO74) -> FALSE | AE81: =IF(AND(OR(Orte!BD28>0,AG15=3),Y93>0,AC47>AC60),TRUE,FALSE) -> FALSE | AG81: =AND(AO65<>1,AO65<>5,AO69=0,AO71<>"HK absolut") -> FALSE | AM81: =IF(AM72>0,IF(AO79="Richtwert",4,IF(AO79="abs",1,IF(AO79="rel",2,IF(OR(AO79="HK abs2",AO80="HK abs2"),IF(AND(H65>AO85,OR(H71="ja",H71="x")),5,6),4)))),0) -> 0 | AO81: =IF(OR(AO80="HK absolut",AO80="HK abs2"),3,IF(AO80="qm relativ",2,IF(AO80="qm absolut",1,IF(AO80="qm Richtwert",4,IF(AO80="Ungenutzt",5,AO82))))) -> 4 | AP81: gewählter Wert für Heizkostendeckelung, Zahl für Wahl der Textausgabe | BK81: 32 | BL81: 30 | BM81: 2 | BO81: 30 | BP81: 15
B82: =IF(I82<>"","aus der Regelleistung zu bezahlender Anteil der Unterkunftskosten","") ->  | I82: =IF(AND(H65>0,AN81>0),AN81,"") ->  | N82: =IF(AND(N81<>"",N81>0),N81*12,"") ->  | O82: =IF(M81<>"",IF(N81>0," € Heizkostennachzahlung im Jahr möglich",""),"") ->  | Y82: =IF(Y80-Y81>0,Y80-Y81,0) -> 0 | AA82: c) | AB82: =AND(K76="",OR(AE80,AND(AF40=4,K43>0,H45<>H42),AC81,AE33>H45,AH63>I72,AD31>H42,AD31+AH63>H42,AND(I33>0,I33<AD33,AO53="ex"))) -> FALSE | AC82: ? und <== anzeigen | AG82: =AND(AM56>1,AO65<>1,F64="ja") -> FALSE | AO82: =IF(AO71="Richtwert",4,IF(AO71="abs",1,IF(AO71="rel",2,IF(AO71="HK abs2",3,IF(AO71="",4,4))))) -> 4 | AP82: Zahl für Vorgabewert der Heizkostendeckelung, wenn keine Auswahl | BK82: 33 | BL82: 30 | BM82: 3 | BO82: 37.5 | BP82: 18.75
B83: =IF(Heizungsstrom_A="ja","Heizkosten + Strom für Umwälzpumpe","") ->  | I83: =IF(AND(F75="ja",M54="Erdgas"),H54+H54/100*5,0) -> 0 | O83: ="Haushaltsstrom im Regelsatz " &IF(AG$90=0,"(incl.","(ohne")&" Kochenergie)" -> Haushaltsstrom im Regelsatz (ohne Kochenergie) | V83: z.B.Magdeburg, Hamburg, Lohmar | AA83: Text) | AB83: =" Leistungsbezug "&IF(K76="nein","außerhalb der ","in den ")&"ersten 6 Monate"&IF(K76="nein"," ","n ")& "nach Erstantrag" -> Leistungsbezug in den ersten 6 Monaten nach Erstantrag | AG83: =K27="Wohngeldtabelle" -> FALSE | AM83: =IF(AO80="keine","Heizkosten gelten grundsätzlich als angemessen.",IF(AM81>0,CHOOSE(AM81,(TEXT(AM72,"0,00")&" € x "&TEXT(AO85,"0,00")&" qm Wohnfläche"),(TEXT(AH63,"0,00")&" € / "&TEXT(H65,"0,00")&" qm x "&TEXT(AO85,"0,00")&" qm"),"",(TEXT(AM72,"0,00")&" € x "&TEXT(AO85,"0,00")&" qm angem. Wohnfl.")&IF(AO65<5," (bundw. HKS "&AM85&")",""),TEXT(AH63,"0,00")&" € - "&TEXT(H56,"0,00")&" € Grundbetrag / "&TEXT(H65,"0,00")&" qm x "&TEXT(AO85,"0,00")&" qm"&" + "&" Grundbetrag",(TEXT(AO76,"0,00")&" € für "&TEXT(AO3,"0")&" Person")&IF(AO3>1,"en","")&" (Heizk.-Festbetrag regional)"),"")) ->  | AO83: =CHOOSE(AO81,(TEXT(AO72,"0,00")&" € x "&TEXT(AO85,"0,00")&" qm Wohnfläche"),(TEXT(AH63,"0,00")&" € / "&TEXT(H65,"0,00")&" qm x "&TEXT(AO85,"0,00")&" qm"),(TEXT(AO76,"0,00")&" € für "&TEXT(AO3,"0")&" Person")&IF(AO3>1,"en","")&IF(AO73="HK absolut"," (Heizk.-Festbetrag regional)",""),(TEXT(AO72,"0,00")&" € x "&TEXT(AO85,"0,00")&" qm angem. Wohnfl.")&IF(OR(AO65=1,AN69=1,AO67=1)," ("&IF(AO67=1,"regionale HK-","max. HKS als ")&"Pauschale)",),("")) -> 0,00 € x 50,00 qm angem. Wohnfl. (max. HKS als Pauschale) | BK83: 34 | BL83: 30 | BM83: 4 | BO83: 42.5 | BP83: 21.25
A84: 2.3/2.4 | B84: ="Berechnung der "& IF(NOT(AO12),"Regelsatzanteile","Beträge")&" für Warmwasser + Kochenergie" -> Berechnung der Regelsatzanteile für Warmwasser + Kochenergie | H84: Warmwasser | I84: Kochenergie | K84: Summen | M84: =IF($AO$60="09","seit "&Werte09!C29,Werte10!C42) -> 2026-01-01 | R84: angem. Wohnfläche | W84: insg | X84: Summe | Y84: max | Z84: angem. | AA84: =IF(OR(AB80,AB81),IF(AB82," <=="," ")&AB83 & IF(AB82," ?",""),"") ->  | AG84: =AND(AJ142>0,AN93=2) -> FALSE | AO84: =H65 -> 0 | AP84: qm tatsächlich | BK84: 35 | BL84: 30 | BM84: 5 | BO84: 47.5 | BP84: 23.75
F85: Personen | H85: pro Person | I85: pro Person | K85: Warmwasser | M85: Kochen | O85: pro Person | P85: Summe | R85: =IF(Orte!BI30>0,IF(K27="",AO139,K27),"(Vorgabewerte)") -> Region Hannover | V85: KdU o. BK | W85: =AE33 -> 0 | Y85: =AC48 -> 0 | AG85: =AJ71 -> FALSE | AH85: ="HKS: Vorgabe"&IF(AJ71," = "," <> ")&"gewählt" -> HKS: Vorgabe <> gewählt | AI85: =IF(M54="",FALSE,TRUE) -> FALSE | AM85: =IF(AL71=AM71,AM71,IF(HKS!B2=1,HKS!C2,HKS!C2&": "&HKS!D2)) -> 2024 | AO85: =IF(H65<=K65,IF(OR(H69="x",H69="ja",AO81=1,AO81=4,AO81=3),K65,H65),IF(OR(H69="x",H69="ja"),H65,K65)) -> 50 | AP85: qm angemessen (Wahl des Wertes) | BK85: 36 | BL85: 30 | BM85: 6 | BO85: 5 | BP85: 2.5
B86: =IF(OR(F86>0,AND(F86=0,F87=0)),"Alleinstehender","") -> Alleinstehender | F86: =I4 -> 1 | H86: =IF(F86>0,IF($AS$5>0,$BD$5,IF($AS$12>0,$AS$13/$AO$3,IF($AO$60="09",Werte09!D33,Werte10!D59))),0) -> 12.95 | I86: =IF(F86>0,IF($AO$60="09",Werte09!D38,Werte10!D69),0) -> -7.61 | K86: =IF(F86>0,H86*$F86,"") -> 12.95 | M86: =IF(F86>0,I86*$F86,"") -> -7.61 | O86: =IF(F86>0,Werte10!D51-IF(AG$90=0,I86,0),"") -> 38.08 | P86: =IF(F86>0,O86*$F86,"") -> 38.08 | R86: Personen | S86: qm | U86: =IF(F87>0,IF(AO12,BE8/$AO$3,IF($AO$60="09",Werte09!D34,Werte10!D60)),0) -> 0 | V86: Heizk. o. WW | W86: =AH63 -> 0 | Y86: =Orte!BD28 -> 0 | AG86: =AND(AC127,AG117) -> FALSE | AH86: =IF(AND(AG86,NOT(AC131),NOT(AC115))," + "& TEXT(AC149,"0,00")& " € " & IF(AJ86>70,"T.","Toleranzbetrag"),"") ->  | AJ86: =LEN(IF(OR(AG81,AG82,AG83,AG84,AND(AG85,AI85)),AM83 & IF(OR(AJ143,AJ146),AJ145,""),AO83) ) -> 59 | AO86: =ROUND((CHOOSE(AO81,AO72*AO85,IF(AO84>0,AH63/AO84*AO85,0),AO76,AO72*AO85,0)),2) -> 0 | AP86: HK angemessen (Berechnung entsprechend Verfahrenswahl) -ABS(AK143) | BK86: =BL86 -> 40 | BL86: 40 | BM86: 4 | BO86: < 175 / <160 kWh | BP86: < 125 / < 110 kWh | BQ86: < 75 / < 60 kWh | BS86: Bielefeld 1.6.2012 (mit / ohne WW)
B87: =IF(OR(F87>0,AND(F86=0,F87=0)),"Eheleute / Partner in eheähnlicher Gemeinschaft","") ->  | F87: =I5 -> 0 | H87: =IF(F87>0,IF(AO12,BE8/$AO$3,IF($AO$60="09",Werte09!D34,Werte10!D60)),0) -> 0 | I87: =IF(F87>0,IF($AO$60="09",Werte09!D39,Werte10!D70),0) -> 0 | K87: =IF(F87>0,H87*$F87,"") ->  | O87: =IF(F87>0,Werte10!D52-IF(AG$90=0,I87,0),"") ->  | P87: =IF(F87>0,O87*$F87,"") ->  | R87: 1 | S87: =Orte!AB30 -> 50 | V87: Zündstrom | AB87: =OR(AL23="x",AN54="allinc") -> FALSE | AE87: Heizkostenabzug anzeigen | AG87: =IF(OR(AG81,AG82,AG83,AG84,AND(AG85,AI85)),AM83,AO83) & IF(OR(AJ143,AJ146),AJ145,"")& IF(AG86,AH86,"") -> 0,00 € x 50,00 qm angem. Wohnfl. (max. HKS als Pauschale) | AO87: =AO72*AO84 -> 0 | AP87: HK angemessen bei zulässiger Überschreitung der Wohnfläche | BK87: =BL87+BM87 -> 41 | BL87: 40 | BM87: 1 | BO87: =$BU$87*$BT87 -> 18.55 | BP87: =$BV$87*$BT87 -> 26.5 | BQ87: =$BW$87*$BT87 -> 34.45 | BT87: 53 | BU87: =4.99-4.64 -> 0.35 | BV87: =5.14-4.64 -> 0.5 | BW87: =5.29-4.64 -> 0.65
B88: =AH6 ->  | F88: =AG6-AH4 -> 0 | H88: =IF(F88>0,IF(AO12,BE8/$AO$3,IF($AO$60="09",Werte09!D37,Werte10!D66)),0) -> 0 | I88: =IF(F88>0,IF($AO$60="09",Werte09!D42,Werte10!D76),0) -> 0 | K88: =IF(F88>0,H88*$F88,"") ->  | M88: =IF(F88>0,I88*$F88,"") ->  | O88: =IF(F88>0,Werte10!D56-IF(AG$90=0,I88,0),"") ->  | P88: =IF(F88>0,O88*$F88,"") ->  | R88: 2 | S88: =Orte!AC30 -> 60 | V88: Betriebskosten | W88: =AO18 -> 0 | X88: =W86+W87+W88 -> 0 | Y88: =ROUND(IF(Orte!BD28>0,Orte!BD28*AO85,AN17),2) -> 0 | Z88: =IF(AND(X88>Y88,K76<>"x",K76<>"ja",K35<>"Einzelfall"),Y88,X88) -> 0 | AO88: =IF(AND(H65="",OR(AO135,AO75=1,AND(VALUE(H65)=0,AND(AO71<>0,AO71<>"Richtwert",AO71<>"HK absolut",AO71<>"keine")))),1,0) -> 0 | AP88: qm abfragen = 1 | BK88: 42 | BL88: 40 | BM88: 2 | BO88: 21 | BP88: 30 | BQ88: 39 | BT88: 60
B89: =AH7 ->  | F89: =AG7 -> 0 | H89: =IF(F89>0,IF(AO12,BE8/$AO$3,IF($AO$60="09",Werte09!D36,Werte10!D65)),0) -> 0 | I89: =IF(F89>0,IF($AO$60="09",Werte09!D41,Werte10!D75),0) -> 0 | O89: =IF(F89>0,Werte10!D55-IF(AG$90=0,I89,0),"") ->  | R89: 3 | S89: =Orte!AD30 -> 75 | V89: Warmwasser | W89: =AN63 -> 0 | Z89: =AO63 -> 0 | AB89: =OR(H71="",H71="nein") -> TRUE | AC89: =AND(OR(H71="",H71="nein"),OR(K76="ja",K76="x"),AH63>H72,H72>0) -> FALSE | AD89: =IF(AC89,"x","") ->  | AE89: =IF(AC89=FALSE,"x","") -> x | AG89: =" (Haushaltsenergieanteil "&IF(AG90>0,"ohne","incl.")&" Kochenergie)" -> (Haushaltsenergieanteil ohne Kochenergie) | AO89: =SUM(AO90:AO92) -> 13.13 | AP89: ="Heizkosten sind"&IF(AO89=0," nicht","")&" definiert" -> Heizkosten sind definiert | BK89: 43 | BL89: 40 | BM89: 3 | BO89: 28 | BP89: 40 | BQ89: 52 | BT89: 80
B90: =AH8 ->  | F90: =AG8 -> 0 | H90: =IF(F90>0,IF(AO12,BE8/$AO$3,IF($AO$60="09",Werte09!D35,IF('ALG2'!B27>4.5,Werte10!D63,Werte10!D64))),0) -> 0 | I90: =IF(F90>0,IF($AO$60="09",Werte09!D40,IF('ALG2'!B27>4.5,Werte10!D73,Werte10!D74)),0) -> 0 | O90: =IF(F90>0,Werte10!D54-IF(AG$90=0,I90,0),"") ->  | R90: 4 | S90: =Orte!AE30 -> 85 | V90: Abzug BK | Y90: =IF(AG15=9,IF(AA98,AB98,W81*-1),IF(W88-Y88>0,W88-Y88,0)) -> 0 | AB90: =OR(K76="ja",K76="x") -> TRUE | AD90: =AH63-H72 -> 0 | AE90: =IF(AB29,0,IF(AH63-I72>0,AH63-I72,0)) -> 0 | AG90: =IF(Orte!BT27>1,1,0) -> 1 | AO90: =Orte!X19 -> 0 | AP90: Heizkosten absolut in Euro | BK90: 44 | BL90: 40 | BM90: 4 | BO90: 33.25 | BP90: 47.5 | BQ90: 61.75 | BT90: 95
